Workbook

Sheet FIG. 1-2
D7: (a) | G7: (b)
D8: Public Utility Bonds
D9: Baa | E9: A | G9: 30-Year | I9: Yield
D10: Utility | E10: Utility | G10: Treasury | I10: Spread
C12: 2019-07-15 | D12: 0.0413 | E12: 0.0369 | G12: 0.0257 | I12: =D12-G12 -> 0.0156 | J12: =E12-G12 -> 0.0112
C13: =C12+30 -> 2019-08-14 | D13: 0.0363 | E13: 0.0329 | G13: 0.0212 | I13: =D13-G13 -> 0.0151 | J13: =E13-G13 -> 0.0117
C14: =C13+30 -> 2019-09-13 | D14: 0.0371 | E14: 0.0337 | G14: 0.0216 | I14: 0.0155 | J14: 0.0121
C15: 2019-10-13 | D15: 0.0372 | E15: 0.0339 | G15: 0.0219 | I15: 0.0153 | J15: 0.012
C16: 2019-11-12 | D16: 0.0377 | E16: 0.0343 | G16: 0.0228 | I16: 0.0149 | J16: 0.0115
C17: 2019-12-12 | D17: 0.0373 | E17: 0.034 | G17: 0.023 | I17: 0.0143 | J17: 0.011
C18: 2020-01-11 | D18: 0.036 | E18: 0.0329 | G18: 0.0222 | I18: 0.0138 | J18: 0.0107
C19: 2020-02-10 | D19: 0.0342 | E19: 0.0311 | G19: 0.0197 | I19: 0.0145 | J19: 0.0114
C20: 2020-03-02 | D20: 0.0328 | E20: 0.0296 | G20: 0.0166 | I20: =D20-G20 -> 0.0162 | J20: 0.013
C21: 2020-03-03 | D21: 0.0324 | E21: 0.0295 | G21: 0.0164 | I21: 0.016 | J21: 0.0131
C22: 2020-03-04 | D22: 0.0325 | E22: 0.0296 | G22: 0.0167 | I22: 0.0158 | J22: 0.0129
C23: 2020-03-05 | D23: 0.0318 | E23: 0.0291 | G23: 0.0156 | I23: 0.0162 | J23: 0.0135
C24: 2020-03-06 | D24: 0.0301 | E24: 0.0268 | G24: 0.0125 | I24: 0.0176 | J24: 0.0143
C25: 2020-03-09 | D25: 0.0306 | E25: 0.0263 | G25: 0.0099 | I25: 0.0207 | J25: 0.0164
C26: 2020-03-10 | D26: 0.0331 | E26: 0.0297 | G26: 0.0128 | I26: 0.0203 | J26: 0.0169
C27: 2020-03-11 | D27: 0.0347 | E27: 0.0306 | G27: 0.013 | I27: 0.0217 | J27: 0.0176
C28: 2020-03-12 | D28: 0.0373 | E28: 0.033 | G28: 0.0149 | I28: 0.0224 | J28: 0.0181
C29: 2020-03-13 | D29: 0.039 | E29: 0.0344 | G29: 0.0156 | I29: 0.0234 | J29: 0.0188
C30: 2020-03-16 | D30: 0.0372 | E30: 0.0326 | G30: 0.0134 | I30: 0.0238 | J30: 0.0192
C31: 2020-03-17 | D31: 0.0418 | E31: 0.0362 | G31: 0.0163 | I31: 0.0255 | J31: 0.0199
C32: 2020-03-18 | D32: 0.0461 | E32: 0.0409 | G32: 0.0177 | I32: 0.0284 | J32: 0.0232
C33: 2020-03-19 | D33: 0.0474 | E33: 0.0412 | G33: 0.0178 | I33: 0.0296 | J33: 0.0234
C34: 2020-03-20 | D34: 0.0469 | E34: 0.0418 | G34: 0.0155 | I34: 0.0314 | J34: 0.0263
C35: 2020-03-23 | D35: 0.0462 | E35: 0.0411 | G35: 0.0133 | I35: 0.0329 | J35: 0.0278
C36: 2020-03-24 | D36: 0.0461 | E36: 0.0418 | G36: 0.0139 | I36: 0.0322 | J36: 0.0279
C37: 2020-03-25 | D37: 0.0473 | E37: 0.0421 | G37: 0.0145 | I37: 0.0328 | J37: 0.0276
C38: 2020-03-26 | D38: 0.0463 | E38: 0.0408 | G38: 0.0142 | I38: 0.0321 | J38: 0.0266
C39: 2020-03-27 | D39: 0.0445 | E39: 0.0394 | G39: 0.0129 | I39: 0.0316 | J39: 0.0265
C40: 2020-03-30 | D40: 0.0436 | E40: 0.0371 | G40: 0.0131 | I40: 0.0305 | J40: 0.024
C41: 2020-03-31 | D41: 0.0439 | E41: 0.0369 | G41: 0.0135 | I41: 0.0304 | J41: 0.0234
B42: Average | G42: =ROUND(AVERAGE(G12:G17),4) -> 0.0227
G43: =G42-I42 -> 0.0227
B68: Source: Moody's Investors Service; https://fred.stlouisfed.org.
B91: Source: Moody's Investors Service.

Sheet Table AMM-2 AMM-8
E1: (a) | I1: (b) | L1: (c)
E2: S&P | I2: Moody's | L2: Value Line | Z2: S&P | AD2: Moody's | AG2: Value Line
E3: Corporate | I3: Long-term | L3: Safety | O3: Financial | Z3: Corporate | AD3: Long-term | AG3: Safety | AJ3: Financial
B4: Company | E4: Rating | I4: Rating | L4: Rank | O4: Strength | S4: Beta | Z4: Rating | AD4: Rating | AG4: Rank | AJ4: Strength | AN4: Beta
A5: =A4+1 -> 1 | B5: =VLOOKUP('Proxy Group Ticker'!$B3,vldatabase,2,FALSE) -> Alliant Energy | D5: =VLOOKUP('Proxy Group Ticker'!$B3,vldatabase,26,FALSE) -> A- | H5: =VLOOKUP('Proxy Group Ticker'!$B3,vldatabase,27,FALSE) -> Baa2 | L5: =VLOOKUP('Proxy Group Ticker'!$B3,vldatabase,22,FALSE) -> 2 | O5: =VLOOKUP('Proxy Group Ticker'!$B3,vldatabase,24,FALSE) -> A | S5: =VLOOKUP('Proxy Group Ticker'!$B3,vldatabase,23,FALSE) -> 0.55 | W5: Non-Utility Group | Y5: BBB+ to AAA | AC5: Baa3 to Aaa | AG5: 1 to 2 | AI5: B++ to A++ | AN5: 0.60 to 0.80
A6: =A5+1 -> 2 | B6: =VLOOKUP('Proxy Group Ticker'!$B4,vldatabase,2,FALSE) -> Ameren Corp. | D6: =VLOOKUP('Proxy Group Ticker'!$B4,vldatabase,26,FALSE) -> BBB+ | H6: =VLOOKUP('Proxy Group Ticker'!$B4,vldatabase,27,FALSE) -> Baa1 | L6: =VLOOKUP('Proxy Group Ticker'!$B4,vldatabase,22,FALSE) -> 2 | O6: =VLOOKUP('Proxy Group Ticker'!$B4,vldatabase,24,FALSE) -> A | S6: =VLOOKUP('Proxy Group Ticker'!$B4,vldatabase,23,FALSE) -> 0.5 | W6: Electric Group | Y6: BBB+ to A- | AC6: Baa3 to Baa1 | AG6: 1 to 2 | AI6: B++ to A+ | AN6: 0.40 to 0.70
A7: 3 | B7: =VLOOKUP('Proxy Group Ticker'!$B5,vldatabase,2,FALSE) -> American Elec Pwr | D7: =VLOOKUP('Proxy Group Ticker'!$B5,vldatabase,26,FALSE) -> A- | H7: =VLOOKUP('Proxy Group Ticker'!$B5,vldatabase,27,FALSE) -> Baa1 | L7: =VLOOKUP('Proxy Group Ticker'!$B5,vldatabase,22,FALSE) -> 1 | O7: =VLOOKUP('Proxy Group Ticker'!$B5,vldatabase,24,FALSE) -> A+ | S7: =VLOOKUP('Proxy Group Ticker'!$B5,vldatabase,23,FALSE) -> 0.5 | W7: Kentucky Power | Y7: A- | Z7: A- | AC7: Baa3 | AD7: A2 | AG7: 1 | AJ7: A+ | AN7: 0.55
A8: 4 | B8: =VLOOKUP('Proxy Group Ticker'!$B6,vldatabase,2,FALSE) -> Avangrid, Inc. | D8: =VLOOKUP('Proxy Group Ticker'!$B6,vldatabase,26,FALSE) -> BBB+ | H8: =VLOOKUP('Proxy Group Ticker'!$B6,vldatabase,27,FALSE) -> Baa1 | L8: =VLOOKUP('Proxy Group Ticker'!$B6,vldatabase,22,FALSE) -> 2 | O8: =VLOOKUP('Proxy Group Ticker'!$B6,vldatabase,24,FALSE) -> B++ | S8: =VLOOKUP('Proxy Group Ticker'!$B6,vldatabase,23,FALSE) -> 0.4
A9: 5 | B9: =VLOOKUP('Proxy Group Ticker'!$B7,vldatabase,2,FALSE) -> Black Hills Corp. | D9: =VLOOKUP('Proxy Group Ticker'!$B7,vldatabase,26,FALSE) -> BBB+ | H9: =VLOOKUP('Proxy Group Ticker'!$B7,vldatabase,27,FALSE) -> Baa2 | L9: =VLOOKUP('Proxy Group Ticker'!$B7,vldatabase,22,FALSE) -> 2 | O9: =VLOOKUP('Proxy Group Ticker'!$B7,vldatabase,24,FALSE) -> A | S9: =VLOOKUP('Proxy Group Ticker'!$B7,vldatabase,23,FALSE) -> 0.65
A10: 6 | B10: =VLOOKUP('Proxy Group Ticker'!$B8,vldatabase,2,FALSE) -> CMS Energy Corp. | D10: =VLOOKUP('Proxy Group Ticker'!$B8,vldatabase,26,FALSE) -> BBB+ | H10: =VLOOKUP('Proxy Group Ticker'!$B8,vldatabase,27,FALSE) -> Baa1 | L10: =VLOOKUP('Proxy Group Ticker'!$B8,vldatabase,22,FALSE) -> 2 | O10: =VLOOKUP('Proxy Group Ticker'!$B8,vldatabase,24,FALSE) -> B++ | S10: =VLOOKUP('Proxy Group Ticker'!$B8,vldatabase,23,FALSE) -> 0.5
A11: 7 | B11: =VLOOKUP('Proxy Group Ticker'!$B9,vldatabase,2,FALSE) -> Consolidated Edison | D11: =VLOOKUP('Proxy Group Ticker'!$B9,vldatabase,26,FALSE) -> A- | H11: =VLOOKUP('Proxy Group Ticker'!$B9,vldatabase,27,FALSE) -> Baa2 | L11: =VLOOKUP('Proxy Group Ticker'!$B9,vldatabase,22,FALSE) -> 1 | O11: =VLOOKUP('Proxy Group Ticker'!$B9,vldatabase,24,FALSE) -> A+ | S11: =VLOOKUP('Proxy Group Ticker'!$B9,vldatabase,23,FALSE) -> 0.4
A12: 8 | B12: =VLOOKUP('Proxy Group Ticker'!$B10,vldatabase,2,FALSE) -> Dominion Energy | D12: =VLOOKUP('Proxy Group Ticker'!$B10,vldatabase,26,FALSE) -> BBB+ | H12: =VLOOKUP('Proxy Group Ticker'!$B10,vldatabase,27,FALSE) -> Baa2 | L12: =VLOOKUP('Proxy Group Ticker'!$B10,vldatabase,22,FALSE) -> 2 | O12: =VLOOKUP('Proxy Group Ticker'!$B10,vldatabase,24,FALSE) -> B++ | S12: =VLOOKUP('Proxy Group Ticker'!$B10,vldatabase,23,FALSE) -> 0.5
A13: 9 | B13: =VLOOKUP('Proxy Group Ticker'!$B11,vldatabase,2,FALSE) -> DTE Energy Co. | D13: =VLOOKUP('Proxy Group Ticker'!$B11,vldatabase,26,FALSE) -> BBB+ | H13: =VLOOKUP('Proxy Group Ticker'!$B11,vldatabase,27,FALSE) -> Baa2 | L13: =VLOOKUP('Proxy Group Ticker'!$B11,vldatabase,22,FALSE) -> 2 | O13: =VLOOKUP('Proxy Group Ticker'!$B11,vldatabase,24,FALSE) -> B++ | S13: =VLOOKUP('Proxy Group Ticker'!$B11,vldatabase,23,FALSE) -> 0.5
A14: 10 | B14: =VLOOKUP('Proxy Group Ticker'!$B12,vldatabase,2,FALSE) -> Duke Energy Corp. | D14: =VLOOKUP('Proxy Group Ticker'!$B12,vldatabase,26,FALSE) -> A- | H14: =VLOOKUP('Proxy Group Ticker'!$B12,vldatabase,27,FALSE) -> Baa1 | L14: =VLOOKUP('Proxy Group Ticker'!$B12,vldatabase,22,FALSE) -> 2 | O14: =VLOOKUP('Proxy Group Ticker'!$B12,vldatabase,24,FALSE) -> A | S14: =VLOOKUP('Proxy Group Ticker'!$B12,vldatabase,23,FALSE) -> 0.45
A15: 11 | B15: =VLOOKUP('Proxy Group Ticker'!$B13,vldatabase,2,FALSE) -> Entergy Corp. | D15: =VLOOKUP('Proxy Group Ticker'!$B13,vldatabase,26,FALSE) -> BBB+ | H15: =VLOOKUP('Proxy Group Ticker'!$B13,vldatabase,27,FALSE) -> Baa2 | L15: =VLOOKUP('Proxy Group Ticker'!$B13,vldatabase,22,FALSE) -> 2 | O15: =VLOOKUP('Proxy Group Ticker'!$B13,vldatabase,24,FALSE) -> B++ | S15: =VLOOKUP('Proxy Group Ticker'!$B13,vldatabase,23,FALSE) -> 0.6
A16: 12 | B16: =VLOOKUP('Proxy Group Ticker'!$B14,vldatabase,2,FALSE) -> Evergy Inc. | D16: =VLOOKUP('Proxy Group Ticker'!$B14,vldatabase,26,FALSE) -> A- | H16: =VLOOKUP('Proxy Group Ticker'!$B14,vldatabase,27,FALSE) -> Baa2 | L16: =VLOOKUP('Proxy Group Ticker'!$B14,vldatabase,22,FALSE) -> 2 | O16: =VLOOKUP('Proxy Group Ticker'!$B14,vldatabase,24,FALSE) -> B++ | S16: =VLOOKUP('Proxy Group Ticker'!$B14,vldatabase,23,FALSE) -> n/a
A17: 13 | B17: =VLOOKUP('Proxy Group Ticker'!$B15,vldatabase,2,FALSE) -> Eversource Energy | D17: =VLOOKUP('Proxy Group Ticker'!$B15,vldatabase,26,FALSE) -> A- | H17: =VLOOKUP('Proxy Group Ticker'!$B15,vldatabase,27,FALSE) -> Baa1 | L17: =VLOOKUP('Proxy Group Ticker'!$B15,vldatabase,22,FALSE) -> 1 | O17: =VLOOKUP('Proxy Group Ticker'!$B15,vldatabase,24,FALSE) -> A | S17: =VLOOKUP('Proxy Group Ticker'!$B15,vldatabase,23,FALSE) -> 0.55
A18: 14 | B18: =VLOOKUP('Proxy Group Ticker'!$B16,vldatabase,2,FALSE) -> Exelon Corp. | D18: =VLOOKUP('Proxy Group Ticker'!$B16,vldatabase,26,FALSE) -> BBB+ | H18: =VLOOKUP('Proxy Group Ticker'!$B16,vldatabase,27,FALSE) -> Baa2 | L18: =VLOOKUP('Proxy Group Ticker'!$B16,vldatabase,22,FALSE) -> 2 | O18: =VLOOKUP('Proxy Group Ticker'!$B16,vldatabase,24,FALSE) -> B++ | S18: =VLOOKUP('Proxy Group Ticker'!$B16,vldatabase,23,FALSE) -> 0.65
A19: 15 | B19: =VLOOKUP('Proxy Group Ticker'!$B17,vldatabase,2,FALSE) -> Fortis Inc. | D19: =VLOOKUP('Proxy Group Ticker'!$B17,vldatabase,26,FALSE) -> A- | H19: =VLOOKUP('Proxy Group Ticker'!$B17,vldatabase,27,FALSE) -> Baa3 | L19: =VLOOKUP('Proxy Group Ticker'!$B17,vldatabase,22,FALSE) -> 2 | O19: =VLOOKUP('Proxy Group Ticker'!$B17,vldatabase,24,FALSE) -> B++ | S19: =VLOOKUP('Proxy Group Ticker'!$B17,vldatabase,23,FALSE) -> 0.6
A20: 16 | B20: =VLOOKUP('Proxy Group Ticker'!$B18,vldatabase,2,FALSE) -> NextEra Energy, Inc. | D20: =VLOOKUP('Proxy Group Ticker'!$B18,vldatabase,26,FALSE) -> A- | H20: =VLOOKUP('Proxy Group Ticker'!$B18,vldatabase,27,FALSE) -> Baa1 | L20: =VLOOKUP('Proxy Group Ticker'!$B18,vldatabase,22,FALSE) -> 1 | O20: =VLOOKUP('Proxy Group Ticker'!$B18,vldatabase,24,FALSE) -> A+ | S20: =VLOOKUP('Proxy Group Ticker'!$B18,vldatabase,23,FALSE) -> 0.5
A21: 17 | B21: =VLOOKUP('Proxy Group Ticker'!$B19,vldatabase,2,FALSE) -> OGE Energy Corp. | D21: =VLOOKUP('Proxy Group Ticker'!$B19,vldatabase,26,FALSE) -> BBB+ | H21: =VLOOKUP('Proxy Group Ticker'!$B19,vldatabase,27,FALSE) -> Baa1 | L21: =VLOOKUP('Proxy Group Ticker'!$B19,vldatabase,22,FALSE) -> 2 | O21: =VLOOKUP('Proxy Group Ticker'!$B19,vldatabase,24,FALSE) -> A | S21: =VLOOKUP('Proxy Group Ticker'!$B19,vldatabase,23,FALSE) -> 0.7
A22: 18 | B22: =VLOOKUP('Proxy Group Ticker'!$B20,vldatabase,2,FALSE) -> PPL Corp. | D22: =VLOOKUP('Proxy Group Ticker'!$B20,vldatabase,26,FALSE) -> A- | H22: =VLOOKUP('Proxy Group Ticker'!$B20,vldatabase,27,FALSE) -> Baa2 | L22: =VLOOKUP('Proxy Group Ticker'!$B20,vldatabase,22,FALSE) -> 2 | O22: =VLOOKUP('Proxy Group Ticker'!$B20,vldatabase,24,FALSE) -> B++ | S22: =VLOOKUP('Proxy Group Ticker'!$B20,vldatabase,23,FALSE) -> 0.65
A23: 19 | B23: =VLOOKUP('Proxy Group Ticker'!$B21,vldatabase,2,FALSE) -> Pub Sv Enterprise Grp. | D23: =VLOOKUP('Proxy Group Ticker'!$B21,vldatabase,26,FALSE) -> BBB+ | H23: =VLOOKUP('Proxy Group Ticker'!$B21,vldatabase,27,FALSE) -> Baa1 | L23: =VLOOKUP('Proxy Group Ticker'!$B21,vldatabase,22,FALSE) -> 1 | O23: =VLOOKUP('Proxy Group Ticker'!$B21,vldatabase,24,FALSE) -> A++ | S23: =VLOOKUP('Proxy Group Ticker'!$B21,vldatabase,23,FALSE) -> 0.6
A24: 20 | B24: =VLOOKUP('Proxy Group Ticker'!$B22,vldatabase,2,FALSE) -> Sempra Energy | D24: =VLOOKUP('Proxy Group Ticker'!$B22,vldatabase,26,FALSE) -> BBB+ | H24: =VLOOKUP('Proxy Group Ticker'!$B22,vldatabase,27,FALSE) -> Baa1 | L24: =VLOOKUP('Proxy Group Ticker'!$B22,vldatabase,22,FALSE) -> 2 | O24: =VLOOKUP('Proxy Group Ticker'!$B22,vldatabase,24,FALSE) -> A | S24: =VLOOKUP('Proxy Group Ticker'!$B22,vldatabase,23,FALSE) -> 0.65
A25: 21 | B25: =VLOOKUP('Proxy Group Ticker'!$B23,vldatabase,2,FALSE) -> Southern Company | D25: =VLOOKUP('Proxy Group Ticker'!$B23,vldatabase,26,FALSE) -> A- | H25: =VLOOKUP('Proxy Group Ticker'!$B23,vldatabase,27,FALSE) -> Baa2 | L25: =VLOOKUP('Proxy Group Ticker'!$B23,vldatabase,22,FALSE) -> 2 | O25: =VLOOKUP('Proxy Group Ticker'!$B23,vldatabase,24,FALSE) -> A | S25: =VLOOKUP('Proxy Group Ticker'!$B23,vldatabase,23,FALSE) -> 0.5
A26: 22 | B26: =VLOOKUP('Proxy Group Ticker'!$B24,vldatabase,2,FALSE) -> WEC Energy Group | D26: =VLOOKUP('Proxy Group Ticker'!$B24,vldatabase,26,FALSE) -> A- | H26: =VLOOKUP('Proxy Group Ticker'!$B24,vldatabase,27,FALSE) -> Baa1 | L26: =VLOOKUP('Proxy Group Ticker'!$B24,vldatabase,22,FALSE) -> 1 | O26: =VLOOKUP('Proxy Group Ticker'!$B24,vldatabase,24,FALSE) -> A+ | S26: =VLOOKUP('Proxy Group Ticker'!$B24,vldatabase,23,FALSE) -> 0.45
A27: 23 | B27: =VLOOKUP('Proxy Group Ticker'!$B25,vldatabase,2,FALSE) -> Xcel Energy Inc. | D27: =VLOOKUP('Proxy Group Ticker'!$B25,vldatabase,26,FALSE) -> A- | H27: =VLOOKUP('Proxy Group Ticker'!$B25,vldatabase,27,FALSE) -> Baa1 | L27: =VLOOKUP('Proxy Group Ticker'!$B25,vldatabase,22,FALSE) -> 1 | O27: =VLOOKUP('Proxy Group Ticker'!$B25,vldatabase,24,FALSE) -> A+ | S27: =VLOOKUP('Proxy Group Ticker'!$B25,vldatabase,23,FALSE) -> 0.45
B29: Range | D29: BBB+ to A- | H29: Baa3 to Baa1 | L29: 1 to 2 | N29: B++ to A+ | R29: 0.40 to 0.70
B31: Kentucky Power | E31: A- | I31: Baa3 | L31: 1 | O31: A+ | S31: 0.55
A34: (a) | B34: ='Electric Utility Data'!B52 -> Issuer credit rating from www.standardandpoors.com (retrieved May 1, 2020).
A35: (b) | B35: ='Electric Utility Data'!B53 -> Long-term rating from www.moodys.com (retrieved May 1, 2020).
A36: (c) | B36: ='Electric Utility Data'!B51 -> The Value Line Investment Survey (Feb. 14, Mar. 13 and Apr. 24, 2020).

Sheet Table AMM-3
F5: Average
D6: ='Bond Yields'!B14 -> Apr. 2020 | F6: ='Bond Yields'!M50 -> 2021-25 | H6: Change (bp) | J6: ='Bond Yields'!C50 -> 2021 | L6: ='Bond Yields'!E50 -> 2022 | N6: ='Bond Yields'!G50 -> 2023 | P6: ='Bond Yields'!I50 -> 2024 | R6: ='Bond Yields'!K50 -> 2025
B7: 10-Yr. Treasury | D7: ='Bond Yields'!M14 -> 0.0066 | F7: =AVERAGE(J7:R7) -> 0.02933 | H7: =(F7-D7)*10000 -> 227.3 | J7: =AVERAGE('Bond Yields'!C51:C54) -> 0.026 | L7: =AVERAGE('Bond Yields'!E51:E54) -> 0.02855 | N7: =AVERAGE('Bond Yields'!G51:G54) -> 0.029925 | P7: =AVERAGE('Bond Yields'!I51:I54) -> 0.030775 | R7: =AVERAGE('Bond Yields'!K51:K54) -> 0.0314
B8: 30-Yr. Treasury | D8: ='Bond Yields'!K14 -> 0.0127 | F8: =AVERAGE(J8:R8) -> 0.03248333333 | H8: =(F8-D8)*10000 -> 197.8333333 | J8: =AVERAGE('Bond Yields'!C57:C59) -> 0.02853333333 | L8: =AVERAGE('Bond Yields'!E57:E59) -> 0.03153333333 | N8: =AVERAGE('Bond Yields'!G57:G59) -> 0.03286666667 | P8: =AVERAGE('Bond Yields'!I57:I59) -> 0.03433333333 | R8: =AVERAGE('Bond Yields'!K57:K59) -> 0.03515
B9: Aaa Corporate | D9: ='Bond Yields'!O14 -> 0.0243 | F9: 0.03922666667 | H9: 149.2666667 | J9: =AVERAGE('Bond Yields'!C62:C64) -> 0.03496666667 | L9: =AVERAGE('Bond Yields'!E62:E64) -> 0.03786666667 | N9: =AVERAGE('Bond Yields'!G62:G64) -> 0.03973333333 | P9: =AVERAGE('Bond Yields'!I62:I64) -> 0.04096666667 | R9: =AVERAGE('Bond Yields'!K62:K64) -> 0.0426
B10: Aa Utility | D10: ='Bond Yields'!G14 -> 0.0293 | F10: 0.04446 | H10: 151.6 | J10: =AVERAGE('Bond Yields'!C67:C68) -> 0.04175 | L10: =AVERAGE('Bond Yields'!E67:E68) -> 0.0439 | N10: =AVERAGE('Bond Yields'!G67:G68) -> 0.0452 | P10: =AVERAGE('Bond Yields'!I67:I68) -> 0.04565 | R10: =AVERAGE('Bond Yields'!K67:K68) -> 0.0458
B12: Source:
B13: ='Bond Yields'!B72&"." -> Value Line Investment Survey, Forecast for the U.S. Economy (Feb. 28, 2020).
B14: ='Bond Yields'!B73&"." -> IHS Markit, Long-Term Macro Forecast - Baseline (Apr. 8, 2020).
B15: ='Bond Yields'!B74&"." -> Energy Information Administration, Annual Energy Outlook 2020 (Jan. 29, 2020).
B16: ='Bond Yields'!B75&"." -> Wolters Kluwer, Blue Chip Financial Forecasts (Dec. 1, 2019).

Sheet Proxy Group Criteria
A1: PROXY GROUP SELECTION
F4: (a) | I4: (b) | L4: (c) | R4: (c)
F5: S&P | I5: Moody's | L5: Value Line | V5: Override:
F6: Credit | I6: Issuer | L6: Safety | N6: Financial | R6: Market | T6: Gas | V6: "Y" for Incl.
B7: Included | C7: SYM | D7: Company | F7: Rating | I7: Rating | L7: Rank | N7: Strength | P7: Beta | R7: Cap | T7: Utility | V7: "X" for Excl. | W7: Comments
A8: =A7+1 -> 1 | B8: =IF(AND(G8<=$G$57,G8>=$G$58,J8<=$J$57,J8>=$J$58,V8<>"X"),"Y",IF(V8="Y","Y","")) ->  | C8: ='Electric Utility Data'!B8 -> AQN | D8: ='Electric Utility Data'!C8 -> Algonquin Pwr & Util | F8: ='Electric Utility Data'!AA8 -> BBB | G8: =VLOOKUP(F8,'Ordinal Ratings'!$A$6:$B$28,2,FALSE) -> 9 | I8: ='Electric Utility Data'!AB8 -> NR | J8: =VLOOKUP(I8,'Ordinal Ratings'!I$6:J$25,2,FALSE) -> -- | L8: ='Electric Utility Data'!W8 -> n/a | N8: ='Electric Utility Data'!Y8 -> n/a | P8: ='Electric Utility Data'!X8 -> 0.5 | R8: ='Electric Utility Data'!AC8 -> 7032.854566 | T8: Y
A9: =A8+1 -> 2 | B9: =IF(AND(G9<=$G$57,G9>=$G$58,J9<=$J$57,J9>=$J$58,V9<>"X"),"Y",IF(V9="Y","Y","")) ->  | C9: ='Electric Utility Data'!B9 -> ALE | D9: ='Electric Utility Data'!C9 -> ALLETE | F9: ='Electric Utility Data'!AA9 -> BBB | G9: =VLOOKUP(F9,'Ordinal Ratings'!$A$6:$B$28,2,FALSE) -> 9 | I9: ='Electric Utility Data'!AB9 -> Baa1 | J9: =VLOOKUP(I9,'Ordinal Ratings'!I$6:J$25,2,FALSE) -> 8 | L9: ='Electric Utility Data'!W9 -> 2 | N9: ='Electric Utility Data'!Y9 -> A | P9: ='Electric Utility Data'!X9 -> 0.6 | R9: ='Electric Utility Data'!AC9 -> 3800 | T9: Y
A10: 3 | B10: Y | C10: ='Electric Utility Data'!B10 -> LNT | D10: ='Electric Utility Data'!C10 -> Alliant Energy | F10: ='Electric Utility Data'!AA10 -> A- | G10: =VLOOKUP(F10,'Ordinal Ratings'!$A$6:$B$28,2,FALSE) -> 7 | I10: ='Electric Utility Data'!AB10 -> Baa2 | J10: =VLOOKUP(I10,'Ordinal Ratings'!I$6:J$25,2,FALSE) -> 9 | L10: ='Electric Utility Data'!W10 -> 2 | N10: ='Electric Utility Data'!Y10 -> A | P10: ='Electric Utility Data'!X10 -> 0.55 | R10: ='Electric Utility Data'!AC10 -> 13400 | T10: Y
A11: 4 | B11: Y | C11: ='Electric Utility Data'!B11 -> AEE | D11: ='Electric Utility Data'!C11 -> Ameren Corp. | F11: ='Electric Utility Data'!AA11 -> BBB+ | G11: =VLOOKUP(F11,'Ordinal Ratings'!$A$6:$B$28,2,FALSE) -> 8 | I11: ='Electric Utility Data'!AB11 -> Baa1 | J11: =VLOOKUP(I11,'Ordinal Ratings'!I$6:J$25,2,FALSE) -> 8 | L11: ='Electric Utility Data'!W11 -> 2 | N11: ='Electric Utility Data'!Y11 -> A | P11: ='Electric Utility Data'!X11 -> 0.5 | R11: ='Electric Utility Data'!AC11 -> 20000 | T11: Y
A12: 5 | B12: Y | C12: ='Electric Utility Data'!B12 -> AEP | D12: ='Electric Utility Data'!C12 -> American Elec Pwr | F12: ='Electric Utility Data'!AA12 -> A- | G12: =VLOOKUP(F12,'Ordinal Ratings'!$A$6:$B$28,2,FALSE) -> 7 | I12: ='Electric Utility Data'!AB12 -> Baa1 | J12: =VLOOKUP(I12,'Ordinal Ratings'!I$6:J$25,2,FALSE) -> 8 | L12: ='Electric Utility Data'!W12 -> 1 | N12: ='Electric Utility Data'!Y12 -> A+ | P12: ='Electric Utility Data'!X12 -> 0.5 | R12: ='Electric Utility Data'!AC12 -> 47000 | T12: N
A13: 6 | B13: Y | C13: ='Electric Utility Data'!B13 -> AGR | D13: ='Electric Utility Data'!C13 -> Avangrid, Inc. | F13: ='Electric Utility Data'!AA13 -> BBB+ | G13: =VLOOKUP(F13,'Ordinal Ratings'!$A$6:$B$28,2,FALSE) -> 8 | I13: ='Electric Utility Data'!AB13 -> Baa1 | J13: =VLOOKUP(I13,'Ordinal Ratings'!I$6:J$25,2,FALSE) -> 8 | L13: ='Electric Utility Data'!W13 -> 2 | N13: ='Electric Utility Data'!Y13 -> B++ | P13: ='Electric Utility Data'!X13 -> 0.4 | R13: ='Electric Utility Data'!AC13 -> 16000 | T13: Y
A14: 7 | C14: ='Electric Utility Data'!B14 -> AVA | D14: ='Electric Utility Data'!C14 -> Avista Corp. | F14: ='Electric Utility Data'!AA14 -> BBB | G14: =VLOOKUP(F14,'Ordinal Ratings'!$A$6:$B$28,2,FALSE) -> 9 | I14: ='Electric Utility Data'!AB14 -> Baa2 | J14: =VLOOKUP(I14,'Ordinal Ratings'!I$6:J$25,2,FALSE) -> 9 | L14: ='Electric Utility Data'!W14 -> 2 | N14: ='Electric Utility Data'!Y14 -> A | P14: ='Electric Utility Data'!X14 -> 0.6 | R14: ='Electric Utility Data'!AC14 -> 2900 | T14: Y
A15: 8 | B15: Y | C15: ='Electric Utility Data'!B15 -> BKH | D15: ='Electric Utility Data'!C15 -> Black Hills Corp. | F15: ='Electric Utility Data'!AA15 -> BBB+ | G15: =VLOOKUP(F15,'Ordinal Ratings'!$A$6:$B$28,2,FALSE) -> 8 | I15: ='Electric Utility Data'!AB15 -> Baa2 | J15: =VLOOKUP(I15,'Ordinal Ratings'!I$6:J$25,2,FALSE) -> 9 | L15: ='Electric Utility Data'!W15 -> 2 | N15: ='Electric Utility Data'!Y15 -> A | P15: ='Electric Utility Data'!X15 -> 0.65 | R15: ='Electric Utility Data'!AC15 -> 4200 | T15: Y
A16: 9 | C16: ='Electric Utility Data'!B16 -> CNP | D16: ='Electric Utility Data'!C16 -> CenterPoint Energy | F16: ='Electric Utility Data'!AA16 -> BBB+ | G16: =VLOOKUP(F16,'Ordinal Ratings'!$A$6:$B$28,2,FALSE) -> 8 | I16: ='Electric Utility Data'!AB16 -> Baa2 | J16: =VLOOKUP(I16,'Ordinal Ratings'!I$6:J$25,2,FALSE) -> 9 | L16: ='Electric Utility Data'!W16 -> 3 | N16: ='Electric Utility Data'!Y16 -> B+ | P16: ='Electric Utility Data'!X16 -> 0.7 | R16: ='Electric Utility Data'!AC16 -> 12000 | T16: Y | V16: X | W16: Quarterly dividend cut 4/2/20 (29 cents to 15 cents).
A17: 10 | B17: Y | C17: ='Electric Utility Data'!B17 -> CMS | D17: ='Electric Utility Data'!C17 -> CMS Energy Corp. | F17: ='Electric Utility Data'!AA17 -> BBB+ | G17: =VLOOKUP(F17,'Ordinal Ratings'!$A$6:$B$28,2,FALSE) -> 8 | I17: ='Electric Utility Data'!AB17 -> Baa1 | J17: =VLOOKUP(I17,'Ordinal Ratings'!I$6:J$25,2,FALSE) -> 8 | L17: ='Electric Utility Data'!W17 -> 2 | N17: ='Electric Utility Data'!Y17 -> B++ | P17: ='Electric Utility Data'!X17 -> 0.5 | R17: ='Electric Utility Data'!AC17 -> 18000 | T17: Y
A18: 11 | B18: Y | C18: ='Electric Utility Data'!B18 -> ED | D18: ='Electric Utility Data'!C18 -> Consolidated Edison | F18: ='Electric Utility Data'!AA18 -> A- | G18: =VLOOKUP(F18,'Ordinal Ratings'!$A$6:$B$28,2,FALSE) -> 7 | I18: ='Electric Utility Data'!AB18 -> Baa2 | J18: =VLOOKUP(I18,'Ordinal Ratings'!I$6:J$25,2,FALSE) -> 9 | L18: ='Electric Utility Data'!W18 -> 1 | N18: ='Electric Utility Data'!Y18 -> A+ | P18: ='Electric Utility Data'!X18 -> 0.4 | R18: ='Electric Utility Data'!AC18 -> 31000 | T18: Y
A19: 12 | B19: Y | C19: ='Electric Utility Data'!B19 -> D | D19: ='Electric Utility Data'!C19 -> Dominion Energy | F19: ='Electric Utility Data'!AA19 -> BBB+ | G19: =VLOOKUP(F19,'Ordinal Ratings'!$A$6:$B$28,2,FALSE) -> 8 | I19: ='Electric Utility Data'!AB19 -> Baa2 | J19: =VLOOKUP(I19,'Ordinal Ratings'!I$6:J$25,2,FALSE) -> 9 | L19: ='Electric Utility Data'!W19 -> 2 | N19: ='Electric Utility Data'!Y19 -> B++ | P19: ='Electric Utility Data'!X19 -> 0.5 | R19: ='Electric Utility Data'!AC19 -> 70000 | T19: Y
A20: 13 | B20: Y | C20: ='Electric Utility Data'!B20 -> DTE | D20: ='Electric Utility Data'!C20 -> DTE Energy Co. | F20: ='Electric Utility Data'!AA20 -> BBB+ | G20: =VLOOKUP(F20,'Ordinal Ratings'!$A$6:$B$28,2,FALSE) -> 8 | I20: ='Electric Utility Data'!AB20 -> Baa2 | J20: =VLOOKUP(I20,'Ordinal Ratings'!I$6:J$25,2,FALSE) -> 9 | L20: ='Electric Utility Data'!W20 -> 2 | N20: ='Electric Utility Data'!Y20 -> B++ | P20: ='Electric Utility Data'!X20 -> 0.5 | R20: ='Electric Utility Data'!AC20 -> 22000 | T20: Y
A21: 14 | B21: Y | C21: ='Electric Utility Data'!B21 -> DUK | D21: ='Electric Utility Data'!C21 -> Duke Energy Corp. | F21: ='Electric Utility Data'!AA21 -> A- | G21: =VLOOKUP(F21,'Ordinal Ratings'!$A$6:$B$28,2,FALSE) -> 7 | I21: ='Electric Utility Data'!AB21 -> Baa1 | J21: =VLOOKUP(I21,'Ordinal Ratings'!I$6:J$25,2,FALSE) -> 8 | L21: ='Electric Utility Data'!W21 -> 2 | N21: ='Electric Utility Data'!Y21 -> A | P21: ='Electric Utility Data'!X21 -> 0.45 | R21: ='Electric Utility Data'!AC21 -> 70000 | T21: Y
A22: 15 | C22: ='Electric Utility Data'!B22 -> EIX | D22: ='Electric Utility Data'!C22 -> Edison International | F22: ='Electric Utility Data'!AA22 -> BBB | G22: =VLOOKUP(F22,'Ordinal Ratings'!$A$6:$B$28,2,FALSE) -> 9 | I22: ='Electric Utility Data'!AB22 -> Baa3 | J22: =VLOOKUP(I22,'Ordinal Ratings'!I$6:J$25,2,FALSE) -> 10 | L22: ='Electric Utility Data'!W22 -> 3 | N22: ='Electric Utility Data'!Y22 -> B+ | P22: ='Electric Utility Data'!X22 -> 0.55 | R22: ='Electric Utility Data'!AC22 -> 22000 | T22: N
A23: 16 | C23: ='Electric Utility Data'!B23 -> EE | D23: ='Electric Utility Data'!C23 -> El Paso Electric Co. | F23: ='Electric Utility Data'!AA23 -> BBB | G23: =VLOOKUP(F23,'Ordinal Ratings'!$A$6:$B$28,2,FALSE) -> 9 | I23: ='Electric Utility Data'!AB23 -> Baa2 | J23: =VLOOKUP(I23,'Ordinal Ratings'!I$6:J$25,2,FALSE) -> 9 | L23: ='Electric Utility Data'!W23 -> 2 | N23: ='Electric Utility Data'!Y23 -> B++ | P23: ='Electric Utility Data'!X23 -> 0.6 | R23: ='Electric Utility Data'!AC23 -> 2800 | T23: N | V23: X | W23: Takeover by Infrastructure Investments Fund announced Jun. 3, 2019.
A24: 17 | C24: ='Electric Utility Data'!B24 -> EMA | D24: ='Electric Utility Data'!C24 -> Emera Inc. | F24: ='Electric Utility Data'!AA24 -> BBB | G24: =VLOOKUP(F24,'Ordinal Ratings'!$A$6:$B$28,2,FALSE) -> 9 | I24: ='Electric Utility Data'!AB24 -> Baa3 | J24: =VLOOKUP(I24,'Ordinal Ratings'!I$6:J$25,2,FALSE) -> 10 | L24: ='Electric Utility Data'!W24 -> 2 | N24: ='Electric Utility Data'!Y24 -> B+ | P24: ='Electric Utility Data'!X24 -> 0.5 | R24: ='Electric Utility Data'!AC24 -> 13200 | T24: Y
A25: 18 | B25: Y | C25: ='Electric Utility Data'!B25 -> ETR | D25: ='Electric Utility Data'!C25 -> Entergy Corp. | F25: ='Electric Utility Data'!AA25 -> BBB+ | G25: =VLOOKUP(F25,'Ordinal Ratings'!$A$6:$B$28,2,FALSE) -> 8 | I25: ='Electric Utility Data'!AB25 -> Baa2 | J25: =VLOOKUP(I25,'Ordinal Ratings'!I$6:J$25,2,FALSE) -> 9 | L25: ='Electric Utility Data'!W25 -> 2 | N25: ='Electric Utility Data'!Y25 -> B++ | P25: ='Electric Utility Data'!X25 -> 0.6 | R25: ='Electric Utility Data'!AC25 -> 24000 | T25: Y
A26: 19 | B26: Y | C26: ='Electric Utility Data'!B26 -> EVRG | D26: ='Electric Utility Data'!C26 -> Evergy Inc. | F26: ='Electric Utility Data'!AA26 -> A- | G26: =VLOOKUP(F26,'Ordinal Ratings'!$A$6:$B$28,2,FALSE) -> 7 | I26: ='Electric Utility Data'!AB26 -> Baa2 | J26: =VLOOKUP(I26,'Ordinal Ratings'!I$6:J$25,2,FALSE) -> 9 | L26: ='Electric Utility Data'!W26 -> 2 | N26: ='Electric Utility Data'!Y26 -> B++ | P26: ='Electric Utility Data'!X26 -> n/a | R26: ='Electric Utility Data'!AC26 -> 16000 | T26: N
A27: 20 | B27: =IF(AND(G27<=$G$57,G27>=$G$58,J27<=$J$57,J27>=$J$58,V27<>"X"),"Y",IF(V27="Y","Y","")) -> Y | C27: ='Electric Utility Data'!B27 -> ES | D27: ='Electric Utility Data'!C27 -> Eversource Energy | F27: ='Electric Utility Data'!AA27 -> A- | G27: =VLOOKUP(F27,'Ordinal Ratings'!$A$6:$B$28,2,FALSE) -> 7 | I27: ='Electric Utility Data'!AB27 -> Baa1 | J27: =VLOOKUP(I27,'Ordinal Ratings'!I$6:J$25,2,FALSE) -> 8 | L27: ='Electric Utility Data'!W27 -> 1 | N27: ='Electric Utility Data'!Y27 -> A | P27: ='Electric Utility Data'!X27 -> 0.55 | R27: ='Electric Utility Data'!AC27 -> 29000 | T27: Y
A28: 21 | B28: Y | C28: ='Electric Utility Data'!B28 -> EXC | D28: ='Electric Utility Data'!C28 -> Exelon Corp. | F28: ='Electric Utility Data'!AA28 -> BBB+ | G28: =VLOOKUP(F28,'Ordinal Ratings'!$A$6:$B$28,2,FALSE) -> 8 | I28: ='Electric Utility Data'!AB28 -> Baa2 | J28: =VLOOKUP(I28,'Ordinal Ratings'!I$6:J$25,2,FALSE) -> 9 | L28: ='Electric Utility Data'!W28 -> 2 | N28: ='Electric Utility Data'!Y28 -> B++ | P28: ='Electric Utility Data'!X28 -> 0.65 | R28: ='Electric Utility Data'!AC28 -> 47000 | T28: Y
A29: 22 | C29: ='Electric Utility Data'!B29 -> FE | D29: ='Electric Utility Data'!C29 -> FirstEnergy Corp. | F29: ='Electric Utility Data'!AA29 -> BBB | G29: =VLOOKUP(F29,'Ordinal Ratings'!$A$6:$B$28,2,FALSE) -> 9 | I29: ='Electric Utility Data'!AB29 -> Baa3 | J29: =VLOOKUP(I29,'Ordinal Ratings'!I$6:J$25,2,FALSE) -> 10 | L29: ='Electric Utility Data'!W29 -> 2 | N29: ='Electric Utility Data'!Y29 -> B++ | P29: ='Electric Utility Data'!X29 -> 0.6 | R29: ='Electric Utility Data'!AC29 -> 28000 | T29: N
A30: 23 | B30: Y | C30: ='Electric Utility Data'!B30 -> FTS | D30: ='Electric Utility Data'!C30 -> Fortis Inc. | F30: ='Electric Utility Data'!AA30 -> A- | G30: =VLOOKUP(F30,'Ordinal Ratings'!$A$6:$B$28,2,FALSE) -> 7 | I30: ='Electric Utility Data'!AB30 -> Baa3 | J30: =VLOOKUP(I30,'Ordinal Ratings'!I$6:J$25,2,FALSE) -> 10 | L30: ='Electric Utility Data'!W30 -> 2 | N30: ='Electric Utility Data'!Y30 -> B++ | P30: ='Electric Utility Data'!X30 -> 0.6 | R30: ='Electric Utility Data'!AC30 -> 26000 | T30: Y
A31: 24 | C31: ='Electric Utility Data'!B31 -> HE | D31: ='Electric Utility Data'!C31 -> Hawaiian Elec. | F31: ='Electric Utility Data'!AA31 -> BBB- | G31: =VLOOKUP(F31,'Ordinal Ratings'!$A$6:$B$28,2,FALSE) -> 10 | I31: ='Electric Utility Data'!AB31 -> Baa2 | J31: =VLOOKUP(I31,'Ordinal Ratings'!I$6:J$25,2,FALSE) -> 9 | L31: ='Electric Utility Data'!W31 -> 2 | N31: ='Electric Utility Data'!Y31 -> A | P31: ='Electric Utility Data'!X31 -> 0.55 | R31: ='Electric Utility Data'!AC31 -> 4700 | T31: N
A32: 25 | C32: ='Electric Utility Data'!B32 -> IDA | D32: ='Electric Utility Data'!C32 -> IDACORP, Inc. | F32: ='Electric Utility Data'!AA32 -> BBB | G32: =VLOOKUP(F32,'Ordinal Ratings'!$A$6:$B$28,2,FALSE) -> 9 | I32: ='Electric Utility Data'!AB32 -> Baa1 | J32: =VLOOKUP(I32,'Ordinal Ratings'!I$6:J$25,2,FALSE) -> 8 | L32: ='Electric Utility Data'!W32 -> 2 | N32: ='Electric Utility Data'!Y32 -> A | P32: ='Electric Utility Data'!X32 -> 0.5 | R32: ='Electric Utility Data'!AC32 -> 4800 | T32: N
A33: 26 | C33: ='Electric Utility Data'!B33 -> MGEE | D33: ='Electric Utility Data'!C33 -> MGE Energy | F33: ='Electric Utility Data'!AA33 -> NR | G33: =VLOOKUP(F33,'Ordinal Ratings'!$A$6:$B$28,2,FALSE) -> -- | I33: ='Electric Utility Data'!AB33 -> NR | J33: =VLOOKUP(I33,'Ordinal Ratings'!I$6:J$25,2,FALSE) -> -- | L33: ='Electric Utility Data'!W33 -> 1 | N33: ='Electric Utility Data'!Y33 -> A+ | P33: ='Electric Utility Data'!X33 -> 0.5 | R33: ='Electric Utility Data'!AC33 -> 2500 | T33: Y
A34: 27 | B34: Y | C34: ='Electric Utility Data'!B34 -> NEE | D34: ='Electric Utility Data'!C34 -> NextEra Energy, Inc. | F34: ='Electric Utility Data'!AA34 -> A- | G34: =VLOOKUP(F34,'Ordinal Ratings'!$A$6:$B$28,2,FALSE) -> 7 | I34: ='Electric Utility Data'!AB34 -> Baa1 | J34: =VLOOKUP(I34,'Ordinal Ratings'!I$6:J$25,2,FALSE) -> 8 | L34: ='Electric Utility Data'!W34 -> 1 | N34: ='Electric Utility Data'!Y34 -> A+ | P34: ='Electric Utility Data'!X34 -> 0.5 | R34: ='Electric Utility Data'!AC34 -> 129000 | T34: N
A35: 28 | C35: ='Electric Utility Data'!B35 -> NWE | D35: ='Electric Utility Data'!C35 -> NorthWestern Corp. | F35: ='Electric Utility Data'!AA35 -> BBB | G35: =VLOOKUP(F35,'Ordinal Ratings'!$A$6:$B$28,2,FALSE) -> 9 | I35: ='Electric Utility Data'!AB35 -> Baa2 | J35: =VLOOKUP(I35,'Ordinal Ratings'!I$6:J$25,2,FALSE) -> 9 | L35: ='Electric Utility Data'!W35 -> 2 | N35: ='Electric Utility Data'!Y35 -> B++ | P35: ='Electric Utility Data'!X35 -> 0.55 | R35: ='Electric Utility Data'!AC35 -> 3200 | T35: Y
A36: 29 | B36: Y | C36: ='Electric Utility Data'!B36 -> OGE | D36: ='Electric Utility Data'!C36 -> OGE Energy Corp. | F36: ='Electric Utility Data'!AA36 -> BBB+ | G36: =VLOOKUP(F36,'Ordinal Ratings'!$A$6:$B$28,2,FALSE) -> 8 | I36: ='Electric Utility Data'!AB36 -> Baa1 | J36: =VLOOKUP(I36,'Ordinal Ratings'!I$6:J$25,2,FALSE) -> 8 | L36: ='Electric Utility Data'!W36 -> 2 | N36: ='Electric Utility Data'!Y36 -> A | P36: ='Electric Utility Data'!X36 -> 0.7 | R36: ='Electric Utility Data'!AC36 -> 7700 | T36: N
A37: 30 | C37: ='Electric Utility Data'!B37 -> OTTR | D37: ='Electric Utility Data'!C37 -> Otter Tail Corp. | F37: ='Electric Utility Data'!AA37 -> BBB | G37: =VLOOKUP(F37,'Ordinal Ratings'!$A$6:$B$28,2,FALSE) -> 9 | I37: ='Electric Utility Data'!AB37 -> Baa2 | J37: =VLOOKUP(I37,'Ordinal Ratings'!I$6:J$25,2,FALSE) -> 9 | L37: ='Electric Utility Data'!W37 -> 2 | N37: ='Electric Utility Data'!Y37 -> A | P37: ='Electric Utility Data'!X37 -> 0.7 | R37: ='Electric Utility Data'!AC37 -> 2000 | T37: N
A38: 31 | C38: ='Electric Utility Data'!B38 -> PNW | D38: ='Electric Utility Data'!C38 -> Pinnacle West Capital | F38: ='Electric Utility Data'!AA38 -> A- | G38: =VLOOKUP(F38,'Ordinal Ratings'!$A$6:$B$28,2,FALSE) -> 7 | I38: ='Electric Utility Data'!AB38 -> A3 | J38: =VLOOKUP(I38,'Ordinal Ratings'!I$6:J$25,2,FALSE) -> 7 | L38: ='Electric Utility Data'!W38 -> 1 | N38: ='Electric Utility Data'!Y38 -> A+ | P38: ='Electric Utility Data'!X38 -> 0.45 | R38: ='Electric Utility Data'!AC38 -> 9000 | T38: N
A39: 32 | C39: ='Electric Utility Data'!B39 -> PNM | D39: ='Electric Utility Data'!C39 -> PNM Resources | F39: ='Electric Utility Data'!AA39 -> BBB | G39: =VLOOKUP(F39,'Ordinal Ratings'!$A$6:$B$28,2,FALSE) -> 9 | I39: ='Electric Utility Data'!AB39 -> Baa3 | J39: =VLOOKUP(I39,'Ordinal Ratings'!I$6:J$25,2,FALSE) -> 10 | L39: ='Electric Utility Data'!W39 -> 3 | N39: ='Electric Utility Data'!Y39 -> B+ | P39: ='Electric Utility Data'!X39 -> 0.5 | R39: ='Electric Utility Data'!AC39 -> 3500 | T39: N
A40: 33 | C40: ='Electric Utility Data'!B40 -> POR | D40: ='Electric Utility Data'!C40 -> Portland General Elec. | F40: ='Electric Utility Data'!AA40 -> BBB+ | G40: =VLOOKUP(F40,'Ordinal Ratings'!$A$6:$B$28,2,FALSE) -> 8 | I40: ='Electric Utility Data'!AB40 -> A3 | J40: =VLOOKUP(I40,'Ordinal Ratings'!I$6:J$25,2,FALSE) -> 7 | L40: ='Electric Utility Data'!W40 -> 2 | N40: ='Electric Utility Data'!Y40 -> B++ | P40: ='Electric Utility Data'!X40 -> 0.55 | R40: ='Electric Utility Data'!AC40 -> 4500 | T40: N
A41: 34 | B41: Y | C41: ='Electric Utility Data'!B41 -> PPL | D41: ='Electric Utility Data'!C41 -> PPL Corp. | F41: ='Electric Utility Data'!AA41 -> A- | G41: =VLOOKUP(F41,'Ordinal Ratings'!$A$6:$B$28,2,FALSE) -> 7 | I41: ='Electric Utility Data'!AB41 -> Baa2 | J41: =VLOOKUP(I41,'Ordinal Ratings'!I$6:J$25,2,FALSE) -> 9 | L41: ='Electric Utility Data'!W41 -> 2 | N41: ='Electric Utility Data'!Y41 -> B++ | P41: ='Electric Utility Data'!X41 -> 0.65 | R41: ='Electric Utility Data'!AC41 -> 26000 | T41: Y
A42: 35 | B42: Y | C42: ='Electric Utility Data'!B42 -> PEG | D42: ='Electric Utility Data'!C42 -> Pub Sv Enterprise Grp. | F42: ='Electric Utility Data'!AA42 -> BBB+ | G42: =VLOOKUP(F42,'Ordinal Ratings'!$A$6:$B$28,2,FALSE) -> 8 | I42: ='Electric Utility Data'!AB42 -> Baa1 | J42: =VLOOKUP(I42,'Ordinal Ratings'!I$6:J$25,2,FALSE) -> 8 | L42: ='Electric Utility Data'!W42 -> 1 | N42: ='Electric Utility Data'!Y42 -> A++ | P42: ='Electric Utility Data'!X42 -> 0.6 | R42: ='Electric Utility Data'!AC42 -> 30000 | T42: Y
A43: 36 | B43: Y | C43: ='Electric Utility Data'!B43 -> SRE | D43: ='Electric Utility Data'!C43 -> Sempra Energy | F43: ='Electric Utility Data'!AA43 -> BBB+ | G43: =VLOOKUP(F43,'Ordinal Ratings'!$A$6:$B$28,2,FALSE) -> 8 | I43: ='Electric Utility Data'!AB43 -> Baa1 | J43: =VLOOKUP(I43,'Ordinal Ratings'!I$6:J$25,2,FALSE) -> 8 | L43: ='Electric Utility Data'!W43 -> 2 | N43: ='Electric Utility Data'!Y43 -> A | P43: ='Electric Utility Data'!X43 -> 0.65 | R43: ='Electric Utility Data'!AC43 -> 37000 | T43: Y
A44: 37 | B44: Y | C44: ='Electric Utility Data'!B44 -> SO | D44: ='Electric Utility Data'!C44 -> Southern Company | F44: ='Electric Utility Data'!AA44 -> A- | G44: =VLOOKUP(F44,'Ordinal Ratings'!$A$6:$B$28,2,FALSE) -> 7 | I44: ='Electric Utility Data'!AB44 -> Baa2 | J44: =VLOOKUP(I44,'Ordinal Ratings'!I$6:J$25,2,FALSE) -> 9 | L44: ='Electric Utility Data'!W44 -> 2 | N44: ='Electric Utility Data'!Y44 -> A | P44: ='Electric Utility Data'!X44 -> 0.5 | R44: ='Electric Utility Data'!AC44 -> 73000 | T44: Y
A45: 38 | B45: Y | C45: ='Electric Utility Data'!B45 -> WEC | D45: ='Electric Utility Data'!C45 -> WEC Energy Group | F45: ='Electric Utility Data'!AA45 -> A- | G45: =VLOOKUP(F45,'Ordinal Ratings'!$A$6:$B$28,2,FALSE) -> 7 | I45: ='Electric Utility Data'!AB45 -> Baa1 | J45: =VLOOKUP(I45,'Ordinal Ratings'!I$6:J$25,2,FALSE) -> 8 | L45: ='Electric Utility Data'!W45 -> 1 | N45: ='Electric Utility Data'!Y45 -> A+ | P45: ='Electric Utility Data'!X45 -> 0.45 | R45: ='Electric Utility Data'!AC45 -> 31000 | T45: Y
A46: 39 | B46: Y | C46: ='Electric Utility Data'!B46 -> XEL | D46: ='Electric Utility Data'!C46 -> Xcel Energy Inc. | F46: ='Electric Utility Data'!AA46 -> A- | G46: =VLOOKUP(F46,'Ordinal Ratings'!$A$6:$B$28,2,FALSE) -> 7 | I46: ='Electric Utility Data'!AB46 -> Baa1 | J46: =VLOOKUP(I46,'Ordinal Ratings'!I$6:J$25,2,FALSE) -> 8 | L46: ='Electric Utility Data'!W46 -> 1 | N46: ='Electric Utility Data'!Y46 -> A+ | P46: ='Electric Utility Data'!X46 -> 0.45 | R46: ='Electric Utility Data'!AC46 -> 33000 | T46: Y
C48: =IF(AND(H48<=$G$57,H48>=$G$58,W48<>"X"),"Y",IF(AND(K48<=$J$57,K48>=$J$58,W48<>"X"),"Y",IF(W48="Y","Y",""))) -> 
A49: (a) | B49: ='Electric Utility Data'!B52 -> Issuer credit rating from www.standardandpoors.com (retrieved May 1, 2020).
A50: (b) | B50: ='Electric Utility Data'!B53 -> Long-term rating from www.moodys.com (retrieved May 1, 2020).
A51: (c) | B51: ='Electric Utility Data'!B51 -> The Value Line Investment Survey (Feb. 14, Mar. 13 and Apr. 24, 2020).
L54: Safety | N54: Financial | P54: Max
B55: =COUNTIF(B8:B46,"Y") -> 23 | C55: Proxy Group Criteria | F55: S&P | I55: Moodys | L55: Rank | N55: Strength | P55: Beta
C56: Guideline Rating | F56: A- | G56: =VLOOKUP(F56,'Ordinal Ratings'!$A$6:$B$28,2,FALSE) -> 7 | I56: Baa2 | J56: =VLOOKUP(I56,'Ordinal Ratings'!I$6:J$25,2,FALSE) -> 9 | L56: 1
C57: Low Rating | F57: =VLOOKUP(G57,'Ordinal Ratings'!$B$6:$C$26,2,FALSE) -> BBB+ | G57: =G56+1 -> 8 | I57: =VLOOKUP(J57,'Ordinal Ratings'!$J$6:$K$24,2,FALSE) -> Baa3 | J57: =J56+1 -> 10 | L57: 2
C58: High Rating | F58: =VLOOKUP(G58,'Ordinal Ratings'!$B$6:$C$26,2,FALSE) -> A | G58: =G56-1 -> 6 | I58: =VLOOKUP(J58,'Ordinal Ratings'!$J$6:$K$24,2,FALSE) -> Baa1 | J58: =J56-1 -> 8
C60: Kentucky Power Co. | F60: A- | I60: Baa3
C68: =IF($B8="Y",C8,"zzz") -> zzz | D68: zzz
C69: =IF($B9="Y",C9,"zzz") -> zzz | D69: zzz
C70: =IF($B10="Y",C10,"zzz") -> LNT | D70: Alliant Energy
C71: =IF($B11="Y",C11,"zzz") -> AEE | D71: Ameren Corp.
C72: =IF($B12="Y",C12,"zzz") -> AEP | D72: American Elec Pwr
C73: =IF($B13="Y",C13,"zzz") -> AGR | D73: Avangrid, Inc.
C74: =IF($B14="Y",C14,"zzz") -> zzz | D74: zzz
C75: =IF($B15="Y",C15,"zzz") -> BKH | D75: Black Hills Corp.
C76: =IF($B16="Y",C16,"zzz") -> zzz | D76: zzz
C77: =IF($B17="Y",C17,"zzz") -> CMS | D77: CMS Energy Corp.
C78: =IF($B18="Y",C18,"zzz") -> ED | D78: Consolidated Edison
C79: =IF($B19="Y",C19,"zzz") -> D | D79: Dominion Energy
C80: =IF($B20="Y",C20,"zzz") -> DTE | D80: DTE Energy Co.
C81: =IF($B21="Y",C21,"zzz") -> DUK | D81: Duke Energy Corp.
C82: =IF($B22="Y",C22,"zzz") -> zzz | D82: zzz
C83: =IF($B23="Y",C23,"zzz") -> zzz | D83: zzz
C84: =IF($B24="Y",C24,"zzz") -> zzz | D84: zzz
C85: =IF($B25="Y",C25,"zzz") -> ETR | D85: Entergy Corp.
C86: =IF($B26="Y",C26,"zzz") -> EVRG | D86: Evergy Inc.
C87: =IF($B27="Y",C27,"zzz") -> ES | D87: Eversource Energy
C88: =IF($B28="Y",C28,"zzz") -> EXC | D88: Exelon Corp.
C89: =IF($B29="Y",C29,"zzz") -> zzz | D89: zzz
C90: =IF($B30="Y",C30,"zzz") -> FTS | D90: Fortis Inc.
C91: =IF($B31="Y",C31,"zzz") -> zzz | D91: zzz
C92: =IF($B32="Y",C32,"zzz") -> zzz | D92: zzz
C93: =IF($B33="Y",C33,"zzz") -> zzz | D93: zzz
C94: =IF($B34="Y",C34,"zzz") -> NEE | D94: NextEra Energy, Inc.
C95: =IF($B35="Y",C35,"zzz") -> zzz | D95: zzz
C96: =IF($B36="Y",C36,"zzz") -> OGE | D96: OGE Energy Corp.
C97: =IF($B37="Y",C37,"zzz") -> zzz | D97: zzz
C98: =IF($B38="Y",C38,"zzz") -> zzz | D98: zzz
C99: =IF($B39="Y",C39,"zzz") -> zzz | D99: zzz
C100: =IF($B40="Y",C40,"zzz") -> zzz | D100: zzz
C101: =IF($B41="Y",C41,"zzz") -> PPL | D101: PPL Corp.
C102: =IF($B42="Y",C42,"zzz") -> PEG | D102: Pub Sv Enterprise Grp.
C103: =IF($B43="Y",C43,"zzz") -> SRE | D103: Sempra Energy
C104: =IF($B44="Y",C44,"zzz") -> SO | D104: Southern Company
C105: =IF($B45="Y",C45,"zzz") -> WEC | D105: WEC Energy Group
C106: =IF($B46="Y",C46,"zzz") -> XEL | D106: Xcel Energy Inc.

Sheet Proxy Group Ticker
B2: SYM | C2: Company
A3: =A2+1 -> 1 | B3: ='Proxy Group Criteria'!C70 -> LNT | C3: ='Proxy Group Criteria'!D70 -> Alliant Energy
A4: =A3+1 -> 2 | B4: ='Proxy Group Criteria'!C71 -> AEE | C4: ='Proxy Group Criteria'!D71 -> Ameren Corp.
A5: 3 | B5: ='Proxy Group Criteria'!C72 -> AEP | C5: ='Proxy Group Criteria'!D72 -> American Elec Pwr
A6: 4 | B6: ='Proxy Group Criteria'!C73 -> AGR | C6: ='Proxy Group Criteria'!D73 -> Avangrid, Inc.
A7: 5 | B7: ='Proxy Group Criteria'!C75 -> BKH | C7: ='Proxy Group Criteria'!D75 -> Black Hills Corp.
A8: 6 | B8: ='Proxy Group Criteria'!C77 -> CMS | C8: ='Proxy Group Criteria'!D77 -> CMS Energy Corp.
A9: 7 | B9: ='Proxy Group Criteria'!C78 -> ED | C9: ='Proxy Group Criteria'!D78 -> Consolidated Edison
A10: 8 | B10: ='Proxy Group Criteria'!C79 -> D | C10: ='Proxy Group Criteria'!D79 -> Dominion Energy
A11: 9 | B11: ='Proxy Group Criteria'!C80 -> DTE | C11: ='Proxy Group Criteria'!D80 -> DTE Energy Co.
A12: 10 | B12: ='Proxy Group Criteria'!C81 -> DUK | C12: ='Proxy Group Criteria'!D81 -> Duke Energy Corp.
A13: 11 | B13: ='Proxy Group Criteria'!C85 -> ETR | C13: ='Proxy Group Criteria'!D85 -> Entergy Corp.
A14: 12 | B14: ='Proxy Group Criteria'!C86 -> EVRG | C14: ='Proxy Group Criteria'!D86 -> Evergy Inc.
A15: 13 | B15: ='Proxy Group Criteria'!C87 -> ES | C15: ='Proxy Group Criteria'!D87 -> Eversource Energy
A16: 14 | B16: ='Proxy Group Criteria'!C88 -> EXC | C16: ='Proxy Group Criteria'!D88 -> Exelon Corp.
A17: 15 | B17: ='Proxy Group Criteria'!C90 -> FTS | C17: ='Proxy Group Criteria'!D90 -> Fortis Inc.
A18: 16 | B18: ='Proxy Group Criteria'!C94 -> NEE | C18: ='Proxy Group Criteria'!D94 -> NextEra Energy, Inc.
A19: 17 | B19: ='Proxy Group Criteria'!C96 -> OGE | C19: ='Proxy Group Criteria'!D96 -> OGE Energy Corp.
A20: 18 | B20: ='Proxy Group Criteria'!C101 -> PPL | C20: ='Proxy Group Criteria'!D101 -> PPL Corp.
A21: 19 | B21: ='Proxy Group Criteria'!C102 -> PEG | C21: ='Proxy Group Criteria'!D102 -> Pub Sv Enterprise Grp.
A22: 20 | B22: ='Proxy Group Criteria'!C103 -> SRE | C22: ='Proxy Group Criteria'!D103 -> Sempra Energy
A23: 21 | B23: ='Proxy Group Criteria'!C104 -> SO | C23: ='Proxy Group Criteria'!D104 -> Southern Company
A24: 22 | B24: ='Proxy Group Criteria'!C105 -> WEC | C24: ='Proxy Group Criteria'!D105 -> WEC Energy Group
A25: 23 | B25: ='Proxy Group Criteria'!C106 -> XEL | C25: ='Proxy Group Criteria'!D106 -> Xcel Energy Inc.
A26: 24 | B26: ='Proxy Group Criteria'!C69 -> zzz | C26: ='Proxy Group Criteria'!D69 -> zzz
A27: 25 | B27: ='Proxy Group Criteria'!C98 -> zzz | C27: ='Proxy Group Criteria'!D98 -> zzz
A28: 26 | B28: ='Proxy Group Criteria'!C100 -> zzz | C28: ='Proxy Group Criteria'!D100 -> zzz
A29: 27 | B29: ='Proxy Group Criteria'!C74 -> zzz | C29: ='Proxy Group Criteria'!D74 -> zzz
A30: 28 | B30: ='Proxy Group Criteria'!C89 -> zzz | C30: ='Proxy Group Criteria'!D89 -> zzz
A31: 29 | B31: ='Proxy Group Criteria'!C91 -> zzz | C31: ='Proxy Group Criteria'!D91 -> zzz
A32: 30 | B32: ='Proxy Group Criteria'!C92 -> zzz | C32: ='Proxy Group Criteria'!D92 -> zzz
A33: 31 | B33: ='Proxy Group Criteria'!C95 -> zzz | C33: ='Proxy Group Criteria'!D95 -> zzz
A34: 32 | B34: ='Proxy Group Criteria'!C97 -> zzz | C34: ='Proxy Group Criteria'!D97 -> zzz
A35: 33 | B35: ='Proxy Group Criteria'!C68 -> zzz | C35: ='Proxy Group Criteria'!D68 -> zzz
A36: 34 | B36: ='Proxy Group Criteria'!C76 -> zzz | C36: ='Proxy Group Criteria'!D76 -> zzz
A37: 35 | B37: ='Proxy Group Criteria'!C84 -> zzz | C37: ='Proxy Group Criteria'!D84 -> zzz
A38: 36 | B38: ='Proxy Group Criteria'!C93 -> zzz | C38: ='Proxy Group Criteria'!D93 -> zzz
A39: 37 | B39: ='Proxy Group Criteria'!C83 -> zzz | C39: ='Proxy Group Criteria'!D83 -> zzz
A40: 38 | B40: ='Proxy Group Criteria'!C82 -> zzz | C40: ='Proxy Group Criteria'!D82 -> zzz
A41: 39 | B41: ='Proxy Group Criteria'!C99 -> zzz | C41: ='Proxy Group Criteria'!D99 -> zzz

Sheet Exhibit List
A1: Tab | B1: Designation | C1: Title I | D1: Title II
A2: 2 | B2: Exhibit AMM-2 | C2: ROE ANALYSES | D2: SUMMARY OF RESULTS
A3: 3 (1) | B3: Exhibit AMM-3 | C3: REGULATORY MECHANISMS | D3: ELECTRIC GROUP
A4: 3 (2-5) | B4: Exhibit AMM-3 | C4: REGULATORY MECHANISMS | D4: ELECTRIC GROUP OPERATING COS.
A5: 4 (1) | B5: Exhibit AMM-4 | C5: DCF MODEL - ELECTRIC GROUP | D5: DIVIDEND YIELD
A6: 4 (2) | B6: Exhibit AMM-4 | C6: DCF MODEL - ELECTRIC GROUP | D6: GROWTH RATES
A7: 4 (3) | B7: Exhibit AMM-4 | C7: DCF MODEL - ELECTRIC GROUP | D7: COST OF EQUITY ESTIMATES
A8: 4 (4) | B8: Exhibit AMM-4 | C8: DCF MODEL - ELECTRIC GROUP | D8: LOW-END THRESHOLD ADJUSTMENT
A9: 5 | B9: Exhibit AMM-5 | C9: BR+SV GROWTH RATE | D9: ELECTRIC GROUP
A10: 6 (1) | B10: Exhibit AMM-6 | C10: CAPM - CURRENT BOND YIELD | D10: ELECTRIC GROUP
A11: 6 (2) | B11: Exhibit AMM-6 | C11: CAPM - PROJECTED BOND YIELD | D11: ELECTRIC GROUP
A12: 7 (1) | B12: Exhibit AMM-7 | C12: EMPIRICAL CAPM - CURRENT BOND YIELD | D12: ELECTRIC GROUP
A13: 7 (2) | B13: Exhibit AMM-7 | C13: EMPIRICAL CAPM - PROJECTED BOND YIELD | D13: ELECTRIC GROUP
A14: 8 (1) | B14: Exhibit AMM-8 | C14: ELECTRIC UTILITY RISK PREMIUM | D14: CURRENT BOND YIELD
A15: 8 (2) | B15: Exhibit AMM-8 | C15: ELECTRIC UTILITY RISK PREMIUM | D15: PROJECTED BOND YIELD
A16: 8 (3) | B16: Exhibit AMM-8 | C16: ELECTRIC UTILITY RISK PREMIUM | D16: AUTHORIZED RETURNS
A17: 8 (4) | B17: Exhibit AMM-8 | C17: ELECTRIC UTILITY RISK PREMIUM | D17: REGRESSION RESULTS
A18: 9 | B18: Exhibit AMM-9 | C18: EXPECTED EARNINGS APPROACH | D18: UTILITY GROUP
A19: 10 | B19: Exhibit AMM-10 | C19: FLOTATION COST STUDY | D19: VALUE LINE ELECTRIC INDUSTRY
A20: 11 (1) | B20: Exhibit AMM-11 | C20: DCF MODEL - NON-UTILITY GROUP | D20: DIVIDEND YIELD
A21: 11 (2) | B21: Exhibit AMM-11 | C21: DCF MODEL - NON-UTILITY GROUP | D21: GROWTH RATES
A22: 11 (3) | B22: Exhibit AMM-11 | C22: DCF MODEL - NON-UTILITY GROUP | D22: DCF COST OF EQUITY ESTIMATES
A23: 12 (1) | B23: Exhibit AMM-12 | C23: CAPITAL STRUCTURE | D23: ELECTRIC GROUP
A24: 12 (2-3) | B24: Exhibit AMM-12 | C24: CAPITAL STRUCTURE | D24: ELECTRIC GROUP OPERATING SUBSIDIARIES

Sheet 2
A1: ='Exhibit List'!C2 -> ROE ANALYSES | I1: ='Exhibit List'!B2 -> Exhibit AMM-2
I2: Page 1 of 1
A3: ='Exhibit List'!D2 -> SUMMARY OF RESULTS
B6: Method | E6: Average | G6: Midpoint
B7: DCF
C8: Value Line | E8: ='4 (3)'!D32 -> 0.09664113286 | G8: ='4 (3)'!D33 -> 0.1021535036
C9: IBES | E9: ='4 (3)'!F32 -> 0.09058014049 | G9: ='4 (3)'!F33 -> 0.08730246593
C10: Zacks | E10: ='4 (3)'!H32 -> 0.09180213737 | G10: ='4 (3)'!H33 -> 0.0938325411
C11: Internal br + sv | E11: ='4 (3)'!K32 -> 0.08577956205 | G11: ='4 (3)'!K33 -> 0.09579473854
B13: CAPM
C14: Current Bond Yield | E14: ='6 (1)'!M33 -> 0.07994575 | G14: ='6 (1)'!M34 -> 0.083285
C15: Projected Bond Yield | E15: ='6 (2)'!M33 -> 0.0844725 | G15: ='6 (2)'!M34 -> 0.0875525
B17: Empirical CAPM
C18: Current Bond Yield | E18: ='7 (1)'!R34 -> 0.09066630682 | G18: ='7 (1)'!R35 -> 0.093258125
C19: Projected Bond Yield | E19: ='7 (2)'!R34 -> 0.09516460227 | G19: ='7 (2)'!R35 -> 0.09751375
B21: Utility Risk Premium
C22: Current Bond Yields | E22: ='8 (1)'!G22 -> 0.09599308
C23: Projected Bond Yield | E23: ='8 (2)'!G22 -> 0.104599896
B25: Expected Earnings | E25: ='9'!H32 -> 0.1099449542 | G25: ='9'!H33 -> 0.1060741437
B28: Recommended Cost of Equity Range
C29: Cost of Equity Range | E29: 0.093 | F29: -- | G29: 0.104
B31: Flotation Cost Adjustment
C32: Dividend Yield | F32: ='4 ( 1)'!H31 -> 0.03924208714
C33: Flotation Cost Percentage | F33: =ROUND('10'!U61,3) -> 0.029
D34: Adjustment | F34: =ROUND(F32*F33,4) -> 0.0011
B36: Recommended ROE Range | E36: =ROUND(E29+F34,3) -> 0.094 | F36: -- | G36: =ROUND(G29+F34,3) -> 0.105
O37: Utility | U37: Non-Utility
N38: Cost of Equity | U38: Cost of Equity
L39: Growth Rate | N39: Average | P39: Midpoint | S39: Growth Rate | U39: Average | W39: Midpoint
L40: Value Line | N40: =E8 -> 0.09664113286 | P40: =G8 -> 0.1021535036 | S40: Value Line | U40: ='11 (3)'!D47 -> 0.1046324178 | W40: ='11 (3)'!D48 -> 0.1079242504
L41: IBES | N41: =E9 -> 0.09058014049 | P41: =G9 -> 0.08730246593 | S41: IBES | U41: ='11 (3)'!F47 -> 0.09452594917 | W41: ='11 (3)'!F48 -> 0.1057643798
L42: Zacks | N42: =E10 -> 0.09180213737 | P42: =G10 -> 0.0938325411 | S42: Zacks | U42: ='11 (3)'!H47 -> 0.09490814954 | W42: ='11 (3)'!H48 -> 0.1046219532
L43: br + sv | N43: =E11 -> 0.08577956205 | P43: =G11 -> 0.09579473854

Sheet 3 (1)
B1: Count | D1: =COUNTIF(D10:D32,"✓") -> 23 | E1: 6 | F1: 12 | G1: 21 | H1: 15 | I1: 8 | J1: 17 | K1: 18 | M1: =A32-COUNTIF(M10:M32,"--") -> 22
A2: ='Exhibit List'!C3 -> REGULATORY MECHANISMS | M2: ='Exhibit List'!B3 -> Exhibit AMM-3
M3: Page 1 of 5
A4: ='Exhibit List'!D3 -> ELECTRIC GROUP
C6: Type of Adjustment Clause
E8: Decoupling | I8: New Capital
A9: Holding Company | C9: Elec. Fuel/ Purch. Pwr | D9: Conserv. Program Expense | E9: Full | F9: Partial | G9: Renew- ables Expense | H9: Environ- mental Compliance | I9: Gener- ation Capacity | J9: Generic Infra- structure | K9: Trans- mission Expense | L9: Other* | M9: Future Test Year
A10: 1 | B10: ='Proxy Group Ticker'!C3 -> Alliant Energy | C10: ✓ | D10: ✓ | E10: -- | F10: -- | G10: ✓ | H10: ✓ | I10: -- | J10: -- | K10: ✓ | L10: ✓ | M10: C
A11: =A10+1 -> 2 | B11: ='Proxy Group Ticker'!C4 -> Ameren Corp. | C11: ✓ | D11: ✓ | E11: -- | F11: -- | G11: ✓ | H11: ✓ | I11: -- | J11: ✓ | K11: ✓ | L11: ✓ | M11: O,P
A12: 3 | B12: ='Proxy Group Ticker'!C5 -> American Elec Pwr | C12: ✓ | D12: ✓ | E12: -- | F12: ✓ | G12: ✓ | H12: ✓ | I12: ✓ | J12: ✓ | K12: ✓ | L12: ✓ | M12: C,O,P
A13: 4 | B13: ='Proxy Group Ticker'!C6 -> Avangrid, Inc. | C13: D | D13: ✓ | E13: ✓ | F13: -- | G13: ✓ | H13: -- | I13: -- | J13: -- | K13: ✓ | L13: ✓ | M13: C
A14: 5 | B14: ='Proxy Group Ticker'!C7 -> Black Hills Corp. | C14: ✓ | D14: ✓ | E14: -- | F14: ✓ | G14: ✓ | H14: ✓ | I14: ✓ | J14: ✓ | K14: ✓ | M14: O
A15: 6 | B15: ='Proxy Group Ticker'!C8 -> CMS Energy Corp. | C15: ✓ | D15: ✓ | E15: -- | F15: -- | G15: ✓ | H15: -- | I15: -- | J15: -- | K15: ✓ | M15: C
A16: 7 | B16: ='Proxy Group Ticker'!C9 -> Consolidated Edison | C16: D | D16: ✓ | E16: ✓ | F16: -- | G16: ✓ | H16: -- | I16: -- | J16: ✓ | K16: -- | L16: ✓ | M16: C,P
A17: 8 | B17: ='Proxy Group Ticker'!C10 -> Dominion Energy | C17: ✓ | D17: ✓ | E17: -- | F17: -- | G17: ✓ | H17: ✓ | I17: ✓ | J17: ✓ | K17: ✓ | L17: ✓ | M17: --
A18: 9 | B18: ='Proxy Group Ticker'!C11 -> DTE Energy Co. | C18: ✓ | D18: ✓ | E18: -- | F18: -- | G18: ✓ | H18: -- | I18: -- | J18: -- | K18: ✓ | M18: C
A19: 10 | B19: ='Proxy Group Ticker'!C12 -> Duke Energy Corp. | C19: ✓ | D19: ✓ | E19: -- | F19: ✓ | G19: ✓ | H19: ✓ | I19: ✓ | J19: ✓ | K19: ✓ | L19: ✓ | M19: C,O,P
A20: 11 | B20: ='Proxy Group Ticker'!C13 -> Entergy Corp. | C20: ✓ | D20: ✓ | E20: -- | F20: ✓ | G20: ✓ | H20: ✓ | I20: ✓ | J20: ✓ | K20: ✓ | L20: ✓ | M20: O,P
A21: 12 | B21: ='Proxy Group Ticker'!C14 -> Evergy Inc. | C21: ✓ | D21: ✓ | E21: -- | F21: ✓ | G21: ✓ | H21: ✓ | I21: -- | J21: ✓ | K21: ✓ | L21: ✓ | M21: P
A22: 13 | B22: ='Proxy Group Ticker'!C15 -> Eversource Energy | C22: ✓ | D22: ✓ | E22: ✓ | F22: ✓ | G22: ✓ | H22: -- | I22: -- | J22: ✓ | K22: ✓ | L22: ✓ | M22: C
A23: 14 | B23: ='Proxy Group Ticker'!C16 -> Exelon Corp. | C23: D | D23: ✓ | E23: ✓ | F23: ✓ | G23: ✓ | H23: ✓ | I23: -- | J23: ✓ | K23: ✓ | L23: ✓ | M23: O,P
A24: 15 | B24: ='Proxy Group Ticker'!C17 -> Fortis Inc. | C24: ✓ | D24: ✓ | E24: ✓ | F24: ✓ | G24: ✓ | H24: ✓ | I24: -- | J24: -- | K24: ✓ | L24: ✓ | M24: C
A25: 16 | B25: ='Proxy Group Ticker'!C18 -> NextEra Energy, Inc. | C25: ✓ | D25: ✓ | E25: -- | F25: -- | G25: -- | H25: ✓ | I25: ✓ | J25: ✓ | K25: -- | L25: ✓ | M25: C
A26: 17 | B26: ='Proxy Group Ticker'!C19 -> OGE Energy Corp. | C26: ✓ | D26: ✓ | E26: -- | F26: ✓ | G26: ✓ | H26: ✓ | I26: ✓ | J26: ✓ | K26: ✓ | L26: ✓ | M26: P
A27: 18 | B27: ='Proxy Group Ticker'!C20 -> PPL Corp. | C27: ✓ | D27: ✓ | E27: -- | F27: ✓ | G27: ✓ | H27: ✓ | I27: -- | J27: ✓ | K27: ✓ | L27: ✓ | M27: O
A28: 19 | B28: ='Proxy Group Ticker'!C21 -> Pub Sv Enterprise Grp. | C28: D | D28: ✓ | E28: -- | F28: -- | G28: ✓ | H28: -- | I28: -- | J28: ✓ | K28: -- | L28: ✓ | M28: P
A29: 20 | B29: ='Proxy Group Ticker'!C22 -> Sempra Energy | C29: ✓ | D29: ✓ | E29: ✓ | F29: -- | G29: -- | H29: -- | I29: -- | J29: ✓ | K29: ✓ | L29: ✓ | M29: C
A30: 21 | B30: ='Proxy Group Ticker'!C23 -> Southern Company | C30: ✓ | D30: ✓ | E30: -- | F30: ✓ | G30: ✓ | H30: ✓ | I30: -- | J30: ✓ | K30: -- | L30: ✓ | M30: C,O
A31: 22 | B31: ='Proxy Group Ticker'!C24 -> WEC Energy Group | C31: ✓ | D31: ✓ | E31: -- | F31: -- | G31: ✓ | H31: -- | I31: -- | J31: -- | K31: -- | L31: ✓ | M31: C
A32: 23 | B32: ='Proxy Group Ticker'!C25 -> Xcel Energy Inc. | C32: ✓ | D32: ✓ | E32: -- | F32: ✓ | G32: ✓ | H32: ✓ | I32: ✓ | J32: ✓ | K32: ✓ | L32: ✓ | M32: C,O
A34: Sources:
A35: =M2 & ", pages 2-5, contain operating company data that are aggregated into the parent company data on this page." -> Exhibit AMM-3, pages 2-5, contain operating company data that are aggregated into the parent company data on this page.
A37: Notes:
A38: D - Delivery-only utility.
A39: C - Fully-forecasted test years commonly used in the state listed for this operating company.
A40: O - Fully-forecasted test years occasionally used in the state listed for this operating company.
A41: P - Partially-forecasted test years commonly or occasionally used in the state listed for this operating company.
A42: * Recover mechanisms for other expenses, such as taxes, franchise fees, bad debts, storm costs, pensions, societal benefits, vegetation management, and decommissioning.

Sheet 3 (2-5)
B1: # Operating Cos. | D1: # Del Cos. | E1: # Conserv. | F1: # Decoupling | H1: # Renew. | I1: # Env. | J1: # Capital Tracker | L1: # Transm. | M1: # Other | N1: #Future TY
B2: =COUNTIF(C11:C121,"*") -> 88 | D2: =COUNTIF(D11:D121,"D") -> 26 | E2: =COUNTIF(E11:E121,"✓") -> 68 | F2: =SUM(F3:G3) -> 44 | H2: =COUNTIF(H11:H121,"✓") -> 50 | I2: =COUNTIF(I11:I121,"✓") -> 38 | J2: =J3+K3 -> 51 | L2: =COUNTIF(L11:L121,"✓") -> 38 | M2: =COUNTIF(M11:M121,"✓") -> 66 | N2: =B2-N3 -> 56
F3: =COUNTIF(F11:F121,"✓") -> 13 | G3: =COUNTIF(G11:G121,"✓*") -> 31 | J3: =COUNTIF(J11:J121,"✓") -> 17 | K3: =COUNTIF(K11:K731,"✓") -> 34 | N3: =COUNTIF(N11:N121,"--") -> 32
A4: ='Exhibit List'!C4 -> REGULATORY MECHANISMS
A6: ='Exhibit List'!D4 -> ELECTRIC GROUP OPERATING COS.
D7: Type of Adjustment Clause (a)
D9: Elec. Fuel/ Gas/ Purch. Pwr | F9: Decoupling | J9: New Capital
B10: HOLDING COMPANY/ Operating Company | E10: Conserv. Program Expense | F10: Full | G10: Partial | H10: Renew- ables Expense | I10: Environ- mental Compliance | J10: Gener- ation Capacity | K10: Generic Infra- structure | L10: Trans- mission Expense | M10: Other* | N10: Future Test Year (b)
A11: 1 | B11: ALLIANT ENERGY CORP.
B12: Interstate Power & Light | C12: IA | D12: ✓ | E12: ✓ | F12: -- | G12: -- | H12: ✓ | I12: ✓ | J12: -- | K12: -- | L12: ✓ | M12: ✓ | N12: --
B13: Wisconsin Power & Light | C13: WI | D13: ✓ | E13: -- | F13: -- | G13: -- | H13: -- | I13: -- | J13: -- | K13: -- | L13: -- | M13: ✓ | N13: C
A14: 2 | B14: AMEREN CORP.
B15: Ameren Illinois | C15: IL | D15: D | E15: ✓ | F15: -- | G15: -- | H15: ✓ | I15: ✓ | J15: D | K15: -- | L15: ✓ | M15: ✓ | N15: O
B16: Union Electric | C16: MO | D16: ✓ | E16: ✓ | F16: -- | G16: ✓ | H16: ✓ | I16: ✓ | J16: -- | K16: ✓ | L16: ✓ | M16: ✓ | N16: P
A17: 3 | B17: AMERICAN ELEC PWR
B18: Southwestern Electric Power | C18: AR | D18: ✓ | E18: ✓ | F18: -- | G18: ✓ | H18: -- | I18: ✓ | J18: ✓ | K18: -- | L18: ✓ | M18: ✓ | N18: P
B19: Southwestern Electric Power | C19: TX | D19: ✓ | E19: ✓ | F19: -- | G19: -- | H19: -- | I19: -- | J19: -- | K19: ✓ | L19: ✓ | M19: -- | N19: --
B20: Appalachian Power | C20: VA | D20: ✓ | E20: ✓ | F20: -- | G20: -- | H20: ✓ | I20: -- | J20: ✓ | K20: -- | L20: ✓ | M20: ✓ | N20: --
B21: Appalachian Power/Wheeling Power | C21: WV | D21: ✓ | E21: ✓ | F21: -- | G21: -- | H21: ✓ | I21: -- | J21: -- | K21: -- | L21: -- | M21: ✓ | N21: --
B22: Indiana Michigan Power | C22: IN | D22: ✓ | E22: ✓ | F22: -- | G22: ✓ | H22: ✓ | I22: ✓ | J22: -- | K22: ✓ | L22: ✓ | M22: ✓ | N22: --
B23: Kentucky Power | C23: KY | D23: ✓ | E23: ✓ | F23: -- | G23: ✓ | H23: ✓ | I23: ✓ | J23: -- | K23: -- | L23: -- | M23: ✓ | N23: O
B24: Southwestern Electric Power | C24: LA | D24: ✓ | E24: ✓ | F24: -- | G24: ✓ | H24: -- | I24: ✓ | J24: -- | K24: -- | L24: -- | M24: ✓ | N24: O
B25: Indiana Michigan Power | C25: MI | D25: ✓ | E25: ✓ | F25: -- | G25: -- | H25: ✓ | I25: -- | J25: -- | K25: -- | L25: -- | M25: ✓ | N25: C
B26: Ohio Power | C26: OH | D26: D | E26: ✓ | F26: -- | G26: ✓ | H26: ✓ | I26: -- | J26: D | K26: ✓ | L26: ✓ | M26: ✓ | N26: P
B27: Public Service Oklahoma | C27: OK | D27: ✓ | E27: ✓ | F27: -- | G27: ✓ | H27: ✓ | I27: -- | J27: -- | K27: ✓ | L27: ✓ | M27: ✓ | N27: --
B28: Kingsport Power | C28: TN | D28: ✓ | E28: -- | F28: -- | G28: -- | H28: -- | I28: -- | J28: -- | K28: -- | L28: -- | M28: -- | N28: C
B29: AEP Texas | C29: TX | D29: D | E29: ✓ | F29: -- | G29: -- | H29: -- | I29: -- | J29: D | K29: ✓ | L29: ✓ | M29: -- | N29: --
A30: 4 | B30: AVANGRID
B31: United Illuminating | C31: CT | D31: D | E31: ✓ | F31: ✓ | G31: -- | H31: -- | I31: -- | J31: D | K31: -- | L31: ✓ | M31: -- | N31: C
B32: Central Maine Power | C32: ME | D32: D | E32: -- | F32: ✓ | G32: -- | H32: -- | I32: -- | J32: D | K32: -- | L32: -- | M32: ✓ | N32: C
B33: New York State Electric & Gas | C33: NY | D33: D | E33: -- | F33: ✓ | G33: -- | H33: ✓ | I33: -- | J33: D | K33: -- | L33: -- | M33: ✓ | N33: C
B34: Rochester Gas & Electric | C34: NY | D34: D | E34: -- | F34: ✓ | G34: -- | H34: ✓ | I34: -- | J34: D | K34: -- | L34: -- | M34: ✓ | N34: C
A35: 5 | B35: BLACK HILLS CORP.
B36: Black Hills Colorado Electric | C36: CO | D36: ✓ | E36: ✓ | F36: -- | G36: -- | H36: ✓ | I36: -- | J36: ✓ | K36: ✓ | L36: -- | M36: ✓ | N36: --
B37: Black Hills Power | C37: SD | D37: ✓ | E37: ✓ | F37: -- | G37: ✓ | H37: ✓ | I37: ✓ | J37: -- | K37: -- | L37: ✓ | M37: ✓ | N37: --
B38: Cheyenne Light Fuel & Power | C38: WY | D38: ✓ | E38: ✓ | F38: -- | G38: ✓ | H38: ✓ | I38: -- | J38: -- | K38: -- | L38: -- | M38: ✓ | N38: O
A39: 6 | B39: CMS ENERGY
B40: Consumers Energy | C40: MI | D40: ✓ | E40: ✓ | F40: -- | G40: -- | H40: ✓ | I40: -- | J40: -- | K40: -- | L40: ✓ | M40: -- | N40: C
A41: 7 | B41: CONSOLIDATED EDISON
B42: Rockland Electric | C42: NJ | D42: D | E42: ✓ | F42: -- | G42: -- | H42: ✓ | I42: -- | J42: D | K42: ✓ | L42: -- | M42: ✓ | N42: P
B43: Consolidated Edison of New York | C43: NY | D43: D | E43: -- | F43: ✓ | G43: -- | H43: ✓ | I43: -- | J43: D | K43: -- | L43: -- | M43: ✓ | N43: C
B44: Orange & Rockland Utilities | C44: NY | D44: D | E44: -- | F44: ✓ | G44: -- | H44: ✓ | I44: -- | J44: D | K44: -- | L44: -- | M44: -- | N44: C
A45: 8 | B45: DOMINION ENERGY
B46: Virginia Electric & Power | C46: NC | D46: ✓ | E46: ✓ | F46: -- | G46: -- | H46: ✓ | I46: ✓ | J46: -- | K46: -- | L46: -- | M46: -- | N46: --
B47: Virginia Electric & Power | C47: VA | D47: ✓ | E47: ✓ | F47: -- | G47: -- | H47: ✓ | I47: ✓ | J47: ✓ | K47: ✓ | L47: ✓ | M47: ✓ | N47: --
B48: South Carolina Electric & Gas | C48: SC | D48: ✓ | E48: ✓ | F48: -- | G48: -- | H48: -- | I48: ✓ | J48: ✓ | K48: -- | L48: -- | M48: -- | N48: --
A49: 9 | B49: DTE ENERGY CO.
B50: DTE Electric | C50: MI | D50: ✓ | E50: ✓ | F50: -- | G50: -- | H50: ✓ | I50: -- | J50: -- | K50: -- | L50: ✓ | M50: -- | N50: C
A51: 10 | B51: DUKE ENERGY
B52: Duke Energy Florida | C52: FL | D52: ✓ | E52: ✓ | F52: -- | G52: -- | H52: -- | I52: ✓ | J52: ✓ | K52: -- | L52: -- | M52: ✓ | N52: C
B53: Duke Energy Indiana | C53: IN | D53: ✓ | E53: ✓ | F53: -- | G53: ✓ | H53: ✓ | I53: ✓ | J53: ✓ | K53: ✓ | L53: ✓ | M53: ✓ | N53: --
B54: Duke Energy Kentucky | C54: KY | D54: ✓ | E54: ✓ | F54: -- | G54: ✓ | H54: ✓ | I54: ✓ | J54: -- | K54: -- | L54: -- | M54: ✓ | N54: O
B55: Duke Energy Carolinas | C55: NC | D55: ✓ | E55: ✓ | F55: -- | G55: -- | H55: ✓ | I55: ✓ | J55: -- | K55: -- | L55: -- | M55: -- | N55: --
B56: Duke Energy Progress | C56: NC | D56: ✓ | E56: ✓ | F56: -- | G56: -- | H56: ✓ | I56: ✓ | J56: -- | K56: -- | L56: -- | M56: -- | N56: --
B57: Duke Energy Ohio | C57: OH | D57: D | E57: ✓ | F57: -- | G57: ✓ | H57: ✓ | I57: -- | J57: D | K57: ✓ | L57: ✓ | M57: ✓ | N57: P
B58: Duke Energy Progress | C58: SC | D58: ✓ | E58: ✓ | F58: -- | G58: -- | H58: -- | I58: ✓ | J58: -- | K58: -- | L58: -- | M58: -- | N58: --
B59: Duke Energy Carolinas | C59: SC | D59: ✓ | E59: ✓ | F59: -- | G59: -- | H59: -- | I59: ✓ | J59: -- | K59: -- | L59: -- | M59: -- | N59: --
A60: 11 | B60: ENTERGY CORP.
B61: Entergy Arkansas | C61: AR | D61: ✓ | E61: ✓ | F61: -- | G61: ✓ | H61: ✓ | I61: -- | J61: ✓ | K61: ✓ | L61: ✓ | M61: ✓ | N61: P
B62: Entergy New Orleans | C62: LA | D62: ✓ | E62: ✓ | F62: -- | G62: ✓ | H62: -- | I62: ✓ | J62: ✓ | K62: -- | L62: ✓ | M62: ✓ | N62: O
B63: Entergy Louisiana | C63: LA | D63: ✓ | E63: ✓ | F63: -- | G63: ✓ | H63: -- | I63: ✓ | J63: ✓ | K63: ✓ | L63: ✓ | M63: ✓ | N63: O
B64: Entergy Mississippi | C64: MS | D64: ✓ | E64: ✓ | F64: -- | G64: ✓ | H64: -- | I64: ✓ | J64: -- | K64: -- | L64: ✓ | M64: ✓ | N64: O
B65: Entergy Texas | C65: TX | D65: ✓ | E65: ✓ | F65: -- | G65: -- | H65: -- | I65: -- | J65: -- | K65: ✓ | L65: -- | M65: ✓ | N65: --
A66: 12 | B66: EVERGY, INC.
B67: Evergy Kansas Central Inc. | C67: KS | D67: ✓ | E67: ✓ | F67: -- | G67: ✓ | H67: ✓ | I67: ✓ | J67: -- | K67: -- | L67: ✓ | M67: ✓ | N67: --
B68: Evergy Kansas South Inc. | C68: KS | D68: ✓ | E68: ✓ | F68: -- | G68: ✓ | H68: ✓ | I68: ✓ | J68: -- | K68: -- | L68: ✓ | M68: ✓ | N68: --
B69: Evergy Metro Inc. | C69: KS | D69: ✓ | E69: ✓ | F69: -- | G69: -- | H69: -- | I69: -- | J69: -- | K69: ✓ | L69: ✓ | M69: ✓ | N69: --
B70: Evergy Metro Inc. | C70: MO | D70: ✓ | E70: ✓ | F70: -- | G70: ✓ | H70: ✓ | I70: ✓ | J70: -- | K70: ✓ | L70: ✓ | M70: ✓ | N70: P
B71: Evergy Missouri West Inc. | C71: MO | D71: ✓ | E71: ✓ | F71: -- | G71: ✓ | H71: ✓ | I71: ✓ | J71: -- | K71: ✓ | L71: ✓ | M71: ✓ | N71: P
A72: 13 | B72: EVERSOURCE ENERGY
B73: Connecticut Light and Power | C73: CT | D73: D | E73: ✓ | F73: ✓ | G73: -- | H73: -- | I73: -- | J73: D | K73: ✓ | L73: ✓ | M73: -- | N73: C
B74: NSTAR Electric | C74: MA | D74: D | E74: ✓ | F74: ✓ | G74: -- | H74: ✓ | I74: -- | J74: D | K74: ✓ | L74: ✓ | M74: ✓ | N74: --
B75: Public Service Co. of New Hampshire | C75: NH | D75: ✓ | E75: -- | F75: -- | G75: ✓ | H75: -- | I75: -- | J75: -- | K75: ✓ | L75: ✓ | M75: -- | N75: --
A76: 14 | B76: EXELON CORP.
B77: Delmarva Power & Light | C77: DE | D77: D | E77: -- | F77: -- | G77: -- | H77: -- | I77: -- | J77: D | K77: ✓ | L77: ✓ | M77: ✓ | N77: P
B78: Potomac Electric Power | C78: DC | D78: D | E78: -- | F78: -- | G78: ✓ | H78: ✓ | I78: -- | J78: D | K78: ✓ | L78: -- | M78: ✓ | N78: P
B79: Commonwealth Edison | C79: IL | D79: D | E79: ✓ | F79: -- | G79: -- | H79: ✓ | I79: ✓ | J79: D | K79: ✓ | L79: ✓ | M79: ✓ | N79: O
B80: Baltimore Gas & Electric | C80: MD | D80: D | E80: ✓ | F80: ✓ | G80: -- | H80: -- | I80: -- | J80: D | K80: -- | L80: -- | M80: ✓ | N80: P
B81: Delmarva Power & Light | C81: MD | D81: D | E81: ✓ | F81: ✓ | G81: -- | H81: -- | I81: -- | J81: D | K81: -- | L81: -- | M81: -- | N81: P
B82: Potomac Electric Power | C82: MD | D82: D | E82: ✓ | F82: ✓ | G82: -- | H82: -- | I82: -- | J82: D | K82: -- | L82: -- | M82: ✓ | N82: P
B83: Atlantic City Electric | C83: NJ | D83: D | E83: ✓ | F83: -- | G83: -- | H83: ✓ | I83: -- | J83: D | K83: ✓ | L83: -- | M83: ✓ | N83: P
B84: PECO Energy | C84: PA | D84: D | E84: ✓ | F84: -- | G84: -- | H84: -- | I84: -- | J84: D | K84: ✓ | L84: -- | M84: ✓ | N84: O
A85: 15 | B85: FORTIS, INC.
B86: Tucson Electric Power | C86: AZ | D86: ✓ | E86: ✓ | F86: -- | G86: ✓ | H86: ✓ | I86: ✓ | J86: -- | K86: -- | L86: -- | M86: ✓ | N86: --
B87: UNS Electric | C87: AZ | D87: ✓ | E87: ✓ | F87: -- | G87: ✓ | H87: ✓ | I87: -- | J87: -- | K87: -- | L87: ✓ | M87: ✓ | N87: --
B88: Central Hudson Gas & Electric | C88: NY | D88: D | E88: -- | F88: ✓ | G88: -- | H88: ✓ | I88: -- | J88: D | K88: -- | L88: -- | M88: ✓ | N88: C
A89: 16 | B89: NEXTERA ENERGY
B90: Florida Power & Light | C90: FL | D90: ✓ | E90: ✓ | F90: -- | G90: -- | H90: -- | I90: ✓ | J90: ✓ | K90: -- | L90: -- | M90: ✓ | N90: C
B91: Lone Star Transmission | C91: TX | D91: D | E91: -- | F91: -- | G91: -- | H91: -- | I91: -- | J91: D | K91: ✓ | L91: -- | M91: -- | N91: --
B92: Gulf Power | C92: FL | D92: ✓ | E92: ✓ | F92: -- | G92: -- | H92: -- | I92: ✓ | J92: ✓ | K92: -- | L92: -- | M92: ✓ | N92: C
A93: 17 | B93: OGE ENERGY CORP.
B94: Oklahoma Gas & Electric | C94: AR | D94: ✓ | E94: ✓ | F94: -- | G94: ✓ | H94: ✓ | I94: ✓ | J94: ✓ | K94: -- | L94: ✓ | M94: ✓ | N94: P
B95: Oklahoma Gas & Electric | C95: OK | D95: ✓ | E95: ✓ | F95: -- | G95: ✓ | H95: ✓ | I95: ✓ | J95: -- | K95: ✓ | L95: ✓ | M95: ✓ | N95: --
A96: 18 | B96: PPL CORP.
B97: Kentucky Utilities | C97: KY | D97: ✓ | E97: ✓ | F97: -- | G97: ✓ | H97: ✓ | I97: ✓ | J97: -- | K97: -- | L97: -- | M97: ✓ | N97: O
B98: Louisville Gas & Electric | C98: KY | D98: ✓ | E98: ✓ | F98: -- | G98: ✓ | H98: ✓ | I98: ✓ | J98: -- | K98: -- | L98: -- | M98: ✓ | N98: O
B99: PPL Electric Utilities | C99: PA | D99: D | E99: ✓ | F99: -- | G99: -- | H99: -- | I99: -- | J99: D | K99: ✓ | L99: ✓ | M99: ✓ | N99: O
B100: Kentucky Utilities | C100: VA | D100: ✓ | E100: -- | F100: -- | G100: -- | H100: -- | I100: -- | J100: -- | K100: -- | L100: -- | M100: -- | N100: --
A101: 19 | B101: PUB SV ENTERPRISE GRP
B102: Public Service Electric & Gas | C102: NJ | D102: D | E102: ✓ | F102: -- | G102: -- | H102: ✓ | I102: -- | J102: D | K102: ✓ | L102: -- | M102: ✓ | N102: P
A103: 20 | B103: SEMPRA ENERGY
B104: San Diego Gas & Electric | C104: CA | D104: ✓ | E104: -- | F104: ✓ | G104: -- | H104: -- | I104: -- | J104: -- | K104: -- | L104: -- | M104: ✓ | N104: C
B105: Oncor Electric Delivery | C105: TX | D105: D | E105: ✓ | F105: -- | G105: -- | H105: -- | I105: -- | J105: D | K105: ✓ | L105: ✓ | M105: -- | N105: --
A106: 21 | B106: SOUTHERN CO.
B107: Alabama Power | C107: AL | D107: ✓ | E107: -- | F107: -- | G107: -- | H107: ✓ | I107: ✓ | J107: ✓ | K107: -- | L107: -- | M107: ✓ | N107: C
B108: Georgia Power | C108: GA | D108: ✓ | E108: -- | F108: -- | G108: -- | H108: -- | I108: -- | J108: ✓ | K108: -- | L108: -- | M108: -- | N108: C
B109: Mississippi Power | C109: MS | D109: ✓ | E109: ✓ | F109: -- | G109: ✓ | H109: -- | I109: ✓ | J109: -- | K109: -- | L109: -- | M109: ✓ | N109: O
A110: 22 | B110: WEC ENERGY GROUP
B111: Wisconsin Electric Power | C111: MI | D111: ✓ | E111: ✓ | F111: -- | G111: -- | H111: ✓ | I111: -- | J111: -- | K111: -- | L111: -- | M111: -- | N111: C
B112: Wisconsin Electric Power | C112: WI | D112: ✓ | E112: -- | F112: -- | G112: -- | H112: ✓ | I112: -- | J112: -- | K112: -- | L112: -- | M112: ✓ | N112: C
B113: Wisconsin Public Service | C113: WI | D113: ✓ | E113: -- | F113: -- | G113: -- | H113: -- | I113: -- | J113: -- | K113: -- | L113: -- | M113: ✓ | N113: C
A114: 23 | B114: XCEL ENERGY, INC.
B115: Public Service Co. of Colorado | C115: CO | D115: ✓ | E115: ✓ | F115: -- | G115: -- | H115: ✓ | I115: ✓ | J115: ✓ | K115: ✓ | L115: -- | M115: ✓ | N115: --
B116: Northern States Power-Minnesota | C116: MN | D116: ✓ | E116: ✓ | F116: -- | G116: ✓ | H116: ✓ | I116: ✓ | J116: -- | K116: -- | L116: ✓ | M116: -- | N116: C
B117: Southwestern Public Service | C117: NM | D117: ✓ | E117: ✓ | F117: -- | G117: -- | H117: ✓ | I117: -- | J117: -- | K117: -- | L117: -- | M117: ✓ | N117: O
B118: Northern States Power-Minnesota | C118: ND | D118: ✓ | E118: -- | F118: -- | G118: -- | H118: -- | I118: -- | J118: -- | K118: ✓ | L118: -- | M118: ✓ | N118: O
B119: Northern States Power-Minnesota | C119: SD | D119: ✓ | E119: ✓ | F119: -- | G119: ✓ | H119: -- | I119: ✓ | J119: ✓ | K119: ✓ | L119: -- | M119: ✓ | N119: --
B120: Southwestern Public Service | C120: TX | D120: ✓ | E120: ✓ | F120: -- | G120: -- | H120: -- | I120: -- | J120: -- | K120: ✓ | L120: ✓ | M120: ✓ | N120: --
B121: Northern States Power-Wisconsin | C121: WI | D121: ✓ | E121: -- | F121: -- | G121: -- | H121: -- | I121: -- | J121: -- | K121: -- | L121: -- | M121: ✓ | N121: C
A123: Sources:
A124: (a) | B124: S&P Global, Market Intelligence, RRA Regulatory Focus, "Adjustment Clauses-A State-by-State Overview," Nov. 12, 2019.
A125: (b) | B125: Edison Electric Institute, "Alternative Regulation for Emerging Utility Challenges: 2015 Update," Nov. 11, 2015.
A127: Notes:
A128: D - Delivery-only utility.
A129: C - Fully-forecasted test years commonly used in the state listed for this operating company.
A130: O - Fully-forecasted test years occasionally used in the state listed for this operating company.
A131: P - Partially-forecasted test years commonly or occasionally used in the state listed for this operating company.
A132: * Recover mechanisms for other expenses, such as taxes, franchise fees, bad debts, storm costs, pensions, societal benefits, vegetation management, and decommissioning.

Sheet 4 ( 1)
A1: ='Exhibit List'!C5 -> DCF MODEL - ELECTRIC GROUP | I1: ='Exhibit List'!B5 -> Exhibit AMM-4
I2: Page 1 of 4
A3: ='Exhibit List'!D5 -> DIVIDEND YIELD
D5: (a) | F5: (b)
B6: Company | D6: Price | F6: Dividends | H6: Yield
A7: =A6+1 -> 1 | B7: =VLOOKUP('Proxy Group Ticker'!B3,vldatabase,2,FALSE) -> Alliant Energy | D7: =HLOOKUP('Proxy Group Ticker'!B3,StockPrice,33,FALSE) -> 48.61266697 | F7: =VLOOKUP('Proxy Group Ticker'!B3,vldatabase,4,FALSE) -> 1.52 | H7: =F7/D7 -> 0.03126757067
A8: 2 | B8: =VLOOKUP('Proxy Group Ticker'!B4,vldatabase,2,FALSE) -> Ameren Corp. | D8: =HLOOKUP('Proxy Group Ticker'!B4,StockPrice,33,FALSE) -> 72.86933337 | F8: =VLOOKUP('Proxy Group Ticker'!B4,vldatabase,4,FALSE) -> 2.03 | H8: =F8/D8 -> 0.02785808386
A9: 3 | B9: =VLOOKUP('Proxy Group Ticker'!B5,vldatabase,2,FALSE) -> American Elec Pwr | D9: =HLOOKUP('Proxy Group Ticker'!B5,StockPrice,33,FALSE) -> 80.759667 | F9: =VLOOKUP('Proxy Group Ticker'!B5,vldatabase,4,FALSE) -> 2.88 | H9: 0.03566136547
A10: 4 | B10: =VLOOKUP('Proxy Group Ticker'!B6,vldatabase,2,FALSE) -> Avangrid, Inc. | D10: =HLOOKUP('Proxy Group Ticker'!B6,StockPrice,33,FALSE) -> 43.28899997 | F10: =VLOOKUP('Proxy Group Ticker'!B6,vldatabase,4,FALSE) -> 1.78 | H10: 0.041118991
A11: 5 | B11: =VLOOKUP('Proxy Group Ticker'!B7,vldatabase,2,FALSE) -> Black Hills Corp. | D11: =HLOOKUP('Proxy Group Ticker'!B7,StockPrice,33,FALSE) -> 63.12666657 | F11: =VLOOKUP('Proxy Group Ticker'!B7,vldatabase,4,FALSE) -> 2.2 | H11: 0.03485056506
A12: 6 | B12: =VLOOKUP('Proxy Group Ticker'!B8,vldatabase,2,FALSE) -> CMS Energy Corp. | D12: =HLOOKUP('Proxy Group Ticker'!B8,StockPrice,33,FALSE) -> 57.92899987 | F12: =VLOOKUP('Proxy Group Ticker'!B8,vldatabase,4,FALSE) -> 1.66 | H12: 0.02865576833
A13: 7 | B13: =VLOOKUP('Proxy Group Ticker'!B9,vldatabase,2,FALSE) -> Consolidated Edison | D13: =HLOOKUP('Proxy Group Ticker'!B9,StockPrice,33,FALSE) -> 80.62633357 | F13: =VLOOKUP('Proxy Group Ticker'!B9,vldatabase,4,FALSE) -> 3.09 | H13: 0.03832494749
A14: 8 | B14: =VLOOKUP('Proxy Group Ticker'!B10,vldatabase,2,FALSE) -> Dominion Energy | D14: =HLOOKUP('Proxy Group Ticker'!B10,StockPrice,33,FALSE) -> 75.0479996 | F14: =VLOOKUP('Proxy Group Ticker'!B10,vldatabase,4,FALSE) -> 3.76 | H14: 0.05010126879
A15: 9 | B15: =VLOOKUP('Proxy Group Ticker'!B11,vldatabase,2,FALSE) -> DTE Energy Co. | D15: =HLOOKUP('Proxy Group Ticker'!B11,StockPrice,33,FALSE) -> 98.5959996 | F15: =VLOOKUP('Proxy Group Ticker'!B11,vldatabase,4,FALSE) -> 4.2 | H15: 0.04259807717
A16: 10 | B16: =VLOOKUP('Proxy Group Ticker'!B12,vldatabase,2,FALSE) -> Duke Energy Corp. | D16: =HLOOKUP('Proxy Group Ticker'!B12,StockPrice,33,FALSE) -> 82.53333333 | F16: =VLOOKUP('Proxy Group Ticker'!B12,vldatabase,4,FALSE) -> 3.83 | H16: 0.04640549273
A17: 11 | B17: =VLOOKUP('Proxy Group Ticker'!B13,vldatabase,2,FALSE) -> Entergy Corp. | D17: =HLOOKUP('Proxy Group Ticker'!B13,StockPrice,33,FALSE) -> 94.5536665 | F17: =VLOOKUP('Proxy Group Ticker'!B13,vldatabase,4,FALSE) -> 3.76 | H17: 0.03976577682
A18: 12 | B18: =VLOOKUP('Proxy Group Ticker'!B14,vldatabase,2,FALSE) -> Evergy Inc. | D18: =HLOOKUP('Proxy Group Ticker'!B14,StockPrice,33,FALSE) -> 57.04399983 | F18: =VLOOKUP('Proxy Group Ticker'!B14,vldatabase,4,FALSE) -> 2.08 | H18: 0.03646308124
A19: 13 | B19: =VLOOKUP('Proxy Group Ticker'!B15,vldatabase,2,FALSE) -> Eversource Energy | D19: =HLOOKUP('Proxy Group Ticker'!B15,StockPrice,33,FALSE) -> 82.0453328 | F19: =VLOOKUP('Proxy Group Ticker'!B15,vldatabase,4,FALSE) -> 2.27 | H19: 0.02766763108
A20: 14 | B20: =VLOOKUP('Proxy Group Ticker'!B16,vldatabase,2,FALSE) -> Exelon Corp. | D20: =HLOOKUP('Proxy Group Ticker'!B16,StockPrice,33,FALSE) -> 36.16866663 | F20: =VLOOKUP('Proxy Group Ticker'!B16,vldatabase,4,FALSE) -> 1.53 | H20: 0.04230180823
A21: 15 | B21: =VLOOKUP('Proxy Group Ticker'!B17,vldatabase,2,FALSE) -> Fortis Inc. | D21: =HLOOKUP('Proxy Group Ticker'!B17,StockPrice,33,FALSE) -> 37.24733333 | F21: =VLOOKUP('Proxy Group Ticker'!B17,vldatabase,4,FALSE) -> 1.99 | H21: 0.05342664352
A22: 16 | B22: =VLOOKUP('Proxy Group Ticker'!B18,vldatabase,2,FALSE) -> NextEra Energy, Inc. | D22: =HLOOKUP('Proxy Group Ticker'!B18,StockPrice,33,FALSE) -> 230.826 | F22: =VLOOKUP('Proxy Group Ticker'!B18,vldatabase,4,FALSE) -> 5.65 | H22: =F22/D22 -> 0.02447731191
A23: 17 | B23: =VLOOKUP('Proxy Group Ticker'!B19,vldatabase,2,FALSE) -> OGE Energy Corp. | D23: =HLOOKUP('Proxy Group Ticker'!B19,StockPrice,33,FALSE) -> 30.28833323 | F23: =VLOOKUP('Proxy Group Ticker'!B19,vldatabase,4,FALSE) -> 1.62 | H23: 0.05348594086
A24: 18 | B24: =VLOOKUP('Proxy Group Ticker'!B20,vldatabase,2,FALSE) -> PPL Corp. | D24: =HLOOKUP('Proxy Group Ticker'!B20,StockPrice,33,FALSE) -> 24.47133327 | F24: =VLOOKUP('Proxy Group Ticker'!B20,vldatabase,4,FALSE) -> 1.66 | H24: 0.06783447317
A25: 19 | B25: =VLOOKUP('Proxy Group Ticker'!B21,vldatabase,2,FALSE) -> Pub Sv Enterprise Grp. | D25: =HLOOKUP('Proxy Group Ticker'!B21,StockPrice,33,FALSE) -> 47.99399937 | F25: =VLOOKUP('Proxy Group Ticker'!B21,vldatabase,4,FALSE) -> 1.96 | H25: 0.04083843868
A26: 20 | B26: =VLOOKUP('Proxy Group Ticker'!B22,vldatabase,2,FALSE) -> Sempra Energy | D26: =HLOOKUP('Proxy Group Ticker'!B22,StockPrice,33,FALSE) -> 118.3923332 | F26: =VLOOKUP('Proxy Group Ticker'!B22,vldatabase,4,FALSE) -> 4.26 | H26: 0.0359820597
A27: 21 | B27: =VLOOKUP('Proxy Group Ticker'!B23,vldatabase,2,FALSE) -> Southern Company | D27: =HLOOKUP('Proxy Group Ticker'!B23,StockPrice,33,FALSE) -> 54.89833337 | F27: =VLOOKUP('Proxy Group Ticker'!B23,vldatabase,4,FALSE) -> 2.56 | H27: 0.04663165242
A28: 22 | B28: =VLOOKUP('Proxy Group Ticker'!B24,vldatabase,2,FALSE) -> WEC Energy Group | D28: =HLOOKUP('Proxy Group Ticker'!B24,StockPrice,33,FALSE) -> 90.423999 | F28: =VLOOKUP('Proxy Group Ticker'!B24,vldatabase,4,FALSE) -> 2.57 | H28: 0.02842165828
A29: 23 | B29: =VLOOKUP('Proxy Group Ticker'!B25,vldatabase,2,FALSE) -> Xcel Energy Inc. | D29: =HLOOKUP('Proxy Group Ticker'!B25,StockPrice,33,FALSE) -> 61.556 | F29: =VLOOKUP('Proxy Group Ticker'!B25,vldatabase,4,FALSE) -> 1.75 | H29: 0.02842939762
B31: Average | H31: =AVERAGE(H7:H29) -> 0.03924208714
A35: (a) | B35: ='Stock Price (Electric)'!B37 -> Average of closing prices for 30 trading days ended May 1, 2020.
A36: (b) | B36: ='Electric Utility Data'!B50 -> The Value Line Investment Survey, Summary & Index (May 1, 2020).
F39: Min | H39: =MIN(H7:H29) -> 0.02447731191
F40: Max | H40: =MAX(H7:H29) -> 0.06783447317

Sheet 4 (2)
A1: ='Exhibit List'!C6 -> DCF MODEL - ELECTRIC GROUP | K1: ='Exhibit List'!B6 -> Exhibit AMM-4
K2: Page 2 of 4
A3: ='Exhibit List'!D6 -> GROWTH RATES
D5: (a) | F5: (b) | H5: (c) | J5: (d)
D6: Earnings Growth | J6: br+sv
B7: Company | D7: V Line | F7: IBES | H7: Zacks | J7: Growth
A8: =A7+1 -> 1 | B8: ='4 ( 1)'!B7 -> Alliant Energy | D8: =VLOOKUP('Proxy Group Ticker'!B3,vldatabase,19,FALSE) -> 0.065 | F8: =VLOOKUP('Proxy Group Ticker'!B3,vldatabase,30,FALSE) -> 0.0565 | H8: =VLOOKUP('Proxy Group Ticker'!B3,vldatabase,31,FALSE) -> 0.0551 | J8: ='5'!Q8 -> 0.04307134474
A9: 2 | B9: ='4 ( 1)'!B8 -> Ameren Corp. | D9: =VLOOKUP('Proxy Group Ticker'!B4,vldatabase,19,FALSE) -> 0.06 | F9: =VLOOKUP('Proxy Group Ticker'!B4,vldatabase,30,FALSE) -> 0.065 | H9: =VLOOKUP('Proxy Group Ticker'!B4,vldatabase,31,FALSE) -> 0.0675 | J9: ='5'!Q9 -> 0.06168279362
A10: 3 | B10: ='4 ( 1)'!B9 -> American Elec Pwr | D10: =VLOOKUP('Proxy Group Ticker'!B5,vldatabase,19,FALSE) -> 0.05 | F10: =VLOOKUP('Proxy Group Ticker'!B5,vldatabase,30,FALSE) -> 0.06 | H10: =VLOOKUP('Proxy Group Ticker'!B5,vldatabase,31,FALSE) -> 0.0578 | J10: ='5'!Q10 -> 0.0476875208
A11: 4 | B11: ='4 ( 1)'!B10 -> Avangrid, Inc. | D11: =VLOOKUP('Proxy Group Ticker'!B6,vldatabase,19,FALSE) -> 0.085 | F11: =VLOOKUP('Proxy Group Ticker'!B6,vldatabase,30,FALSE) -> 0.063 | H11: =VLOOKUP('Proxy Group Ticker'!B6,vldatabase,31,FALSE) -> 0.0524 | J11: ='5'!Q11 -> 0.01501737768
A12: 5 | B12: ='4 ( 1)'!B11 -> Black Hills Corp. | D12: =VLOOKUP('Proxy Group Ticker'!B7,vldatabase,19,FALSE) -> 0.035 | F12: =VLOOKUP('Proxy Group Ticker'!B7,vldatabase,30,FALSE) -> 0.0583 | H12: =VLOOKUP('Proxy Group Ticker'!B7,vldatabase,31,FALSE) -> 0.0589 | J12: ='5'!Q12 -> 0.03793492074
A13: 6 | B13: ='4 ( 1)'!B12 -> CMS Energy Corp. | D13: =VLOOKUP('Proxy Group Ticker'!B8,vldatabase,19,FALSE) -> 0.075 | F13: =VLOOKUP('Proxy Group Ticker'!B8,vldatabase,30,FALSE) -> 0.073 | H13: =VLOOKUP('Proxy Group Ticker'!B8,vldatabase,31,FALSE) -> 0.0695 | J13: ='5'!Q13 -> 0.07021900941
A14: 7 | B14: ='4 ( 1)'!B13 -> Consolidated Edison | D14: =VLOOKUP('Proxy Group Ticker'!B9,vldatabase,19,FALSE) -> 0.03 | F14: =VLOOKUP('Proxy Group Ticker'!B9,vldatabase,30,FALSE) -> 0.0241 | H14: =VLOOKUP('Proxy Group Ticker'!B9,vldatabase,31,FALSE) -> 0.02 | J14: ='5'!Q14 -> 0.03163372645
A15: 8 | B15: ='4 ( 1)'!B14 -> Dominion Energy | D15: =VLOOKUP('Proxy Group Ticker'!B10,vldatabase,19,FALSE) -> 0.07 | F15: =VLOOKUP('Proxy Group Ticker'!B10,vldatabase,30,FALSE) -> 0.0488 | H15: =VLOOKUP('Proxy Group Ticker'!B10,vldatabase,31,FALSE) -> 0.0468 | J15: ='5'!Q15 -> 0.0459282457
A16: 9 | B16: ='4 ( 1)'!B15 -> DTE Energy Co. | D16: =VLOOKUP('Proxy Group Ticker'!B11,vldatabase,19,FALSE) -> 0.05 | F16: =VLOOKUP('Proxy Group Ticker'!B11,vldatabase,30,FALSE) -> 0.0596 | H16: =VLOOKUP('Proxy Group Ticker'!B11,vldatabase,31,FALSE) -> 0.055 | J16: ='5'!Q16 -> 0.05052515554
A17: 10 | B17: ='4 ( 1)'!B16 -> Duke Energy Corp. | D17: =VLOOKUP('Proxy Group Ticker'!B12,vldatabase,19,FALSE) -> 0.06 | F17: =VLOOKUP('Proxy Group Ticker'!B12,vldatabase,30,FALSE) -> 0.0414 | H17: =VLOOKUP('Proxy Group Ticker'!B12,vldatabase,31,FALSE) -> 0.0464 | J17: ='5'!Q17 -> 0.03027619225
A18: 11 | B18: ='4 ( 1)'!B17 -> Entergy Corp. | D18: =VLOOKUP('Proxy Group Ticker'!B13,vldatabase,19,FALSE) -> 0.03 | F18: =VLOOKUP('Proxy Group Ticker'!B13,vldatabase,30,FALSE) -> 0.06 | H18: =VLOOKUP('Proxy Group Ticker'!B13,vldatabase,31,FALSE) -> 0.0595 | J18: ='5'!Q18 -> 0.05131653141
A19: 12 | B19: ='4 ( 1)'!B18 -> Evergy Inc. | D19: =VLOOKUP('Proxy Group Ticker'!B14,vldatabase,19,FALSE) -> n/a | F19: =VLOOKUP('Proxy Group Ticker'!B14,vldatabase,30,FALSE) -> 0.039 | H19: =VLOOKUP('Proxy Group Ticker'!B14,vldatabase,31,FALSE) -> 0.0495 | J19: ='5'!Q19 -> 0.02826330207
A20: 13 | B20: ='4 ( 1)'!B19 -> Eversource Energy | D20: =VLOOKUP('Proxy Group Ticker'!B15,vldatabase,19,FALSE) -> 0.055 | F20: =VLOOKUP('Proxy Group Ticker'!B15,vldatabase,30,FALSE) -> 0.0573 | H20: =VLOOKUP('Proxy Group Ticker'!B15,vldatabase,31,FALSE) -> 0.0613 | J20: ='5'!Q20 -> 0.04810060032
A21: 14 | B21: ='4 ( 1)'!B20 -> Exelon Corp. | D21: =VLOOKUP('Proxy Group Ticker'!B16,vldatabase,19,FALSE) -> 0.08 | F21: =VLOOKUP('Proxy Group Ticker'!B16,vldatabase,30,FALSE) -> -0.0245 | H21: =VLOOKUP('Proxy Group Ticker'!B16,vldatabase,31,FALSE) -> 0.04 | J21: ='5'!Q21 -> 0.04591386371
A22: 15 | B22: ='4 ( 1)'!B21 -> Fortis Inc. | D22: =VLOOKUP('Proxy Group Ticker'!B17,vldatabase,19,FALSE) -> 0.025 | F22: =VLOOKUP('Proxy Group Ticker'!B17,vldatabase,30,FALSE) -> 0.0503 | H22: =VLOOKUP('Proxy Group Ticker'!B17,vldatabase,31,FALSE) -> 0.0593 | J22: ='5'!Q22 -> 0.01471070665
A23: 16 | B23: ='4 ( 1)'!B22 -> NextEra Energy, Inc. | D23: =VLOOKUP('Proxy Group Ticker'!B18,vldatabase,19,FALSE) -> 0.1 | F23: =VLOOKUP('Proxy Group Ticker'!B18,vldatabase,30,FALSE) -> 0.0771 | H23: =VLOOKUP('Proxy Group Ticker'!B18,vldatabase,31,FALSE) -> 0.0772 | J23: ='5'!Q23 -> 0.05166325867
A24: 17 | B24: ='4 ( 1)'!B23 -> OGE Energy Corp. | D24: =VLOOKUP('Proxy Group Ticker'!B19,vldatabase,19,FALSE) -> 0.045 | F24: =VLOOKUP('Proxy Group Ticker'!B19,vldatabase,30,FALSE) -> 0.017 | H24: =VLOOKUP('Proxy Group Ticker'!B19,vldatabase,31,FALSE) -> 0.0337 | J24: ='5'!Q24 -> 0.03344656001
A25: 18 | B25: ='4 ( 1)'!B24 -> PPL Corp. | D25: =VLOOKUP('Proxy Group Ticker'!B20,vldatabase,19,FALSE) -> 0.025 | F25: =VLOOKUP('Proxy Group Ticker'!B20,vldatabase,30,FALSE) -> 0.005 | H25: =VLOOKUP('Proxy Group Ticker'!B20,vldatabase,31,FALSE) -> n/a | J25: ='5'!Q25 -> 0.05561765374
A26: 19 | B26: ='4 ( 1)'!B25 -> Pub Sv Enterprise Grp. | D26: =VLOOKUP('Proxy Group Ticker'!B21,vldatabase,19,FALSE) -> 0.06 | F26: =VLOOKUP('Proxy Group Ticker'!B21,vldatabase,30,FALSE) -> 0.0235 | H26: =VLOOKUP('Proxy Group Ticker'!B21,vldatabase,31,FALSE) -> 0.0341 | J26: ='5'!Q26 -> 0.04991295576
A27: 20 | B27: ='4 ( 1)'!B26 -> Sempra Energy | D27: =VLOOKUP('Proxy Group Ticker'!B22,vldatabase,19,FALSE) -> 0.1 | F27: =VLOOKUP('Proxy Group Ticker'!B22,vldatabase,30,FALSE) -> 0.042 | H27: =VLOOKUP('Proxy Group Ticker'!B22,vldatabase,31,FALSE) -> 0.068 | J27: ='5'!Q27 -> 0.0735882429
A28: 21 | B28: ='4 ( 1)'!B27 -> Southern Company | D28: =VLOOKUP('Proxy Group Ticker'!B23,vldatabase,19,FALSE) -> 0.04 | F28: =VLOOKUP('Proxy Group Ticker'!B23,vldatabase,30,FALSE) -> 0.0436 | H28: =VLOOKUP('Proxy Group Ticker'!B23,vldatabase,31,FALSE) -> 0.04 | J28: ='5'!Q28 -> 0.04208873886
A29: 22 | B29: ='4 ( 1)'!B28 -> WEC Energy Group | D29: =VLOOKUP('Proxy Group Ticker'!B24,vldatabase,19,FALSE) -> 0.06 | F29: =VLOOKUP('Proxy Group Ticker'!B24,vldatabase,30,FALSE) -> 0.0596 | H29: =VLOOKUP('Proxy Group Ticker'!B24,vldatabase,31,FALSE) -> 0.0591 | J29: ='5'!Q29 -> 0.0412724252
A30: 23 | B30: ='4 ( 1)'!B29 -> Xcel Energy Inc. | D30: =VLOOKUP('Proxy Group Ticker'!B25,vldatabase,19,FALSE) -> 0.06 | F30: =VLOOKUP('Proxy Group Ticker'!B25,vldatabase,30,FALSE) -> 0.054 | H30: =VLOOKUP('Proxy Group Ticker'!B25,vldatabase,31,FALSE) -> 0.0572 | J30: ='5'!Q30 -> 0.04979442463
A34: (a) | B34: ='Electric Utility Data'!B51 -> The Value Line Investment Survey (Feb. 14, Mar. 13 and Apr. 24, 2020).
A35: (b) | B35: ='Electric Utility Data'!B54 -> www.finance.yahoo.com (retreived May 1, 2020).
A36: (c) | B36: ='Electric Utility Data'!B55 -> www.zacks.com (retrieved May 1, 2020).
A37: (d) | B37: ="See "&'5'!Q1& "." -> See Exhibit AMM-5.

Sheet 4 (3)
A1: ='Exhibit List'!C7 -> DCF MODEL - ELECTRIC GROUP | L1: ='Exhibit List'!B7 -> Exhibit AMM-4
L2: Page 3 of 4
A3: ='Exhibit List'!D7 -> COST OF EQUITY ESTIMATES
D5: (a) | F5: (a) | H5: (a) | K5: (a)
D6: Earnings Growth | K6: br+sv
B7: Company | D7: V Line | F7: IBES | H7: Zacks | K7: Growth
A8: =A7+1 -> 1 | B8: ='4 ( 1)'!B7 -> Alliant Energy | D8: =IF('4 (2)'!D8="n/a","n/a",'4 ( 1)'!$H7+'4 (2)'!D8) -> 0.09626757067 | F8: =IF('4 (2)'!F8="n/a","n/a",'4 ( 1)'!$H7+'4 (2)'!F8) -> 0.08776757067 | H8: =IF('4 (2)'!H8="n/a","n/a",'4 ( 1)'!$H7+'4 (2)'!H8) -> 0.08636757067 | K8: =IF('4 (2)'!J8="n/a","n/a",'4 ( 1)'!$H7+'4 (2)'!J8) -> 0.07433891541 | O8: =IF(D8="n/a","n/a",IF(D8<$D$40,"LOW",IF(D8>$D$41,"HIGH",D8))) -> 0.09626757067 | P8: =IF(F8="n/a","n/a",IF(F8<$D$40,"LOW",IF(F8>$D$41,"HIGH",F8))) -> 0.08776757067 | Q8: =IF(H8="n/a","n/a",IF(H8<$D$40,"LOW",IF(H8>$D$41,"HIGH",H8))) -> 0.08636757067 | R8: =IF(K8="n/a","n/a",IF(K8<$D$40,"LOW",IF(K8>$D$41,"HIGH",K8))) -> 0.07433891541
A9: =A8+1 -> 2 | B9: ='4 ( 1)'!B8 -> Ameren Corp. | D9: =IF('4 (2)'!D9="n/a","n/a",'4 ( 1)'!$H8+'4 (2)'!D9) -> 0.08785808386 | F9: =IF('4 (2)'!F9="n/a","n/a",'4 ( 1)'!$H8+'4 (2)'!F9) -> 0.09285808386 | H9: =IF('4 (2)'!H9="n/a","n/a",'4 ( 1)'!$H8+'4 (2)'!H9) -> 0.09535808386 | K9: =IF('4 (2)'!J9="n/a","n/a",'4 ( 1)'!$H8+'4 (2)'!J9) -> 0.08954087748 | O9: 0.08785808386 | P9: 0.09285808386 | Q9: 0.09535808386 | R9: 0.08954087748
A10: 3 | B10: ='4 ( 1)'!B9 -> American Elec Pwr | D10: =IF('4 (2)'!D10="n/a","n/a",'4 ( 1)'!$H9+'4 (2)'!D10) -> 0.08566136547 | F10: =IF('4 (2)'!F10="n/a","n/a",'4 ( 1)'!$H9+'4 (2)'!F10) -> 0.09566136547 | H10: =IF('4 (2)'!H10="n/a","n/a",'4 ( 1)'!$H9+'4 (2)'!H10) -> 0.09346136547 | K10: =IF('4 (2)'!J10="n/a","n/a",'4 ( 1)'!$H9+'4 (2)'!J10) -> 0.08334888627 | O10: 0.08566136547 | P10: 0.09566136547 | Q10: 0.09346136547 | R10: 0.08334888627
A11: 4 | B11: ='4 ( 1)'!B10 -> Avangrid, Inc. | D11: =IF('4 (2)'!D11="n/a","n/a",'4 ( 1)'!$H10+'4 (2)'!D11) -> 0.126118991 | F11: =IF('4 (2)'!F11="n/a","n/a",'4 ( 1)'!$H10+'4 (2)'!F11) -> 0.104118991 | H11: =IF('4 (2)'!H11="n/a","n/a",'4 ( 1)'!$H10+'4 (2)'!H11) -> 0.093518991 | K11: =IF('4 (2)'!J11="n/a","n/a",'4 ( 1)'!$H10+'4 (2)'!J11) -> 0.05613636868 | O11: 0.126118991 | P11: 0.104118991 | Q11: 0.093518991 | R11: LOW
A12: 5 | B12: ='4 ( 1)'!B11 -> Black Hills Corp. | D12: =IF('4 (2)'!D12="n/a","n/a",'4 ( 1)'!$H11+'4 (2)'!D12) -> 0.06985056506 | F12: =IF('4 (2)'!F12="n/a","n/a",'4 ( 1)'!$H11+'4 (2)'!F12) -> 0.09315056506 | H12: =IF('4 (2)'!H12="n/a","n/a",'4 ( 1)'!$H11+'4 (2)'!H12) -> 0.09375056506 | K12: =IF('4 (2)'!J12="n/a","n/a",'4 ( 1)'!$H11+'4 (2)'!J12) -> 0.0727854858 | O12: 0.06985056506 | P12: 0.09315056506 | Q12: 0.09375056506 | R12: 0.0727854858
A13: 6 | B13: ='4 ( 1)'!B12 -> CMS Energy Corp. | D13: =IF('4 (2)'!D13="n/a","n/a",'4 ( 1)'!$H12+'4 (2)'!D13) -> 0.1036557683 | F13: =IF('4 (2)'!F13="n/a","n/a",'4 ( 1)'!$H12+'4 (2)'!F13) -> 0.1016557683 | H13: =IF('4 (2)'!H13="n/a","n/a",'4 ( 1)'!$H12+'4 (2)'!H13) -> 0.09815576833 | K13: =IF('4 (2)'!J13="n/a","n/a",'4 ( 1)'!$H12+'4 (2)'!J13) -> 0.09887477774 | O13: 0.1036557683 | P13: 0.1016557683 | Q13: 0.09815576833 | R13: 0.09887477774
A14: 7 | B14: ='4 ( 1)'!B13 -> Consolidated Edison | D14: =IF('4 (2)'!D14="n/a","n/a",'4 ( 1)'!$H13+'4 (2)'!D14) -> 0.06832494749 | F14: =IF('4 (2)'!F14="n/a","n/a",'4 ( 1)'!$H13+'4 (2)'!F14) -> 0.06242494749 | H14: =IF('4 (2)'!H14="n/a","n/a",'4 ( 1)'!$H13+'4 (2)'!H14) -> 0.05832494749 | K14: =IF('4 (2)'!J14="n/a","n/a",'4 ( 1)'!$H13+'4 (2)'!J14) -> 0.06995867393 | O14: 0.06832494749 | P14: LOW | Q14: LOW | R14: 0.06995867393
A15: 8 | B15: ='4 ( 1)'!B14 -> Dominion Energy | D15: =IF('4 (2)'!D15="n/a","n/a",'4 ( 1)'!$H14+'4 (2)'!D15) -> 0.1201012688 | F15: =IF('4 (2)'!F15="n/a","n/a",'4 ( 1)'!$H14+'4 (2)'!F15) -> 0.09890126879 | H15: =IF('4 (2)'!H15="n/a","n/a",'4 ( 1)'!$H14+'4 (2)'!H15) -> 0.09690126879 | K15: =IF('4 (2)'!J15="n/a","n/a",'4 ( 1)'!$H14+'4 (2)'!J15) -> 0.09602951448 | O15: 0.1201012688 | P15: 0.09890126879 | Q15: 0.09690126879 | R15: 0.09602951448
A16: 9 | B16: ='4 ( 1)'!B15 -> DTE Energy Co. | D16: =IF('4 (2)'!D16="n/a","n/a",'4 ( 1)'!$H15+'4 (2)'!D16) -> 0.09259807717 | F16: =IF('4 (2)'!F16="n/a","n/a",'4 ( 1)'!$H15+'4 (2)'!F16) -> 0.1021980772 | H16: =IF('4 (2)'!H16="n/a","n/a",'4 ( 1)'!$H15+'4 (2)'!H16) -> 0.09759807717 | K16: =IF('4 (2)'!J16="n/a","n/a",'4 ( 1)'!$H15+'4 (2)'!J16) -> 0.09312323271 | O16: 0.09259807717 | P16: 0.1021980772 | Q16: 0.09759807717 | R16: 0.09312323271
A17: 10 | B17: ='4 ( 1)'!B16 -> Duke Energy Corp. | D17: =IF('4 (2)'!D17="n/a","n/a",'4 ( 1)'!$H16+'4 (2)'!D17) -> 0.1064054927 | F17: =IF('4 (2)'!F17="n/a","n/a",'4 ( 1)'!$H16+'4 (2)'!F17) -> 0.08780549273 | H17: =IF('4 (2)'!H17="n/a","n/a",'4 ( 1)'!$H16+'4 (2)'!H17) -> 0.09280549273 | K17: =IF('4 (2)'!J17="n/a","n/a",'4 ( 1)'!$H16+'4 (2)'!J17) -> 0.07668168498 | O17: 0.1064054927 | P17: 0.08780549273 | Q17: 0.09280549273 | R17: 0.07668168498
A18: 11 | B18: ='4 ( 1)'!B17 -> Entergy Corp. | D18: =IF('4 (2)'!D18="n/a","n/a",'4 ( 1)'!$H17+'4 (2)'!D18) -> 0.06976577682 | F18: =IF('4 (2)'!F18="n/a","n/a",'4 ( 1)'!$H17+'4 (2)'!F18) -> 0.09976577682 | H18: =IF('4 (2)'!H18="n/a","n/a",'4 ( 1)'!$H17+'4 (2)'!H18) -> 0.09926577682 | K18: =IF('4 (2)'!J18="n/a","n/a",'4 ( 1)'!$H17+'4 (2)'!J18) -> 0.09108230823 | O18: 0.06976577682 | P18: 0.09976577682 | Q18: 0.09926577682 | R18: 0.09108230823
A19: 12 | B19: ='4 ( 1)'!B18 -> Evergy Inc. | D19: =IF('4 (2)'!D19="n/a","n/a",'4 ( 1)'!$H18+'4 (2)'!D19) -> n/a | F19: =IF('4 (2)'!F19="n/a","n/a",'4 ( 1)'!$H18+'4 (2)'!F19) -> 0.07546308124 | H19: =IF('4 (2)'!H19="n/a","n/a",'4 ( 1)'!$H18+'4 (2)'!H19) -> 0.08596308124 | K19: =IF('4 (2)'!J19="n/a","n/a",'4 ( 1)'!$H18+'4 (2)'!J19) -> 0.06472638331 | O19: n/a | P19: 0.07546308124 | Q19: 0.08596308124 | R19: LOW
A20: 13 | B20: ='4 ( 1)'!B19 -> Eversource Energy | D20: =IF('4 (2)'!D20="n/a","n/a",'4 ( 1)'!$H19+'4 (2)'!D20) -> 0.08266763108 | F20: =IF('4 (2)'!F20="n/a","n/a",'4 ( 1)'!$H19+'4 (2)'!F20) -> 0.08496763108 | H20: =IF('4 (2)'!H20="n/a","n/a",'4 ( 1)'!$H19+'4 (2)'!H20) -> 0.08896763108 | K20: =IF('4 (2)'!J20="n/a","n/a",'4 ( 1)'!$H19+'4 (2)'!J20) -> 0.07576823141 | O20: 0.08266763108 | P20: 0.08496763108 | Q20: 0.08896763108 | R20: 0.07576823141
A21: 14 | B21: ='4 ( 1)'!B20 -> Exelon Corp. | D21: =IF('4 (2)'!D21="n/a","n/a",'4 ( 1)'!$H20+'4 (2)'!D21) -> 0.1223018082 | F21: =IF('4 (2)'!F21="n/a","n/a",'4 ( 1)'!$H20+'4 (2)'!F21) -> 0.01780180823 | H21: =IF('4 (2)'!H21="n/a","n/a",'4 ( 1)'!$H20+'4 (2)'!H21) -> 0.08230180823 | K21: =IF('4 (2)'!J21="n/a","n/a",'4 ( 1)'!$H20+'4 (2)'!J21) -> 0.08821567194 | O21: 0.1223018082 | P21: LOW | Q21: 0.08230180823 | R21: 0.08821567194
A22: 15 | B22: ='4 ( 1)'!B21 -> Fortis Inc. | D22: =IF('4 (2)'!D22="n/a","n/a",'4 ( 1)'!$H21+'4 (2)'!D22) -> 0.07842664352 | F22: =IF('4 (2)'!F22="n/a","n/a",'4 ( 1)'!$H21+'4 (2)'!F22) -> 0.1037266435 | H22: =IF('4 (2)'!H22="n/a","n/a",'4 ( 1)'!$H21+'4 (2)'!H22) -> 0.1127266435 | K22: =IF('4 (2)'!J22="n/a","n/a",'4 ( 1)'!$H21+'4 (2)'!J22) -> 0.06813735017 | O22: 0.07842664352 | P22: 0.1037266435 | Q22: 0.1127266435 | R22: 0.06813735017
A23: 16 | B23: ='4 ( 1)'!B22 -> NextEra Energy, Inc. | D23: =IF('4 (2)'!D23="n/a","n/a",'4 ( 1)'!$H22+'4 (2)'!D23) -> 0.1244773119 | F23: =IF('4 (2)'!F23="n/a","n/a",'4 ( 1)'!$H22+'4 (2)'!F23) -> 0.1015773119 | H23: =IF('4 (2)'!H23="n/a","n/a",'4 ( 1)'!$H22+'4 (2)'!H23) -> 0.1016773119 | K23: =IF('4 (2)'!J23="n/a","n/a",'4 ( 1)'!$H22+'4 (2)'!J23) -> 0.07614057058 | O23: =IF(D23="n/a","n/a",IF(D23<$D$40,"LOW",IF(D23>$D$41,"HIGH",D23))) -> 0.1244773119 | P23: =IF(F23="n/a","n/a",IF(F23<$D$40,"LOW",IF(F23>$D$41,"HIGH",F23))) -> 0.1015773119 | Q23: =IF(H23="n/a","n/a",IF(H23<$D$40,"LOW",IF(H23>$D$41,"HIGH",H23))) -> 0.1016773119 | R23: =IF(K23="n/a","n/a",IF(K23<$D$40,"LOW",IF(K23>$D$41,"HIGH",K23))) -> 0.07614057058
A24: 17 | B24: ='4 ( 1)'!B23 -> OGE Energy Corp. | D24: =IF('4 (2)'!D24="n/a","n/a",'4 ( 1)'!$H23+'4 (2)'!D24) -> 0.09848594086 | F24: =IF('4 (2)'!F24="n/a","n/a",'4 ( 1)'!$H23+'4 (2)'!F24) -> 0.07048594086 | H24: =IF('4 (2)'!H24="n/a","n/a",'4 ( 1)'!$H23+'4 (2)'!H24) -> 0.08718594086 | K24: =IF('4 (2)'!J24="n/a","n/a",'4 ( 1)'!$H23+'4 (2)'!J24) -> 0.08693250087 | O24: 0.09848594086 | P24: 0.07048594086 | Q24: 0.08718594086 | R24: 0.08693250087
A25: 18 | B25: ='4 ( 1)'!B24 -> PPL Corp. | D25: =IF('4 (2)'!D25="n/a","n/a",'4 ( 1)'!$H24+'4 (2)'!D25) -> 0.09283447317 | F25: =IF('4 (2)'!F25="n/a","n/a",'4 ( 1)'!$H24+'4 (2)'!F25) -> 0.07283447317 | H25: =IF('4 (2)'!H25="n/a","n/a",'4 ( 1)'!$H24+'4 (2)'!H25) -> n/a | K25: =IF('4 (2)'!J25="n/a","n/a",'4 ( 1)'!$H24+'4 (2)'!J25) -> 0.1234521269 | O25: 0.09283447317 | P25: 0.07283447317 | Q25: n/a | R25: 0.1234521269
A26: 19 | B26: ='4 ( 1)'!B25 -> Pub Sv Enterprise Grp. | D26: =IF('4 (2)'!D26="n/a","n/a",'4 ( 1)'!$H25+'4 (2)'!D26) -> 0.1008384387 | F26: =IF('4 (2)'!F26="n/a","n/a",'4 ( 1)'!$H25+'4 (2)'!F26) -> 0.06433843868 | H26: =IF('4 (2)'!H26="n/a","n/a",'4 ( 1)'!$H25+'4 (2)'!H26) -> 0.07493843868 | K26: =IF('4 (2)'!J26="n/a","n/a",'4 ( 1)'!$H25+'4 (2)'!J26) -> 0.09075139444 | O26: 0.1008384387 | P26: LOW | Q26: 0.07493843868 | R26: 0.09075139444
A27: 20 | B27: ='4 ( 1)'!B26 -> Sempra Energy | D27: =IF('4 (2)'!D27="n/a","n/a",'4 ( 1)'!$H26+'4 (2)'!D27) -> 0.1359820597 | F27: =IF('4 (2)'!F27="n/a","n/a",'4 ( 1)'!$H26+'4 (2)'!F27) -> 0.0779820597 | H27: =IF('4 (2)'!H27="n/a","n/a",'4 ( 1)'!$H26+'4 (2)'!H27) -> 0.1039820597 | K27: =IF('4 (2)'!J27="n/a","n/a",'4 ( 1)'!$H26+'4 (2)'!J27) -> 0.1095703026 | O27: 0.1359820597 | P27: 0.0779820597 | Q27: 0.1039820597 | R27: 0.1095703026
A28: 21 | B28: ='4 ( 1)'!B27 -> Southern Company | D28: =IF('4 (2)'!D28="n/a","n/a",'4 ( 1)'!$H27+'4 (2)'!D28) -> 0.08663165242 | F28: =IF('4 (2)'!F28="n/a","n/a",'4 ( 1)'!$H27+'4 (2)'!F28) -> 0.09023165242 | H28: =IF('4 (2)'!H28="n/a","n/a",'4 ( 1)'!$H27+'4 (2)'!H28) -> 0.08663165242 | K28: =IF('4 (2)'!J28="n/a","n/a",'4 ( 1)'!$H27+'4 (2)'!J28) -> 0.08872039128 | O28: 0.08663165242 | P28: 0.09023165242 | Q28: 0.08663165242 | R28: 0.08872039128
A29: 22 | B29: ='4 ( 1)'!B28 -> WEC Energy Group | D29: =IF('4 (2)'!D29="n/a","n/a",'4 ( 1)'!$H28+'4 (2)'!D29) -> 0.08842165828 | F29: =IF('4 (2)'!F29="n/a","n/a",'4 ( 1)'!$H28+'4 (2)'!F29) -> 0.08802165828 | H29: =IF('4 (2)'!H29="n/a","n/a",'4 ( 1)'!$H28+'4 (2)'!H29) -> 0.08752165828 | K29: =IF('4 (2)'!J29="n/a","n/a",'4 ( 1)'!$H28+'4 (2)'!J29) -> 0.06969408348 | O29: 0.08842165828 | P29: 0.08802165828 | Q29: 0.08752165828 | R29: 0.06969408348
A30: 23 | B30: ='4 ( 1)'!B29 -> Xcel Energy Inc. | D30: =IF('4 (2)'!D30="n/a","n/a",'4 ( 1)'!$H29+'4 (2)'!D30) -> 0.08842939762 | F30: =IF('4 (2)'!F30="n/a","n/a",'4 ( 1)'!$H29+'4 (2)'!F30) -> 0.08242939762 | H30: =IF('4 (2)'!H30="n/a","n/a",'4 ( 1)'!$H29+'4 (2)'!H30) -> 0.08562939762 | K30: =IF('4 (2)'!J30="n/a","n/a",'4 ( 1)'!$H29+'4 (2)'!J30) -> 0.07822382225 | O30: 0.08842939762 | P30: 0.08242939762 | Q30: 0.08562939762 | R30: 0.07822382225
B32: Average (b) | D32: =AVERAGE(O8:O30) -> 0.09664113286 | F32: =AVERAGE(P8:P30) -> 0.09058014049 | H32: =AVERAGE(Q8:Q32) -> 0.09180213737 | K32: =AVERAGE(R8:R30) -> 0.08577956205 | N32: Min | O32: =MIN(O8:O30) -> 0.06832494749 | P32: =MIN(P8:P30) -> 0.07048594086 | Q32: =MIN(Q8:Q30) -> 0.07493843868 | R32: =MIN(R8:R30) -> 0.06813735017
B33: Midpoint (b) (c) | D33: =AVERAGE(O32:O33) -> 0.1021535036 | F33: =AVERAGE(P32:P33) -> 0.08730246593 | H33: =AVERAGE(Q32:Q33) -> 0.0938325411 | K33: =AVERAGE(R32:R33) -> 0.09579473854 | N33: Max | O33: =MAX(O8:O30) -> 0.1359820597 | P33: =MAX(P8:P30) -> 0.104118991 | Q33: =MAX(Q8:Q30) -> 0.1127266435 | R33: =MAX(R8:R30) -> 0.1234521269
A36: (a) | B36: ="Sum of dividend yield (" & L1 & ", p. 1) and respective growth rate (" & L1 & ", p. 2)." -> Sum of dividend yield (Exhibit AMM-4, p. 1) and respective growth rate (Exhibit AMM-4, p. 2).
A37: (b) | B37: Excludes highlighted figures.
A38: (c) | B38: Average of low and high values.
B40: Threshold Min | D40: 0.065
B41: Threshold Max | D41: 0.15

Sheet 4 (4)
A1: ='Exhibit List'!C8 -> DCF MODEL - ELECTRIC GROUP | J1: ='Exhibit List'!B8 -> Exhibit AMM-4
J2: Page 4 of 4
A3: ='Exhibit List'!D8 -> LOW-END THRESHOLD ADJUSTMENT
C6: Atlantic Path 15 / Startrans / So. Cal Edison | G6: Pioneer Transmission
D7: 2007-06-19 | E7: 0.0654 | G7: 2008-04-14 | H7: 0.0681
D8: 2007-07-19 | E8: 0.0649 | G8: 2008-05-14 | H8: 0.0679
D9: 2007-08-18 | E9: 0.0651 | G9: 2008-06-13 | H9: 0.0693
D10: 2007-09-17 | E10: 0.0645 | G10: 2008-07-13 | H10: 0.0697
D11: 2007-10-17 | E11: 0.0636 | G11: 2008-08-12 | H11: 0.0698
D12: 2007-11-16 | E12: 0.0627 | G12: 2008-09-11 | H12: 0.0715
G14: Current | I14: Projected
C15: Historical Baa Bond Yield | G15: =I15 -> 0.066875 | H15: (a) | I15: =AVERAGE(E7:E12,H7:H12) -> 0.066875 | J15: (a)
C16: Baa Bond Yield | G16: ='Bond Yields'!C16 -> 0.0379 | H16: (b) | I16: ='Bond Yields'!E39 -> 0.0509 | J16: (c)
D17: Change in Bond Yield | G17: =G16-G15 -> -0.028975 | I17: =I16-I15 -> -0.015975
C19: Risk Premium/Interest Rate Relationship | G19: ='8 (4)'!B46 -> -0.4323892262 | H19: (d) | I19: =G19 -> -0.4323892262 | J19: (d)
D20: Adjustment to Low-end Threshold | G20: =G19*G17 -> 0.01252847783 | I20: =I19*I17 -> 0.006907417888
C23: Baa Bond Yield | G23: =G16 -> 0.0379 | H23: (b) | I23: =I16 -> 0.0509 | J23: (c)
C24: Original Threshold | G24: 0.01 | I24: 0.01
C25: Adjustment | G25: =G20 -> 0.01252847783 | I25: =I20 -> 0.006907417888
C26: Adjusted Low-end Threshold | G26: =SUM(G23:G25) -> 0.06042847783 | I26: =SUM(I23:I25) -> 0.06780741789
A29: (a) | B29: Average Baa utility bond yield for 6-mo. periods ending Nov. 2007 and Sep. 2008.
A30: (b) | B30: Average Baa utility bond yield for 6-months ended Mar. 2020.
A31: (c) | B31: ="Average Baa utility bond yield for "&'Bond Yields'!E27&" based on data from "&'Bond Yields'!B73& ", "&'Bond Yields'!B74&", and Moody's Investors Service at www.credittrends.com." -> Average Baa utility bond yield for 2021-25 based on data from IHS Markit, Long-Term Macro Forecast - Baseline (Apr. 8, 2020), Energy Information Administration, Annual Energy Outlook 2020 (Jan. 29, 2020), and Moody's Investors Service at www.credittrends.com.
A34: (d) | B34: ='8 (4)'!I1&", page 4." -> Exhibit AMM-8, page 4.

Sheet 5
A1: ='Exhibit List'!$C$9 -> BR+SV GROWTH RATE | Q1: ='Exhibit List'!$B$9 -> Exhibit AMM-5 | R1: =A1 -> BR+SV GROWTH RATE | AH1: =Q1 -> Exhibit AMM-5
Q2: Page 1 of 2 | AH2: Page 2 of 2
A3: ='Exhibit List'!$D$9 -> ELECTRIC GROUP | R3: =A3 -> ELECTRIC GROUP
C5: (a) | D5: (a) | E5: (a) | I5: (b) | J5: (c) | M5: (d) | N5: (e) | T5: (a) | U5: (a) | V5: (f) | X5: (a) | Y5: (a) | Z5: (f) | AA5: (g) | AB5: (a) | AC5: (a) | AE5: (h) | AF5: (a) | AG5: (a) | AH5: (g)
C6: 2024 | I6: Adjustment | M6: "sv" Factor | T6: 2019 | X6: 2024 | AA6: Chg | AB6: 2024 | AF6: Common Shares
B7: Company | C7: EPS | D7: DPS | E7: BVPS | G7: b | H7: r | I7: Factor | J7: Adjusted r | K7: br | M7: s | N7: v | O7: sv | Q7: br + sv | S7: Company | T7: Eq Ratio | U7: Tot Cap | V7: Com Eq | X7: Eq Ratio | Y7: Tot Cap | Z7: Com Eq | AA7: Equity | AB7: High | AC7: Low | AD7: Avg. | AE7: M/B | AF7: 2019 | AG7: 2024 | AH7: Growth
A8: =A7+1 -> 1 | B8: ='Proxy Group Ticker'!C3 -> Alliant Energy | C8: =VLOOKUP('Proxy Group Ticker'!$B3,vldatabase,7,FALSE) -> 3 | D8: =VLOOKUP('Proxy Group Ticker'!$B3,vldatabase,8,FALSE) -> 2 | E8: =VLOOKUP('Proxy Group Ticker'!$B3,vldatabase,9,FALSE) -> 28.8 | G8: =IF(E8="n/a", "n/a",+(C8-D8)/C8) -> 0.3333333333 | H8: =IF(E8="n/a","n/a",C8/E8) -> 0.1041666667 | I8: =IF(AA8="n/a","n/a",2*(1+AA8)/(2+AA8)) -> 1.017194182 | J8: =IF(H8="n/a","n/a",H8*I8) -> 0.1059577273 | K8: =IF(G8="n/a","n/a",G8*J8) -> 0.03531924244 | M8: =IF(AE8="n/a","n/a",AE8*AH8) -> 0.01969116895 | N8: =IF(AE8="n/a","n/a",1-1/AE8) -> 0.3936842105 | O8: =IF(M8="n/a","n/a",M8*N8) -> 0.007752102302 | Q8: =IF(K8="n/a","n/a",K8+O8) -> 0.04307134474 | R8: =A8 -> 1 | S8: =B8 -> Alliant Energy | T8: =VLOOKUP('Proxy Group Ticker'!$B3,vldatabase,14,FALSE) -> 0.485 | U8: =VLOOKUP('Proxy Group Ticker'!$B3,vldatabase,16,FALSE) -> 10000 | V8: =IF(U8="n/a","n/a",T8*U8) -> 4850 | X8: =VLOOKUP('Proxy Group Ticker'!$B3,vldatabase,15,FALSE) -> 0.48 | Y8: =VLOOKUP('Proxy Group Ticker'!$B3,vldatabase,17,FALSE) -> 12000 | Z8: =IF(Y8="n/a","n/a",X8*Y8) -> 5760 | AA8: =IF(V8="n/a","n/a",(+Z8/V8)^(1/5)-1) -> 0.03498998874 | AB8: =VLOOKUP('Proxy Group Ticker'!$B3,vldatabase,5,FALSE) -> 55 | AC8: =VLOOKUP('Proxy Group Ticker'!$B3,vldatabase,6,FALSE) -> 40 | AD8: =IF(AB8="n/a","n/a",AVERAGE(AB8:AC8)) -> 47.5 | AE8: =IF(AD8="n/a","n/a",AD8/E8) -> 1.649305556 | AF8: =VLOOKUP('Proxy Group Ticker'!$B3,vldatabase,10,FALSE) -> 245.02 | AG8: =VLOOKUP('Proxy Group Ticker'!$B3,vldatabase,11,FALSE) -> 260 | AH8: =IF(AF8="n/a","n/a",(+AG8/AF8)^(1/5)-1) -> 0.01193906665
A9: =A8+1 -> 2 | B9: ='Proxy Group Ticker'!C4 -> Ameren Corp. | C9: =VLOOKUP('Proxy Group Ticker'!$B4,vldatabase,7,FALSE) -> 4.5 | D9: =VLOOKUP('Proxy Group Ticker'!$B4,vldatabase,8,FALSE) -> 2.45 | E9: =VLOOKUP('Proxy Group Ticker'!$B4,vldatabase,9,FALSE) -> 44 | G9: =IF(E9="n/a", "n/a",+(C9-D9)/C9) -> 0.4555555556 | H9: =IF(E9="n/a","n/a",C9/E9) -> 0.1022727273 | I9: =IF(AA9="n/a","n/a",2*(1+AA9)/(2+AA9)) -> 1.040181467 | J9: =IF(H9="n/a","n/a",H9*I9) -> 0.1063821955 | K9: =IF(G9="n/a","n/a",G9*J9) -> 0.04846300017 | M9: =IF(AE9="n/a","n/a",AE9*AH9) -> 0.03559175159 | N9: =IF(AE9="n/a","n/a",1-1/AE9) -> 0.3714285714 | O9: =IF(M9="n/a","n/a",M9*N9) -> 0.01321979345 | Q9: =IF(K9="n/a","n/a",K9+O9) -> 0.06168279362 | R9: =A9 -> 2 | S9: =B9 -> Ameren Corp. | T9: =VLOOKUP('Proxy Group Ticker'!$B4,vldatabase,14,FALSE) -> 0.471 | U9: =VLOOKUP('Proxy Group Ticker'!$B4,vldatabase,16,FALSE) -> 17116 | V9: =IF(U9="n/a","n/a",T9*U9) -> 8061.636 | X9: =VLOOKUP('Proxy Group Ticker'!$B4,vldatabase,15,FALSE) -> 0.515 | Y9: =VLOOKUP('Proxy Group Ticker'!$B4,vldatabase,17,FALSE) -> 23400 | Z9: =IF(Y9="n/a","n/a",X9*Y9) -> 12051 | AA9: =IF(V9="n/a","n/a",(+Z9/V9)^(1/5)-1) -> 0.08372721654 | AB9: =VLOOKUP('Proxy Group Ticker'!$B4,vldatabase,5,FALSE) -> 80 | AC9: =VLOOKUP('Proxy Group Ticker'!$B4,vldatabase,6,FALSE) -> 60 | AD9: =IF(AB9="n/a","n/a",AVERAGE(AB9:AC9)) -> 70 | AE9: =IF(AD9="n/a","n/a",AD9/E9) -> 1.590909091 | AF9: =VLOOKUP('Proxy Group Ticker'!$B4,vldatabase,10,FALSE) -> 246.2 | AG9: =VLOOKUP('Proxy Group Ticker'!$B4,vldatabase,11,FALSE) -> 275 | AH9: =IF(AF9="n/a","n/a",(+AG9/AF9)^(1/5)-1) -> 0.02237195814
A10: 3 | B10: ='Proxy Group Ticker'!C5 -> American Elec Pwr | C10: =VLOOKUP('Proxy Group Ticker'!$B5,vldatabase,7,FALSE) -> 5.25 | D10: =VLOOKUP('Proxy Group Ticker'!$B5,vldatabase,8,FALSE) -> 3.55 | E10: =VLOOKUP('Proxy Group Ticker'!$B5,vldatabase,9,FALSE) -> 50 | G10: 0.3238095238 | H10: 0.105 | I10: 1.029393497 | J10: 0.1080863171 | K10: 0.03499937889 | M10: 0.02678607738 | N10: 0.4736842105 | O10: 0.01268814192 | Q10: 0.0476875208 | R10: 3 | S10: American Elec Pwr | T10: =VLOOKUP('Proxy Group Ticker'!$B5,vldatabase,14,FALSE) -> 0.439 | U10: =VLOOKUP('Proxy Group Ticker'!$B5,vldatabase,16,FALSE) -> 44759 | V10: 19649.201 | X10: =VLOOKUP('Proxy Group Ticker'!$B5,vldatabase,15,FALSE) -> 0.465 | Y10: =VLOOKUP('Proxy Group Ticker'!$B5,vldatabase,17,FALSE) -> 56700 | Z10: 26365.5 | AA10: 0.06056727735 | AB10: =VLOOKUP('Proxy Group Ticker'!$B5,vldatabase,5,FALSE) -> 105 | AC10: =VLOOKUP('Proxy Group Ticker'!$B5,vldatabase,6,FALSE) -> 85 | AD10: 95 | AE10: 1.9 | AF10: =VLOOKUP('Proxy Group Ticker'!$B5,vldatabase,10,FALSE) -> 494.17 | AG10: =VLOOKUP('Proxy Group Ticker'!$B5,vldatabase,11,FALSE) -> 530 | AH10: 0.01409793546
A11: 4 | B11: ='Proxy Group Ticker'!C6 -> Avangrid, Inc. | C11: =VLOOKUP('Proxy Group Ticker'!$B6,vldatabase,7,FALSE) -> 3 | D11: =VLOOKUP('Proxy Group Ticker'!$B6,vldatabase,8,FALSE) -> 2.2 | E11: =VLOOKUP('Proxy Group Ticker'!$B6,vldatabase,9,FALSE) -> 53.75 | G11: 0.2666666667 | H11: 0.05581395349 | I11: 1.008980063 | J11: 0.05631516628 | K11: 0.01501737768 | M11: 0 | N11: -0.02380952381 | O11: 0 | Q11: 0.01501737768 | R11: 4 | S11: Avangrid, Inc. | T11: =VLOOKUP('Proxy Group Ticker'!$B6,vldatabase,14,FALSE) -> 0.715 | U11: =VLOOKUP('Proxy Group Ticker'!$B6,vldatabase,16,FALSE) -> 21325 | V11: 15247.375 | X11: =VLOOKUP('Proxy Group Ticker'!$B6,vldatabase,15,FALSE) -> 0.6 | Y11: =VLOOKUP('Proxy Group Ticker'!$B6,vldatabase,17,FALSE) -> 27800 | Z11: 16680 | AA11: 0.01812286967 | AB11: =VLOOKUP('Proxy Group Ticker'!$B6,vldatabase,5,FALSE) -> 60 | AC11: =VLOOKUP('Proxy Group Ticker'!$B6,vldatabase,6,FALSE) -> 45 | AD11: 52.5 | AE11: 0.976744186 | AF11: =VLOOKUP('Proxy Group Ticker'!$B6,vldatabase,10,FALSE) -> 309 | AG11: =VLOOKUP('Proxy Group Ticker'!$B6,vldatabase,11,FALSE) -> 309 | AH11: 0
A12: 5 | B12: ='Proxy Group Ticker'!C7 -> Black Hills Corp. | C12: =VLOOKUP('Proxy Group Ticker'!$B7,vldatabase,7,FALSE) -> 4.25 | D12: =VLOOKUP('Proxy Group Ticker'!$B7,vldatabase,8,FALSE) -> 2.75 | E12: =VLOOKUP('Proxy Group Ticker'!$B7,vldatabase,9,FALSE) -> 47 | G12: 0.3529411765 | H12: 0.09042553191 | I12: 1.024606772 | J12: 0.09265061236 | K12: 0.03270021613 | M12: 0.01330129861 | N12: 0.3935483871 | O12: 0.005234704614 | Q12: 0.03793492074 | R12: 5 | S12: Black Hills Corp. | T12: =VLOOKUP('Proxy Group Ticker'!$B7,vldatabase,14,FALSE) -> 0.429 | U12: =VLOOKUP('Proxy Group Ticker'!$B7,vldatabase,16,FALSE) -> 5502.2 | V12: 2360.4438 | X12: =VLOOKUP('Proxy Group Ticker'!$B7,vldatabase,15,FALSE) -> 0.485 | Y12: =VLOOKUP('Proxy Group Ticker'!$B7,vldatabase,17,FALSE) -> 6225 | Z12: 3019.125 | AA12: 0.05045508065 | AB12: =VLOOKUP('Proxy Group Ticker'!$B7,vldatabase,5,FALSE) -> 90 | AC12: =VLOOKUP('Proxy Group Ticker'!$B7,vldatabase,6,FALSE) -> 65 | AD12: 77.5 | AE12: 1.64893617 | AF12: =VLOOKUP('Proxy Group Ticker'!$B7,vldatabase,10,FALSE) -> 61.48 | AG12: =VLOOKUP('Proxy Group Ticker'!$B7,vldatabase,11,FALSE) -> 64 | AH12: 0.008066593995
A13: 6 | B13: ='Proxy Group Ticker'!C8 -> CMS Energy Corp. | C13: =VLOOKUP('Proxy Group Ticker'!$B8,vldatabase,7,FALSE) -> 3.5 | D13: =VLOOKUP('Proxy Group Ticker'!$B8,vldatabase,8,FALSE) -> 2.15 | E13: =VLOOKUP('Proxy Group Ticker'!$B8,vldatabase,9,FALSE) -> 25.5 | G13: 0.3857142857 | H13: 0.137254902 | I13: 1.04213902 | J13: 0.143038689 | K13: 0.05517206577 | M13: 0.02616859763 | N13: 0.575 | O13: 0.01504694364 | Q13: 0.07021900941 | R13: 6 | S13: CMS Energy Corp. | T13: =VLOOKUP('Proxy Group Ticker'!$B8,vldatabase,14,FALSE) -> 0.294 | U13: =VLOOKUP('Proxy Group Ticker'!$B8,vldatabase,16,FALSE) -> 17082 | V13: 5022.108 | X13: =VLOOKUP('Proxy Group Ticker'!$B8,vldatabase,15,FALSE) -> 0.33 | Y13: =VLOOKUP('Proxy Group Ticker'!$B8,vldatabase,17,FALSE) -> 23200 | Z13: 7656 | AA13: 0.08798567029 | AB13: =VLOOKUP('Proxy Group Ticker'!$B8,vldatabase,5,FALSE) -> 70 | AC13: =VLOOKUP('Proxy Group Ticker'!$B8,vldatabase,6,FALSE) -> 50 | AD13: 60 | AE13: 2.352941176 | AF13: =VLOOKUP('Proxy Group Ticker'!$B8,vldatabase,10,FALSE) -> 283.86 | AG13: =VLOOKUP('Proxy Group Ticker'!$B8,vldatabase,11,FALSE) -> 300 | AH13: 0.01112165399
A14: 7 | B14: ='Proxy Group Ticker'!C9 -> Consolidated Edison | C14: =VLOOKUP('Proxy Group Ticker'!$B9,vldatabase,7,FALSE) -> 5.25 | D14: =VLOOKUP('Proxy Group Ticker'!$B9,vldatabase,8,FALSE) -> 3.5 | E14: =VLOOKUP('Proxy Group Ticker'!$B9,vldatabase,9,FALSE) -> 62.5 | G14: 0.3333333333 | H14: 0.084 | I14: 1.018317718 | J14: 0.0855386883 | K14: 0.0285128961 | M14: 0.009622560232 | N14: 0.3243243243 | O14: 0.003120830345 | Q14: 0.03163372645 | R14: 7 | S14: Consolidated Edison | T14: =VLOOKUP('Proxy Group Ticker'!$B9,vldatabase,14,FALSE) -> 0.485 | U14: =VLOOKUP('Proxy Group Ticker'!$B9,vldatabase,16,FALSE) -> 37050 | V14: 17969.25 | X14: =VLOOKUP('Proxy Group Ticker'!$B9,vldatabase,15,FALSE) -> 0.495 | Y14: =VLOOKUP('Proxy Group Ticker'!$B9,vldatabase,17,FALSE) -> 43600 | Z14: 21582 | AA14: 0.03731903524 | AB14: =VLOOKUP('Proxy Group Ticker'!$B9,vldatabase,5,FALSE) -> 100 | AC14: =VLOOKUP('Proxy Group Ticker'!$B9,vldatabase,6,FALSE) -> 85 | AD14: 92.5 | AE14: 1.48 | AF14: =VLOOKUP('Proxy Group Ticker'!$B9,vldatabase,10,FALSE) -> 334 | AG14: =VLOOKUP('Proxy Group Ticker'!$B9,vldatabase,11,FALSE) -> 345 | AH14: 0.006501729886
A15: 8 | B15: ='Proxy Group Ticker'!C10 -> Dominion Energy | C15: =VLOOKUP('Proxy Group Ticker'!$B10,vldatabase,7,FALSE) -> 5.5 | D15: =VLOOKUP('Proxy Group Ticker'!$B10,vldatabase,8,FALSE) -> 4.15 | E15: =VLOOKUP('Proxy Group Ticker'!$B10,vldatabase,9,FALSE) -> 41 | G15: 0.2454545455 | H15: 0.1341463415 | I15: 1.022565937 | J15: 0.1371734794 | K15: 0.03366985403 | M15: 0.0220174996 | N15: 0.5567567568 | O15: 0.01225839167 | Q15: 0.0459282457 | R15: 8 | S15: Dominion Energy | T15: =VLOOKUP('Proxy Group Ticker'!$B10,vldatabase,14,FALSE) -> 0.4 | U15: =VLOOKUP('Proxy Group Ticker'!$B10,vldatabase,16,FALSE) -> 70775 | V15: 28310 | X15: =VLOOKUP('Proxy Group Ticker'!$B10,vldatabase,15,FALSE) -> 0.405 | Y15: =VLOOKUP('Proxy Group Ticker'!$B10,vldatabase,17,FALSE) -> 87600 | Z15: 35478 | AA15: 0.04617383009 | AB15: =VLOOKUP('Proxy Group Ticker'!$B10,vldatabase,5,FALSE) -> 105 | AC15: =VLOOKUP('Proxy Group Ticker'!$B10,vldatabase,6,FALSE) -> 80 | AD15: 92.5 | AE15: 2.256097561 | AF15: =VLOOKUP('Proxy Group Ticker'!$B10,vldatabase,10,FALSE) -> 824 | AG15: =VLOOKUP('Proxy Group Ticker'!$B10,vldatabase,11,FALSE) -> 865 | AH15: 0.009759107929
A16: 9 | B16: ='Proxy Group Ticker'!C11 -> DTE Energy Co. | C16: =VLOOKUP('Proxy Group Ticker'!$B11,vldatabase,7,FALSE) -> 8.25 | D16: =VLOOKUP('Proxy Group Ticker'!$B11,vldatabase,8,FALSE) -> 5.2 | E16: =VLOOKUP('Proxy Group Ticker'!$B11,vldatabase,9,FALSE) -> 78 | G16: 0.3696969697 | H16: 0.1057692308 | I16: 1.031339256 | J16: 0.1090839598 | K16: 0.04032800936 | M16: 0.02415113568 | N16: 0.4222222222 | O16: 0.01019714617 | Q16: 0.05052515554 | R16: 9 | S16: DTE Energy Co. | T16: =VLOOKUP('Proxy Group Ticker'!$B11,vldatabase,14,FALSE) -> 0.423 | U16: =VLOOKUP('Proxy Group Ticker'!$B11,vldatabase,16,FALSE) -> 27607 | V16: 11677.761 | X16: =VLOOKUP('Proxy Group Ticker'!$B11,vldatabase,15,FALSE) -> 0.415 | Y16: =VLOOKUP('Proxy Group Ticker'!$B11,vldatabase,17,FALSE) -> 38500 | Z16: 15977.5 | AA16: 0.06470636097 | AB16: =VLOOKUP('Proxy Group Ticker'!$B11,vldatabase,5,FALSE) -> 155 | AC16: =VLOOKUP('Proxy Group Ticker'!$B11,vldatabase,6,FALSE) -> 115 | AD16: 135 | AE16: 1.730769231 | AF16: =VLOOKUP('Proxy Group Ticker'!$B11,vldatabase,10,FALSE) -> 192.21 | AG16: =VLOOKUP('Proxy Group Ticker'!$B11,vldatabase,11,FALSE) -> 206 | AH16: 0.0139539895
A17: 10 | B17: ='Proxy Group Ticker'!C12 -> Duke Energy Corp. | C17: =VLOOKUP('Proxy Group Ticker'!$B12,vldatabase,7,FALSE) -> 6 | D17: =VLOOKUP('Proxy Group Ticker'!$B12,vldatabase,8,FALSE) -> 4.1 | E17: =VLOOKUP('Proxy Group Ticker'!$B12,vldatabase,9,FALSE) -> 71.75 | G17: 0.3166666667 | H17: 0.08362369338 | I17: 1.020945659 | J17: 0.08537524671 | K17: 0.02703549479 | M17: 0.01444648263 | N17: 0.2243243243 | O17: 0.003240697455 | Q17: 0.03027619225 | R17: 10 | S17: Duke Energy Corp. | T17: =VLOOKUP('Proxy Group Ticker'!$B12,vldatabase,14,FALSE) -> 0.445 | U17: =VLOOKUP('Proxy Group Ticker'!$B12,vldatabase,16,FALSE) -> 101375 | V17: 45111.875 | X17: =VLOOKUP('Proxy Group Ticker'!$B12,vldatabase,15,FALSE) -> 0.445 | Y17: =VLOOKUP('Proxy Group Ticker'!$B12,vldatabase,17,FALSE) -> 125000 | Z17: 55625 | AA17: 0.04278753016 | AB17: =VLOOKUP('Proxy Group Ticker'!$B12,vldatabase,5,FALSE) -> 105 | AC17: =VLOOKUP('Proxy Group Ticker'!$B12,vldatabase,6,FALSE) -> 80 | AD17: 92.5 | AE17: 1.289198606 | AF17: =VLOOKUP('Proxy Group Ticker'!$B12,vldatabase,10,FALSE) -> 733 | AG17: =VLOOKUP('Proxy Group Ticker'!$B12,vldatabase,11,FALSE) -> 775 | AH17: 0.01120578518
A18: 11 | B18: ='Proxy Group Ticker'!C13 -> Entergy Corp. | C18: =VLOOKUP('Proxy Group Ticker'!$B13,vldatabase,7,FALSE) -> 7 | D18: =VLOOKUP('Proxy Group Ticker'!$B13,vldatabase,8,FALSE) -> 4.55 | E18: =VLOOKUP('Proxy Group Ticker'!$B13,vldatabase,9,FALSE) -> 63 | G18: 0.35 | H18: 0.1111111111 | I18: 1.026794665 | J18: 0.1140882961 | K18: 0.03993090363 | M18: 0.0239697427 | N18: 0.475 | O18: 0.01138562778 | Q18: 0.05131653141 | R18: 11 | S18: Entergy Corp. | T18: =VLOOKUP('Proxy Group Ticker'!$B13,vldatabase,14,FALSE) -> 0.371 | U18: =VLOOKUP('Proxy Group Ticker'!$B13,vldatabase,16,FALSE) -> 27557 | V18: 10223.647 | X18: =VLOOKUP('Proxy Group Ticker'!$B13,vldatabase,15,FALSE) -> 0.41 | Y18: =VLOOKUP('Proxy Group Ticker'!$B13,vldatabase,17,FALSE) -> 32600 | Z18: 13366 | AA18: 0.0550647714 | AB18: =VLOOKUP('Proxy Group Ticker'!$B13,vldatabase,5,FALSE) -> 140 | AC18: =VLOOKUP('Proxy Group Ticker'!$B13,vldatabase,6,FALSE) -> 100 | AD18: 120 | AE18: 1.904761905 | AF18: =VLOOKUP('Proxy Group Ticker'!$B13,vldatabase,10,FALSE) -> 199.15 | AG18: =VLOOKUP('Proxy Group Ticker'!$B13,vldatabase,11,FALSE) -> 212 | AH18: 0.01258411492
A19: 12 | B19: ='Proxy Group Ticker'!C14 -> Evergy Inc. | C19: =VLOOKUP('Proxy Group Ticker'!$B14,vldatabase,7,FALSE) -> 3.75 | D19: =VLOOKUP('Proxy Group Ticker'!$B14,vldatabase,8,FALSE) -> 2.55 | E19: =VLOOKUP('Proxy Group Ticker'!$B14,vldatabase,9,FALSE) -> 43.25 | G19: 0.32 | H19: 0.08670520231 | I19: 1.012902137 | J19: 0.08782388468 | K19: 0.0281036431 | M19: 0.0004771417485 | N19: 0.3346153846 | O19: 0.0001596589697 | Q19: 0.02826330207 | R19: 12 | S19: Evergy Inc. | T19: =VLOOKUP('Proxy Group Ticker'!$B14,vldatabase,14,FALSE) -> 0.494 | U19: =VLOOKUP('Proxy Group Ticker'!$B14,vldatabase,16,FALSE) -> 17337 | V19: 8564.478 | X19: =VLOOKUP('Proxy Group Ticker'!$B14,vldatabase,15,FALSE) -> 0.48 | Y19: =VLOOKUP('Proxy Group Ticker'!$B14,vldatabase,17,FALSE) -> 20300 | Z19: 9744 | AA19: 0.02614155529 | AB19: =VLOOKUP('Proxy Group Ticker'!$B14,vldatabase,5,FALSE) -> 75 | AC19: =VLOOKUP('Proxy Group Ticker'!$B14,vldatabase,6,FALSE) -> 55 | AD19: 65 | AE19: 1.502890173 | AF19: =VLOOKUP('Proxy Group Ticker'!$B14,vldatabase,10,FALSE) -> 226.64 | AG19: =VLOOKUP('Proxy Group Ticker'!$B14,vldatabase,11,FALSE) -> 227 | AH19: 0.0003174827788
A20: 13 | B20: ='Proxy Group Ticker'!C15 -> Eversource Energy | C20: =VLOOKUP('Proxy Group Ticker'!$B15,vldatabase,7,FALSE) -> 4.5 | D20: =VLOOKUP('Proxy Group Ticker'!$B15,vldatabase,8,FALSE) -> 2.85 | E20: =VLOOKUP('Proxy Group Ticker'!$B15,vldatabase,9,FALSE) -> 48.5 | G20: 0.3666666667 | H20: 0.09278350515 | I20: 1.033831403 | J20: 0.09592250134 | K20: 0.03517158383 | M20: 0.03137187827 | N20: 0.4121212121 | O20: 0.0129290165 | Q20: 0.04810060032 | R20: 13 | S20: Eversource Energy | T20: =VLOOKUP('Proxy Group Ticker'!$B15,vldatabase,14,FALSE) -> 0.465 | U20: =VLOOKUP('Proxy Group Ticker'!$B15,vldatabase,16,FALSE) -> 26375 | V20: 12264.375 | X20: =VLOOKUP('Proxy Group Ticker'!$B15,vldatabase,15,FALSE) -> 0.46 | Y20: =VLOOKUP('Proxy Group Ticker'!$B15,vldatabase,17,FALSE) -> 37400 | Z20: 17204 | AA20: 0.07003209067 | AB20: =VLOOKUP('Proxy Group Ticker'!$B15,vldatabase,5,FALSE) -> 90 | AC20: =VLOOKUP('Proxy Group Ticker'!$B15,vldatabase,6,FALSE) -> 75 | AD20: 82.5 | AE20: 1.701030928 | AF20: =VLOOKUP('Proxy Group Ticker'!$B15,vldatabase,10,FALSE) -> 324 | AG20: =VLOOKUP('Proxy Group Ticker'!$B15,vldatabase,11,FALSE) -> 355 | AH20: 0.01844286177
A21: 14 | B21: ='Proxy Group Ticker'!C16 -> Exelon Corp. | C21: =VLOOKUP('Proxy Group Ticker'!$B16,vldatabase,7,FALSE) -> 3.75 | D21: =VLOOKUP('Proxy Group Ticker'!$B16,vldatabase,8,FALSE) -> 1.9 | E21: =VLOOKUP('Proxy Group Ticker'!$B16,vldatabase,9,FALSE) -> 42.25 | G21: 0.4933333333 | H21: 0.08875739645 | I21: 1.025958171 | J21: 0.09106137609 | K21: 0.04492361221 | M21: 0.005072019883 | N21: 0.1952380952 | O21: 0.000990251501 | Q21: 0.04591386371 | R21: 14 | S21: Exelon Corp. | T21: =VLOOKUP('Proxy Group Ticker'!$B16,vldatabase,14,FALSE) -> 0.5 | U21: =VLOOKUP('Proxy Group Ticker'!$B16,vldatabase,16,FALSE) -> 64750 | V21: 32375 | X21: =VLOOKUP('Proxy Group Ticker'!$B16,vldatabase,15,FALSE) -> 0.51 | Y21: =VLOOKUP('Proxy Group Ticker'!$B16,vldatabase,17,FALSE) -> 82300 | Z21: 41973 | AA21: 0.05329990944 | AB21: =VLOOKUP('Proxy Group Ticker'!$B16,vldatabase,5,FALSE) -> 60 | AC21: =VLOOKUP('Proxy Group Ticker'!$B16,vldatabase,6,FALSE) -> 45 | AD21: 52.5 | AE21: 1.24260355 | AF21: =VLOOKUP('Proxy Group Ticker'!$B16,vldatabase,10,FALSE) -> 972 | AG21: =VLOOKUP('Proxy Group Ticker'!$B16,vldatabase,11,FALSE) -> 992 | AH21: 0.004081768382
A22: 15 | B22: ='Proxy Group Ticker'!C17 -> Fortis Inc. | C22: =VLOOKUP('Proxy Group Ticker'!$B17,vldatabase,7,FALSE) -> 3 | D22: =VLOOKUP('Proxy Group Ticker'!$B17,vldatabase,8,FALSE) -> 2.5 | E22: =VLOOKUP('Proxy Group Ticker'!$B17,vldatabase,9,FALSE) -> 43.75 | G22: 0.1666666667 | H22: 0.06857142857 | I22: 1.02085028 | J22: 0.07000116208 | K22: 0.01166686035 | M22: 0.009310588696 | N22: 0.3269230769 | O22: 0.003043846304 | Q22: 0.01471070665 | R22: 15 | S22: Fortis Inc. | T22: =VLOOKUP('Proxy Group Ticker'!$B17,vldatabase,14,FALSE) -> 0.418 | U22: =VLOOKUP('Proxy Group Ticker'!$B17,vldatabase,16,FALSE) -> 40445 | V22: 16906.01 | X22: =VLOOKUP('Proxy Group Ticker'!$B17,vldatabase,15,FALSE) -> 0.445 | Y22: =VLOOKUP('Proxy Group Ticker'!$B17,vldatabase,17,FALSE) -> 46800 | Z22: 20826 | AA22: 0.04258854384 | AB22: =VLOOKUP('Proxy Group Ticker'!$B17,vldatabase,5,FALSE) -> 75 | AC22: =VLOOKUP('Proxy Group Ticker'!$B17,vldatabase,6,FALSE) -> 55 | AD22: 65 | AE22: 1.485714286 | AF22: =VLOOKUP('Proxy Group Ticker'!$B17,vldatabase,10,FALSE) -> 463.3 | AG22: =VLOOKUP('Proxy Group Ticker'!$B17,vldatabase,11,FALSE) -> 478 | AH22: 0.006266742392
A23: 16 | B23: ='Proxy Group Ticker'!C18 -> NextEra Energy, Inc. | C23: =VLOOKUP('Proxy Group Ticker'!$B18,vldatabase,7,FALSE) -> 12.5 | D23: =VLOOKUP('Proxy Group Ticker'!$B18,vldatabase,8,FALSE) -> 8 | E23: =VLOOKUP('Proxy Group Ticker'!$B18,vldatabase,9,FALSE) -> 97.5 | G23: =IF(E23="n/a", "n/a",+(C23-D23)/C23) -> 0.36 | H23: =IF(E23="n/a","n/a",C23/E23) -> 0.1282051282 | I23: =IF(AA23="n/a","n/a",2*(1+AA23)/(2+AA23)) -> 1.02711608 | J23: =IF(H23="n/a","n/a",H23*I23) -> 0.1316815487 | K23: =IF(G23="n/a","n/a",G23*J23) -> 0.04740535754 | M23: =IF(AE23="n/a","n/a",AE23*AH23) -> 0.006699932665 | N23: =IF(AE23="n/a","n/a",1-1/AE23) -> 0.6355140187 | O23: =IF(M23="n/a","n/a",M23*N23) -> 0.004257901133 | Q23: =IF(K23="n/a","n/a",K23+O23) -> 0.05166325867 | R23: =A23 -> 16 | S23: =B23 -> NextEra Energy, Inc. | T23: =VLOOKUP('Proxy Group Ticker'!$B18,vldatabase,14,FALSE) -> 0.495 | U23: =VLOOKUP('Proxy Group Ticker'!$B18,vldatabase,16,FALSE) -> 74550 | V23: =IF(U23="n/a","n/a",T23*U23) -> 36902.25 | X23: =VLOOKUP('Proxy Group Ticker'!$B18,vldatabase,15,FALSE) -> 0.5 | Y23: =VLOOKUP('Proxy Group Ticker'!$B18,vldatabase,17,FALSE) -> 96800 | Z23: =IF(Y23="n/a","n/a",X23*Y23) -> 48400 | AA23: =IF(V23="n/a","n/a",(+Z23/V23)^(1/5)-1) -> 0.05574371087 | AB23: =VLOOKUP('Proxy Group Ticker'!$B18,vldatabase,5,FALSE) -> 295 | AC23: =VLOOKUP('Proxy Group Ticker'!$B18,vldatabase,6,FALSE) -> 240 | AD23: =IF(AB23="n/a","n/a",AVERAGE(AB23:AC23)) -> 267.5 | AE23: =IF(AD23="n/a","n/a",AD23/E23) -> 2.743589744 | AF23: =VLOOKUP('Proxy Group Ticker'!$B18,vldatabase,10,FALSE) -> 489 | AG23: =VLOOKUP('Proxy Group Ticker'!$B18,vldatabase,11,FALSE) -> 495 | AH23: =IF(AF23="n/a","n/a",(+AG23/AF23)^(1/5)-1) -> 0.002442031532
A24: 17 | B24: ='Proxy Group Ticker'!C19 -> OGE Energy Corp. | C24: =VLOOKUP('Proxy Group Ticker'!$B19,vldatabase,7,FALSE) -> 2.75 | D24: =VLOOKUP('Proxy Group Ticker'!$B19,vldatabase,8,FALSE) -> 1.95 | E24: =VLOOKUP('Proxy Group Ticker'!$B19,vldatabase,9,FALSE) -> 24.25 | G24: 0.2909090909 | H24: 0.1134020619 | I24: 1.016754229 | J24: 0.1153020259 | K24: 0.03354240755 | M24: -0.0001958175473 | N24: 0.4894736842 | O24: -9.584753632e-05 | Q24: 0.03344656001 | R24: 17 | S24: OGE Energy Corp. | T24: =VLOOKUP('Proxy Group Ticker'!$B19,vldatabase,14,FALSE) -> 0.564 | U24: =VLOOKUP('Proxy Group Ticker'!$B19,vldatabase,16,FALSE) -> 7334.7 | V24: 4136.7708 | X24: =VLOOKUP('Proxy Group Ticker'!$B19,vldatabase,15,FALSE) -> 0.545 | Y24: =VLOOKUP('Proxy Group Ticker'!$B19,vldatabase,17,FALSE) -> 8975 | Z24: 4891.375 | AA24: 0.03407943207 | AB24: =VLOOKUP('Proxy Group Ticker'!$B19,vldatabase,5,FALSE) -> 55 | AC24: =VLOOKUP('Proxy Group Ticker'!$B19,vldatabase,6,FALSE) -> 40 | AD24: 47.5 | AE24: 1.958762887 | AF24: =VLOOKUP('Proxy Group Ticker'!$B19,vldatabase,10,FALSE) -> 200.1 | AG24: =VLOOKUP('Proxy Group Ticker'!$B19,vldatabase,11,FALSE) -> 200 | AH24: -9.9970011e-05
A25: 18 | B25: ='Proxy Group Ticker'!C20 -> PPL Corp. | C25: =VLOOKUP('Proxy Group Ticker'!$B20,vldatabase,7,FALSE) -> 3 | D25: =VLOOKUP('Proxy Group Ticker'!$B20,vldatabase,8,FALSE) -> 1.8 | E25: =VLOOKUP('Proxy Group Ticker'!$B20,vldatabase,9,FALSE) -> 23 | G25: 0.4 | H25: 0.1304347826 | I25: 1.029398168 | J25: 0.1342693263 | K25: 0.0537077305 | M25: 0.004493937027 | N25: 0.425 | O25: 0.001909923237 | Q25: 0.05561765374 | R25: 18 | S25: PPL Corp. | T25: =VLOOKUP('Proxy Group Ticker'!$B20,vldatabase,14,FALSE) -> 0.41 | U25: =VLOOKUP('Proxy Group Ticker'!$B20,vldatabase,16,FALSE) -> 32750 | V25: 13427.5 | X25: =VLOOKUP('Proxy Group Ticker'!$B20,vldatabase,15,FALSE) -> 0.455 | Y25: =VLOOKUP('Proxy Group Ticker'!$B20,vldatabase,17,FALSE) -> 39600 | Z25: 18018 | AA25: 0.06057719455 | AB25: =VLOOKUP('Proxy Group Ticker'!$B20,vldatabase,5,FALSE) -> 45 | AC25: =VLOOKUP('Proxy Group Ticker'!$B20,vldatabase,6,FALSE) -> 35 | AD25: 40 | AE25: 1.739130435 | AF25: =VLOOKUP('Proxy Group Ticker'!$B20,vldatabase,10,FALSE) -> 770 | AG25: =VLOOKUP('Proxy Group Ticker'!$B20,vldatabase,11,FALSE) -> 780 | AH25: 0.002584013791
A26: 19 | B26: ='Proxy Group Ticker'!C21 -> Pub Sv Enterprise Grp. | C26: =VLOOKUP('Proxy Group Ticker'!$B21,vldatabase,7,FALSE) -> 4.25 | D26: =VLOOKUP('Proxy Group Ticker'!$B21,vldatabase,8,FALSE) -> 2.4 | E26: =VLOOKUP('Proxy Group Ticker'!$B21,vldatabase,9,FALSE) -> 38 | G26: 0.4352941176 | H26: 0.1118421053 | I26: 1.025239091 | J26: 0.1146648984 | K26: 0.04991295576 | M26: 0 | N26: 0.392 | O26: 0 | Q26: 0.04991295576 | R26: 19 | S26: Pub Sv Enterprise Grp. | T26: =VLOOKUP('Proxy Group Ticker'!$B21,vldatabase,14,FALSE) -> 0.515 | U26: =VLOOKUP('Proxy Group Ticker'!$B21,vldatabase,16,FALSE) -> 29050 | V26: 14960.75 | X26: =VLOOKUP('Proxy Group Ticker'!$B21,vldatabase,15,FALSE) -> 0.49 | Y26: =VLOOKUP('Proxy Group Ticker'!$B21,vldatabase,17,FALSE) -> 39300 | Z26: 19257 | AA26: 0.05178519395 | AB26: =VLOOKUP('Proxy Group Ticker'!$B21,vldatabase,5,FALSE) -> 70 | AC26: =VLOOKUP('Proxy Group Ticker'!$B21,vldatabase,6,FALSE) -> 55 | AD26: 62.5 | AE26: 1.644736842 | AF26: =VLOOKUP('Proxy Group Ticker'!$B21,vldatabase,10,FALSE) -> 506 | AG26: =VLOOKUP('Proxy Group Ticker'!$B21,vldatabase,11,FALSE) -> 506 | AH26: 0
A27: 20 | B27: ='Proxy Group Ticker'!C22 -> Sempra Energy | C27: =VLOOKUP('Proxy Group Ticker'!$B22,vldatabase,7,FALSE) -> 9.5 | D27: =VLOOKUP('Proxy Group Ticker'!$B22,vldatabase,8,FALSE) -> 5.6 | E27: =VLOOKUP('Proxy Group Ticker'!$B22,vldatabase,9,FALSE) -> 88.25 | G27: 0.4105263158 | H27: 0.1076487252 | I27: 1.052916658 | J27: 0.113345136 | K27: 0.04653116111 | M27: 0.05816831915 | N27: 0.4651515152 | O27: 0.02705708179 | Q27: 0.0735882429 | R27: 20 | S27: Sempra Energy | T27: =VLOOKUP('Proxy Group Ticker'!$B22,vldatabase,14,FALSE) -> 0.434 | U27: =VLOOKUP('Proxy Group Ticker'!$B22,vldatabase,16,FALSE) -> 40734 | V27: 17678.556 | X27: =VLOOKUP('Proxy Group Ticker'!$B22,vldatabase,15,FALSE) -> 0.515 | Y27: =VLOOKUP('Proxy Group Ticker'!$B22,vldatabase,17,FALSE) -> 58300 | Z27: 30024.5 | AA27: 0.1117465721 | AB27: =VLOOKUP('Proxy Group Ticker'!$B22,vldatabase,5,FALSE) -> 190 | AC27: =VLOOKUP('Proxy Group Ticker'!$B22,vldatabase,6,FALSE) -> 140 | AD27: 165 | AE27: 1.869688385 | AF27: =VLOOKUP('Proxy Group Ticker'!$B22,vldatabase,10,FALSE) -> 291.71 | AG27: =VLOOKUP('Proxy Group Ticker'!$B22,vldatabase,11,FALSE) -> 340 | AH27: 0.03111123736
A28: 21 | B28: ='Proxy Group Ticker'!C23 -> Southern Company | C28: =VLOOKUP('Proxy Group Ticker'!$B23,vldatabase,7,FALSE) -> 4 | D28: =VLOOKUP('Proxy Group Ticker'!$B23,vldatabase,8,FALSE) -> 2.86 | E28: =VLOOKUP('Proxy Group Ticker'!$B23,vldatabase,9,FALSE) -> 31.5 | G28: 0.285 | H28: 0.126984127 | I28: 1.02172638 | J28: 0.1297430324 | K28: 0.03697676424 | M28: 0.01076205183 | N28: 0.475 | O28: 0.005111974619 | Q28: 0.04208873886 | R28: 21 | S28: Southern Company | T28: =VLOOKUP('Proxy Group Ticker'!$B23,vldatabase,14,FALSE) -> 0.39 | U28: =VLOOKUP('Proxy Group Ticker'!$B23,vldatabase,16,FALSE) -> 70300 | V28: 27417 | X28: =VLOOKUP('Proxy Group Ticker'!$B23,vldatabase,15,FALSE) -> 0.415 | Y28: =VLOOKUP('Proxy Group Ticker'!$B23,vldatabase,17,FALSE) -> 82100 | Z28: 34071.5 | AA28: 0.04441779872 | AB28: =VLOOKUP('Proxy Group Ticker'!$B23,vldatabase,5,FALSE) -> 70 | AC28: =VLOOKUP('Proxy Group Ticker'!$B23,vldatabase,6,FALSE) -> 50 | AD28: 60 | AE28: 1.904761905 | AF28: =VLOOKUP('Proxy Group Ticker'!$B23,vldatabase,10,FALSE) -> 1050 | AG28: =VLOOKUP('Proxy Group Ticker'!$B23,vldatabase,11,FALSE) -> 1080 | AH28: 0.00565007721
A29: 22 | B29: ='Proxy Group Ticker'!C24 -> WEC Energy Group | C29: =VLOOKUP('Proxy Group Ticker'!$B24,vldatabase,7,FALSE) -> 4.75 | D29: =VLOOKUP('Proxy Group Ticker'!$B24,vldatabase,8,FALSE) -> 3.2 | E29: =VLOOKUP('Proxy Group Ticker'!$B24,vldatabase,9,FALSE) -> 38.25 | G29: 0.3263157895 | H29: 0.1241830065 | I29: 1.017015228 | J29: 0.1262960087 | K29: 0.04121238179 | M29: 0.0001044233356 | N29: 0.575 | O29: 6.004341797e-05 | Q29: 0.0412724252 | R29: 22 | S29: WEC Energy Group | T29: =VLOOKUP('Proxy Group Ticker'!$B24,vldatabase,14,FALSE) -> 0.474 | U29: =VLOOKUP('Proxy Group Ticker'!$B24,vldatabase,16,FALSE) -> 21355 | V29: 10122.27 | X29: =VLOOKUP('Proxy Group Ticker'!$B24,vldatabase,15,FALSE) -> 0.48 | Y29: =VLOOKUP('Proxy Group Ticker'!$B24,vldatabase,17,FALSE) -> 25000 | Z29: 12000 | AA29: 0.03461951478 | AB29: =VLOOKUP('Proxy Group Ticker'!$B24,vldatabase,5,FALSE) -> 100 | AC29: =VLOOKUP('Proxy Group Ticker'!$B24,vldatabase,6,FALSE) -> 80 | AD29: 90 | AE29: 2.352941176 | AF29: =VLOOKUP('Proxy Group Ticker'!$B24,vldatabase,10,FALSE) -> 315.43 | AG29: =VLOOKUP('Proxy Group Ticker'!$B24,vldatabase,11,FALSE) -> 315.5 | AH29: 4.437991763e-05
A30: 23 | B30: ='Proxy Group Ticker'!C25 -> Xcel Energy Inc. | C30: =VLOOKUP('Proxy Group Ticker'!$B25,vldatabase,7,FALSE) -> 3.5 | D30: =VLOOKUP('Proxy Group Ticker'!$B25,vldatabase,8,FALSE) -> 2.15 | E30: =VLOOKUP('Proxy Group Ticker'!$B25,vldatabase,9,FALSE) -> 32.75 | G30: 0.3857142857 | H30: 0.106870229 | I30: 1.030565857 | J30: 0.1101368091 | K30: 0.04248134067 | M30: 0.01610220322 | N30: 0.4541666667 | O30: 0.007313083962 | Q30: 0.04979442463 | R30: 23 | S30: Xcel Energy Inc. | T30: =VLOOKUP('Proxy Group Ticker'!$B25,vldatabase,14,FALSE) -> 0.432 | U30: =VLOOKUP('Proxy Group Ticker'!$B25,vldatabase,16,FALSE) -> 30646 | V30: 13239.072 | X30: =VLOOKUP('Proxy Group Ticker'!$B25,vldatabase,15,FALSE) -> 0.43 | Y30: =VLOOKUP('Proxy Group Ticker'!$B25,vldatabase,17,FALSE) -> 41800 | Z30: 17974 | AA30: 0.06305917142 | AB30: =VLOOKUP('Proxy Group Ticker'!$B25,vldatabase,5,FALSE) -> 65 | AC30: =VLOOKUP('Proxy Group Ticker'!$B25,vldatabase,6,FALSE) -> 55 | AD30: 60 | AE30: 1.832061069 | AF30: =VLOOKUP('Proxy Group Ticker'!$B25,vldatabase,10,FALSE) -> 524.54 | AG30: =VLOOKUP('Proxy Group Ticker'!$B25,vldatabase,11,FALSE) -> 548 | AH30: 0.008789119257
R33: (a) | S33: ='Proxy Group Risk Measures'!B37 -> The Value Line Investment Survey (Feb. 14, Mar. 13 and Apr. 24, 2020).
R34: (b) | S34: Computed using the formula 2*(1+5-Yr. Change in Equity)/(2+5 Yr. Change in Equity).
R35: (c) | S35: Product of average year-end "r" for 2024 and Adjustment Factor.
R36: (d) | S36: Product of change in common shares outstanding and M/B Ratio.
R37: (e) | S37: Computed as 1 - B/M Ratio.
R38: (f) | S38: Product of total capital and equity ratio.
R39: (g) | S39: Five-year rate of change in common equity.
R40: (h) | S40: Average of High and Low expected market prices divided by 2024 BVPS.

Sheet 6 (1)
A1: ='Exhibit List'!C10 -> CAPM - CURRENT BOND YIELD | N1: ='Exhibit List'!B10 -> Exhibit AMM-6
N2: Page 1 of 2
A3: ='Exhibit List'!D10 -> ELECTRIC GROUP
D5: (a) | E5: (b) | G5: (c) | I5: (d) | K5: (d) | L5: (e)
D6: Market Return (Rm)
D7: Div | E7: Proj. | F7: Cost of | G7: Risk-Free | H7: Risk | J7: Unadjusted | K7: Market | L7: Size | M7: CAPM
B8: Company | D8: Yield | E8: Growth | F8: Equity | G8: Rate | H8: Premium | I8: Beta | J8: Ke | K8: Cap | L8: Adjustment | M8: Result
A9: =A8+1 -> 1 | B9: =VLOOKUP('Proxy Group Ticker'!$B3,vldatabase,2,FALSE) -> Alliant Energy | D9: ='2020 03 Market DCF'!$L$418 -> 0.0314 | E9: ='2020 03 Market DCF'!$U$419 -> 0.0933 | F9: =D9+E9 -> 0.1247 | G9: =ROUND('Bond Yields'!$K$16,3) -> 0.019 | H9: =F9-G9 -> 0.1057 | I9: =VLOOKUP('Proxy Group Ticker'!$B3,vldatabase,23,FALSE) -> 0.55 | J9: =IF(I9="n/a","n/a",I9*H9+G9) -> 0.077135 | K9: =VLOOKUP('Proxy Group Ticker'!$B3,vldatabase,28,FALSE) -> 13400 | L9: =IF(K9>'Size Premium'!$A$5,'Size Premium'!$B$5,IF(K9>'Size Premium'!$A$6,'Size Premium'!$B$6,IF(K9>'Size Premium'!$A$7,'Size Premium'!$B$7,IF(K9>'Size Premium'!$A$8,'Size Premium'!$B$8,IF(K9>'Size Premium'!$A$9,'Size Premium'!$B$9,IF(K9>'Size Premium'!$A$10,'Size Premium'!$B$10,IF(K9>'Size Premium'!$A$11,'Size Premium'!$B$11,IF(K9>'Size Premium'!$A$12,'Size Premium'!$B$12,"ERROR")))))))) -> 0.005 | M9: =IF(J9="n/a","n/a",(J9+L9)) -> 0.082135 | Q9: =IF(M9="n/a","n/a",IF(M9<$D$46,"LOW",IF(M9>$D$47,"HIGH",M9))) -> 0.082135
A10: =A9+1 -> 2 | B10: =VLOOKUP('Proxy Group Ticker'!$B4,vldatabase,2,FALSE) -> Ameren Corp. | D10: ='2020 03 Market DCF'!$L$418 -> 0.0314 | E10: ='2020 03 Market DCF'!$U$419 -> 0.0933 | F10: =D10+E10 -> 0.1247 | G10: =ROUND('Bond Yields'!$K$16,3) -> 0.019 | H10: =F10-G10 -> 0.1057 | I10: =VLOOKUP('Proxy Group Ticker'!$B4,vldatabase,23,FALSE) -> 0.5 | J10: =IF(I10="n/a","n/a",I10*H10+G10) -> 0.07185 | K10: =VLOOKUP('Proxy Group Ticker'!$B4,vldatabase,28,FALSE) -> 20000 | L10: =IF(K10>'Size Premium'!$A$5,'Size Premium'!$B$5,IF(K10>'Size Premium'!$A$6,'Size Premium'!$B$6,IF(K10>'Size Premium'!$A$7,'Size Premium'!$B$7,IF(K10>'Size Premium'!$A$8,'Size Premium'!$B$8,IF(K10>'Size Premium'!$A$9,'Size Premium'!$B$9,IF(K10>'Size Premium'!$A$10,'Size Premium'!$B$10,IF(K10>'Size Premium'!$A$11,'Size Premium'!$B$11,IF(K10>'Size Premium'!$A$12,'Size Premium'!$B$12,"ERROR")))))))) -> 0.005 | M10: =IF(J10="n/a","n/a",(J10+L10)) -> 0.07685 | Q10: 0.07685
A11: 3 | B11: =VLOOKUP('Proxy Group Ticker'!$B5,vldatabase,2,FALSE) -> American Elec Pwr | D11: ='2020 03 Market DCF'!$L$418 -> 0.0314 | E11: ='2020 03 Market DCF'!$U$419 -> 0.0933 | F11: 0.1247 | G11: =ROUND('Bond Yields'!$K$16,3) -> 0.019 | H11: 0.1057 | I11: =VLOOKUP('Proxy Group Ticker'!$B5,vldatabase,23,FALSE) -> 0.5 | J11: 0.07185 | K11: =VLOOKUP('Proxy Group Ticker'!$B5,vldatabase,28,FALSE) -> 47000 | L11: =IF(K11>'Size Premium'!$A$5,'Size Premium'!$B$5,IF(K11>'Size Premium'!$A$6,'Size Premium'!$B$6,IF(K11>'Size Premium'!$A$7,'Size Premium'!$B$7,IF(K11>'Size Premium'!$A$8,'Size Premium'!$B$8,IF(K11>'Size Premium'!$A$9,'Size Premium'!$B$9,IF(K11>'Size Premium'!$A$10,'Size Premium'!$B$10,IF(K11>'Size Premium'!$A$11,'Size Premium'!$B$11,IF(K11>'Size Premium'!$A$12,'Size Premium'!$B$12,"ERROR")))))))) -> -0.0028 | M11: 0.06905 | Q11: 0.06905
A12: 4 | B12: =VLOOKUP('Proxy Group Ticker'!$B6,vldatabase,2,FALSE) -> Avangrid, Inc. | D12: ='2020 03 Market DCF'!$L$418 -> 0.0314 | E12: ='2020 03 Market DCF'!$U$419 -> 0.0933 | F12: 0.1247 | G12: =ROUND('Bond Yields'!$K$16,3) -> 0.019 | H12: 0.1057 | I12: =VLOOKUP('Proxy Group Ticker'!$B6,vldatabase,23,FALSE) -> 0.4 | J12: 0.06128 | K12: =VLOOKUP('Proxy Group Ticker'!$B6,vldatabase,28,FALSE) -> 16000 | L12: =IF(K12>'Size Premium'!$A$5,'Size Premium'!$B$5,IF(K12>'Size Premium'!$A$6,'Size Premium'!$B$6,IF(K12>'Size Premium'!$A$7,'Size Premium'!$B$7,IF(K12>'Size Premium'!$A$8,'Size Premium'!$B$8,IF(K12>'Size Premium'!$A$9,'Size Premium'!$B$9,IF(K12>'Size Premium'!$A$10,'Size Premium'!$B$10,IF(K12>'Size Premium'!$A$11,'Size Premium'!$B$11,IF(K12>'Size Premium'!$A$12,'Size Premium'!$B$12,"ERROR")))))))) -> 0.005 | M12: 0.06628 | Q12: 0.06628
A13: 5 | B13: =VLOOKUP('Proxy Group Ticker'!$B7,vldatabase,2,FALSE) -> Black Hills Corp. | D13: ='2020 03 Market DCF'!$L$418 -> 0.0314 | E13: ='2020 03 Market DCF'!$U$419 -> 0.0933 | F13: 0.1247 | G13: =ROUND('Bond Yields'!$K$16,3) -> 0.019 | H13: 0.1057 | I13: =VLOOKUP('Proxy Group Ticker'!$B7,vldatabase,23,FALSE) -> 0.65 | J13: 0.087705 | K13: =VLOOKUP('Proxy Group Ticker'!$B7,vldatabase,28,FALSE) -> 4200 | L13: =IF(K13>'Size Premium'!$A$5,'Size Premium'!$B$5,IF(K13>'Size Premium'!$A$6,'Size Premium'!$B$6,IF(K13>'Size Premium'!$A$7,'Size Premium'!$B$7,IF(K13>'Size Premium'!$A$8,'Size Premium'!$B$8,IF(K13>'Size Premium'!$A$9,'Size Premium'!$B$9,IF(K13>'Size Premium'!$A$10,'Size Premium'!$B$10,IF(K13>'Size Premium'!$A$11,'Size Premium'!$B$11,IF(K13>'Size Premium'!$A$12,'Size Premium'!$B$12,"ERROR")))))))) -> 0.011 | M13: 0.098705 | Q13: 0.098705
A14: 6 | B14: =VLOOKUP('Proxy Group Ticker'!$B8,vldatabase,2,FALSE) -> CMS Energy Corp. | D14: ='2020 03 Market DCF'!$L$418 -> 0.0314 | E14: ='2020 03 Market DCF'!$U$419 -> 0.0933 | F14: 0.1247 | G14: =ROUND('Bond Yields'!$K$16,3) -> 0.019 | H14: 0.1057 | I14: =VLOOKUP('Proxy Group Ticker'!$B8,vldatabase,23,FALSE) -> 0.5 | J14: 0.07185 | K14: =VLOOKUP('Proxy Group Ticker'!$B8,vldatabase,28,FALSE) -> 18000 | L14: =IF(K14>'Size Premium'!$A$5,'Size Premium'!$B$5,IF(K14>'Size Premium'!$A$6,'Size Premium'!$B$6,IF(K14>'Size Premium'!$A$7,'Size Premium'!$B$7,IF(K14>'Size Premium'!$A$8,'Size Premium'!$B$8,IF(K14>'Size Premium'!$A$9,'Size Premium'!$B$9,IF(K14>'Size Premium'!$A$10,'Size Premium'!$B$10,IF(K14>'Size Premium'!$A$11,'Size Premium'!$B$11,IF(K14>'Size Premium'!$A$12,'Size Premium'!$B$12,"ERROR")))))))) -> 0.005 | M14: 0.07685 | Q14: 0.07685
A15: 7 | B15: =VLOOKUP('Proxy Group Ticker'!$B9,vldatabase,2,FALSE) -> Consolidated Edison | D15: ='2020 03 Market DCF'!$L$418 -> 0.0314 | E15: ='2020 03 Market DCF'!$U$419 -> 0.0933 | F15: 0.1247 | G15: =ROUND('Bond Yields'!$K$16,3) -> 0.019 | H15: 0.1057 | I15: =VLOOKUP('Proxy Group Ticker'!$B9,vldatabase,23,FALSE) -> 0.4 | J15: 0.06128 | K15: =VLOOKUP('Proxy Group Ticker'!$B9,vldatabase,28,FALSE) -> 31000 | L15: =IF(K15>'Size Premium'!$A$5,'Size Premium'!$B$5,IF(K15>'Size Premium'!$A$6,'Size Premium'!$B$6,IF(K15>'Size Premium'!$A$7,'Size Premium'!$B$7,IF(K15>'Size Premium'!$A$8,'Size Premium'!$B$8,IF(K15>'Size Premium'!$A$9,'Size Premium'!$B$9,IF(K15>'Size Premium'!$A$10,'Size Premium'!$B$10,IF(K15>'Size Premium'!$A$11,'Size Premium'!$B$11,IF(K15>'Size Premium'!$A$12,'Size Premium'!$B$12,"ERROR")))))))) -> 0.005 | M15: 0.06628 | Q15: 0.06628
A16: 8 | B16: =VLOOKUP('Proxy Group Ticker'!$B10,vldatabase,2,FALSE) -> Dominion Energy | D16: ='2020 03 Market DCF'!$L$418 -> 0.0314 | E16: ='2020 03 Market DCF'!$U$419 -> 0.0933 | F16: 0.1247 | G16: =ROUND('Bond Yields'!$K$16,3) -> 0.019 | H16: 0.1057 | I16: =VLOOKUP('Proxy Group Ticker'!$B10,vldatabase,23,FALSE) -> 0.5 | J16: 0.07185 | K16: =VLOOKUP('Proxy Group Ticker'!$B10,vldatabase,28,FALSE) -> 70000 | L16: =IF(K16>'Size Premium'!$A$5,'Size Premium'!$B$5,IF(K16>'Size Premium'!$A$6,'Size Premium'!$B$6,IF(K16>'Size Premium'!$A$7,'Size Premium'!$B$7,IF(K16>'Size Premium'!$A$8,'Size Premium'!$B$8,IF(K16>'Size Premium'!$A$9,'Size Premium'!$B$9,IF(K16>'Size Premium'!$A$10,'Size Premium'!$B$10,IF(K16>'Size Premium'!$A$11,'Size Premium'!$B$11,IF(K16>'Size Premium'!$A$12,'Size Premium'!$B$12,"ERROR")))))))) -> -0.0028 | M16: 0.06905 | Q16: 0.06905
A17: 9 | B17: =VLOOKUP('Proxy Group Ticker'!$B11,vldatabase,2,FALSE) -> DTE Energy Co. | D17: ='2020 03 Market DCF'!$L$418 -> 0.0314 | E17: ='2020 03 Market DCF'!$U$419 -> 0.0933 | F17: 0.1247 | G17: =ROUND('Bond Yields'!$K$16,3) -> 0.019 | H17: 0.1057 | I17: =VLOOKUP('Proxy Group Ticker'!$B11,vldatabase,23,FALSE) -> 0.5 | J17: 0.07185 | K17: =VLOOKUP('Proxy Group Ticker'!$B11,vldatabase,28,FALSE) -> 22000 | L17: =IF(K17>'Size Premium'!$A$5,'Size Premium'!$B$5,IF(K17>'Size Premium'!$A$6,'Size Premium'!$B$6,IF(K17>'Size Premium'!$A$7,'Size Premium'!$B$7,IF(K17>'Size Premium'!$A$8,'Size Premium'!$B$8,IF(K17>'Size Premium'!$A$9,'Size Premium'!$B$9,IF(K17>'Size Premium'!$A$10,'Size Premium'!$B$10,IF(K17>'Size Premium'!$A$11,'Size Premium'!$B$11,IF(K17>'Size Premium'!$A$12,'Size Premium'!$B$12,"ERROR")))))))) -> 0.005 | M17: 0.07685 | Q17: 0.07685
A18: 10 | B18: =VLOOKUP('Proxy Group Ticker'!$B12,vldatabase,2,FALSE) -> Duke Energy Corp. | D18: ='2020 03 Market DCF'!$L$418 -> 0.0314 | E18: ='2020 03 Market DCF'!$U$419 -> 0.0933 | F18: 0.1247 | G18: =ROUND('Bond Yields'!$K$16,3) -> 0.019 | H18: 0.1057 | I18: =VLOOKUP('Proxy Group Ticker'!$B12,vldatabase,23,FALSE) -> 0.45 | J18: 0.066565 | K18: =VLOOKUP('Proxy Group Ticker'!$B12,vldatabase,28,FALSE) -> 70000 | L18: =IF(K18>'Size Premium'!$A$5,'Size Premium'!$B$5,IF(K18>'Size Premium'!$A$6,'Size Premium'!$B$6,IF(K18>'Size Premium'!$A$7,'Size Premium'!$B$7,IF(K18>'Size Premium'!$A$8,'Size Premium'!$B$8,IF(K18>'Size Premium'!$A$9,'Size Premium'!$B$9,IF(K18>'Size Premium'!$A$10,'Size Premium'!$B$10,IF(K18>'Size Premium'!$A$11,'Size Premium'!$B$11,IF(K18>'Size Premium'!$A$12,'Size Premium'!$B$12,"ERROR")))))))) -> -0.0028 | M18: 0.063765 | Q18: LOW
A19: 11 | B19: =VLOOKUP('Proxy Group Ticker'!$B13,vldatabase,2,FALSE) -> Entergy Corp. | D19: ='2020 03 Market DCF'!$L$418 -> 0.0314 | E19: ='2020 03 Market DCF'!$U$419 -> 0.0933 | F19: 0.1247 | G19: =ROUND('Bond Yields'!$K$16,3) -> 0.019 | H19: 0.1057 | I19: =VLOOKUP('Proxy Group Ticker'!$B13,vldatabase,23,FALSE) -> 0.6 | J19: 0.08242 | K19: =VLOOKUP('Proxy Group Ticker'!$B13,vldatabase,28,FALSE) -> 24000 | L19: =IF(K19>'Size Premium'!$A$5,'Size Premium'!$B$5,IF(K19>'Size Premium'!$A$6,'Size Premium'!$B$6,IF(K19>'Size Premium'!$A$7,'Size Premium'!$B$7,IF(K19>'Size Premium'!$A$8,'Size Premium'!$B$8,IF(K19>'Size Premium'!$A$9,'Size Premium'!$B$9,IF(K19>'Size Premium'!$A$10,'Size Premium'!$B$10,IF(K19>'Size Premium'!$A$11,'Size Premium'!$B$11,IF(K19>'Size Premium'!$A$12,'Size Premium'!$B$12,"ERROR")))))))) -> 0.005 | M19: 0.08742 | Q19: 0.08742
A20: 12 | B20: =VLOOKUP('Proxy Group Ticker'!$B14,vldatabase,2,FALSE) -> Evergy Inc. | D20: ='2020 03 Market DCF'!$L$418 -> 0.0314 | E20: ='2020 03 Market DCF'!$U$419 -> 0.0933 | F20: 0.1247 | G20: =ROUND('Bond Yields'!$K$16,3) -> 0.019 | H20: 0.1057 | I20: =VLOOKUP('Proxy Group Ticker'!$B14,vldatabase,23,FALSE) -> n/a | J20: n/a | K20: =VLOOKUP('Proxy Group Ticker'!$B14,vldatabase,28,FALSE) -> 16000 | L20: =IF(K20>'Size Premium'!$A$5,'Size Premium'!$B$5,IF(K20>'Size Premium'!$A$6,'Size Premium'!$B$6,IF(K20>'Size Premium'!$A$7,'Size Premium'!$B$7,IF(K20>'Size Premium'!$A$8,'Size Premium'!$B$8,IF(K20>'Size Premium'!$A$9,'Size Premium'!$B$9,IF(K20>'Size Premium'!$A$10,'Size Premium'!$B$10,IF(K20>'Size Premium'!$A$11,'Size Premium'!$B$11,IF(K20>'Size Premium'!$A$12,'Size Premium'!$B$12,"ERROR")))))))) -> 0.005 | M20: n/a | Q20: n/a
A21: 13 | B21: =VLOOKUP('Proxy Group Ticker'!$B15,vldatabase,2,FALSE) -> Eversource Energy | D21: ='2020 03 Market DCF'!$L$418 -> 0.0314 | E21: ='2020 03 Market DCF'!$U$419 -> 0.0933 | F21: 0.1247 | G21: =ROUND('Bond Yields'!$K$16,3) -> 0.019 | H21: 0.1057 | I21: =VLOOKUP('Proxy Group Ticker'!$B15,vldatabase,23,FALSE) -> 0.55 | J21: 0.077135 | K21: =VLOOKUP('Proxy Group Ticker'!$B15,vldatabase,28,FALSE) -> 29000 | L21: =IF(K21>'Size Premium'!$A$5,'Size Premium'!$B$5,IF(K21>'Size Premium'!$A$6,'Size Premium'!$B$6,IF(K21>'Size Premium'!$A$7,'Size Premium'!$B$7,IF(K21>'Size Premium'!$A$8,'Size Premium'!$B$8,IF(K21>'Size Premium'!$A$9,'Size Premium'!$B$9,IF(K21>'Size Premium'!$A$10,'Size Premium'!$B$10,IF(K21>'Size Premium'!$A$11,'Size Premium'!$B$11,IF(K21>'Size Premium'!$A$12,'Size Premium'!$B$12,"ERROR")))))))) -> 0.005 | M21: 0.082135 | Q21: 0.082135
A22: 14 | B22: =VLOOKUP('Proxy Group Ticker'!$B16,vldatabase,2,FALSE) -> Exelon Corp. | D22: ='2020 03 Market DCF'!$L$418 -> 0.0314 | E22: ='2020 03 Market DCF'!$U$419 -> 0.0933 | F22: 0.1247 | G22: =ROUND('Bond Yields'!$K$16,3) -> 0.019 | H22: 0.1057 | I22: =VLOOKUP('Proxy Group Ticker'!$B16,vldatabase,23,FALSE) -> 0.65 | J22: 0.087705 | K22: =VLOOKUP('Proxy Group Ticker'!$B16,vldatabase,28,FALSE) -> 47000 | L22: =IF(K22>'Size Premium'!$A$5,'Size Premium'!$B$5,IF(K22>'Size Premium'!$A$6,'Size Premium'!$B$6,IF(K22>'Size Premium'!$A$7,'Size Premium'!$B$7,IF(K22>'Size Premium'!$A$8,'Size Premium'!$B$8,IF(K22>'Size Premium'!$A$9,'Size Premium'!$B$9,IF(K22>'Size Premium'!$A$10,'Size Premium'!$B$10,IF(K22>'Size Premium'!$A$11,'Size Premium'!$B$11,IF(K22>'Size Premium'!$A$12,'Size Premium'!$B$12,"ERROR")))))))) -> -0.0028 | M22: 0.084905 | Q22: 0.084905
A23: 15 | B23: =VLOOKUP('Proxy Group Ticker'!$B17,vldatabase,2,FALSE) -> Fortis Inc. | D23: ='2020 03 Market DCF'!$L$418 -> 0.0314 | E23: ='2020 03 Market DCF'!$U$419 -> 0.0933 | F23: 0.1247 | G23: =ROUND('Bond Yields'!$K$16,3) -> 0.019 | H23: 0.1057 | I23: =VLOOKUP('Proxy Group Ticker'!$B17,vldatabase,23,FALSE) -> 0.6 | J23: 0.08242 | K23: =VLOOKUP('Proxy Group Ticker'!$B17,vldatabase,28,FALSE) -> 26000 | L23: =IF(K23>'Size Premium'!$A$5,'Size Premium'!$B$5,IF(K23>'Size Premium'!$A$6,'Size Premium'!$B$6,IF(K23>'Size Premium'!$A$7,'Size Premium'!$B$7,IF(K23>'Size Premium'!$A$8,'Size Premium'!$B$8,IF(K23>'Size Premium'!$A$9,'Size Premium'!$B$9,IF(K23>'Size Premium'!$A$10,'Size Premium'!$B$10,IF(K23>'Size Premium'!$A$11,'Size Premium'!$B$11,IF(K23>'Size Premium'!$A$12,'Size Premium'!$B$12,"ERROR")))))))) -> 0.005 | M23: 0.08742 | Q23: 0.08742
A24: 16 | B24: =VLOOKUP('Proxy Group Ticker'!$B18,vldatabase,2,FALSE) -> NextEra Energy, Inc. | D24: ='2020 03 Market DCF'!$L$418 -> 0.0314 | E24: ='2020 03 Market DCF'!$U$419 -> 0.0933 | F24: =D24+E24 -> 0.1247 | G24: =ROUND('Bond Yields'!$K$16,3) -> 0.019 | H24: =F24-G24 -> 0.1057 | I24: =VLOOKUP('Proxy Group Ticker'!$B18,vldatabase,23,FALSE) -> 0.5 | J24: =IF(I24="n/a","n/a",I24*H24+G24) -> 0.07185 | K24: =VLOOKUP('Proxy Group Ticker'!$B18,vldatabase,28,FALSE) -> 129000 | L24: =IF(K24>'Size Premium'!$A$5,'Size Premium'!$B$5,IF(K24>'Size Premium'!$A$6,'Size Premium'!$B$6,IF(K24>'Size Premium'!$A$7,'Size Premium'!$B$7,IF(K24>'Size Premium'!$A$8,'Size Premium'!$B$8,IF(K24>'Size Premium'!$A$9,'Size Premium'!$B$9,IF(K24>'Size Premium'!$A$10,'Size Premium'!$B$10,IF(K24>'Size Premium'!$A$11,'Size Premium'!$B$11,IF(K24>'Size Premium'!$A$12,'Size Premium'!$B$12,"ERROR")))))))) -> -0.0028 | M24: =IF(J24="n/a","n/a",(J24+L24)) -> 0.06905 | Q24: =IF(M24="n/a","n/a",IF(M24<$D$46,"LOW",IF(M24>$D$47,"HIGH",M24))) -> 0.06905
A25: 17 | B25: =VLOOKUP('Proxy Group Ticker'!$B19,vldatabase,2,FALSE) -> OGE Energy Corp. | D25: ='2020 03 Market DCF'!$L$418 -> 0.0314 | E25: ='2020 03 Market DCF'!$U$419 -> 0.0933 | F25: 0.1247 | G25: =ROUND('Bond Yields'!$K$16,3) -> 0.019 | H25: 0.1057 | I25: =VLOOKUP('Proxy Group Ticker'!$B19,vldatabase,23,FALSE) -> 0.7 | J25: 0.09299 | K25: =VLOOKUP('Proxy Group Ticker'!$B19,vldatabase,28,FALSE) -> 7700 | L25: =IF(K25>'Size Premium'!$A$5,'Size Premium'!$B$5,IF(K25>'Size Premium'!$A$6,'Size Premium'!$B$6,IF(K25>'Size Premium'!$A$7,'Size Premium'!$B$7,IF(K25>'Size Premium'!$A$8,'Size Premium'!$B$8,IF(K25>'Size Premium'!$A$9,'Size Premium'!$B$9,IF(K25>'Size Premium'!$A$10,'Size Premium'!$B$10,IF(K25>'Size Premium'!$A$11,'Size Premium'!$B$11,IF(K25>'Size Premium'!$A$12,'Size Premium'!$B$12,"ERROR")))))))) -> 0.0073 | M25: 0.10029 | Q25: 0.10029
A26: 18 | B26: =VLOOKUP('Proxy Group Ticker'!$B20,vldatabase,2,FALSE) -> PPL Corp. | D26: ='2020 03 Market DCF'!$L$418 -> 0.0314 | E26: ='2020 03 Market DCF'!$U$419 -> 0.0933 | F26: 0.1247 | G26: =ROUND('Bond Yields'!$K$16,3) -> 0.019 | H26: 0.1057 | I26: =VLOOKUP('Proxy Group Ticker'!$B20,vldatabase,23,FALSE) -> 0.65 | J26: 0.087705 | K26: =VLOOKUP('Proxy Group Ticker'!$B20,vldatabase,28,FALSE) -> 26000 | L26: =IF(K26>'Size Premium'!$A$5,'Size Premium'!$B$5,IF(K26>'Size Premium'!$A$6,'Size Premium'!$B$6,IF(K26>'Size Premium'!$A$7,'Size Premium'!$B$7,IF(K26>'Size Premium'!$A$8,'Size Premium'!$B$8,IF(K26>'Size Premium'!$A$9,'Size Premium'!$B$9,IF(K26>'Size Premium'!$A$10,'Size Premium'!$B$10,IF(K26>'Size Premium'!$A$11,'Size Premium'!$B$11,IF(K26>'Size Premium'!$A$12,'Size Premium'!$B$12,"ERROR")))))))) -> 0.005 | M26: 0.092705 | Q26: 0.092705
A27: 19 | B27: =VLOOKUP('Proxy Group Ticker'!$B21,vldatabase,2,FALSE) -> Pub Sv Enterprise Grp. | D27: ='2020 03 Market DCF'!$L$418 -> 0.0314 | E27: ='2020 03 Market DCF'!$U$419 -> 0.0933 | F27: 0.1247 | G27: =ROUND('Bond Yields'!$K$16,3) -> 0.019 | H27: 0.1057 | I27: =VLOOKUP('Proxy Group Ticker'!$B21,vldatabase,23,FALSE) -> 0.6 | J27: 0.08242 | K27: =VLOOKUP('Proxy Group Ticker'!$B21,vldatabase,28,FALSE) -> 30000 | L27: =IF(K27>'Size Premium'!$A$5,'Size Premium'!$B$5,IF(K27>'Size Premium'!$A$6,'Size Premium'!$B$6,IF(K27>'Size Premium'!$A$7,'Size Premium'!$B$7,IF(K27>'Size Premium'!$A$8,'Size Premium'!$B$8,IF(K27>'Size Premium'!$A$9,'Size Premium'!$B$9,IF(K27>'Size Premium'!$A$10,'Size Premium'!$B$10,IF(K27>'Size Premium'!$A$11,'Size Premium'!$B$11,IF(K27>'Size Premium'!$A$12,'Size Premium'!$B$12,"ERROR")))))))) -> 0.005 | M27: 0.08742 | Q27: 0.08742
A28: 20 | B28: =VLOOKUP('Proxy Group Ticker'!$B22,vldatabase,2,FALSE) -> Sempra Energy | D28: ='2020 03 Market DCF'!$L$418 -> 0.0314 | E28: ='2020 03 Market DCF'!$U$419 -> 0.0933 | F28: 0.1247 | G28: =ROUND('Bond Yields'!$K$16,3) -> 0.019 | H28: 0.1057 | I28: =VLOOKUP('Proxy Group Ticker'!$B22,vldatabase,23,FALSE) -> 0.65 | J28: 0.087705 | K28: =VLOOKUP('Proxy Group Ticker'!$B22,vldatabase,28,FALSE) -> 37000 | L28: =IF(K28>'Size Premium'!$A$5,'Size Premium'!$B$5,IF(K28>'Size Premium'!$A$6,'Size Premium'!$B$6,IF(K28>'Size Premium'!$A$7,'Size Premium'!$B$7,IF(K28>'Size Premium'!$A$8,'Size Premium'!$B$8,IF(K28>'Size Premium'!$A$9,'Size Premium'!$B$9,IF(K28>'Size Premium'!$A$10,'Size Premium'!$B$10,IF(K28>'Size Premium'!$A$11,'Size Premium'!$B$11,IF(K28>'Size Premium'!$A$12,'Size Premium'!$B$12,"ERROR")))))))) -> -0.0028 | M28: 0.084905 | Q28: 0.084905
A29: 21 | B29: =VLOOKUP('Proxy Group Ticker'!$B23,vldatabase,2,FALSE) -> Southern Company | D29: ='2020 03 Market DCF'!$L$418 -> 0.0314 | E29: ='2020 03 Market DCF'!$U$419 -> 0.0933 | F29: 0.1247 | G29: =ROUND('Bond Yields'!$K$16,3) -> 0.019 | H29: 0.1057 | I29: =VLOOKUP('Proxy Group Ticker'!$B23,vldatabase,23,FALSE) -> 0.5 | J29: 0.07185 | K29: =VLOOKUP('Proxy Group Ticker'!$B23,vldatabase,28,FALSE) -> 73000 | L29: =IF(K29>'Size Premium'!$A$5,'Size Premium'!$B$5,IF(K29>'Size Premium'!$A$6,'Size Premium'!$B$6,IF(K29>'Size Premium'!$A$7,'Size Premium'!$B$7,IF(K29>'Size Premium'!$A$8,'Size Premium'!$B$8,IF(K29>'Size Premium'!$A$9,'Size Premium'!$B$9,IF(K29>'Size Premium'!$A$10,'Size Premium'!$B$10,IF(K29>'Size Premium'!$A$11,'Size Premium'!$B$11,IF(K29>'Size Premium'!$A$12,'Size Premium'!$B$12,"ERROR")))))))) -> -0.0028 | M29: 0.06905 | Q29: 0.06905
A30: 22 | B30: =VLOOKUP('Proxy Group Ticker'!$B24,vldatabase,2,FALSE) -> WEC Energy Group | D30: ='2020 03 Market DCF'!$L$418 -> 0.0314 | E30: ='2020 03 Market DCF'!$U$419 -> 0.0933 | F30: 0.1247 | G30: =ROUND('Bond Yields'!$K$16,3) -> 0.019 | H30: 0.1057 | I30: =VLOOKUP('Proxy Group Ticker'!$B24,vldatabase,23,FALSE) -> 0.45 | J30: 0.066565 | K30: =VLOOKUP('Proxy Group Ticker'!$B24,vldatabase,28,FALSE) -> 31000 | L30: =IF(K30>'Size Premium'!$A$5,'Size Premium'!$B$5,IF(K30>'Size Premium'!$A$6,'Size Premium'!$B$6,IF(K30>'Size Premium'!$A$7,'Size Premium'!$B$7,IF(K30>'Size Premium'!$A$8,'Size Premium'!$B$8,IF(K30>'Size Premium'!$A$9,'Size Premium'!$B$9,IF(K30>'Size Premium'!$A$10,'Size Premium'!$B$10,IF(K30>'Size Premium'!$A$11,'Size Premium'!$B$11,IF(K30>'Size Premium'!$A$12,'Size Premium'!$B$12,"ERROR")))))))) -> 0.005 | M30: 0.071565 | Q30: 0.071565
A31: 23 | B31: =VLOOKUP('Proxy Group Ticker'!$B25,vldatabase,2,FALSE) -> Xcel Energy Inc. | D31: ='2020 03 Market DCF'!$L$418 -> 0.0314 | E31: ='2020 03 Market DCF'!$U$419 -> 0.0933 | F31: 0.1247 | G31: =ROUND('Bond Yields'!$K$16,3) -> 0.019 | H31: 0.1057 | I31: =VLOOKUP('Proxy Group Ticker'!$B25,vldatabase,23,FALSE) -> 0.45 | J31: 0.066565 | K31: =VLOOKUP('Proxy Group Ticker'!$B25,vldatabase,28,FALSE) -> 33000 | L31: =IF(K31>'Size Premium'!$A$5,'Size Premium'!$B$5,IF(K31>'Size Premium'!$A$6,'Size Premium'!$B$6,IF(K31>'Size Premium'!$A$7,'Size Premium'!$B$7,IF(K31>'Size Premium'!$A$8,'Size Premium'!$B$8,IF(K31>'Size Premium'!$A$9,'Size Premium'!$B$9,IF(K31>'Size Premium'!$A$10,'Size Premium'!$B$10,IF(K31>'Size Premium'!$A$11,'Size Premium'!$B$11,IF(K31>'Size Premium'!$A$12,'Size Premium'!$B$12,"ERROR")))))))) -> -0.0028 | M31: 0.063765 | Q31: LOW
P32: Max | Q32: =MAX(Q9:Q31) -> 0.10029
B33: Average (f) | M33: =AVERAGE(Q9:Q31) -> 0.07994575 | P33: Min | Q33: =MIN(Q9:Q31) -> 0.06628
B34: Midpoint (f) (g) | M34: =AVERAGE(Q33:Q34) -> 0.083285 | P34: Max | Q34: =MAX(Q9:Q31) -> 0.10029
A36: (a) | B36: ="Weighted average for dividend-paying stocks in the S&P 500 based on data from "&'2020 03 Market DCF'!B425&"." -> Weighted average for dividend-paying stocks in the S&P 500 based on data from www.valueline.com (retrieved Mar. 27, 2020).
A37: (b) | B37: ="Average of weighted average earnings growth rates from IBES, Value Line, and Zacks for dividend-paying stocks in the S&P 500 based on data from "&'2020 03 Market DCF'!B426&", "&'2020 03 Market DCF'!B425&", and "&'2020 03 Market DCF'!B428&"." -> Average of weighted average earnings growth rates from IBES, Value Line, and Zacks for dividend-paying stocks in the S&P 500 based on data from http://finance.yahoo.com (retrieved Mar. 27, 2020), www.valueline.com (retrieved Mar. 27, 2020), and www.zacks.com (retrieved Mar. 27, 2020).
A39: (c) | B39: ="Average yield on 30-year Treasury bonds for the six-months ending "&'Bond Yields'!B14&" based on data from "&'Bond Yields'!B21&"." -> Average yield on 30-year Treasury bonds for the six-months ending Apr. 2020 based on data from http://www.fred.stlouisfed.org.
A40: (d) | B40: ='Electric Utility Data'!B51 -> The Value Line Investment Survey (Feb. 14, Mar. 13 and Apr. 24, 2020).
A41: (e) | B41: ='Size Premium'!A18 -> Duff & Phelps, 2020 CRSP Deciles Size Study -- Supplementary Data Exhibits, Cost of Capital Navigator.
A42: (f) | B42: Excludes highlighted figures.
A43: (g) | B43: Average of low and high values.
A46: Threshold Min | D46: ='4 (3)'!D40 -> 0.065
A47: Threshold Max | D47: ='4 (3)'!D41 -> 0.15

Sheet 6 (2)
A1: ='Exhibit List'!C11 -> CAPM - PROJECTED BOND YIELD | N1: ='Exhibit List'!B11 -> Exhibit AMM-6
N2: Page 2 of 2
A3: ='Exhibit List'!D11 -> ELECTRIC GROUP
D5: (a) | E5: (b) | G5: (c) | I5: (d) | K5: (d) | L5: (e)
D6: Market Return (Rm)
D7: Div | E7: Proj. | F7: Cost of | G7: Risk-Free | H7: Risk | J7: Unadjusted | K7: Market | L7: Size | M7: CAPM
B8: Company | D8: Yield | E8: Growth | F8: Equity | G8: Rate | H8: Premium | I8: Beta | J8: Ke | K8: Cap | L8: Adjustment | M8: Result
A9: =A8+1 -> 1 | B9: =VLOOKUP('Proxy Group Ticker'!$B3,vldatabase,2,FALSE) -> Alliant Energy | D9: ='2020 03 Market DCF'!$L$418 -> 0.0314 | E9: ='2020 03 Market DCF'!$U$419 -> 0.0933 | F9: =D9+E9 -> 0.1247 | G9: =ROUND('Bond Yields'!$M$60,3) -> 0.032 | H9: =F9-G9 -> 0.0927 | I9: =VLOOKUP('Proxy Group Ticker'!$B3,vldatabase,23,FALSE) -> 0.55 | J9: =IF(I9="n/a","n/a",I9*H9+G9) -> 0.082985 | K9: =VLOOKUP('Proxy Group Ticker'!$B3,vldatabase,28,FALSE) -> 13400 | L9: =IF(K9>'Size Premium'!$A$5,'Size Premium'!$B$5,IF(K9>'Size Premium'!$A$6,'Size Premium'!$B$6,IF(K9>'Size Premium'!$A$7,'Size Premium'!$B$7,IF(K9>'Size Premium'!$A$8,'Size Premium'!$B$8,IF(K9>'Size Premium'!$A$9,'Size Premium'!$B$9,IF(K9>'Size Premium'!$A$10,'Size Premium'!$B$10,IF(K9>'Size Premium'!$A$11,'Size Premium'!$B$11,IF(K9>'Size Premium'!$A$12,'Size Premium'!$B$12,"ERROR")))))))) -> 0.005 | M9: =IF(J9="n/a","n/a",(J9+L9)) -> 0.087985 | Q9: =IF(M9="n/a","n/a",IF(M9<$D$47,"LOW",IF(M9>$D$48,"HIGH",M9))) -> 0.087985
A10: =A9+1 -> 2 | B10: =VLOOKUP('Proxy Group Ticker'!$B4,vldatabase,2,FALSE) -> Ameren Corp. | D10: ='2020 03 Market DCF'!$L$418 -> 0.0314 | E10: ='2020 03 Market DCF'!$U$419 -> 0.0933 | F10: =D10+E10 -> 0.1247 | G10: =ROUND('Bond Yields'!$M$60,3) -> 0.032 | H10: =F10-G10 -> 0.0927 | I10: =VLOOKUP('Proxy Group Ticker'!$B4,vldatabase,23,FALSE) -> 0.5 | J10: =IF(I10="n/a","n/a",I10*H10+G10) -> 0.07835 | K10: =VLOOKUP('Proxy Group Ticker'!$B4,vldatabase,28,FALSE) -> 20000 | L10: =IF(K10>'Size Premium'!$A$5,'Size Premium'!$B$5,IF(K10>'Size Premium'!$A$6,'Size Premium'!$B$6,IF(K10>'Size Premium'!$A$7,'Size Premium'!$B$7,IF(K10>'Size Premium'!$A$8,'Size Premium'!$B$8,IF(K10>'Size Premium'!$A$9,'Size Premium'!$B$9,IF(K10>'Size Premium'!$A$10,'Size Premium'!$B$10,IF(K10>'Size Premium'!$A$11,'Size Premium'!$B$11,IF(K10>'Size Premium'!$A$12,'Size Premium'!$B$12,"ERROR")))))))) -> 0.005 | M10: =IF(J10="n/a","n/a",(J10+L10)) -> 0.08335 | Q10: 0.08335
A11: 3 | B11: =VLOOKUP('Proxy Group Ticker'!$B5,vldatabase,2,FALSE) -> American Elec Pwr | D11: ='2020 03 Market DCF'!$L$418 -> 0.0314 | E11: ='2020 03 Market DCF'!$U$419 -> 0.0933 | F11: 0.1247 | G11: =ROUND('Bond Yields'!$M$60,3) -> 0.032 | H11: 0.0927 | I11: =VLOOKUP('Proxy Group Ticker'!$B5,vldatabase,23,FALSE) -> 0.5 | J11: 0.07835 | K11: =VLOOKUP('Proxy Group Ticker'!$B5,vldatabase,28,FALSE) -> 47000 | L11: =IF(K11>'Size Premium'!$A$5,'Size Premium'!$B$5,IF(K11>'Size Premium'!$A$6,'Size Premium'!$B$6,IF(K11>'Size Premium'!$A$7,'Size Premium'!$B$7,IF(K11>'Size Premium'!$A$8,'Size Premium'!$B$8,IF(K11>'Size Premium'!$A$9,'Size Premium'!$B$9,IF(K11>'Size Premium'!$A$10,'Size Premium'!$B$10,IF(K11>'Size Premium'!$A$11,'Size Premium'!$B$11,IF(K11>'Size Premium'!$A$12,'Size Premium'!$B$12,"ERROR")))))))) -> -0.0028 | M11: 0.07555 | Q11: 0.07555
A12: 4 | B12: =VLOOKUP('Proxy Group Ticker'!$B6,vldatabase,2,FALSE) -> Avangrid, Inc. | D12: ='2020 03 Market DCF'!$L$418 -> 0.0314 | E12: ='2020 03 Market DCF'!$U$419 -> 0.0933 | F12: 0.1247 | G12: =ROUND('Bond Yields'!$M$60,3) -> 0.032 | H12: 0.0927 | I12: =VLOOKUP('Proxy Group Ticker'!$B6,vldatabase,23,FALSE) -> 0.4 | J12: 0.06908 | K12: =VLOOKUP('Proxy Group Ticker'!$B6,vldatabase,28,FALSE) -> 16000 | L12: =IF(K12>'Size Premium'!$A$5,'Size Premium'!$B$5,IF(K12>'Size Premium'!$A$6,'Size Premium'!$B$6,IF(K12>'Size Premium'!$A$7,'Size Premium'!$B$7,IF(K12>'Size Premium'!$A$8,'Size Premium'!$B$8,IF(K12>'Size Premium'!$A$9,'Size Premium'!$B$9,IF(K12>'Size Premium'!$A$10,'Size Premium'!$B$10,IF(K12>'Size Premium'!$A$11,'Size Premium'!$B$11,IF(K12>'Size Premium'!$A$12,'Size Premium'!$B$12,"ERROR")))))))) -> 0.005 | M12: 0.07408 | Q12: 0.07408
A13: 5 | B13: =VLOOKUP('Proxy Group Ticker'!$B7,vldatabase,2,FALSE) -> Black Hills Corp. | D13: ='2020 03 Market DCF'!$L$418 -> 0.0314 | E13: ='2020 03 Market DCF'!$U$419 -> 0.0933 | F13: 0.1247 | G13: =ROUND('Bond Yields'!$M$60,3) -> 0.032 | H13: 0.0927 | I13: =VLOOKUP('Proxy Group Ticker'!$B7,vldatabase,23,FALSE) -> 0.65 | J13: 0.092255 | K13: =VLOOKUP('Proxy Group Ticker'!$B7,vldatabase,28,FALSE) -> 4200 | L13: =IF(K13>'Size Premium'!$A$5,'Size Premium'!$B$5,IF(K13>'Size Premium'!$A$6,'Size Premium'!$B$6,IF(K13>'Size Premium'!$A$7,'Size Premium'!$B$7,IF(K13>'Size Premium'!$A$8,'Size Premium'!$B$8,IF(K13>'Size Premium'!$A$9,'Size Premium'!$B$9,IF(K13>'Size Premium'!$A$10,'Size Premium'!$B$10,IF(K13>'Size Premium'!$A$11,'Size Premium'!$B$11,IF(K13>'Size Premium'!$A$12,'Size Premium'!$B$12,"ERROR")))))))) -> 0.011 | M13: 0.103255 | Q13: 0.103255
A14: 6 | B14: =VLOOKUP('Proxy Group Ticker'!$B8,vldatabase,2,FALSE) -> CMS Energy Corp. | D14: ='2020 03 Market DCF'!$L$418 -> 0.0314 | E14: ='2020 03 Market DCF'!$U$419 -> 0.0933 | F14: 0.1247 | G14: =ROUND('Bond Yields'!$M$60,3) -> 0.032 | H14: 0.0927 | I14: =VLOOKUP('Proxy Group Ticker'!$B8,vldatabase,23,FALSE) -> 0.5 | J14: 0.07835 | K14: =VLOOKUP('Proxy Group Ticker'!$B8,vldatabase,28,FALSE) -> 18000 | L14: =IF(K14>'Size Premium'!$A$5,'Size Premium'!$B$5,IF(K14>'Size Premium'!$A$6,'Size Premium'!$B$6,IF(K14>'Size Premium'!$A$7,'Size Premium'!$B$7,IF(K14>'Size Premium'!$A$8,'Size Premium'!$B$8,IF(K14>'Size Premium'!$A$9,'Size Premium'!$B$9,IF(K14>'Size Premium'!$A$10,'Size Premium'!$B$10,IF(K14>'Size Premium'!$A$11,'Size Premium'!$B$11,IF(K14>'Size Premium'!$A$12,'Size Premium'!$B$12,"ERROR")))))))) -> 0.005 | M14: 0.08335 | Q14: 0.08335
A15: 7 | B15: =VLOOKUP('Proxy Group Ticker'!$B9,vldatabase,2,FALSE) -> Consolidated Edison | D15: ='2020 03 Market DCF'!$L$418 -> 0.0314 | E15: ='2020 03 Market DCF'!$U$419 -> 0.0933 | F15: 0.1247 | G15: =ROUND('Bond Yields'!$M$60,3) -> 0.032 | H15: 0.0927 | I15: =VLOOKUP('Proxy Group Ticker'!$B9,vldatabase,23,FALSE) -> 0.4 | J15: 0.06908 | K15: =VLOOKUP('Proxy Group Ticker'!$B9,vldatabase,28,FALSE) -> 31000 | L15: =IF(K15>'Size Premium'!$A$5,'Size Premium'!$B$5,IF(K15>'Size Premium'!$A$6,'Size Premium'!$B$6,IF(K15>'Size Premium'!$A$7,'Size Premium'!$B$7,IF(K15>'Size Premium'!$A$8,'Size Premium'!$B$8,IF(K15>'Size Premium'!$A$9,'Size Premium'!$B$9,IF(K15>'Size Premium'!$A$10,'Size Premium'!$B$10,IF(K15>'Size Premium'!$A$11,'Size Premium'!$B$11,IF(K15>'Size Premium'!$A$12,'Size Premium'!$B$12,"ERROR")))))))) -> 0.005 | M15: 0.07408 | Q15: 0.07408
A16: 8 | B16: =VLOOKUP('Proxy Group Ticker'!$B10,vldatabase,2,FALSE) -> Dominion Energy | D16: ='2020 03 Market DCF'!$L$418 -> 0.0314 | E16: ='2020 03 Market DCF'!$U$419 -> 0.0933 | F16: 0.1247 | G16: =ROUND('Bond Yields'!$M$60,3) -> 0.032 | H16: 0.0927 | I16: =VLOOKUP('Proxy Group Ticker'!$B10,vldatabase,23,FALSE) -> 0.5 | J16: 0.07835 | K16: =VLOOKUP('Proxy Group Ticker'!$B10,vldatabase,28,FALSE) -> 70000 | L16: =IF(K16>'Size Premium'!$A$5,'Size Premium'!$B$5,IF(K16>'Size Premium'!$A$6,'Size Premium'!$B$6,IF(K16>'Size Premium'!$A$7,'Size Premium'!$B$7,IF(K16>'Size Premium'!$A$8,'Size Premium'!$B$8,IF(K16>'Size Premium'!$A$9,'Size Premium'!$B$9,IF(K16>'Size Premium'!$A$10,'Size Premium'!$B$10,IF(K16>'Size Premium'!$A$11,'Size Premium'!$B$11,IF(K16>'Size Premium'!$A$12,'Size Premium'!$B$12,"ERROR")))))))) -> -0.0028 | M16: 0.07555 | Q16: 0.07555
A17: 9 | B17: =VLOOKUP('Proxy Group Ticker'!$B11,vldatabase,2,FALSE) -> DTE Energy Co. | D17: ='2020 03 Market DCF'!$L$418 -> 0.0314 | E17: ='2020 03 Market DCF'!$U$419 -> 0.0933 | F17: 0.1247 | G17: =ROUND('Bond Yields'!$M$60,3) -> 0.032 | H17: 0.0927 | I17: =VLOOKUP('Proxy Group Ticker'!$B11,vldatabase,23,FALSE) -> 0.5 | J17: 0.07835 | K17: =VLOOKUP('Proxy Group Ticker'!$B11,vldatabase,28,FALSE) -> 22000 | L17: =IF(K17>'Size Premium'!$A$5,'Size Premium'!$B$5,IF(K17>'Size Premium'!$A$6,'Size Premium'!$B$6,IF(K17>'Size Premium'!$A$7,'Size Premium'!$B$7,IF(K17>'Size Premium'!$A$8,'Size Premium'!$B$8,IF(K17>'Size Premium'!$A$9,'Size Premium'!$B$9,IF(K17>'Size Premium'!$A$10,'Size Premium'!$B$10,IF(K17>'Size Premium'!$A$11,'Size Premium'!$B$11,IF(K17>'Size Premium'!$A$12,'Size Premium'!$B$12,"ERROR")))))))) -> 0.005 | M17: 0.08335 | Q17: 0.08335
A18: 10 | B18: =VLOOKUP('Proxy Group Ticker'!$B12,vldatabase,2,FALSE) -> Duke Energy Corp. | D18: ='2020 03 Market DCF'!$L$418 -> 0.0314 | E18: ='2020 03 Market DCF'!$U$419 -> 0.0933 | F18: 0.1247 | G18: =ROUND('Bond Yields'!$M$60,3) -> 0.032 | H18: 0.0927 | I18: =VLOOKUP('Proxy Group Ticker'!$B12,vldatabase,23,FALSE) -> 0.45 | J18: 0.073715 | K18: =VLOOKUP('Proxy Group Ticker'!$B12,vldatabase,28,FALSE) -> 70000 | L18: =IF(K18>'Size Premium'!$A$5,'Size Premium'!$B$5,IF(K18>'Size Premium'!$A$6,'Size Premium'!$B$6,IF(K18>'Size Premium'!$A$7,'Size Premium'!$B$7,IF(K18>'Size Premium'!$A$8,'Size Premium'!$B$8,IF(K18>'Size Premium'!$A$9,'Size Premium'!$B$9,IF(K18>'Size Premium'!$A$10,'Size Premium'!$B$10,IF(K18>'Size Premium'!$A$11,'Size Premium'!$B$11,IF(K18>'Size Premium'!$A$12,'Size Premium'!$B$12,"ERROR")))))))) -> -0.0028 | M18: 0.070915 | Q18: 0.070915
A19: 11 | B19: =VLOOKUP('Proxy Group Ticker'!$B13,vldatabase,2,FALSE) -> Entergy Corp. | D19: ='2020 03 Market DCF'!$L$418 -> 0.0314 | E19: ='2020 03 Market DCF'!$U$419 -> 0.0933 | F19: 0.1247 | G19: =ROUND('Bond Yields'!$M$60,3) -> 0.032 | H19: 0.0927 | I19: =VLOOKUP('Proxy Group Ticker'!$B13,vldatabase,23,FALSE) -> 0.6 | J19: 0.08762 | K19: =VLOOKUP('Proxy Group Ticker'!$B13,vldatabase,28,FALSE) -> 24000 | L19: =IF(K19>'Size Premium'!$A$5,'Size Premium'!$B$5,IF(K19>'Size Premium'!$A$6,'Size Premium'!$B$6,IF(K19>'Size Premium'!$A$7,'Size Premium'!$B$7,IF(K19>'Size Premium'!$A$8,'Size Premium'!$B$8,IF(K19>'Size Premium'!$A$9,'Size Premium'!$B$9,IF(K19>'Size Premium'!$A$10,'Size Premium'!$B$10,IF(K19>'Size Premium'!$A$11,'Size Premium'!$B$11,IF(K19>'Size Premium'!$A$12,'Size Premium'!$B$12,"ERROR")))))))) -> 0.005 | M19: 0.09262 | Q19: 0.09262
A20: 12 | B20: =VLOOKUP('Proxy Group Ticker'!$B14,vldatabase,2,FALSE) -> Evergy Inc. | D20: ='2020 03 Market DCF'!$L$418 -> 0.0314 | E20: ='2020 03 Market DCF'!$U$419 -> 0.0933 | F20: 0.1247 | G20: =ROUND('Bond Yields'!$M$60,3) -> 0.032 | H20: 0.0927 | I20: =VLOOKUP('Proxy Group Ticker'!$B14,vldatabase,23,FALSE) -> n/a | J20: n/a | K20: =VLOOKUP('Proxy Group Ticker'!$B14,vldatabase,28,FALSE) -> 16000 | L20: =IF(K20>'Size Premium'!$A$5,'Size Premium'!$B$5,IF(K20>'Size Premium'!$A$6,'Size Premium'!$B$6,IF(K20>'Size Premium'!$A$7,'Size Premium'!$B$7,IF(K20>'Size Premium'!$A$8,'Size Premium'!$B$8,IF(K20>'Size Premium'!$A$9,'Size Premium'!$B$9,IF(K20>'Size Premium'!$A$10,'Size Premium'!$B$10,IF(K20>'Size Premium'!$A$11,'Size Premium'!$B$11,IF(K20>'Size Premium'!$A$12,'Size Premium'!$B$12,"ERROR")))))))) -> 0.005 | M20: n/a | Q20: n/a
A21: 13 | B21: =VLOOKUP('Proxy Group Ticker'!$B15,vldatabase,2,FALSE) -> Eversource Energy | D21: ='2020 03 Market DCF'!$L$418 -> 0.0314 | E21: ='2020 03 Market DCF'!$U$419 -> 0.0933 | F21: 0.1247 | G21: =ROUND('Bond Yields'!$M$60,3) -> 0.032 | H21: 0.0927 | I21: =VLOOKUP('Proxy Group Ticker'!$B15,vldatabase,23,FALSE) -> 0.55 | J21: 0.082985 | K21: =VLOOKUP('Proxy Group Ticker'!$B15,vldatabase,28,FALSE) -> 29000 | L21: =IF(K21>'Size Premium'!$A$5,'Size Premium'!$B$5,IF(K21>'Size Premium'!$A$6,'Size Premium'!$B$6,IF(K21>'Size Premium'!$A$7,'Size Premium'!$B$7,IF(K21>'Size Premium'!$A$8,'Size Premium'!$B$8,IF(K21>'Size Premium'!$A$9,'Size Premium'!$B$9,IF(K21>'Size Premium'!$A$10,'Size Premium'!$B$10,IF(K21>'Size Premium'!$A$11,'Size Premium'!$B$11,IF(K21>'Size Premium'!$A$12,'Size Premium'!$B$12,"ERROR")))))))) -> 0.005 | M21: 0.087985 | Q21: 0.087985
A22: 14 | B22: =VLOOKUP('Proxy Group Ticker'!$B16,vldatabase,2,FALSE) -> Exelon Corp. | D22: ='2020 03 Market DCF'!$L$418 -> 0.0314 | E22: ='2020 03 Market DCF'!$U$419 -> 0.0933 | F22: 0.1247 | G22: =ROUND('Bond Yields'!$M$60,3) -> 0.032 | H22: 0.0927 | I22: =VLOOKUP('Proxy Group Ticker'!$B16,vldatabase,23,FALSE) -> 0.65 | J22: 0.092255 | K22: =VLOOKUP('Proxy Group Ticker'!$B16,vldatabase,28,FALSE) -> 47000 | L22: =IF(K22>'Size Premium'!$A$5,'Size Premium'!$B$5,IF(K22>'Size Premium'!$A$6,'Size Premium'!$B$6,IF(K22>'Size Premium'!$A$7,'Size Premium'!$B$7,IF(K22>'Size Premium'!$A$8,'Size Premium'!$B$8,IF(K22>'Size Premium'!$A$9,'Size Premium'!$B$9,IF(K22>'Size Premium'!$A$10,'Size Premium'!$B$10,IF(K22>'Size Premium'!$A$11,'Size Premium'!$B$11,IF(K22>'Size Premium'!$A$12,'Size Premium'!$B$12,"ERROR")))))))) -> -0.0028 | M22: 0.089455 | Q22: 0.089455
A23: 15 | B23: =VLOOKUP('Proxy Group Ticker'!$B17,vldatabase,2,FALSE) -> Fortis Inc. | D23: ='2020 03 Market DCF'!$L$418 -> 0.0314 | E23: ='2020 03 Market DCF'!$U$419 -> 0.0933 | F23: 0.1247 | G23: =ROUND('Bond Yields'!$M$60,3) -> 0.032 | H23: 0.0927 | I23: =VLOOKUP('Proxy Group Ticker'!$B17,vldatabase,23,FALSE) -> 0.6 | J23: 0.08762 | K23: =VLOOKUP('Proxy Group Ticker'!$B17,vldatabase,28,FALSE) -> 26000 | L23: =IF(K23>'Size Premium'!$A$5,'Size Premium'!$B$5,IF(K23>'Size Premium'!$A$6,'Size Premium'!$B$6,IF(K23>'Size Premium'!$A$7,'Size Premium'!$B$7,IF(K23>'Size Premium'!$A$8,'Size Premium'!$B$8,IF(K23>'Size Premium'!$A$9,'Size Premium'!$B$9,IF(K23>'Size Premium'!$A$10,'Size Premium'!$B$10,IF(K23>'Size Premium'!$A$11,'Size Premium'!$B$11,IF(K23>'Size Premium'!$A$12,'Size Premium'!$B$12,"ERROR")))))))) -> 0.005 | M23: 0.09262 | Q23: 0.09262
A24: 16 | B24: =VLOOKUP('Proxy Group Ticker'!$B18,vldatabase,2,FALSE) -> NextEra Energy, Inc. | D24: ='2020 03 Market DCF'!$L$418 -> 0.0314 | E24: ='2020 03 Market DCF'!$U$419 -> 0.0933 | F24: =D24+E24 -> 0.1247 | G24: =ROUND('Bond Yields'!$M$60,3) -> 0.032 | H24: =F24-G24 -> 0.0927 | I24: =VLOOKUP('Proxy Group Ticker'!$B18,vldatabase,23,FALSE) -> 0.5 | J24: =IF(I24="n/a","n/a",I24*H24+G24) -> 0.07835 | K24: =VLOOKUP('Proxy Group Ticker'!$B18,vldatabase,28,FALSE) -> 129000 | L24: =IF(K24>'Size Premium'!$A$5,'Size Premium'!$B$5,IF(K24>'Size Premium'!$A$6,'Size Premium'!$B$6,IF(K24>'Size Premium'!$A$7,'Size Premium'!$B$7,IF(K24>'Size Premium'!$A$8,'Size Premium'!$B$8,IF(K24>'Size Premium'!$A$9,'Size Premium'!$B$9,IF(K24>'Size Premium'!$A$10,'Size Premium'!$B$10,IF(K24>'Size Premium'!$A$11,'Size Premium'!$B$11,IF(K24>'Size Premium'!$A$12,'Size Premium'!$B$12,"ERROR")))))))) -> -0.0028 | M24: =IF(J24="n/a","n/a",(J24+L24)) -> 0.07555 | Q24: =IF(M24="n/a","n/a",IF(M24<$D$47,"LOW",IF(M24>$D$48,"HIGH",M24))) -> 0.07555
A25: 17 | B25: =VLOOKUP('Proxy Group Ticker'!$B19,vldatabase,2,FALSE) -> OGE Energy Corp. | D25: ='2020 03 Market DCF'!$L$418 -> 0.0314 | E25: ='2020 03 Market DCF'!$U$419 -> 0.0933 | F25: 0.1247 | G25: =ROUND('Bond Yields'!$M$60,3) -> 0.032 | H25: 0.0927 | I25: =VLOOKUP('Proxy Group Ticker'!$B19,vldatabase,23,FALSE) -> 0.7 | J25: 0.09689 | K25: =VLOOKUP('Proxy Group Ticker'!$B19,vldatabase,28,FALSE) -> 7700 | L25: =IF(K25>'Size Premium'!$A$5,'Size Premium'!$B$5,IF(K25>'Size Premium'!$A$6,'Size Premium'!$B$6,IF(K25>'Size Premium'!$A$7,'Size Premium'!$B$7,IF(K25>'Size Premium'!$A$8,'Size Premium'!$B$8,IF(K25>'Size Premium'!$A$9,'Size Premium'!$B$9,IF(K25>'Size Premium'!$A$10,'Size Premium'!$B$10,IF(K25>'Size Premium'!$A$11,'Size Premium'!$B$11,IF(K25>'Size Premium'!$A$12,'Size Premium'!$B$12,"ERROR")))))))) -> 0.0073 | M25: 0.10419 | Q25: 0.10419
A26: 18 | B26: =VLOOKUP('Proxy Group Ticker'!$B20,vldatabase,2,FALSE) -> PPL Corp. | D26: ='2020 03 Market DCF'!$L$418 -> 0.0314 | E26: ='2020 03 Market DCF'!$U$419 -> 0.0933 | F26: 0.1247 | G26: =ROUND('Bond Yields'!$M$60,3) -> 0.032 | H26: 0.0927 | I26: =VLOOKUP('Proxy Group Ticker'!$B20,vldatabase,23,FALSE) -> 0.65 | J26: 0.092255 | K26: =VLOOKUP('Proxy Group Ticker'!$B20,vldatabase,28,FALSE) -> 26000 | L26: =IF(K26>'Size Premium'!$A$5,'Size Premium'!$B$5,IF(K26>'Size Premium'!$A$6,'Size Premium'!$B$6,IF(K26>'Size Premium'!$A$7,'Size Premium'!$B$7,IF(K26>'Size Premium'!$A$8,'Size Premium'!$B$8,IF(K26>'Size Premium'!$A$9,'Size Premium'!$B$9,IF(K26>'Size Premium'!$A$10,'Size Premium'!$B$10,IF(K26>'Size Premium'!$A$11,'Size Premium'!$B$11,IF(K26>'Size Premium'!$A$12,'Size Premium'!$B$12,"ERROR")))))))) -> 0.005 | M26: 0.097255 | Q26: 0.097255
A27: 19 | B27: =VLOOKUP('Proxy Group Ticker'!$B21,vldatabase,2,FALSE) -> Pub Sv Enterprise Grp. | D27: ='2020 03 Market DCF'!$L$418 -> 0.0314 | E27: ='2020 03 Market DCF'!$U$419 -> 0.0933 | F27: 0.1247 | G27: =ROUND('Bond Yields'!$M$60,3) -> 0.032 | H27: 0.0927 | I27: =VLOOKUP('Proxy Group Ticker'!$B21,vldatabase,23,FALSE) -> 0.6 | J27: 0.08762 | K27: =VLOOKUP('Proxy Group Ticker'!$B21,vldatabase,28,FALSE) -> 30000 | L27: =IF(K27>'Size Premium'!$A$5,'Size Premium'!$B$5,IF(K27>'Size Premium'!$A$6,'Size Premium'!$B$6,IF(K27>'Size Premium'!$A$7,'Size Premium'!$B$7,IF(K27>'Size Premium'!$A$8,'Size Premium'!$B$8,IF(K27>'Size Premium'!$A$9,'Size Premium'!$B$9,IF(K27>'Size Premium'!$A$10,'Size Premium'!$B$10,IF(K27>'Size Premium'!$A$11,'Size Premium'!$B$11,IF(K27>'Size Premium'!$A$12,'Size Premium'!$B$12,"ERROR")))))))) -> 0.005 | M27: 0.09262 | Q27: 0.09262
A28: 20 | B28: =VLOOKUP('Proxy Group Ticker'!$B22,vldatabase,2,FALSE) -> Sempra Energy | D28: ='2020 03 Market DCF'!$L$418 -> 0.0314 | E28: ='2020 03 Market DCF'!$U$419 -> 0.0933 | F28: 0.1247 | G28: =ROUND('Bond Yields'!$M$60,3) -> 0.032 | H28: 0.0927 | I28: =VLOOKUP('Proxy Group Ticker'!$B22,vldatabase,23,FALSE) -> 0.65 | J28: 0.092255 | K28: =VLOOKUP('Proxy Group Ticker'!$B22,vldatabase,28,FALSE) -> 37000 | L28: =IF(K28>'Size Premium'!$A$5,'Size Premium'!$B$5,IF(K28>'Size Premium'!$A$6,'Size Premium'!$B$6,IF(K28>'Size Premium'!$A$7,'Size Premium'!$B$7,IF(K28>'Size Premium'!$A$8,'Size Premium'!$B$8,IF(K28>'Size Premium'!$A$9,'Size Premium'!$B$9,IF(K28>'Size Premium'!$A$10,'Size Premium'!$B$10,IF(K28>'Size Premium'!$A$11,'Size Premium'!$B$11,IF(K28>'Size Premium'!$A$12,'Size Premium'!$B$12,"ERROR")))))))) -> -0.0028 | M28: 0.089455 | Q28: 0.089455
A29: 21 | B29: =VLOOKUP('Proxy Group Ticker'!$B23,vldatabase,2,FALSE) -> Southern Company | D29: ='2020 03 Market DCF'!$L$418 -> 0.0314 | E29: ='2020 03 Market DCF'!$U$419 -> 0.0933 | F29: 0.1247 | G29: =ROUND('Bond Yields'!$M$60,3) -> 0.032 | H29: 0.0927 | I29: =VLOOKUP('Proxy Group Ticker'!$B23,vldatabase,23,FALSE) -> 0.5 | J29: 0.07835 | K29: =VLOOKUP('Proxy Group Ticker'!$B23,vldatabase,28,FALSE) -> 73000 | L29: =IF(K29>'Size Premium'!$A$5,'Size Premium'!$B$5,IF(K29>'Size Premium'!$A$6,'Size Premium'!$B$6,IF(K29>'Size Premium'!$A$7,'Size Premium'!$B$7,IF(K29>'Size Premium'!$A$8,'Size Premium'!$B$8,IF(K29>'Size Premium'!$A$9,'Size Premium'!$B$9,IF(K29>'Size Premium'!$A$10,'Size Premium'!$B$10,IF(K29>'Size Premium'!$A$11,'Size Premium'!$B$11,IF(K29>'Size Premium'!$A$12,'Size Premium'!$B$12,"ERROR")))))))) -> -0.0028 | M29: 0.07555 | Q29: 0.07555
A30: 22 | B30: =VLOOKUP('Proxy Group Ticker'!$B24,vldatabase,2,FALSE) -> WEC Energy Group | D30: ='2020 03 Market DCF'!$L$418 -> 0.0314 | E30: ='2020 03 Market DCF'!$U$419 -> 0.0933 | F30: 0.1247 | G30: =ROUND('Bond Yields'!$M$60,3) -> 0.032 | H30: 0.0927 | I30: =VLOOKUP('Proxy Group Ticker'!$B24,vldatabase,23,FALSE) -> 0.45 | J30: 0.073715 | K30: =VLOOKUP('Proxy Group Ticker'!$B24,vldatabase,28,FALSE) -> 31000 | L30: =IF(K30>'Size Premium'!$A$5,'Size Premium'!$B$5,IF(K30>'Size Premium'!$A$6,'Size Premium'!$B$6,IF(K30>'Size Premium'!$A$7,'Size Premium'!$B$7,IF(K30>'Size Premium'!$A$8,'Size Premium'!$B$8,IF(K30>'Size Premium'!$A$9,'Size Premium'!$B$9,IF(K30>'Size Premium'!$A$10,'Size Premium'!$B$10,IF(K30>'Size Premium'!$A$11,'Size Premium'!$B$11,IF(K30>'Size Premium'!$A$12,'Size Premium'!$B$12,"ERROR")))))))) -> 0.005 | M30: 0.078715 | Q30: 0.078715
A31: 23 | B31: =VLOOKUP('Proxy Group Ticker'!$B25,vldatabase,2,FALSE) -> Xcel Energy Inc. | D31: ='2020 03 Market DCF'!$L$418 -> 0.0314 | E31: ='2020 03 Market DCF'!$U$419 -> 0.0933 | F31: 0.1247 | G31: =ROUND('Bond Yields'!$M$60,3) -> 0.032 | H31: 0.0927 | I31: =VLOOKUP('Proxy Group Ticker'!$B25,vldatabase,23,FALSE) -> 0.45 | J31: 0.073715 | K31: =VLOOKUP('Proxy Group Ticker'!$B25,vldatabase,28,FALSE) -> 33000 | L31: =IF(K31>'Size Premium'!$A$5,'Size Premium'!$B$5,IF(K31>'Size Premium'!$A$6,'Size Premium'!$B$6,IF(K31>'Size Premium'!$A$7,'Size Premium'!$B$7,IF(K31>'Size Premium'!$A$8,'Size Premium'!$B$8,IF(K31>'Size Premium'!$A$9,'Size Premium'!$B$9,IF(K31>'Size Premium'!$A$10,'Size Premium'!$B$10,IF(K31>'Size Premium'!$A$11,'Size Premium'!$B$11,IF(K31>'Size Premium'!$A$12,'Size Premium'!$B$12,"ERROR")))))))) -> -0.0028 | M31: 0.070915 | Q31: 0.070915
P32: Max | Q32: =MAX(Q9:Q31) -> 0.10419
B33: Average (f) | M33: =AVERAGE(Q9:Q31) -> 0.0844725 | P33: Min | Q33: =MIN(Q9:Q31) -> 0.070915
B34: Midpoint (f) (g) | M34: =AVERAGE(Q33:Q34) -> 0.0875525 | P34: Max | Q34: =MAX(Q9:Q31) -> 0.10419
A36: (a) | B36: ="Weighted average for dividend-paying stocks in the S&P 500 based on data from "&'2020 03 Market DCF'!B425&"." -> Weighted average for dividend-paying stocks in the S&P 500 based on data from www.valueline.com (retrieved Mar. 27, 2020).
A37: (b) | B37: ="Average of weighted average earnings growth rates from IBES, Value Line, and Zacks for dividend-paying stocks in the S&P 500 based on data from "&'2020 03 Market DCF'!B426&", "&'2020 03 Market DCF'!B425&", and "&'2020 03 Market DCF'!B428&"." -> Average of weighted average earnings growth rates from IBES, Value Line, and Zacks for dividend-paying stocks in the S&P 500 based on data from http://finance.yahoo.com (retrieved Mar. 27, 2020), www.valueline.com (retrieved Mar. 27, 2020), and www.zacks.com (retrieved Mar. 27, 2020).
A39: (c) | B39: ="Average yield on 30-year Treasury bonds for "&'Bond Yields'!M50&" based on data from the "&'Bond Yields'!B72&"; "&'Bond Yields'!B73&"; & "&'Bond Yields'!B75&"." -> Average yield on 30-year Treasury bonds for 2021-25 based on data from the Value Line Investment Survey, Forecast for the U.S. Economy (Feb. 28, 2020); IHS Markit, Long-Term Macro Forecast - Baseline (Apr. 8, 2020); & Wolters Kluwer, Blue Chip Financial Forecasts (Dec. 1, 2019).
A41: (d) | B41: ='Electric Utility Data'!B51 -> The Value Line Investment Survey (Feb. 14, Mar. 13 and Apr. 24, 2020).
A42: (e) | B42: ='Size Premium'!A18 -> Duff & Phelps, 2020 CRSP Deciles Size Study -- Supplementary Data Exhibits, Cost of Capital Navigator.
A43: (f) | B43: Excludes highlighted figures.
A44: (g) | B44: Average of low and high values.
A47: Threshold Min | D47: ='4 (3)'!D40 -> 0.065
A48: Threshold Max | D48: ='4 (3)'!D41 -> 0.15

Sheet 7 (1)
A1: ='Exhibit List'!C12 -> EMPIRICAL CAPM - CURRENT BOND YIELD | S1: ='Exhibit List'!B12 -> Exhibit AMM-7
S2: Page 1 of 2
A3: ='Exhibit List'!D12 -> ELECTRIC GROUP
D6: (a) | E6: (b) | G6: (c) | I6: (d) | K6: (e) | L6: (d) | P6: (e) | Q6: (f)
D7: Market Return (Rm)
D8: Div | E8: Proj. | F8: Cost of | G8: Risk-Free | H8: Risk | I8: Unadjusted RP | K8: Beta Adjusted RP | O8: Unadjusted | P8: Market | Q8: Size | R8: ECAPM
B9: Company | D9: Yield | E9: Growth | F9: Equity | G9: Rate | H9: Premium | I9: Weight | J9: RP1 | K9: Beta | L9: Weight | M9: RP2 | N9: Total RP | O9: Ke | P9: Cap | Q9: Adjustment | R9: Result
A10: =A9+1 -> 1 | B10: ='6 (1)'!B9 -> Alliant Energy | D10: ='2020 03 Market DCF'!$L$418 -> 0.0314 | E10: ='2020 03 Market DCF'!$U$419 -> 0.0933 | F10: =D10+E10 -> 0.1247 | G10: =ROUND('Bond Yields'!$K$16,3) -> 0.019 | H10: =F10-G10 -> 0.1057 | I10: 0.25 | J10: =I10*H10 -> 0.026425 | K10: ='6 (1)'!I9 -> 0.55 | L10: 0.75 | M10: =IF(K10="n/a","n/a",H10*K10*L10) -> 0.04360125 | N10: =IF(K10="n/a","n/a",J10+M10) -> 0.07002625 | O10: =IF(K10="n/a","n/a",N10+G10) -> 0.08902625 | P10: ='6 (1)'!K9 -> 13400 | Q10: =IF(P10>'Size Premium'!$A$5,'Size Premium'!$B$5,IF(P10>'Size Premium'!$A$6,'Size Premium'!$B$6,IF(P10>'Size Premium'!$A$7,'Size Premium'!$B$7,IF(P10>'Size Premium'!$A$8,'Size Premium'!$B$8,IF(P10>'Size Premium'!$A$9,'Size Premium'!$B$9,IF(P10>'Size Premium'!$A$10,'Size Premium'!$B$10,IF(P10>'Size Premium'!$A$11,'Size Premium'!$B$11,IF(P10>'Size Premium'!$A$12,'Size Premium'!$B$12,"ERROR")))))))) -> 0.005 | R10: =IF(K10="n/a","n/a",O10+Q10) -> 0.09402625 | V10: =IF(R10="n/a","n/a",IF(R10<$E$47,"LOW",IF(R10>$E$48,"HIGH",R10))) -> 0.09402625
A11: =A10+1 -> 2 | B11: ='6 (1)'!B10 -> Ameren Corp. | D11: ='2020 03 Market DCF'!$L$418 -> 0.0314 | E11: ='2020 03 Market DCF'!$U$419 -> 0.0933 | F11: =D11+E11 -> 0.1247 | G11: =ROUND('Bond Yields'!$K$16,3) -> 0.019 | H11: =F11-G11 -> 0.1057 | I11: 0.25 | J11: =I11*H11 -> 0.026425 | K11: ='6 (1)'!I10 -> 0.5 | L11: 0.75 | M11: =IF(K11="n/a","n/a",H11*K11*L11) -> 0.0396375 | N11: =IF(K11="n/a","n/a",J11+M11) -> 0.0660625 | O11: =IF(K11="n/a","n/a",N11+G11) -> 0.0850625 | P11: ='6 (1)'!K10 -> 20000 | Q11: =IF(P11>'Size Premium'!$A$5,'Size Premium'!$B$5,IF(P11>'Size Premium'!$A$6,'Size Premium'!$B$6,IF(P11>'Size Premium'!$A$7,'Size Premium'!$B$7,IF(P11>'Size Premium'!$A$8,'Size Premium'!$B$8,IF(P11>'Size Premium'!$A$9,'Size Premium'!$B$9,IF(P11>'Size Premium'!$A$10,'Size Premium'!$B$10,IF(P11>'Size Premium'!$A$11,'Size Premium'!$B$11,IF(P11>'Size Premium'!$A$12,'Size Premium'!$B$12,"ERROR")))))))) -> 0.005 | R11: =IF(K11="n/a","n/a",O11+Q11) -> 0.0900625 | V11: 0.0900625
A12: 3 | B12: ='6 (1)'!B11 -> American Elec Pwr | D12: ='2020 03 Market DCF'!$L$418 -> 0.0314 | E12: ='2020 03 Market DCF'!$U$419 -> 0.0933 | F12: 0.1247 | G12: =ROUND('Bond Yields'!$K$16,3) -> 0.019 | H12: 0.1057 | I12: 0.25 | J12: 0.026425 | K12: ='6 (1)'!I11 -> 0.5 | L12: 0.75 | M12: 0.0396375 | N12: 0.0660625 | O12: 0.0850625 | P12: ='6 (1)'!K11 -> 47000 | Q12: =IF(P12>'Size Premium'!$A$5,'Size Premium'!$B$5,IF(P12>'Size Premium'!$A$6,'Size Premium'!$B$6,IF(P12>'Size Premium'!$A$7,'Size Premium'!$B$7,IF(P12>'Size Premium'!$A$8,'Size Premium'!$B$8,IF(P12>'Size Premium'!$A$9,'Size Premium'!$B$9,IF(P12>'Size Premium'!$A$10,'Size Premium'!$B$10,IF(P12>'Size Premium'!$A$11,'Size Premium'!$B$11,IF(P12>'Size Premium'!$A$12,'Size Premium'!$B$12,"ERROR")))))))) -> -0.0028 | R12: 0.0822625 | V12: 0.0822625
A13: 4 | B13: ='6 (1)'!B12 -> Avangrid, Inc. | D13: ='2020 03 Market DCF'!$L$418 -> 0.0314 | E13: ='2020 03 Market DCF'!$U$419 -> 0.0933 | F13: 0.1247 | G13: =ROUND('Bond Yields'!$K$16,3) -> 0.019 | H13: 0.1057 | I13: 0.25 | J13: 0.026425 | K13: ='6 (1)'!I12 -> 0.4 | L13: 0.75 | M13: 0.03171 | N13: 0.058135 | O13: 0.077135 | P13: ='6 (1)'!K12 -> 16000 | Q13: =IF(P13>'Size Premium'!$A$5,'Size Premium'!$B$5,IF(P13>'Size Premium'!$A$6,'Size Premium'!$B$6,IF(P13>'Size Premium'!$A$7,'Size Premium'!$B$7,IF(P13>'Size Premium'!$A$8,'Size Premium'!$B$8,IF(P13>'Size Premium'!$A$9,'Size Premium'!$B$9,IF(P13>'Size Premium'!$A$10,'Size Premium'!$B$10,IF(P13>'Size Premium'!$A$11,'Size Premium'!$B$11,IF(P13>'Size Premium'!$A$12,'Size Premium'!$B$12,"ERROR")))))))) -> 0.005 | R13: 0.082135 | V13: 0.082135
A14: 5 | B14: ='6 (1)'!B13 -> Black Hills Corp. | D14: ='2020 03 Market DCF'!$L$418 -> 0.0314 | E14: ='2020 03 Market DCF'!$U$419 -> 0.0933 | F14: 0.1247 | G14: =ROUND('Bond Yields'!$K$16,3) -> 0.019 | H14: 0.1057 | I14: 0.25 | J14: 0.026425 | K14: ='6 (1)'!I13 -> 0.65 | L14: 0.75 | M14: 0.05152875 | N14: 0.07795375 | O14: 0.09695375 | P14: ='6 (1)'!K13 -> 4200 | Q14: =IF(P14>'Size Premium'!$A$5,'Size Premium'!$B$5,IF(P14>'Size Premium'!$A$6,'Size Premium'!$B$6,IF(P14>'Size Premium'!$A$7,'Size Premium'!$B$7,IF(P14>'Size Premium'!$A$8,'Size Premium'!$B$8,IF(P14>'Size Premium'!$A$9,'Size Premium'!$B$9,IF(P14>'Size Premium'!$A$10,'Size Premium'!$B$10,IF(P14>'Size Premium'!$A$11,'Size Premium'!$B$11,IF(P14>'Size Premium'!$A$12,'Size Premium'!$B$12,"ERROR")))))))) -> 0.011 | R14: 0.10795375 | V14: 0.10795375
A15: 6 | B15: ='6 (1)'!B14 -> CMS Energy Corp. | D15: ='2020 03 Market DCF'!$L$418 -> 0.0314 | E15: ='2020 03 Market DCF'!$U$419 -> 0.0933 | F15: 0.1247 | G15: =ROUND('Bond Yields'!$K$16,3) -> 0.019 | H15: 0.1057 | I15: 0.25 | J15: 0.026425 | K15: ='6 (1)'!I14 -> 0.5 | L15: 0.75 | M15: 0.0396375 | N15: 0.0660625 | O15: 0.0850625 | P15: ='6 (1)'!K14 -> 18000 | Q15: =IF(P15>'Size Premium'!$A$5,'Size Premium'!$B$5,IF(P15>'Size Premium'!$A$6,'Size Premium'!$B$6,IF(P15>'Size Premium'!$A$7,'Size Premium'!$B$7,IF(P15>'Size Premium'!$A$8,'Size Premium'!$B$8,IF(P15>'Size Premium'!$A$9,'Size Premium'!$B$9,IF(P15>'Size Premium'!$A$10,'Size Premium'!$B$10,IF(P15>'Size Premium'!$A$11,'Size Premium'!$B$11,IF(P15>'Size Premium'!$A$12,'Size Premium'!$B$12,"ERROR")))))))) -> 0.005 | R15: 0.0900625 | V15: 0.0900625
A16: 7 | B16: ='6 (1)'!B15 -> Consolidated Edison | D16: ='2020 03 Market DCF'!$L$418 -> 0.0314 | E16: ='2020 03 Market DCF'!$U$419 -> 0.0933 | F16: 0.1247 | G16: =ROUND('Bond Yields'!$K$16,3) -> 0.019 | H16: 0.1057 | I16: 0.25 | J16: 0.026425 | K16: ='6 (1)'!I15 -> 0.4 | L16: 0.75 | M16: 0.03171 | N16: 0.058135 | O16: 0.077135 | P16: ='6 (1)'!K15 -> 31000 | Q16: =IF(P16>'Size Premium'!$A$5,'Size Premium'!$B$5,IF(P16>'Size Premium'!$A$6,'Size Premium'!$B$6,IF(P16>'Size Premium'!$A$7,'Size Premium'!$B$7,IF(P16>'Size Premium'!$A$8,'Size Premium'!$B$8,IF(P16>'Size Premium'!$A$9,'Size Premium'!$B$9,IF(P16>'Size Premium'!$A$10,'Size Premium'!$B$10,IF(P16>'Size Premium'!$A$11,'Size Premium'!$B$11,IF(P16>'Size Premium'!$A$12,'Size Premium'!$B$12,"ERROR")))))))) -> 0.005 | R16: 0.082135 | V16: 0.082135
A17: 8 | B17: ='6 (1)'!B16 -> Dominion Energy | D17: ='2020 03 Market DCF'!$L$418 -> 0.0314 | E17: ='2020 03 Market DCF'!$U$419 -> 0.0933 | F17: 0.1247 | G17: =ROUND('Bond Yields'!$K$16,3) -> 0.019 | H17: 0.1057 | I17: 0.25 | J17: 0.026425 | K17: ='6 (1)'!I16 -> 0.5 | L17: 0.75 | M17: 0.0396375 | N17: 0.0660625 | O17: 0.0850625 | P17: ='6 (1)'!K16 -> 70000 | Q17: =IF(P17>'Size Premium'!$A$5,'Size Premium'!$B$5,IF(P17>'Size Premium'!$A$6,'Size Premium'!$B$6,IF(P17>'Size Premium'!$A$7,'Size Premium'!$B$7,IF(P17>'Size Premium'!$A$8,'Size Premium'!$B$8,IF(P17>'Size Premium'!$A$9,'Size Premium'!$B$9,IF(P17>'Size Premium'!$A$10,'Size Premium'!$B$10,IF(P17>'Size Premium'!$A$11,'Size Premium'!$B$11,IF(P17>'Size Premium'!$A$12,'Size Premium'!$B$12,"ERROR")))))))) -> -0.0028 | R17: 0.0822625 | V17: 0.0822625
A18: 9 | B18: ='6 (1)'!B17 -> DTE Energy Co. | D18: ='2020 03 Market DCF'!$L$418 -> 0.0314 | E18: ='2020 03 Market DCF'!$U$419 -> 0.0933 | F18: 0.1247 | G18: =ROUND('Bond Yields'!$K$16,3) -> 0.019 | H18: 0.1057 | I18: 0.25 | J18: 0.026425 | K18: ='6 (1)'!I17 -> 0.5 | L18: 0.75 | M18: 0.0396375 | N18: 0.0660625 | O18: 0.0850625 | P18: ='6 (1)'!K17 -> 22000 | Q18: =IF(P18>'Size Premium'!$A$5,'Size Premium'!$B$5,IF(P18>'Size Premium'!$A$6,'Size Premium'!$B$6,IF(P18>'Size Premium'!$A$7,'Size Premium'!$B$7,IF(P18>'Size Premium'!$A$8,'Size Premium'!$B$8,IF(P18>'Size Premium'!$A$9,'Size Premium'!$B$9,IF(P18>'Size Premium'!$A$10,'Size Premium'!$B$10,IF(P18>'Size Premium'!$A$11,'Size Premium'!$B$11,IF(P18>'Size Premium'!$A$12,'Size Premium'!$B$12,"ERROR")))))))) -> 0.005 | R18: 0.0900625 | V18: 0.0900625
A19: 10 | B19: ='6 (1)'!B18 -> Duke Energy Corp. | D19: ='2020 03 Market DCF'!$L$418 -> 0.0314 | E19: ='2020 03 Market DCF'!$U$419 -> 0.0933 | F19: 0.1247 | G19: =ROUND('Bond Yields'!$K$16,3) -> 0.019 | H19: 0.1057 | I19: 0.25 | J19: 0.026425 | K19: ='6 (1)'!I18 -> 0.45 | L19: 0.75 | M19: 0.03567375 | N19: 0.06209875 | O19: 0.08109875 | P19: ='6 (1)'!K18 -> 70000 | Q19: =IF(P19>'Size Premium'!$A$5,'Size Premium'!$B$5,IF(P19>'Size Premium'!$A$6,'Size Premium'!$B$6,IF(P19>'Size Premium'!$A$7,'Size Premium'!$B$7,IF(P19>'Size Premium'!$A$8,'Size Premium'!$B$8,IF(P19>'Size Premium'!$A$9,'Size Premium'!$B$9,IF(P19>'Size Premium'!$A$10,'Size Premium'!$B$10,IF(P19>'Size Premium'!$A$11,'Size Premium'!$B$11,IF(P19>'Size Premium'!$A$12,'Size Premium'!$B$12,"ERROR")))))))) -> -0.0028 | R19: 0.07829875 | V19: 0.07829875
A20: 11 | B20: ='6 (1)'!B19 -> Entergy Corp. | D20: ='2020 03 Market DCF'!$L$418 -> 0.0314 | E20: ='2020 03 Market DCF'!$U$419 -> 0.0933 | F20: 0.1247 | G20: =ROUND('Bond Yields'!$K$16,3) -> 0.019 | H20: 0.1057 | I20: 0.25 | J20: 0.026425 | K20: ='6 (1)'!I19 -> 0.6 | L20: 0.75 | M20: 0.047565 | N20: 0.07399 | O20: 0.09299 | P20: ='6 (1)'!K19 -> 24000 | Q20: =IF(P20>'Size Premium'!$A$5,'Size Premium'!$B$5,IF(P20>'Size Premium'!$A$6,'Size Premium'!$B$6,IF(P20>'Size Premium'!$A$7,'Size Premium'!$B$7,IF(P20>'Size Premium'!$A$8,'Size Premium'!$B$8,IF(P20>'Size Premium'!$A$9,'Size Premium'!$B$9,IF(P20>'Size Premium'!$A$10,'Size Premium'!$B$10,IF(P20>'Size Premium'!$A$11,'Size Premium'!$B$11,IF(P20>'Size Premium'!$A$12,'Size Premium'!$B$12,"ERROR")))))))) -> 0.005 | R20: 0.09799 | V20: 0.09799
A21: 12 | B21: ='6 (1)'!B20 -> Evergy Inc. | D21: ='2020 03 Market DCF'!$L$418 -> 0.0314 | E21: ='2020 03 Market DCF'!$U$419 -> 0.0933 | F21: 0.1247 | G21: =ROUND('Bond Yields'!$K$16,3) -> 0.019 | H21: 0.1057 | I21: 0.25 | J21: 0.026425 | K21: ='6 (1)'!I20 -> n/a | L21: 0.75 | M21: n/a | N21: n/a | O21: n/a | P21: ='6 (1)'!K20 -> 16000 | Q21: =IF(P21>'Size Premium'!$A$5,'Size Premium'!$B$5,IF(P21>'Size Premium'!$A$6,'Size Premium'!$B$6,IF(P21>'Size Premium'!$A$7,'Size Premium'!$B$7,IF(P21>'Size Premium'!$A$8,'Size Premium'!$B$8,IF(P21>'Size Premium'!$A$9,'Size Premium'!$B$9,IF(P21>'Size Premium'!$A$10,'Size Premium'!$B$10,IF(P21>'Size Premium'!$A$11,'Size Premium'!$B$11,IF(P21>'Size Premium'!$A$12,'Size Premium'!$B$12,"ERROR")))))))) -> 0.005 | R21: n/a | V21: n/a
A22: 13 | B22: ='6 (1)'!B21 -> Eversource Energy | D22: ='2020 03 Market DCF'!$L$418 -> 0.0314 | E22: ='2020 03 Market DCF'!$U$419 -> 0.0933 | F22: 0.1247 | G22: =ROUND('Bond Yields'!$K$16,3) -> 0.019 | H22: 0.1057 | I22: 0.25 | J22: 0.026425 | K22: ='6 (1)'!I21 -> 0.55 | L22: 0.75 | M22: 0.04360125 | N22: 0.07002625 | O22: 0.08902625 | P22: ='6 (1)'!K21 -> 29000 | Q22: =IF(P22>'Size Premium'!$A$5,'Size Premium'!$B$5,IF(P22>'Size Premium'!$A$6,'Size Premium'!$B$6,IF(P22>'Size Premium'!$A$7,'Size Premium'!$B$7,IF(P22>'Size Premium'!$A$8,'Size Premium'!$B$8,IF(P22>'Size Premium'!$A$9,'Size Premium'!$B$9,IF(P22>'Size Premium'!$A$10,'Size Premium'!$B$10,IF(P22>'Size Premium'!$A$11,'Size Premium'!$B$11,IF(P22>'Size Premium'!$A$12,'Size Premium'!$B$12,"ERROR")))))))) -> 0.005 | R22: 0.09402625 | V22: 0.09402625
A23: 14 | B23: ='6 (1)'!B22 -> Exelon Corp. | D23: ='2020 03 Market DCF'!$L$418 -> 0.0314 | E23: ='2020 03 Market DCF'!$U$419 -> 0.0933 | F23: 0.1247 | G23: =ROUND('Bond Yields'!$K$16,3) -> 0.019 | H23: 0.1057 | I23: 0.25 | J23: 0.026425 | K23: ='6 (1)'!I22 -> 0.65 | L23: 0.75 | M23: 0.05152875 | N23: 0.07795375 | O23: 0.09695375 | P23: ='6 (1)'!K22 -> 47000 | Q23: =IF(P23>'Size Premium'!$A$5,'Size Premium'!$B$5,IF(P23>'Size Premium'!$A$6,'Size Premium'!$B$6,IF(P23>'Size Premium'!$A$7,'Size Premium'!$B$7,IF(P23>'Size Premium'!$A$8,'Size Premium'!$B$8,IF(P23>'Size Premium'!$A$9,'Size Premium'!$B$9,IF(P23>'Size Premium'!$A$10,'Size Premium'!$B$10,IF(P23>'Size Premium'!$A$11,'Size Premium'!$B$11,IF(P23>'Size Premium'!$A$12,'Size Premium'!$B$12,"ERROR")))))))) -> -0.0028 | R23: 0.09415375 | V23: 0.09415375
A24: 15 | B24: ='6 (1)'!B23 -> Fortis Inc. | D24: ='2020 03 Market DCF'!$L$418 -> 0.0314 | E24: ='2020 03 Market DCF'!$U$419 -> 0.0933 | F24: 0.1247 | G24: =ROUND('Bond Yields'!$K$16,3) -> 0.019 | H24: 0.1057 | I24: 0.25 | J24: 0.026425 | K24: ='6 (1)'!I23 -> 0.6 | L24: 0.75 | M24: 0.047565 | N24: 0.07399 | O24: 0.09299 | P24: ='6 (1)'!K23 -> 26000 | Q24: =IF(P24>'Size Premium'!$A$5,'Size Premium'!$B$5,IF(P24>'Size Premium'!$A$6,'Size Premium'!$B$6,IF(P24>'Size Premium'!$A$7,'Size Premium'!$B$7,IF(P24>'Size Premium'!$A$8,'Size Premium'!$B$8,IF(P24>'Size Premium'!$A$9,'Size Premium'!$B$9,IF(P24>'Size Premium'!$A$10,'Size Premium'!$B$10,IF(P24>'Size Premium'!$A$11,'Size Premium'!$B$11,IF(P24>'Size Premium'!$A$12,'Size Premium'!$B$12,"ERROR")))))))) -> 0.005 | R24: 0.09799 | V24: 0.09799
A25: 16 | B25: ='6 (1)'!B24 -> NextEra Energy, Inc. | D25: ='2020 03 Market DCF'!$L$418 -> 0.0314 | E25: ='2020 03 Market DCF'!$U$419 -> 0.0933 | F25: =D25+E25 -> 0.1247 | G25: =ROUND('Bond Yields'!$K$16,3) -> 0.019 | H25: =F25-G25 -> 0.1057 | I25: 0.25 | J25: =I25*H25 -> 0.026425 | K25: ='6 (1)'!I24 -> 0.5 | L25: 0.75 | M25: =IF(K25="n/a","n/a",H25*K25*L25) -> 0.0396375 | N25: =IF(K25="n/a","n/a",J25+M25) -> 0.0660625 | O25: =IF(K25="n/a","n/a",N25+G25) -> 0.0850625 | P25: ='6 (1)'!K24 -> 129000 | Q25: =IF(P25>'Size Premium'!$A$5,'Size Premium'!$B$5,IF(P25>'Size Premium'!$A$6,'Size Premium'!$B$6,IF(P25>'Size Premium'!$A$7,'Size Premium'!$B$7,IF(P25>'Size Premium'!$A$8,'Size Premium'!$B$8,IF(P25>'Size Premium'!$A$9,'Size Premium'!$B$9,IF(P25>'Size Premium'!$A$10,'Size Premium'!$B$10,IF(P25>'Size Premium'!$A$11,'Size Premium'!$B$11,IF(P25>'Size Premium'!$A$12,'Size Premium'!$B$12,"ERROR")))))))) -> -0.0028 | R25: =IF(K25="n/a","n/a",O25+Q25) -> 0.0822625 | V25: =IF(R25="n/a","n/a",IF(R25<$E$47,"LOW",IF(R25>$E$48,"HIGH",R25))) -> 0.0822625
A26: 17 | B26: ='6 (1)'!B25 -> OGE Energy Corp. | D26: ='2020 03 Market DCF'!$L$418 -> 0.0314 | E26: ='2020 03 Market DCF'!$U$419 -> 0.0933 | F26: 0.1247 | G26: =ROUND('Bond Yields'!$K$16,3) -> 0.019 | H26: 0.1057 | I26: 0.25 | J26: 0.026425 | K26: ='6 (1)'!I25 -> 0.7 | L26: 0.75 | M26: 0.0554925 | N26: 0.0819175 | O26: 0.1009175 | P26: ='6 (1)'!K25 -> 7700 | Q26: =IF(P26>'Size Premium'!$A$5,'Size Premium'!$B$5,IF(P26>'Size Premium'!$A$6,'Size Premium'!$B$6,IF(P26>'Size Premium'!$A$7,'Size Premium'!$B$7,IF(P26>'Size Premium'!$A$8,'Size Premium'!$B$8,IF(P26>'Size Premium'!$A$9,'Size Premium'!$B$9,IF(P26>'Size Premium'!$A$10,'Size Premium'!$B$10,IF(P26>'Size Premium'!$A$11,'Size Premium'!$B$11,IF(P26>'Size Premium'!$A$12,'Size Premium'!$B$12,"ERROR")))))))) -> 0.0073 | R26: 0.1082175 | V26: 0.1082175
A27: 18 | B27: ='6 (1)'!B26 -> PPL Corp. | D27: ='2020 03 Market DCF'!$L$418 -> 0.0314 | E27: ='2020 03 Market DCF'!$U$419 -> 0.0933 | F27: 0.1247 | G27: =ROUND('Bond Yields'!$K$16,3) -> 0.019 | H27: 0.1057 | I27: 0.25 | J27: 0.026425 | K27: ='6 (1)'!I26 -> 0.65 | L27: 0.75 | M27: 0.05152875 | N27: 0.07795375 | O27: 0.09695375 | P27: ='6 (1)'!K26 -> 26000 | Q27: =IF(P27>'Size Premium'!$A$5,'Size Premium'!$B$5,IF(P27>'Size Premium'!$A$6,'Size Premium'!$B$6,IF(P27>'Size Premium'!$A$7,'Size Premium'!$B$7,IF(P27>'Size Premium'!$A$8,'Size Premium'!$B$8,IF(P27>'Size Premium'!$A$9,'Size Premium'!$B$9,IF(P27>'Size Premium'!$A$10,'Size Premium'!$B$10,IF(P27>'Size Premium'!$A$11,'Size Premium'!$B$11,IF(P27>'Size Premium'!$A$12,'Size Premium'!$B$12,"ERROR")))))))) -> 0.005 | R27: 0.10195375 | V27: 0.10195375
A28: 19 | B28: ='6 (1)'!B27 -> Pub Sv Enterprise Grp. | D28: ='2020 03 Market DCF'!$L$418 -> 0.0314 | E28: ='2020 03 Market DCF'!$U$419 -> 0.0933 | F28: 0.1247 | G28: =ROUND('Bond Yields'!$K$16,3) -> 0.019 | H28: 0.1057 | I28: 0.25 | J28: 0.026425 | K28: ='6 (1)'!I27 -> 0.6 | L28: 0.75 | M28: 0.047565 | N28: 0.07399 | O28: 0.09299 | P28: ='6 (1)'!K27 -> 30000 | Q28: =IF(P28>'Size Premium'!$A$5,'Size Premium'!$B$5,IF(P28>'Size Premium'!$A$6,'Size Premium'!$B$6,IF(P28>'Size Premium'!$A$7,'Size Premium'!$B$7,IF(P28>'Size Premium'!$A$8,'Size Premium'!$B$8,IF(P28>'Size Premium'!$A$9,'Size Premium'!$B$9,IF(P28>'Size Premium'!$A$10,'Size Premium'!$B$10,IF(P28>'Size Premium'!$A$11,'Size Premium'!$B$11,IF(P28>'Size Premium'!$A$12,'Size Premium'!$B$12,"ERROR")))))))) -> 0.005 | R28: 0.09799 | V28: 0.09799
A29: 20 | B29: ='6 (1)'!B28 -> Sempra Energy | D29: ='2020 03 Market DCF'!$L$418 -> 0.0314 | E29: ='2020 03 Market DCF'!$U$419 -> 0.0933 | F29: 0.1247 | G29: =ROUND('Bond Yields'!$K$16,3) -> 0.019 | H29: 0.1057 | I29: 0.25 | J29: 0.026425 | K29: ='6 (1)'!I28 -> 0.65 | L29: 0.75 | M29: 0.05152875 | N29: 0.07795375 | O29: 0.09695375 | P29: ='6 (1)'!K28 -> 37000 | Q29: =IF(P29>'Size Premium'!$A$5,'Size Premium'!$B$5,IF(P29>'Size Premium'!$A$6,'Size Premium'!$B$6,IF(P29>'Size Premium'!$A$7,'Size Premium'!$B$7,IF(P29>'Size Premium'!$A$8,'Size Premium'!$B$8,IF(P29>'Size Premium'!$A$9,'Size Premium'!$B$9,IF(P29>'Size Premium'!$A$10,'Size Premium'!$B$10,IF(P29>'Size Premium'!$A$11,'Size Premium'!$B$11,IF(P29>'Size Premium'!$A$12,'Size Premium'!$B$12,"ERROR")))))))) -> -0.0028 | R29: 0.09415375 | V29: 0.09415375
A30: 21 | B30: ='6 (1)'!B29 -> Southern Company | D30: ='2020 03 Market DCF'!$L$418 -> 0.0314 | E30: ='2020 03 Market DCF'!$U$419 -> 0.0933 | F30: 0.1247 | G30: =ROUND('Bond Yields'!$K$16,3) -> 0.019 | H30: 0.1057 | I30: 0.25 | J30: 0.026425 | K30: ='6 (1)'!I29 -> 0.5 | L30: 0.75 | M30: 0.0396375 | N30: 0.0660625 | O30: 0.0850625 | P30: ='6 (1)'!K29 -> 73000 | Q30: =IF(P30>'Size Premium'!$A$5,'Size Premium'!$B$5,IF(P30>'Size Premium'!$A$6,'Size Premium'!$B$6,IF(P30>'Size Premium'!$A$7,'Size Premium'!$B$7,IF(P30>'Size Premium'!$A$8,'Size Premium'!$B$8,IF(P30>'Size Premium'!$A$9,'Size Premium'!$B$9,IF(P30>'Size Premium'!$A$10,'Size Premium'!$B$10,IF(P30>'Size Premium'!$A$11,'Size Premium'!$B$11,IF(P30>'Size Premium'!$A$12,'Size Premium'!$B$12,"ERROR")))))))) -> -0.0028 | R30: 0.0822625 | V30: 0.0822625
A31: 22 | B31: ='6 (1)'!B30 -> WEC Energy Group | D31: ='2020 03 Market DCF'!$L$418 -> 0.0314 | E31: ='2020 03 Market DCF'!$U$419 -> 0.0933 | F31: 0.1247 | G31: =ROUND('Bond Yields'!$K$16,3) -> 0.019 | H31: 0.1057 | I31: 0.25 | J31: 0.026425 | K31: ='6 (1)'!I30 -> 0.45 | L31: 0.75 | M31: 0.03567375 | N31: 0.06209875 | O31: 0.08109875 | P31: ='6 (1)'!K30 -> 31000 | Q31: =IF(P31>'Size Premium'!$A$5,'Size Premium'!$B$5,IF(P31>'Size Premium'!$A$6,'Size Premium'!$B$6,IF(P31>'Size Premium'!$A$7,'Size Premium'!$B$7,IF(P31>'Size Premium'!$A$8,'Size Premium'!$B$8,IF(P31>'Size Premium'!$A$9,'Size Premium'!$B$9,IF(P31>'Size Premium'!$A$10,'Size Premium'!$B$10,IF(P31>'Size Premium'!$A$11,'Size Premium'!$B$11,IF(P31>'Size Premium'!$A$12,'Size Premium'!$B$12,"ERROR")))))))) -> 0.005 | R31: 0.08609875 | V31: 0.08609875
A32: 23 | B32: ='6 (1)'!B31 -> Xcel Energy Inc. | D32: ='2020 03 Market DCF'!$L$418 -> 0.0314 | E32: ='2020 03 Market DCF'!$U$419 -> 0.0933 | F32: 0.1247 | G32: =ROUND('Bond Yields'!$K$16,3) -> 0.019 | H32: 0.1057 | I32: 0.25 | J32: 0.026425 | K32: ='6 (1)'!I31 -> 0.45 | L32: 0.75 | M32: 0.03567375 | N32: 0.06209875 | O32: 0.08109875 | P32: ='6 (1)'!K31 -> 33000 | Q32: =IF(P32>'Size Premium'!$A$5,'Size Premium'!$B$5,IF(P32>'Size Premium'!$A$6,'Size Premium'!$B$6,IF(P32>'Size Premium'!$A$7,'Size Premium'!$B$7,IF(P32>'Size Premium'!$A$8,'Size Premium'!$B$8,IF(P32>'Size Premium'!$A$9,'Size Premium'!$B$9,IF(P32>'Size Premium'!$A$10,'Size Premium'!$B$10,IF(P32>'Size Premium'!$A$11,'Size Premium'!$B$11,IF(P32>'Size Premium'!$A$12,'Size Premium'!$B$12,"ERROR")))))))) -> -0.0028 | R32: 0.07829875 | V32: 0.07829875
D33: ='2020 03 Market DCF'!$J$418 -> 0 | E33: ='2020 03 Market DCF'!$P$419 -> 0
B34: Average (f) | R34: =AVERAGE(V10:V32) -> 0.09066630682 | U34: Min | V34: =MIN(V10:V32) -> 0.07829875
B35: Midpoint (f) (g) | R35: =AVERAGE(V34:V35) -> 0.093258125 | U35: Max | V35: =MAX(V10:V32) -> 0.1082175
A37: (a) | B37: ='6 (1)'!B36 -> Weighted average for dividend-paying stocks in the S&P 500 based on data from www.valueline.com (retrieved Mar. 27, 2020).
A38: (b) | B38: ='6 (1)'!B37 -> Average of weighted average earnings growth rates from IBES, Value Line, and Zacks for dividend-paying stocks in the S&P 500 based on data from http://finance.yahoo.com (retrieved Mar. 27, 2020), www.valueline.com (retrieved Mar. 27, 2020), and www.zacks.com (retrieved Mar. 27, 2020).
A40: (c) | B40: ='6 (1)'!B39 -> Average yield on 30-year Treasury bonds for the six-months ending Apr. 2020 based on data from http://www.fred.stlouisfed.org.
A41: (d) | B41: Roger A. Morin, "New Regulatory Finance," Public Utilities Reports, Inc. (2006) at 190.
A42: (e) | B42: ='6 (1)'!B40 -> The Value Line Investment Survey (Feb. 14, Mar. 13 and Apr. 24, 2020).
A43: (f) | B43: ='6 (1)'!B41 -> Duff & Phelps, 2020 CRSP Deciles Size Study -- Supplementary Data Exhibits, Cost of Capital Navigator.
A44: (f) | B44: Excludes highlighted figures.
A45: (g) | B45: Average of low and high values.
A47: Threshold Min | E47: ='4 (3)'!D40 -> 0.065
A48: Threshold Max | E48: ='4 (3)'!D41 -> 0.15

Sheet 7 (2)
A1: ='Exhibit List'!C13 -> EMPIRICAL CAPM - PROJECTED BOND YIELD | S1: ='Exhibit List'!B13 -> Exhibit AMM-7
S2: Page 2 of 2
A3: ='Exhibit List'!D13 -> ELECTRIC GROUP
D6: (a) | E6: (b) | G6: (c) | I6: (d) | K6: (e) | L6: (d) | P6: (e) | Q6: (f)
D7: Market Return (Rm)
D8: Div | E8: Proj. | F8: Cost of | G8: Risk-Free | H8: Risk | I8: Unadjusted RP | K8: Beta Adjusted RP | O8: Unadjusted | P8: Market | Q8: Size | R8: ECAPM
B9: Company | D9: Yield | E9: Growth | F9: Equity | G9: Rate | H9: Premium | I9: Weight | J9: RP1 | K9: Beta | L9: Weight | M9: RP2 | N9: Total RP | O9: Ke | P9: Cap | Q9: Adjustment | R9: Result
A10: =A9+1 -> 1 | B10: ='6 (1)'!B9 -> Alliant Energy | D10: ='2020 03 Market DCF'!$L$418 -> 0.0314 | E10: ='2020 03 Market DCF'!$U$419 -> 0.0933 | F10: =D10+E10 -> 0.1247 | G10: =ROUND('Bond Yields'!$M$60,3) -> 0.032 | H10: =F10-G10 -> 0.0927 | I10: 0.25 | J10: =I10*H10 -> 0.023175 | K10: ='6 (1)'!I9 -> 0.55 | L10: 0.75 | M10: =IF(K10="n/a","n/a",H10*K10*L10) -> 0.03823875 | N10: =IF(K10="n/a","n/a",J10+M10) -> 0.06141375 | O10: =IF(K10="n/a","n/a",N10+G10) -> 0.09341375 | P10: ='6 (1)'!K9 -> 13400 | Q10: =IF(P10>'Size Premium'!$A$5,'Size Premium'!$B$5,IF(P10>'Size Premium'!$A$6,'Size Premium'!$B$6,IF(P10>'Size Premium'!$A$7,'Size Premium'!$B$7,IF(P10>'Size Premium'!$A$8,'Size Premium'!$B$8,IF(P10>'Size Premium'!$A$9,'Size Premium'!$B$9,IF(P10>'Size Premium'!$A$10,'Size Premium'!$B$10,IF(P10>'Size Premium'!$A$11,'Size Premium'!$B$11,IF(P10>'Size Premium'!$A$12,'Size Premium'!$B$12,"ERROR")))))))) -> 0.005 | R10: =IF(K10="n/a","n/a",O10+Q10) -> 0.09841375 | V10: =IF(R10="n/a","n/a",IF(R10<$E$48,"LOW",IF(R10>$E$49,"HIGH",R10))) -> 0.09841375
A11: =A10+1 -> 2 | B11: ='6 (1)'!B10 -> Ameren Corp. | D11: ='2020 03 Market DCF'!$L$418 -> 0.0314 | E11: ='2020 03 Market DCF'!$U$419 -> 0.0933 | F11: =D11+E11 -> 0.1247 | G11: =ROUND('Bond Yields'!$M$60,3) -> 0.032 | H11: =F11-G11 -> 0.0927 | I11: 0.25 | J11: =I11*H11 -> 0.023175 | K11: ='6 (1)'!I10 -> 0.5 | L11: 0.75 | M11: =IF(K11="n/a","n/a",H11*K11*L11) -> 0.0347625 | N11: =IF(K11="n/a","n/a",J11+M11) -> 0.0579375 | O11: =IF(K11="n/a","n/a",N11+G11) -> 0.0899375 | P11: ='6 (1)'!K10 -> 20000 | Q11: =IF(P11>'Size Premium'!$A$5,'Size Premium'!$B$5,IF(P11>'Size Premium'!$A$6,'Size Premium'!$B$6,IF(P11>'Size Premium'!$A$7,'Size Premium'!$B$7,IF(P11>'Size Premium'!$A$8,'Size Premium'!$B$8,IF(P11>'Size Premium'!$A$9,'Size Premium'!$B$9,IF(P11>'Size Premium'!$A$10,'Size Premium'!$B$10,IF(P11>'Size Premium'!$A$11,'Size Premium'!$B$11,IF(P11>'Size Premium'!$A$12,'Size Premium'!$B$12,"ERROR")))))))) -> 0.005 | R11: =IF(K11="n/a","n/a",O11+Q11) -> 0.0949375 | V11: 0.0949375
A12: 3 | B12: ='6 (1)'!B11 -> American Elec Pwr | D12: ='2020 03 Market DCF'!$L$418 -> 0.0314 | E12: ='2020 03 Market DCF'!$U$419 -> 0.0933 | F12: 0.1247 | G12: =ROUND('Bond Yields'!$M$60,3) -> 0.032 | H12: 0.0927 | I12: 0.25 | J12: 0.023175 | K12: ='6 (1)'!I11 -> 0.5 | L12: 0.75 | M12: 0.0347625 | N12: 0.0579375 | O12: 0.0899375 | P12: ='6 (1)'!K11 -> 47000 | Q12: =IF(P12>'Size Premium'!$A$5,'Size Premium'!$B$5,IF(P12>'Size Premium'!$A$6,'Size Premium'!$B$6,IF(P12>'Size Premium'!$A$7,'Size Premium'!$B$7,IF(P12>'Size Premium'!$A$8,'Size Premium'!$B$8,IF(P12>'Size Premium'!$A$9,'Size Premium'!$B$9,IF(P12>'Size Premium'!$A$10,'Size Premium'!$B$10,IF(P12>'Size Premium'!$A$11,'Size Premium'!$B$11,IF(P12>'Size Premium'!$A$12,'Size Premium'!$B$12,"ERROR")))))))) -> -0.0028 | R12: 0.0871375 | V12: 0.0871375
A13: 4 | B13: ='6 (1)'!B12 -> Avangrid, Inc. | D13: ='2020 03 Market DCF'!$L$418 -> 0.0314 | E13: ='2020 03 Market DCF'!$U$419 -> 0.0933 | F13: 0.1247 | G13: =ROUND('Bond Yields'!$M$60,3) -> 0.032 | H13: 0.0927 | I13: 0.25 | J13: 0.023175 | K13: ='6 (1)'!I12 -> 0.4 | L13: 0.75 | M13: 0.02781 | N13: 0.050985 | O13: 0.082985 | P13: ='6 (1)'!K12 -> 16000 | Q13: =IF(P13>'Size Premium'!$A$5,'Size Premium'!$B$5,IF(P13>'Size Premium'!$A$6,'Size Premium'!$B$6,IF(P13>'Size Premium'!$A$7,'Size Premium'!$B$7,IF(P13>'Size Premium'!$A$8,'Size Premium'!$B$8,IF(P13>'Size Premium'!$A$9,'Size Premium'!$B$9,IF(P13>'Size Premium'!$A$10,'Size Premium'!$B$10,IF(P13>'Size Premium'!$A$11,'Size Premium'!$B$11,IF(P13>'Size Premium'!$A$12,'Size Premium'!$B$12,"ERROR")))))))) -> 0.005 | R13: 0.087985 | V13: 0.087985
A14: 5 | B14: ='6 (1)'!B13 -> Black Hills Corp. | D14: ='2020 03 Market DCF'!$L$418 -> 0.0314 | E14: ='2020 03 Market DCF'!$U$419 -> 0.0933 | F14: 0.1247 | G14: =ROUND('Bond Yields'!$M$60,3) -> 0.032 | H14: 0.0927 | I14: 0.25 | J14: 0.023175 | K14: ='6 (1)'!I13 -> 0.65 | L14: 0.75 | M14: 0.04519125 | N14: 0.06836625 | O14: 0.10036625 | P14: ='6 (1)'!K13 -> 4200 | Q14: =IF(P14>'Size Premium'!$A$5,'Size Premium'!$B$5,IF(P14>'Size Premium'!$A$6,'Size Premium'!$B$6,IF(P14>'Size Premium'!$A$7,'Size Premium'!$B$7,IF(P14>'Size Premium'!$A$8,'Size Premium'!$B$8,IF(P14>'Size Premium'!$A$9,'Size Premium'!$B$9,IF(P14>'Size Premium'!$A$10,'Size Premium'!$B$10,IF(P14>'Size Premium'!$A$11,'Size Premium'!$B$11,IF(P14>'Size Premium'!$A$12,'Size Premium'!$B$12,"ERROR")))))))) -> 0.011 | R14: 0.11136625 | V14: 0.11136625
A15: 6 | B15: ='6 (1)'!B14 -> CMS Energy Corp. | D15: ='2020 03 Market DCF'!$L$418 -> 0.0314 | E15: ='2020 03 Market DCF'!$U$419 -> 0.0933 | F15: 0.1247 | G15: =ROUND('Bond Yields'!$M$60,3) -> 0.032 | H15: 0.0927 | I15: 0.25 | J15: 0.023175 | K15: ='6 (1)'!I14 -> 0.5 | L15: 0.75 | M15: 0.0347625 | N15: 0.0579375 | O15: 0.0899375 | P15: ='6 (1)'!K14 -> 18000 | Q15: =IF(P15>'Size Premium'!$A$5,'Size Premium'!$B$5,IF(P15>'Size Premium'!$A$6,'Size Premium'!$B$6,IF(P15>'Size Premium'!$A$7,'Size Premium'!$B$7,IF(P15>'Size Premium'!$A$8,'Size Premium'!$B$8,IF(P15>'Size Premium'!$A$9,'Size Premium'!$B$9,IF(P15>'Size Premium'!$A$10,'Size Premium'!$B$10,IF(P15>'Size Premium'!$A$11,'Size Premium'!$B$11,IF(P15>'Size Premium'!$A$12,'Size Premium'!$B$12,"ERROR")))))))) -> 0.005 | R15: 0.0949375 | V15: 0.0949375
A16: 7 | B16: ='6 (1)'!B15 -> Consolidated Edison | D16: ='2020 03 Market DCF'!$L$418 -> 0.0314 | E16: ='2020 03 Market DCF'!$U$419 -> 0.0933 | F16: 0.1247 | G16: =ROUND('Bond Yields'!$M$60,3) -> 0.032 | H16: 0.0927 | I16: 0.25 | J16: 0.023175 | K16: ='6 (1)'!I15 -> 0.4 | L16: 0.75 | M16: 0.02781 | N16: 0.050985 | O16: 0.082985 | P16: ='6 (1)'!K15 -> 31000 | Q16: =IF(P16>'Size Premium'!$A$5,'Size Premium'!$B$5,IF(P16>'Size Premium'!$A$6,'Size Premium'!$B$6,IF(P16>'Size Premium'!$A$7,'Size Premium'!$B$7,IF(P16>'Size Premium'!$A$8,'Size Premium'!$B$8,IF(P16>'Size Premium'!$A$9,'Size Premium'!$B$9,IF(P16>'Size Premium'!$A$10,'Size Premium'!$B$10,IF(P16>'Size Premium'!$A$11,'Size Premium'!$B$11,IF(P16>'Size Premium'!$A$12,'Size Premium'!$B$12,"ERROR")))))))) -> 0.005 | R16: 0.087985 | V16: 0.087985
A17: 8 | B17: ='6 (1)'!B16 -> Dominion Energy | D17: ='2020 03 Market DCF'!$L$418 -> 0.0314 | E17: ='2020 03 Market DCF'!$U$419 -> 0.0933 | F17: 0.1247 | G17: =ROUND('Bond Yields'!$M$60,3) -> 0.032 | H17: 0.0927 | I17: 0.25 | J17: 0.023175 | K17: ='6 (1)'!I16 -> 0.5 | L17: 0.75 | M17: 0.0347625 | N17: 0.0579375 | O17: 0.0899375 | P17: ='6 (1)'!K16 -> 70000 | Q17: =IF(P17>'Size Premium'!$A$5,'Size Premium'!$B$5,IF(P17>'Size Premium'!$A$6,'Size Premium'!$B$6,IF(P17>'Size Premium'!$A$7,'Size Premium'!$B$7,IF(P17>'Size Premium'!$A$8,'Size Premium'!$B$8,IF(P17>'Size Premium'!$A$9,'Size Premium'!$B$9,IF(P17>'Size Premium'!$A$10,'Size Premium'!$B$10,IF(P17>'Size Premium'!$A$11,'Size Premium'!$B$11,IF(P17>'Size Premium'!$A$12,'Size Premium'!$B$12,"ERROR")))))))) -> -0.0028 | R17: 0.0871375 | V17: 0.0871375
A18: 9 | B18: ='6 (1)'!B17 -> DTE Energy Co. | D18: ='2020 03 Market DCF'!$L$418 -> 0.0314 | E18: ='2020 03 Market DCF'!$U$419 -> 0.0933 | F18: 0.1247 | G18: =ROUND('Bond Yields'!$M$60,3) -> 0.032 | H18: 0.0927 | I18: 0.25 | J18: 0.023175 | K18: ='6 (1)'!I17 -> 0.5 | L18: 0.75 | M18: 0.0347625 | N18: 0.0579375 | O18: 0.0899375 | P18: ='6 (1)'!K17 -> 22000 | Q18: =IF(P18>'Size Premium'!$A$5,'Size Premium'!$B$5,IF(P18>'Size Premium'!$A$6,'Size Premium'!$B$6,IF(P18>'Size Premium'!$A$7,'Size Premium'!$B$7,IF(P18>'Size Premium'!$A$8,'Size Premium'!$B$8,IF(P18>'Size Premium'!$A$9,'Size Premium'!$B$9,IF(P18>'Size Premium'!$A$10,'Size Premium'!$B$10,IF(P18>'Size Premium'!$A$11,'Size Premium'!$B$11,IF(P18>'Size Premium'!$A$12,'Size Premium'!$B$12,"ERROR")))))))) -> 0.005 | R18: 0.0949375 | V18: 0.0949375
A19: 10 | B19: ='6 (1)'!B18 -> Duke Energy Corp. | D19: ='2020 03 Market DCF'!$L$418 -> 0.0314 | E19: ='2020 03 Market DCF'!$U$419 -> 0.0933 | F19: 0.1247 | G19: =ROUND('Bond Yields'!$M$60,3) -> 0.032 | H19: 0.0927 | I19: 0.25 | J19: 0.023175 | K19: ='6 (1)'!I18 -> 0.45 | L19: 0.75 | M19: 0.03128625 | N19: 0.05446125 | O19: 0.08646125 | P19: ='6 (1)'!K18 -> 70000 | Q19: =IF(P19>'Size Premium'!$A$5,'Size Premium'!$B$5,IF(P19>'Size Premium'!$A$6,'Size Premium'!$B$6,IF(P19>'Size Premium'!$A$7,'Size Premium'!$B$7,IF(P19>'Size Premium'!$A$8,'Size Premium'!$B$8,IF(P19>'Size Premium'!$A$9,'Size Premium'!$B$9,IF(P19>'Size Premium'!$A$10,'Size Premium'!$B$10,IF(P19>'Size Premium'!$A$11,'Size Premium'!$B$11,IF(P19>'Size Premium'!$A$12,'Size Premium'!$B$12,"ERROR")))))))) -> -0.0028 | R19: 0.08366125 | V19: 0.08366125
A20: 11 | B20: ='6 (1)'!B19 -> Entergy Corp. | D20: ='2020 03 Market DCF'!$L$418 -> 0.0314 | E20: ='2020 03 Market DCF'!$U$419 -> 0.0933 | F20: 0.1247 | G20: =ROUND('Bond Yields'!$M$60,3) -> 0.032 | H20: 0.0927 | I20: 0.25 | J20: 0.023175 | K20: ='6 (1)'!I19 -> 0.6 | L20: 0.75 | M20: 0.041715 | N20: 0.06489 | O20: 0.09689 | P20: ='6 (1)'!K19 -> 24000 | Q20: =IF(P20>'Size Premium'!$A$5,'Size Premium'!$B$5,IF(P20>'Size Premium'!$A$6,'Size Premium'!$B$6,IF(P20>'Size Premium'!$A$7,'Size Premium'!$B$7,IF(P20>'Size Premium'!$A$8,'Size Premium'!$B$8,IF(P20>'Size Premium'!$A$9,'Size Premium'!$B$9,IF(P20>'Size Premium'!$A$10,'Size Premium'!$B$10,IF(P20>'Size Premium'!$A$11,'Size Premium'!$B$11,IF(P20>'Size Premium'!$A$12,'Size Premium'!$B$12,"ERROR")))))))) -> 0.005 | R20: 0.10189 | V20: 0.10189
A21: 12 | B21: ='6 (1)'!B20 -> Evergy Inc. | D21: ='2020 03 Market DCF'!$L$418 -> 0.0314 | E21: ='2020 03 Market DCF'!$U$419 -> 0.0933 | F21: 0.1247 | G21: =ROUND('Bond Yields'!$M$60,3) -> 0.032 | H21: 0.0927 | I21: 0.25 | J21: 0.023175 | K21: ='6 (1)'!I20 -> n/a | L21: 0.75 | M21: n/a | N21: n/a | O21: n/a | P21: ='6 (1)'!K20 -> 16000 | Q21: =IF(P21>'Size Premium'!$A$5,'Size Premium'!$B$5,IF(P21>'Size Premium'!$A$6,'Size Premium'!$B$6,IF(P21>'Size Premium'!$A$7,'Size Premium'!$B$7,IF(P21>'Size Premium'!$A$8,'Size Premium'!$B$8,IF(P21>'Size Premium'!$A$9,'Size Premium'!$B$9,IF(P21>'Size Premium'!$A$10,'Size Premium'!$B$10,IF(P21>'Size Premium'!$A$11,'Size Premium'!$B$11,IF(P21>'Size Premium'!$A$12,'Size Premium'!$B$12,"ERROR")))))))) -> 0.005 | R21: n/a | V21: n/a
A22: 13 | B22: ='6 (1)'!B21 -> Eversource Energy | D22: ='2020 03 Market DCF'!$L$418 -> 0.0314 | E22: ='2020 03 Market DCF'!$U$419 -> 0.0933 | F22: 0.1247 | G22: =ROUND('Bond Yields'!$M$60,3) -> 0.032 | H22: 0.0927 | I22: 0.25 | J22: 0.023175 | K22: ='6 (1)'!I21 -> 0.55 | L22: 0.75 | M22: 0.03823875 | N22: 0.06141375 | O22: 0.09341375 | P22: ='6 (1)'!K21 -> 29000 | Q22: =IF(P22>'Size Premium'!$A$5,'Size Premium'!$B$5,IF(P22>'Size Premium'!$A$6,'Size Premium'!$B$6,IF(P22>'Size Premium'!$A$7,'Size Premium'!$B$7,IF(P22>'Size Premium'!$A$8,'Size Premium'!$B$8,IF(P22>'Size Premium'!$A$9,'Size Premium'!$B$9,IF(P22>'Size Premium'!$A$10,'Size Premium'!$B$10,IF(P22>'Size Premium'!$A$11,'Size Premium'!$B$11,IF(P22>'Size Premium'!$A$12,'Size Premium'!$B$12,"ERROR")))))))) -> 0.005 | R22: 0.09841375 | V22: 0.09841375
A23: 14 | B23: ='6 (1)'!B22 -> Exelon Corp. | D23: ='2020 03 Market DCF'!$L$418 -> 0.0314 | E23: ='2020 03 Market DCF'!$U$419 -> 0.0933 | F23: 0.1247 | G23: =ROUND('Bond Yields'!$M$60,3) -> 0.032 | H23: 0.0927 | I23: 0.25 | J23: 0.023175 | K23: ='6 (1)'!I22 -> 0.65 | L23: 0.75 | M23: 0.04519125 | N23: 0.06836625 | O23: 0.10036625 | P23: ='6 (1)'!K22 -> 47000 | Q23: =IF(P23>'Size Premium'!$A$5,'Size Premium'!$B$5,IF(P23>'Size Premium'!$A$6,'Size Premium'!$B$6,IF(P23>'Size Premium'!$A$7,'Size Premium'!$B$7,IF(P23>'Size Premium'!$A$8,'Size Premium'!$B$8,IF(P23>'Size Premium'!$A$9,'Size Premium'!$B$9,IF(P23>'Size Premium'!$A$10,'Size Premium'!$B$10,IF(P23>'Size Premium'!$A$11,'Size Premium'!$B$11,IF(P23>'Size Premium'!$A$12,'Size Premium'!$B$12,"ERROR")))))))) -> -0.0028 | R23: 0.09756625 | V23: 0.09756625
A24: 15 | B24: ='6 (1)'!B23 -> Fortis Inc. | D24: ='2020 03 Market DCF'!$L$418 -> 0.0314 | E24: ='2020 03 Market DCF'!$U$419 -> 0.0933 | F24: 0.1247 | G24: =ROUND('Bond Yields'!$M$60,3) -> 0.032 | H24: 0.0927 | I24: 0.25 | J24: 0.023175 | K24: ='6 (1)'!I23 -> 0.6 | L24: 0.75 | M24: 0.041715 | N24: 0.06489 | O24: 0.09689 | P24: ='6 (1)'!K23 -> 26000 | Q24: =IF(P24>'Size Premium'!$A$5,'Size Premium'!$B$5,IF(P24>'Size Premium'!$A$6,'Size Premium'!$B$6,IF(P24>'Size Premium'!$A$7,'Size Premium'!$B$7,IF(P24>'Size Premium'!$A$8,'Size Premium'!$B$8,IF(P24>'Size Premium'!$A$9,'Size Premium'!$B$9,IF(P24>'Size Premium'!$A$10,'Size Premium'!$B$10,IF(P24>'Size Premium'!$A$11,'Size Premium'!$B$11,IF(P24>'Size Premium'!$A$12,'Size Premium'!$B$12,"ERROR")))))))) -> 0.005 | R24: 0.10189 | V24: 0.10189
A25: 16 | B25: ='6 (1)'!B24 -> NextEra Energy, Inc. | D25: ='2020 03 Market DCF'!$L$418 -> 0.0314 | E25: ='2020 03 Market DCF'!$U$419 -> 0.0933 | F25: =D25+E25 -> 0.1247 | G25: =ROUND('Bond Yields'!$M$60,3) -> 0.032 | H25: =F25-G25 -> 0.0927 | I25: 0.25 | J25: =I25*H25 -> 0.023175 | K25: ='6 (1)'!I24 -> 0.5 | L25: 0.75 | M25: =IF(K25="n/a","n/a",H25*K25*L25) -> 0.0347625 | N25: =IF(K25="n/a","n/a",J25+M25) -> 0.0579375 | O25: =IF(K25="n/a","n/a",N25+G25) -> 0.0899375 | P25: ='6 (1)'!K24 -> 129000 | Q25: =IF(P25>'Size Premium'!$A$5,'Size Premium'!$B$5,IF(P25>'Size Premium'!$A$6,'Size Premium'!$B$6,IF(P25>'Size Premium'!$A$7,'Size Premium'!$B$7,IF(P25>'Size Premium'!$A$8,'Size Premium'!$B$8,IF(P25>'Size Premium'!$A$9,'Size Premium'!$B$9,IF(P25>'Size Premium'!$A$10,'Size Premium'!$B$10,IF(P25>'Size Premium'!$A$11,'Size Premium'!$B$11,IF(P25>'Size Premium'!$A$12,'Size Premium'!$B$12,"ERROR")))))))) -> -0.0028 | R25: =IF(K25="n/a","n/a",O25+Q25) -> 0.0871375 | V25: =IF(R25="n/a","n/a",IF(R25<$E$48,"LOW",IF(R25>$E$49,"HIGH",R25))) -> 0.0871375
A26: 17 | B26: ='6 (1)'!B25 -> OGE Energy Corp. | D26: ='2020 03 Market DCF'!$L$418 -> 0.0314 | E26: ='2020 03 Market DCF'!$U$419 -> 0.0933 | F26: 0.1247 | G26: =ROUND('Bond Yields'!$M$60,3) -> 0.032 | H26: 0.0927 | I26: 0.25 | J26: 0.023175 | K26: ='6 (1)'!I25 -> 0.7 | L26: 0.75 | M26: 0.0486675 | N26: 0.0718425 | O26: 0.1038425 | P26: ='6 (1)'!K25 -> 7700 | Q26: =IF(P26>'Size Premium'!$A$5,'Size Premium'!$B$5,IF(P26>'Size Premium'!$A$6,'Size Premium'!$B$6,IF(P26>'Size Premium'!$A$7,'Size Premium'!$B$7,IF(P26>'Size Premium'!$A$8,'Size Premium'!$B$8,IF(P26>'Size Premium'!$A$9,'Size Premium'!$B$9,IF(P26>'Size Premium'!$A$10,'Size Premium'!$B$10,IF(P26>'Size Premium'!$A$11,'Size Premium'!$B$11,IF(P26>'Size Premium'!$A$12,'Size Premium'!$B$12,"ERROR")))))))) -> 0.0073 | R26: 0.1111425 | V26: 0.1111425
A27: 18 | B27: ='6 (1)'!B26 -> PPL Corp. | D27: ='2020 03 Market DCF'!$L$418 -> 0.0314 | E27: ='2020 03 Market DCF'!$U$419 -> 0.0933 | F27: 0.1247 | G27: =ROUND('Bond Yields'!$M$60,3) -> 0.032 | H27: 0.0927 | I27: 0.25 | J27: 0.023175 | K27: ='6 (1)'!I26 -> 0.65 | L27: 0.75 | M27: 0.04519125 | N27: 0.06836625 | O27: 0.10036625 | P27: ='6 (1)'!K26 -> 26000 | Q27: =IF(P27>'Size Premium'!$A$5,'Size Premium'!$B$5,IF(P27>'Size Premium'!$A$6,'Size Premium'!$B$6,IF(P27>'Size Premium'!$A$7,'Size Premium'!$B$7,IF(P27>'Size Premium'!$A$8,'Size Premium'!$B$8,IF(P27>'Size Premium'!$A$9,'Size Premium'!$B$9,IF(P27>'Size Premium'!$A$10,'Size Premium'!$B$10,IF(P27>'Size Premium'!$A$11,'Size Premium'!$B$11,IF(P27>'Size Premium'!$A$12,'Size Premium'!$B$12,"ERROR")))))))) -> 0.005 | R27: 0.10536625 | V27: 0.10536625
A28: 19 | B28: ='6 (1)'!B27 -> Pub Sv Enterprise Grp. | D28: ='2020 03 Market DCF'!$L$418 -> 0.0314 | E28: ='2020 03 Market DCF'!$U$419 -> 0.0933 | F28: 0.1247 | G28: =ROUND('Bond Yields'!$M$60,3) -> 0.032 | H28: 0.0927 | I28: 0.25 | J28: 0.023175 | K28: ='6 (1)'!I27 -> 0.6 | L28: 0.75 | M28: 0.041715 | N28: 0.06489 | O28: 0.09689 | P28: ='6 (1)'!K27 -> 30000 | Q28: =IF(P28>'Size Premium'!$A$5,'Size Premium'!$B$5,IF(P28>'Size Premium'!$A$6,'Size Premium'!$B$6,IF(P28>'Size Premium'!$A$7,'Size Premium'!$B$7,IF(P28>'Size Premium'!$A$8,'Size Premium'!$B$8,IF(P28>'Size Premium'!$A$9,'Size Premium'!$B$9,IF(P28>'Size Premium'!$A$10,'Size Premium'!$B$10,IF(P28>'Size Premium'!$A$11,'Size Premium'!$B$11,IF(P28>'Size Premium'!$A$12,'Size Premium'!$B$12,"ERROR")))))))) -> 0.005 | R28: 0.10189 | V28: 0.10189
A29: 20 | B29: ='6 (1)'!B28 -> Sempra Energy | D29: ='2020 03 Market DCF'!$L$418 -> 0.0314 | E29: ='2020 03 Market DCF'!$U$419 -> 0.0933 | F29: 0.1247 | G29: =ROUND('Bond Yields'!$M$60,3) -> 0.032 | H29: 0.0927 | I29: 0.25 | J29: 0.023175 | K29: ='6 (1)'!I28 -> 0.65 | L29: 0.75 | M29: 0.04519125 | N29: 0.06836625 | O29: 0.10036625 | P29: ='6 (1)'!K28 -> 37000 | Q29: =IF(P29>'Size Premium'!$A$5,'Size Premium'!$B$5,IF(P29>'Size Premium'!$A$6,'Size Premium'!$B$6,IF(P29>'Size Premium'!$A$7,'Size Premium'!$B$7,IF(P29>'Size Premium'!$A$8,'Size Premium'!$B$8,IF(P29>'Size Premium'!$A$9,'Size Premium'!$B$9,IF(P29>'Size Premium'!$A$10,'Size Premium'!$B$10,IF(P29>'Size Premium'!$A$11,'Size Premium'!$B$11,IF(P29>'Size Premium'!$A$12,'Size Premium'!$B$12,"ERROR")))))))) -> -0.0028 | R29: 0.09756625 | V29: 0.09756625
A30: 21 | B30: ='6 (1)'!B29 -> Southern Company | D30: ='2020 03 Market DCF'!$L$418 -> 0.0314 | E30: ='2020 03 Market DCF'!$U$419 -> 0.0933 | F30: 0.1247 | G30: =ROUND('Bond Yields'!$M$60,3) -> 0.032 | H30: 0.0927 | I30: 0.25 | J30: 0.023175 | K30: ='6 (1)'!I29 -> 0.5 | L30: 0.75 | M30: 0.0347625 | N30: 0.0579375 | O30: 0.0899375 | P30: ='6 (1)'!K29 -> 73000 | Q30: =IF(P30>'Size Premium'!$A$5,'Size Premium'!$B$5,IF(P30>'Size Premium'!$A$6,'Size Premium'!$B$6,IF(P30>'Size Premium'!$A$7,'Size Premium'!$B$7,IF(P30>'Size Premium'!$A$8,'Size Premium'!$B$8,IF(P30>'Size Premium'!$A$9,'Size Premium'!$B$9,IF(P30>'Size Premium'!$A$10,'Size Premium'!$B$10,IF(P30>'Size Premium'!$A$11,'Size Premium'!$B$11,IF(P30>'Size Premium'!$A$12,'Size Premium'!$B$12,"ERROR")))))))) -> -0.0028 | R30: 0.0871375 | V30: 0.0871375
A31: 22 | B31: ='6 (1)'!B30 -> WEC Energy Group | D31: ='2020 03 Market DCF'!$L$418 -> 0.0314 | E31: ='2020 03 Market DCF'!$U$419 -> 0.0933 | F31: 0.1247 | G31: =ROUND('Bond Yields'!$M$60,3) -> 0.032 | H31: 0.0927 | I31: 0.25 | J31: 0.023175 | K31: ='6 (1)'!I30 -> 0.45 | L31: 0.75 | M31: 0.03128625 | N31: 0.05446125 | O31: 0.08646125 | P31: ='6 (1)'!K30 -> 31000 | Q31: =IF(P31>'Size Premium'!$A$5,'Size Premium'!$B$5,IF(P31>'Size Premium'!$A$6,'Size Premium'!$B$6,IF(P31>'Size Premium'!$A$7,'Size Premium'!$B$7,IF(P31>'Size Premium'!$A$8,'Size Premium'!$B$8,IF(P31>'Size Premium'!$A$9,'Size Premium'!$B$9,IF(P31>'Size Premium'!$A$10,'Size Premium'!$B$10,IF(P31>'Size Premium'!$A$11,'Size Premium'!$B$11,IF(P31>'Size Premium'!$A$12,'Size Premium'!$B$12,"ERROR")))))))) -> 0.005 | R31: 0.09146125 | V31: 0.09146125
A32: 23 | B32: ='6 (1)'!B31 -> Xcel Energy Inc. | D32: ='2020 03 Market DCF'!$L$418 -> 0.0314 | E32: ='2020 03 Market DCF'!$U$419 -> 0.0933 | F32: 0.1247 | G32: =ROUND('Bond Yields'!$M$60,3) -> 0.032 | H32: 0.0927 | I32: 0.25 | J32: 0.023175 | K32: ='6 (1)'!I31 -> 0.45 | L32: 0.75 | M32: 0.03128625 | N32: 0.05446125 | O32: 0.08646125 | P32: ='6 (1)'!K31 -> 33000 | Q32: =IF(P32>'Size Premium'!$A$5,'Size Premium'!$B$5,IF(P32>'Size Premium'!$A$6,'Size Premium'!$B$6,IF(P32>'Size Premium'!$A$7,'Size Premium'!$B$7,IF(P32>'Size Premium'!$A$8,'Size Premium'!$B$8,IF(P32>'Size Premium'!$A$9,'Size Premium'!$B$9,IF(P32>'Size Premium'!$A$10,'Size Premium'!$B$10,IF(P32>'Size Premium'!$A$11,'Size Premium'!$B$11,IF(P32>'Size Premium'!$A$12,'Size Premium'!$B$12,"ERROR")))))))) -> -0.0028 | R32: 0.08366125 | V32: 0.08366125
D33: ='2020 03 Market DCF'!$J$418 -> 0 | E33: ='2020 03 Market DCF'!$P$419 -> 0
B34: Average (f) | R34: =AVERAGE(V10:V32) -> 0.09516460227 | U34: Min | V34: =MIN(V10:V32) -> 0.08366125
B35: Midpoint (f) (g) | R35: =AVERAGE(V34:V35) -> 0.09751375 | U35: Max | V35: =MAX(V10:V32) -> 0.11136625
A37: (a) | B37: ='6 (1)'!B36 -> Weighted average for dividend-paying stocks in the S&P 500 based on data from www.valueline.com (retrieved Mar. 27, 2020).
A38: (b) | B38: ='6 (1)'!B37 -> Average of weighted average earnings growth rates from IBES, Value Line, and Zacks for dividend-paying stocks in the S&P 500 based on data from http://finance.yahoo.com (retrieved Mar. 27, 2020), www.valueline.com (retrieved Mar. 27, 2020), and www.zacks.com (retrieved Mar. 27, 2020).
A40: (c) | B40: ='6 (2)'!B39 -> Average yield on 30-year Treasury bonds for 2021-25 based on data from the Value Line Investment Survey, Forecast for the U.S. Economy (Feb. 28, 2020); IHS Markit, Long-Term Macro Forecast - Baseline (Apr. 8, 2020); & Wolters Kluwer, Blue Chip Financial Forecasts (Dec. 1, 2019).
A42: (d) | B42: Roger A. Morin, "New Regulatory Finance," Public Utilities Reports, Inc. (2006) at 190.
A43: (e) | B43: ='6 (1)'!B40 -> The Value Line Investment Survey (Feb. 14, Mar. 13 and Apr. 24, 2020).
A44: (f) | B44: ='6 (1)'!B41 -> Duff & Phelps, 2020 CRSP Deciles Size Study -- Supplementary Data Exhibits, Cost of Capital Navigator.
A45: (f) | B45: Excludes highlighted figures.
A46: (g) | B46: Average of low and high values.
A48: Threshold Min | E48: ='4 (3)'!D40 -> 0.065
A49: Threshold Max | E49: ='4 (3)'!D41 -> 0.15

Sheet 8 (1)
A1: ='Exhibit List'!C14 -> ELECTRIC UTILITY RISK PREMIUM | H1: ='Exhibit List'!B14 -> Exhibit AMM-8
H2: Page 1 of 4
A3: ='Exhibit List'!D14 -> CURRENT BOND YIELD
B6: Current Equity Risk Premium
B7: (a) | C7: Avg. Yield over Study Period | G7: =ROUND(+'8 (3)'!G54,4) -> 0.081
B8: (b) | C8: Average Utility Bond Yield | G8: ='Bond Yields'!I16 -> 0.0343
D9: Change in Bond Yield | G9: =-G7+G8 -> -0.0467
B11: (c) | C11: Risk Premium/Interest Rate Relationship | G11: =ROUND('8 (4)'!B46,4) -> -0.4324
D12: Adjustment to Average Risk Premium | G12: =G9*G11 -> 0.02019308
B14: (a) | C14: Average Risk Premium over Study Period | G14: =ROUND('8 (3)'!J54,4) -> 0.0379
D15: Adjusted Risk Premium | G15: =G12+G14 -> 0.05809308
B18: Implied Cost of Equity
B19: (b) | C19: Baa Utility Bond Yield | G19: ='Bond Yields'!C16 -> 0.0379
C20: Adjusted Equity Risk Premium | G20: =G15 -> 0.05809308
C22: Risk Premium Cost of Equity | G22: =G19+G20 -> 0.09599308
B26: (a) | C26: =H1 & ", page 3." -> Exhibit AMM-8, page 3.
B27: (b) | C27: ="Average bond yield on all utility bonds and 'Baa' subset for the six-months ending "&'Bond Yields'!B14&" based on data from Moody's Investors Service at www.credittrends.com." -> Average bond yield on all utility bonds and 'Baa' subset for the six-months ending Apr. 2020 based on data from Moody's Investors Service at www.credittrends.com.
B29: (c) | C29: =H1 & ", page 4." -> Exhibit AMM-8, page 4.

Sheet 8 (2)
A1: ='Exhibit List'!C15 -> ELECTRIC UTILITY RISK PREMIUM | H1: ='Exhibit List'!B15 -> Exhibit AMM-8
H2: Page 2 of 4
A3: ='Exhibit List'!D15 -> PROJECTED BOND YIELD
B6: Current Equity Risk Premium
B7: (a) | C7: Avg. Yield over Study Period | G7: =ROUND('8 (3)'!G54,4) -> 0.081
B8: (b) | C8: ="Average Utility Bond Yield "&'Bond Yields'!M50 -> Average Utility Bond Yield 2021-25 | G8: ='Bond Yields'!M31 -> 0.04446
D9: Change in Bond Yield | G9: =-G7+G8 -> -0.03654
B11: (c) | C11: Risk Premium/Interest Rate Relationship | G11: =ROUND('8 (4)'!B46,4) -> -0.4324
D12: Adjustment to Average Risk Premium | G12: =G9*G11 -> 0.015799896
B14: (a) | C14: Average Risk Premium over Study Period | G14: =ROUND('8 (3)'!J54,4) -> 0.0379
D15: Adjusted Risk Premium | G15: =G12+G14 -> 0.053699896
B18: Implied Cost of Equity
B19: (b) | C19: ="Baa Utility Bond Yield "&'Bond Yields'!M50 -> Baa Utility Bond Yield 2021-25 | G19: ='Bond Yields'!E39 -> 0.0509
C20: Adjusted Equity Risk Premium | G20: =G15 -> 0.053699896
C22: Risk Premium Cost of Equity | G22: =G19+G20 -> 0.104599896
B26: (a) | C26: =H1 & ", page 3." -> Exhibit AMM-8, page 3.
B27: (b) | C27: ="Yields on all utility bonds and 'A' subset based on data from " &'Bond Yields'!B73&"; " & 'Bond Yields'!B74 & "; & Moody's Investors Service at www.credittrends.com." -> Yields on all utility bonds and 'A' subset based on data from IHS Markit, Long-Term Macro Forecast - Baseline (Apr. 8, 2020); Energy Information Administration, Annual Energy Outlook 2020 (Jan. 29, 2020); & Moody's Investors Service at www.credittrends.com.
B30: (c) | C30: =H1 & ", page 4." -> Exhibit AMM-8, page 4.

Sheet 8 (3)
A1: ='Exhibit List'!C16 -> ELECTRIC UTILITY RISK PREMIUM | K1: ='Exhibit List'!B16 -> Exhibit AMM-8
K2: Page 3 of 4
A3: ='Exhibit List'!D16 -> AUTHORIZED RETURNS
D5: (a) | G5: (b)
D6: Allowed | G6: Average Utility | J6: Risk
B7: Year | D7: ROE | G7: Bond Yield | J7: Premium
B8: 1974 | D8: 0.131 | G8: 0.0927 | J8: =D8-G8 -> 0.0383
B9: =B8+1 -> 1975 | D9: 0.132 | G9: 0.0988 | J9: 0.0332
B10: 1976 | D10: 0.131 | G10: 0.0917 | J10: 0.0393
B11: 1977 | D11: 0.133 | G11: 0.0858 | J11: 0.0472
B12: 1978 | D12: 0.132 | G12: 0.0922 | J12: 0.0398
B13: 1979 | D13: 0.135 | G13: 0.1039 | J13: 0.0311
B14: 1980 | D14: 0.1423 | G14: 0.1315 | J14: 0.0108
B15: 1981 | D15: 0.1522 | G15: 0.1562 | J15: -0.004
B16: 1982 | D16: 0.1578 | G16: 0.1533 | J16: 0.0045
B17: 1983 | D17: 0.1536 | G17: 0.1331 | J17: 0.0205
B18: 1984 | D18: 0.1532 | G18: 0.1403 | J18: 0.0129
B19: 1985 | D19: 0.152 | G19: 0.1229 | J19: 0.0291
B20: 1986 | D20: 0.1393 | G20: 0.0946 | J20: 0.0447
B21: 1987 | D21: 0.1299 | G21: 0.0998 | J21: 0.0301
B22: 1988 | D22: 0.1279 | G22: 0.1045 | J22: 0.0234
B23: 1989 | D23: 0.1297 | G23: 0.0966 | J23: 0.0331
B24: 1990 | D24: 0.127 | G24: 0.0976 | J24: 0.0294
B25: 1991 | D25: 0.1254 | G25: 0.0921 | J25: 0.0333
B26: 1992 | D26: 0.1209 | G26: 0.0857 | J26: 0.0352
B27: 1993 | D27: 0.1146 | G27: 0.0756 | J27: 0.039
B28: 1994 | D28: 0.1121 | G28: 0.083 | J28: 0.0291
B29: 1995 | D29: 0.1158 | G29: 0.0791 | J29: 0.0367
B30: 1996 | D30: 0.114 | G30: 0.0774 | J30: 0.0366
B31: 1997 | D31: 0.1133 | G31: 0.0763 | J31: 0.037
B32: 1998 | D32: 0.1177 | G32: 0.07 | J32: 0.0477
B33: 1999 | D33: 0.1072 | G33: 0.0755 | J33: 0.0317
B34: 2000 | D34: 0.1158 | G34: 0.0809 | J34: 0.0349
B35: 2001 | D35: 0.1107 | G35: 0.0772 | J35: 0.0335
B36: 2002 | D36: 0.1121 | G36: 0.0753 | J36: 0.0368
B37: 2003 | D37: 0.1096 | G37: 0.0661 | J37: 0.0435
B38: 2004 | D38: 0.1081 | G38: 0.062 | J38: 0.0461
B39: 2005 | D39: 0.1051 | G39: 0.0567 | J39: 0.0484
B40: =B39+1 -> 2006 | D40: 0.1032 | G40: 0.0608 | J40: 0.0424
B41: 2007 | D41: 0.103 | G41: 0.0611 | J41: 0.0419
B42: 2008 | D42: 0.1041 | G42: 0.0665 | J42: 0.0376
B43: 2009 | D43: 0.1052 | G43: 0.0628 | J43: 0.0424
B44: 2010 | D44: 0.1037 | G44: 0.0556 | J44: 0.0481
B45: 2011 | D45: 0.1029 | G45: 0.0513 | J45: 0.0516
B46: 2012 | D46: 0.1017 | G46: 0.0426 | J46: 0.0591
B47: 2013 | D47: 0.1003 | G47: 0.0455 | J47: 0.0548
B48: 2014 | D48: 0.0992 | G48: 0.0441 | J48: =D48-G48 -> 0.0551
B49: 2015 | D49: 0.0985 | G49: 0.0437 | J49: 0.0548
B50: 2016 | D50: 0.0977 | G50: 0.0411 | J50: 0.0566
B51: 2017 | D51: 0.0974 | G51: 0.0407 | J51: 0.0567
B52: 2018 | D52: 0.096 | G52: 0.0434 | J52: 0.0526
B53: 2019 | D53: 0.0965 | G53: 0.0386 | J53: 0.0579
B54: Average | D54: =AVERAGE(D8:D53) -> 0.1189282609 | G54: =AVERAGE(G8:G53) -> 0.08100434783 | J54: =AVERAGE(J8:J53) -> 0.03792391304
A57: (a) | B57: Major Rate Case Decisions, Regulatory Focus, Regulatory Research Associates; UtilityScope Regulatory Service, Argus.
A59: (b) | B59: Moody's Investors Service.

Sheet 8 (4)
A1: ='Exhibit List'!C17 -> ELECTRIC UTILITY RISK PREMIUM | I1: ='Exhibit List'!B17 -> Exhibit AMM-8
I2: Page 4 of 4
A3: ='Exhibit List'!D17 -> REGRESSION RESULTS
A29: SUMMARY OUTPUT
A31: Regression Statistics
A32: Multiple R | B32: 0.9371986777
A33: R Square | B33: 0.8783413615
A34: Adjusted R Square | B34: 0.8755763924
A35: Standard Error | B35: 0.004891037314
A36: Observations | B36: 46
A38: ANOVA
B39: df | C39: SS | D39: MS | E39: F | F39: Significance F
A40: Regression | B40: 1 | C40: 0.007599324872 | D40: 0.007599324872 | E40: 317.6677002 | F40: 9.500821578e-22
A41: Residual | B41: 44 | C41: 0.001052578824 | D41: 2.3922246e-05
A42: Total | B42: 45 | C42: 0.008651903696
B44: Coefficients | C44: Standard Error | D44: t Stat | E44: P-value | F44: Lower 95% | G44: Upper 95% | H44: Lower 95.0% | I44: Upper 95.0%
A45: Intercept | B45: 0.07294932031 | C45: 0.00209329415 | D45: 34.84905373 | E45: 1.108283864e-33 | F45: 0.06873056316 | G45: 0.07716807747 | H45: 0.06873056316 | I45: 0.07716807747
A46: X Variable 1 | B46: -0.4323892262 | C46: 0.02425986248 | D46: -17.82323484 | E46: 9.500821578e-22 | F46: -0.4812817663 | G46: -0.383496686 | H46: -0.4812817663 | I46: -0.383496686

Sheet 9
A1: ='Exhibit List'!C18 -> EXPECTED EARNINGS APPROACH | J1: ='Exhibit List'!B18 -> Exhibit AMM-9
J2: Page 1 of 1
A3: ='Exhibit List'!D18 -> UTILITY GROUP
D5: (a) | F5: (b) | H5: (c)
D6: Expected Return | F6: Adjustment | H6: Adjusted Return
B7: Company | D7: on Common Equity | F7: Factor | H7: on Common Equity
A8: =A7+1 -> 1 | B8: =VLOOKUP('Proxy Group Ticker'!$B3,vldatabase,2,FALSE) -> Alliant Energy | D8: =VLOOKUP('Proxy Group Ticker'!$B3,vldatabase,18,FALSE) -> 0.105 | F8: ='5'!I8 -> 1.017194182 | H8: =IF(F8="n/a","n/a",D8*F8) -> 0.1068053891 | M8: =IF(D8="n/a","n/a",IF(D8<$C$42,"LOW",IF(D8>$C$43,"HIGH",D8))) -> 0.105 | N8: =IF(H8="n/a","n/a",IF(H8<$C$42,"LOW",IF(H8>$C$43,"HIGH",H8))) -> 0.1068053891
A9: =A8+1 -> 2 | B9: =VLOOKUP('Proxy Group Ticker'!$B4,vldatabase,2,FALSE) -> Ameren Corp. | D9: =VLOOKUP('Proxy Group Ticker'!$B4,vldatabase,18,FALSE) -> 0.1 | F9: ='5'!I9 -> 1.040181467 | H9: =IF(F9="n/a","n/a",D9*F9) -> 0.1040181467 | M9: 0.1 | N9: 0.1040181467
A10: 3 | B10: =VLOOKUP('Proxy Group Ticker'!$B5,vldatabase,2,FALSE) -> American Elec Pwr | D10: =VLOOKUP('Proxy Group Ticker'!$B5,vldatabase,18,FALSE) -> 0.105 | F10: ='5'!I10 -> 1.029393497 | H10: 0.1080863171 | M10: 0.105 | N10: 0.1080863171
A11: 4 | B11: =VLOOKUP('Proxy Group Ticker'!$B6,vldatabase,2,FALSE) -> Avangrid, Inc. | D11: =VLOOKUP('Proxy Group Ticker'!$B6,vldatabase,18,FALSE) -> 0.06 | F11: ='5'!I11 -> 1.008980063 | H11: 0.06053880376 | M11: LOW | N11: LOW
A12: 5 | B12: =VLOOKUP('Proxy Group Ticker'!$B7,vldatabase,2,FALSE) -> Black Hills Corp. | D12: =VLOOKUP('Proxy Group Ticker'!$B7,vldatabase,18,FALSE) -> 0.09 | F12: ='5'!I12 -> 1.024606772 | H12: 0.09221460948 | M12: 0.09 | N12: 0.09221460948
A13: 6 | B13: =VLOOKUP('Proxy Group Ticker'!$B8,vldatabase,2,FALSE) -> CMS Energy Corp. | D13: =VLOOKUP('Proxy Group Ticker'!$B8,vldatabase,18,FALSE) -> 0.135 | F13: ='5'!I13 -> 1.04213902 | H13: 0.1406887677 | M13: 0.135 | N13: 0.1406887677
A14: 7 | B14: =VLOOKUP('Proxy Group Ticker'!$B9,vldatabase,2,FALSE) -> Consolidated Edison | D14: =VLOOKUP('Proxy Group Ticker'!$B9,vldatabase,18,FALSE) -> 0.085 | F14: ='5'!I14 -> 1.018317718 | H14: 0.08655700602 | M14: 0.085 | N14: 0.08655700602
A15: 8 | B15: =VLOOKUP('Proxy Group Ticker'!$B10,vldatabase,2,FALSE) -> Dominion Energy | D15: =VLOOKUP('Proxy Group Ticker'!$B10,vldatabase,18,FALSE) -> 0.135 | F15: ='5'!I15 -> 1.022565937 | H15: 0.1380464015 | M15: 0.135 | N15: 0.1380464015
A16: 9 | B16: =VLOOKUP('Proxy Group Ticker'!$B11,vldatabase,2,FALSE) -> DTE Energy Co. | D16: =VLOOKUP('Proxy Group Ticker'!$B11,vldatabase,18,FALSE) -> 0.105 | F16: ='5'!I16 -> 1.031339256 | H16: 0.1082906219 | M16: 0.105 | N16: 0.1082906219
A17: 10 | B17: =VLOOKUP('Proxy Group Ticker'!$B12,vldatabase,2,FALSE) -> Duke Energy Corp. | D17: =VLOOKUP('Proxy Group Ticker'!$B12,vldatabase,18,FALSE) -> 0.085 | F17: ='5'!I17 -> 1.020945659 | H17: 0.08678038098 | M17: 0.085 | N17: 0.08678038098
A18: 11 | B18: =VLOOKUP('Proxy Group Ticker'!$B13,vldatabase,2,FALSE) -> Entergy Corp. | D18: =VLOOKUP('Proxy Group Ticker'!$B13,vldatabase,18,FALSE) -> 0.11 | F18: ='5'!I18 -> 1.026794665 | H18: 0.1129474131 | M18: 0.11 | N18: 0.1129474131
A19: 12 | B19: =VLOOKUP('Proxy Group Ticker'!$B14,vldatabase,2,FALSE) -> Evergy Inc. | D19: =VLOOKUP('Proxy Group Ticker'!$B14,vldatabase,18,FALSE) -> 0.085 | F19: ='5'!I19 -> 1.012902137 | H19: 0.08609668162 | M19: 0.085 | N19: 0.08609668162
A20: 13 | B20: =VLOOKUP('Proxy Group Ticker'!$B15,vldatabase,2,FALSE) -> Eversource Energy | D20: =VLOOKUP('Proxy Group Ticker'!$B15,vldatabase,18,FALSE) -> 0.095 | F20: ='5'!I20 -> 1.033831403 | H20: 0.09821398332 | M20: 0.095 | N20: 0.09821398332
A21: 14 | B21: =VLOOKUP('Proxy Group Ticker'!$B16,vldatabase,2,FALSE) -> Exelon Corp. | D21: =VLOOKUP('Proxy Group Ticker'!$B16,vldatabase,18,FALSE) -> 0.09 | F21: ='5'!I21 -> 1.025958171 | H21: 0.09233623536 | M21: 0.09 | N21: 0.09233623536
A22: 15 | B22: =VLOOKUP('Proxy Group Ticker'!$B17,vldatabase,2,FALSE) -> Fortis Inc. | D22: =VLOOKUP('Proxy Group Ticker'!$B17,vldatabase,18,FALSE) -> 0.07 | F22: ='5'!I22 -> 1.02085028 | H22: 0.07145951963 | M22: 0.07 | N22: 0.07145951963
A23: 16 | B23: =VLOOKUP('Proxy Group Ticker'!$B18,vldatabase,2,FALSE) -> NextEra Energy, Inc. | D23: =VLOOKUP('Proxy Group Ticker'!$B18,vldatabase,18,FALSE) -> 0.13 | F23: ='5'!I23 -> 1.02711608 | H23: =IF(F23="n/a","n/a",D23*F23) -> 0.1335250904 | M23: =IF(D23="n/a","n/a",IF(D23<$C$42,"LOW",IF(D23>$C$43,"HIGH",D23))) -> 0.13 | N23: =IF(H23="n/a","n/a",IF(H23<$C$42,"LOW",IF(H23>$C$43,"HIGH",H23))) -> 0.1335250904
A24: 17 | B24: =VLOOKUP('Proxy Group Ticker'!$B19,vldatabase,2,FALSE) -> OGE Energy Corp. | D24: =VLOOKUP('Proxy Group Ticker'!$B19,vldatabase,18,FALSE) -> 0.11 | F24: ='5'!I24 -> 1.016754229 | H24: 0.1118429652 | M24: 0.11 | N24: 0.1118429652
A25: 18 | B25: =VLOOKUP('Proxy Group Ticker'!$B20,vldatabase,2,FALSE) -> PPL Corp. | D25: =VLOOKUP('Proxy Group Ticker'!$B20,vldatabase,18,FALSE) -> 0.135 | F25: ='5'!I25 -> 1.029398168 | H25: 0.1389687527 | M25: 0.135 | N25: 0.1389687527
A26: 19 | B26: =VLOOKUP('Proxy Group Ticker'!$B21,vldatabase,2,FALSE) -> Pub Sv Enterprise Grp. | D26: =VLOOKUP('Proxy Group Ticker'!$B21,vldatabase,18,FALSE) -> 0.11 | F26: ='5'!I26 -> 1.025239091 | H26: 0.1127763 | M26: 0.11 | N26: 0.1127763
A27: 20 | B27: =VLOOKUP('Proxy Group Ticker'!$B22,vldatabase,2,FALSE) -> Sempra Energy | D27: =VLOOKUP('Proxy Group Ticker'!$B22,vldatabase,18,FALSE) -> 0.11 | F27: ='5'!I27 -> 1.052916658 | H27: 0.1158208324 | M27: 0.11 | N27: 0.1158208324
A28: 21 | B28: =VLOOKUP('Proxy Group Ticker'!$B23,vldatabase,2,FALSE) -> Southern Company | D28: =VLOOKUP('Proxy Group Ticker'!$B23,vldatabase,18,FALSE) -> 0.13 | F28: ='5'!I28 -> 1.02172638 | H28: 0.1328244294 | M28: 0.13 | N28: 0.1328244294
A29: 22 | B29: =VLOOKUP('Proxy Group Ticker'!$B24,vldatabase,2,FALSE) -> WEC Energy Group | D29: =VLOOKUP('Proxy Group Ticker'!$B24,vldatabase,18,FALSE) -> 0.125 | F29: ='5'!I29 -> 1.017015228 | H29: 0.1271269035 | M29: 0.125 | N29: 0.1271269035
A30: 23 | B30: =VLOOKUP('Proxy Group Ticker'!$B25,vldatabase,2,FALSE) -> Xcel Energy Inc. | D30: =VLOOKUP('Proxy Group Ticker'!$B25,vldatabase,18,FALSE) -> 0.11 | F30: ='5'!I30 -> 1.030565857 | H30: 0.1133622443 | M30: 0.11 | N30: 0.1133622443
B32: Average (d) | D32: =AVERAGE(M8:M30) -> 0.1070454545 | H32: =AVERAGE(N8:N30) -> 0.1099449542 | L32: Min | M32: =MIN(M8:M30) -> 0.07 | N32: =MIN(N8:N30) -> 0.07145951963
B33: Midpoint (d, e) | D33: =AVERAGE(M32:M33) -> 0.1025 | H33: =AVERAGE(N32:N33) -> 0.1060741437 | L33: Max | M33: =MAX(M8:M30) -> 0.135 | N33: =MAX(N8:N30) -> 0.1406887677
A36: (a) | B36: ='Electric Utility Data'!$B$51 -> The Value Line Investment Survey (Feb. 14, Mar. 13 and Apr. 24, 2020).
A37: (b) | B37: ="Adjustment to convert year-end return to an average rate of return from "&'5'!Q1 &"." -> Adjustment to convert year-end return to an average rate of return from Exhibit AMM-5.
A38: (c) | B38: (a) x (b).
A39: (d) | B39: Excludes highlighted figures.
A40: (e) | B40: Average of low and high values.
A42: Threshold Min | C42: ='4 (3)'!D40 -> 0.065
A43: Threshold Max | C43: ='4 (3)'!D41 -> 0.15

Sheet 10
A1: ='Exhibit List'!C19 -> FLOTATION COST STUDY | U1: ='Exhibit List'!B19 -> Exhibit AMM-10
U2: Page 1 of 1
A3: ='Exhibit List'!D19 -> VALUE LINE ELECTRIC INDUSTRY
E5: -1 | G5: =E5-1 -> -2 | I5: =G5-1 -> -3 | K5: =I5-1 -> -4 | M5: =K5-1 -> -5 | O5: =M5-1 -> -6 | Q5: =O5-1 -> -7 | S5: =Q5-1 -> -8 | U5: =S5-1 -> -9
K6: Underwriting | Q6: Total | S6: Gross Proceeds | U6: Flotation
G7: Shares | I7: Offering | K7: Discount | M7: Underwriting | O7: Offering | Q7: Flotation | S7: Before Flot. | U7: Cost | W7: Latest | X7: Net
A8: No. | B8: Sym | C8: Company | E8: Date | G8: Issued | I8: Price | K8: (per share) | M8: Discount | O8: Expense | Q8: Costs | S8: Costs | U8: (%) | W8: Price | X8: Proceeds
A9: 1 | B9: ALE | C9: ALLETE | E9: 2014-02-27 | G9: 3220000 | I9: 49.75 | K9: 1.74125 | M9: =G9*K9 -> 5606825 | O9: 450000 | Q9: =O9+M9 -> 6056825 | S9: =I9*G9 -> 160195000 | U9: =Q9/S9 -> 0.03780907644
A10: =A9+1 -> 2 | B10: LNT | C10: Alliant Energy | E10: 2019-11-14 | G10: 3717502 | I10: 52.63 | K10: 0.395 | M10: =G10*K10 -> 1468413.29 | O10: 500000 | Q10: =O10+M10 -> 1968413.29 | S10: =I10*G10 -> 195652130.3 | U10: =Q10/S10 -> 0.01006078128
A11: 3 | B11: AEE | C11: Ameren Corp. | E11: 2019-08-05 | G11: 7549205 | I11: 74.3 | K11: 0.12 | M11: 905904.6 | O11: 750000 | Q11: 1655904.6 | S11: 560905931.5 | U11: 0.002952196629
A12: 4 | B12: AEP | C12: American Elec Pwr | E12: 2009-04-02 | G12: =60000000+9000000 -> 69000000 | I12: 24.5 | K12: 0.735 | M12: 50715000 | O12: 400000 | Q12: 51115000 | S12: 1690500000 | U12: 0.03023661639
A13: 5 | B13: AGR | C13: Avangrid, Inc. | E13: N/A
A14: 6 | B14: AVA | C14: Avista Corp. | E14: 2006-12-13 | G14: =2750000+412500 -> 3162500 | I14: 25.05 | K14: 0.48 | M14: 1518000 | O14: 300000 | Q14: 1818000 | S14: 79220625 | U14: 0.02294856926
A15: 7 | B15: BKH | C15: Black Hills Corp. | E15: 2015-11-19 | G15: =5500000+825000 -> 6325000 | I15: 40.25 | K15: 1.40875 | M15: 8910343.75 | O15: 1200000 | Q15: 10110343.75 | S15: 254581250 | U15: 0.03971362286
A16: 8 | B16: CNP | C16: CenterPoint Energy | E16: 2018-09-27 | G16: 60550459 | I16: 27.25 | K16: 0.75 | M16: 45412844.25 | O16: 1000000 | Q16: 46412844.25 | S16: 1650000008 | U16: 0.02812899638
A17: 9 | B17: CMS | C17: CMS Energy Corp. | E17: 2005-03-31 | G17: =20000000+3000000 -> 23000000 | I17: 12.25 | K17: 0.4288 | M17: 9862400 | O17: 325000 | Q17: 10187400 | S17: 281750000 | U17: 0.03615758651
A18: 10 | B18: ED | C18: Consolidated Edison (a) | E18: 2019-05-07 | G18: 5800000 | I18: 84.83 | K18: =W18-I18 -> 0.59 | M18: 3422000 | O18: 400000 | Q18: 3822000 | S18: 492014000 | U18: 0.00776807164 | W18: 85.42 | X18: =S18-M18-O18 -> 488192000
A19: 11 | B19: D | C19: Dominion Energy (a) | E19: 2018-03-29 | G19: 20000000 | I19: 67.3258 | K19: =W19-I19 -> 1.8942 | M19: 37884000 | O19: 450000 | Q19: 38334000 | S19: 1346516000 | U19: 0.02846902673 | W19: 69.22 | X19: =S19-M19-O19 -> 1308182000
A20: 12 | B20: DTE | C20: DTE Energy Co. | E20: 2019-10-29 | G20: 2400000 | I20: 126 | K20: 3.15 | M20: 7560000 | O20: 300000 | Q20: 7860000 | S20: 302400000 | U20: 0.02599206349
A21: 13 | B21: DUK | C21: Duke Energy Corp. (a) | E21: 2019-11-18 | G21: 25000000 | I21: 85.99 | K21: =W21-I21 -> 2.66 | M21: 66500000 | O21: 592000 | Q21: 67092000 | S21: 2149750000 | U21: 0.03120921037 | W21: 88.65 | X21: =S21-M21-O21 -> 2082658000
A22: 14 | B22: EIX | C22: Edison International | E22: 2019-07-30 | G22: 28000000 | I22: 68.5 | K22: 1.626875 | M22: =G22*K22 -> 45552500 | O22: 725000 | Q22: =O22+M22 -> 46277500 | S22: =I22*G22 -> 1918000000 | U22: =Q22/S22 -> 0.02412799791
A23: 15 | B23: EE | C23: El Paso Electric Co. | E23: N/A
A24: 16 | B24: ETR | C24: Entergy Corp. | E24: 2018-06-08 | G24: 13289037 | I24: 75.25 | K24: 0.8 | M24: =G24*K24 -> 10631229.6 | O24: 650000 | Q24: =O24+M24 -> 11281229.6 | S24: =I24*G24 -> 1000000034 | U24: =Q24/S24 -> 0.01128122921
A25: 17 | B25: EVRG | C25: Evergy Inc. | E25: N/A
A26: 18 | B26: ES | C26: Eversource Energy | E26: 2019-05-30 | G26: 15600000 | I26: 71.48 | K26: =W26-I26 -> 1.69 | M26: 26364000 | O26: 615000 | Q26: 26979000 | S26: 1115088000 | U26: 0.02419450303 | W26: 73.17 | X26: =S26-M26-O26 -> 1088109000
A27: 19 | B27: EXC | C27: Exelon Corp. | E27: 2014-06-13 | G27: =50000000+7500000 -> 57500000 | I27: 35 | K27: 1.05 | M27: 60375000 | O27: 600000 | Q27: 60975000 | S27: 2012500000 | U27: 0.03029813665
A28: 20 | B28: FE | C28: FirstEnergy Corp. | E28: 2003-09-15 | G28: =28000000+4200000 -> 32200000 | I28: 30 | K28: 0.975 | M28: 31395000 | O28: 423000 | Q28: 31818000 | S28: 966000000 | U28: 0.0329378882
A29: 21 | B29: FTS | C29: Fortis Inc. | E29: N/A
A30: 22 | B30: HE | C30: Hawaiian Elec. | E30: 2013-03-20 | G30: =6100000+900000 -> 7000000 | I30: 26.75 | K30: 1.00312 | M30: 7021840 | O30: 450000 | Q30: 7471840 | S30: 187250000 | U30: 0.03990301736
A31: 23 | B31: IDA | C31: IDACORP, Inc. | E31: 2004-12-10 | G31: =3500000+525000 -> 4025000 | I31: 30 | K31: 1.2 | M31: 4830000 | O31: 300000 | Q31: 5130000 | S31: 120750000 | U31: 0.04248447205
A32: 24 | B32: MGEE | C32: MGE Energy | E32: 2004-09-10 | G32: =1100000+165000 -> 1265000 | I32: 31.85 | K32: 1.035 | M32: 1309275 | O32: 125000 | Q32: 1434275 | S32: 40290250 | U32: 0.03559856293
A33: 25 | B33: NEE | C33: NextEra Energy, Inc. (a) | E33: 2016-11-03 | G33: =12000000+1800000 -> 13800000 | I33: 124 | K33: =W33-I33 -> 1.89 | M33: 26082000 | O33: 750000 | Q33: 26832000 | S33: 1711200000 | U33: 0.0156802244 | W33: 125.89 | X33: =S33-M33-O33 -> 1684368000
A34: 26 | B34: NWE | C34: NorthWestern Corp. (a) | E34: 2015-09-30 | G34: 1100000 | I34: 51.81 | K34: =W34-I34 -> 1.33 | M34: 1463000 | O34: 1000000 | Q34: 2463000 | S34: 56991000 | U34: 0.04321735011 | W34: 53.14 | X34: =S34-M34-O34 -> 54528000
A35: 27 | B35: OGE | C35: OGE Energy Corp. | E35: 2003-08-22 | G35: =4650000+674074 -> 5324074 | I35: 21.6 | K35: 0.79 | M35: 4206018.46 | O35: 325000 | Q35: 4531018.46 | S35: 114999998.4 | U35: 0.03940016107
A36: 28 | B36: OTTR | C36: Otter Tail Corp. | E36: N/A
A37: 29 | B37: PNW | C37: Pinnacle West Capital | E37: 2010-04-09 | G37: =6000000+900000 -> 6900000 | I37: 38 | K37: 1.33 | M37: 9177000 | O37: 190000 | Q37: 9367000 | S37: 262200000 | U37: 0.03572463768
A38: 30 | B38: PNM | C38: PNM Resources | E38: 2020-01-07 | G38: 5375000 | I38: 47.21 | K38: =W38-I38 -> 1.99 | M38: 10696250 | O38: 750000 | Q38: 11446250 | S38: 253753750 | U38: 0.04510770777 | W38: 49.2 | X38: =S38-M38-O38 -> 242307500
A39: =A38+1 -> 31 | B39: POR | C39: Portland General Elec. | E39: 2013-06-13 | G39: =11100000+1665000 -> 12765000 | I39: 29.5 | K39: 0.95875 | M39: 12238443.75 | O39: 600000 | Q39: 12838443.75 | S39: 376567500 | U39: 0.03409333984
A40: 32 | B40: PPL | C40: PPL Corp. | E40: 2018-05-10 | G40: 55000000 | I40: 27 | K40: 0.2943 | M40: 16186500 | O40: 1000000 | Q40: 17186500 | S40: 1485000000 | U40: 0.01157340067
A41: 33 | B41: PEG | C41: Pub Sv Enterprise Grp. | E41: 2003-10-02 | G41: =8250000+1237500 -> 9487500 | I41: 41.75 | K41: 1.2525 | M41: 11883093.75 | O41: 350000 | Q41: 12233093.75 | S41: 396103125 | U41: 0.03088360828
A42: 34 | B42: SRE | C42: Sempra Energy | E42: 2018-01-05 | G42: =23364486+3504672 -> 26869158 | I42: 107 | K42: 1.926 | M42: 51749998.31 | O42: 1500000 | Q42: 53249998.31 | S42: 2874999906 | U42: 0.01852173915
A43: 35 | B43: SO | C43: Southern Company (a) | E43: 2016-08-18 | G43: 32500000 | I43: 49.3 | K43: =W43-I43 -> 1.66 | M43: 53950000 | O43: 557000 | Q43: 54507000 | S43: 1602250000 | U43: 0.03401903573 | W43: 50.96 | X43: =S43-M43-O43 -> 1547743000
A44: 36 | B44: WEC | C44: WEC Energy Group | E44: N/A
A45: 37 | B45: XEL | C45: Xcel Energy Inc. (a) | E45: 2019-10-30 | G45: 10300000 | I45: 62.69 | K45: =W45-I45 -> 0.63 | M45: 6489000 | O45: 650000 | Q45: 7139000 | S45: 645707000 | U45: 0.0110560982 | W45: 63.32 | X45: =S45-M45-O45 -> 638568000
C46: Average | U46: =AVERAGE(U9:U45) -> 0.02779190091
A49: 1 | B49: ATO | C49: Atmos Energy Corp. | E49: 2018-11-30 | G49: 7008087 | I49: 92.75 | K49: 0.9769 | M49: =G49*K49 -> 6846200.19 | O49: 1000000 | Q49: =O49+M49 -> 7846200.19 | S49: =I49*G49 -> 650000069.2 | U49: =Q49/S49 -> 0.01207107593
A50: =A49+1 -> 2 | B50: CPK | C50: Chesapeake Utilities | E50: 2016-09-23 | G50: 960488 | I50: 62.26 | K50: 2.33 | M50: =G50*K50 -> 2237937.04 | O50: =S50-X50-M50 -> 162045.84 | Q50: =O50+M50 -> 2399982.88 | S50: =I50*G50 -> 59799982.88 | U50: 0.04013350447 | X50: 57400000
A51: =A50+1 -> 3 | B51: NJR | C51: New Jersey Resources | E51: 2019-12-04 | G51: 5700000 | I51: 41.25 | K51: 1.2375 | M51: =G51*K51 -> 7053750 | O51: 500000 | Q51: =M51+O51 -> 7553750 | S51: =I51*G51 -> 235125000 | U51: =Q51/S51 -> 0.03212652844
A52: 4 | B52: NI | C52: NiSource Inc. | E52: 2017-05-03 | G52: N/A | I52: N/A | K52: N/A | M52: =0.02*S52 -> 10000000 | O52: 57950 | Q52: =M52+O52 -> 10057950 | S52: 500000000 | U52: 0.0201159
A53: 5 | B53: NWN | C53: Northwest Nat. Holding Co. | E53: 2019-06-04 | G53: 1250000 | I53: 67 | K53: 2.1775 | M53: =G53*K53 -> 2721875 | O53: 400000 | Q53: =M53+O53 -> 3121875 | S53: =I53*G53 -> 83750000 | U53: 0.0372761194
A54: 6 | B54: OGS | C54: ONE Gas, Inc. | E54: N/A
A55: 7 | B55: SJI | C55: South Jersey Industries | E55: 2018-04-20 | G55: 11016949 | I55: 29.5 | K55: 1.0325 | M55: =G55*K55 -> 11374999.84 | O55: 700000 | Q55: =M55+O55 -> 12074999.84 | S55: =I55*G55 -> 324999995.5 | U55: 0.03715384618
A56: 8 | B56: SWX | C56: Southwest Gas | E56: 2018-11-28 | G56: 3100000 | I56: 75.5 | K56: 2.5481 | M56: =G56*K56 -> 7899110 | O56: 600000 | Q56: =M56+O56 -> 8499110 | S56: =I56*G56 -> 234050000 | U56: 0.03631322367
A57: 9 | B57: SR | C57: Spire Inc. | E57: 2018-05-09 | G57: 2000000 | H57: 0.6875 | I57: 63.05 | K57: 2.10938 | M57: =G57*K57 -> 4218760 | O57: 325000 | Q57: =M57+O57 -> 4543760 | S57: =I57*G57 -> 126100000 | U57: 0.03603298969
A58: 10 | B58: UGI | C58: UGI Corporation | E58: 2004-03-18 | G58: 8625000 | I58: 32.1 | K58: 1.4044 | M58: =G58*K58 -> 12112950 | O58: =S58-X58-M58 -> 1149550 | Q58: =M58+O58 -> 13262500 | S58: =G58*I58 -> 276862500 | U58: 0.04790283986 | X58: 263600000
C59: Average | U59: =AVERAGE(U49:U58) -> 0.03323622529
C61: Average - Electric & Gas | U61: =AVERAGE(U9:U45,U49:U58) -> 0.0290168739
B63: Column Notes:
B64: (1-4) | C64: SEC Form 424B for each company.
B65: (5) | C65: Column (2) * Column (4)
B66: (6) | C66: SEC Form 424B for each company.
B67: (7) | C67: Column (5) + Column (6)
B68: (8) | C68: Column (2) * Column (3)
B69: (9) | C69: Column (7) / Column (8)
B70: Note (a): | C70: Underwriting discount computed as the difference between the current market price and the price offered to the issuing company by the underwriters.

Sheet 11 (1)
A1: ='Exhibit List'!C20 -> DCF MODEL - NON-UTILITY GROUP | J1: ='Exhibit List'!B20 -> Exhibit AMM-11
J2: Page 1 of 3
A3: ='Exhibit List'!D20 -> DIVIDEND YIELD
E5: (a) | G5: (b)
B6: Company | C6: Industry Group | E6: Price | G6: Dividends | I6: Yield
A7: 1 | B7: Allstate Corp. | C7: Insurance (Prop/Cas.) | E7: ='Stock Price (Non-Utility)'!C$34 -> 94.50899953 | G7: 2.16 | I7: =G7/E7 -> 0.02285496631
A8: =A7+1 -> 2 | B8: Amdocs Ltd. | C8: IT Services | E8: ='Stock Price (Non-Utility)'!D$34 -> 58.04133343 | G8: 1.31 | I8: 0.0225701224
A9: =A8+1 -> 3 | B9: Amer. Tower 'A' | C9: Wireless Networking | E9: ='Stock Price (Non-Utility)'!E$34 -> 232.4386663 | G9: 4.58 | I9: 0.01970412269
A10: 4 | B10: AT&T Inc. | C10: Telecom. Services | E10: ='Stock Price (Non-Utility)'!F$34 -> 29.7086666 | G10: 2.09 | I10: 0.07034984195
A11: 5 | B11: AvalonBay Communities | C11: R.E.I.T. | E11: ='Stock Price (Non-Utility)'!G$34 -> 152.7873334 | G11: 6.44 | I11: 0.04215009095
A12: 6 | B12: Bristol-Myers Squibb | C12: Drug | E12: ='Stock Price (Non-Utility)'!H$34 -> 57.2810001 | G12: 1.8 | I12: 0.03142403235
A13: 7 | B13: Brown-Forman 'B' | C13: Beverage | E13: ='Stock Price (Non-Utility)'!I$34 -> 58.21599973 | G13: 0.7 | I13: 0.01202418585
A14: 8 | B14: Campbell Soup | C14: Food Processing | E14: ='Stock Price (Non-Utility)'!J$34 -> 48.0656667 | G14: 1.4 | I14: =G14/E14 -> 0.02912681954
A15: 9 | B15: Cboe Global Markets | C15: Brokers & Exchanges | E15: ='Stock Price (Non-Utility)'!K$34 -> 93.51233313 | G15: 1.44 | I15: 0.01539903831
A16: 10 | B16: Church & Dwight | C16: Household Products | E16: ='Stock Price (Non-Utility)'!L$34 -> 67.98933373 | G16: 0.96 | I16: =G16/E16 -> 0.01411986186
A17: 11 | B17: Clorox Co. | C17: Household Products | E17: ='Stock Price (Non-Utility)'!M$34 -> 183.1939997 | G17: 4.24 | I17: 0.02314486286
A18: 12 | B18: CME Group | C18: Brokers & Exchanges | E18: ='Stock Price (Non-Utility)'!N$34 -> 176.061 | G18: 3.4 | I18: 0.01931148863
A19: 13 | B19: Coca-Cola | C19: Beverage | E19: ='Stock Price (Non-Utility)'!O$34 -> 45.0669999 | G19: 1.64 | I19: 0.03639026347
A20: 14 | B20: Colgate-Palmolive | C20: Household Products | E20: ='Stock Price (Non-Utility)'!P$34 -> 68.5290007 | G20: 1.76 | I20: 0.02568255749
A21: 15 | B21: Equity Residential | C21: R.E.I.T. | E21: ='Stock Price (Non-Utility)'!Q$34 -> 62.1420005 | G21: 2.43 | I21: 0.03910398733
A22: 16 | B22: Federal Rlty. Inv. Trust | C22: R.E.I.T. | E22: ='Stock Price (Non-Utility)'!R$34 -> 75.10666713 | G22: 4.24 | I22: 0.05645304421
A23: 17 | B23: Gen'l Mills | C23: Food Processing | E23: ='Stock Price (Non-Utility)'!S$34 -> 56.52533283 | G23: 1.99 | I23: 0.03520545391
A24: 18 | B24: Hershey Co. | C24: Food Processing | E24: ='Stock Price (Non-Utility)'!T$34 -> 136.0566671 | G24: 3.25 | I24: 0.02388710578
A25: 19 | B25: Hormel Foods | C25: Food Processing | E25: ='Stock Price (Non-Utility)'!U$34 -> 47.08799937 | G25: 0.98 | I25: 0.02081209678
A26: 20 | B26: Intercontinental Exch. | C26: Brokers & Exchanges | E26: ='Stock Price (Non-Utility)'!V$34 -> 84.21566593 | G26: 1.2 | I26: 0.01424913033
A27: 21 | B27: Johnson & Johnson | C27: Med Supp Non-Invasive | E27: ='Stock Price (Non-Utility)'!W$34 -> 139.848332 | G27: 4.04 | I27: 0.02888843894
A28: 22 | B28: Kellogg | C28: Food Processing | E28: ='Stock Price (Non-Utility)'!X$34 -> 62.22933307 | G28: 2.3 | I28: 0.03696006187
A29: 23 | B29: Kimberly-Clark | C29: Household Products | E29: ='Stock Price (Non-Utility)'!Y$34 -> 132.6273333 | G29: 4.28 | I29: 0.03227087428
A30: 24 | B30: Lilly (Eli) | C30: Drug | E30: ='Stock Price (Non-Utility)'!Z$34 -> 145.2126661 | G30: 2.96 | I30: 0.0203838968
A31: 25 | B31: Lockheed Martin | C31: Aerospace/Defense | E31: ='Stock Price (Non-Utility)'!AA$34 -> 359.4920013 | G31: 9.8 | I31: 0.02726068998
A32: 26 | B32: McCormick & Co. | C32: Food Processing | E32: ='Stock Price (Non-Utility)'!AB$34 -> 146.2263326 | G32: 2.48 | I32: 0.01696000957
A33: 27 | B33: McDonald's Corp. | C33: Restaurant | E33: ='Stock Price (Non-Utility)'!AC$34 -> 173.9453333 | G33: 5.1 | I33: 0.02931955634
A34: 28 | B34: Northrop Grumman | C34: Aerospace/Defense | E34: ='Stock Price (Non-Utility)'!AD$34 -> 324.7099966 | G34: 5.28 | I34: 0.01626066353
A35: 29 | B35: PepsiCo, Inc. | C35: Beverage | E35: ='Stock Price (Non-Utility)'!AE$34 -> 127.4336667 | G35: 4.09 | I35: 0.03209512922
A36: 30 | B36: Procter & Gamble | C36: Household Products | E36: ='Stock Price (Non-Utility)'!AF$34 -> 114.4769997 | G36: 3.16 | I36: 0.02760379822
A37: 31 | B37: Public Storage | C37: R.E.I.T. | E37: ='Stock Price (Non-Utility)'!AG$34 -> 191.1089992 | G37: 8 | I37: 0.04186092771
A38: 32 | B38: Realty Income Corp. | C38: R.E.I.T. | E38: ='Stock Price (Non-Utility)'!AH$34 -> 51.19899997 | G38: 2.83 | I38: 0.05527451712
A39: 33 | B39: Republic Services | C39: Environmental | E39: ='Stock Price (Non-Utility)'!AI$34 -> 76.20733317 | G39: 1.68 | I39: 0.02204512256
A40: 34 | B40: Smucker (J.M.) | C40: Food Processing | E40: ='Stock Price (Non-Utility)'!AJ$34 -> 112.8270004 | G40: 3.55 | I40: 0.0314640998
A41: 35 | B41: Sysco Corp. | C41: Retail/Wholesale Food | E41: ='Stock Price (Non-Utility)'!AK$34 -> 47.71733317 | G41: 1.8 | I41: 0.03772214163
A42: 36 | B42: Verizon Communic. | C42: Telecom. Services | E42: ='Stock Price (Non-Utility)'!AL$34 -> 55.7666668 | G42: 2.47 | I42: 0.04429169147
A43: 37 | B43: Walmart Inc. | C43: Retail Store | E43: ='Stock Price (Non-Utility)'!AM$34 -> 122.1786672 | G43: 2.16 | I43: 0.01767902736
A44: 38 | B44: Waste Management | C44: Environmental | E44: ='Stock Price (Non-Utility)'!AN$34 -> 95.96199997 | G44: 2.18 | I44: 0.02271732562
B46: Average | I46: =AVERAGE(I7:I44) -> 0.02934265908
A49: (a) | B49: ='Stock Price (Non-Utility)'!B37 -> Average of closing prices for 30 trading days ended May 1, 2020.
A50: (b) | B50: The Value Line Investment Survey, Summary & Index (May 1, 2020).

Sheet 11 (2)
A1: ='Exhibit List'!C21 -> DCF MODEL - NON-UTILITY GROUP | I1: ='Exhibit List'!B21 -> Exhibit AMM-11
I2: Page 2 of 3
A3: ='Exhibit List'!D21 -> GROWTH RATES
D5: (a) | F5: (b) | H5: (c)
D6: Earnings Growth
B7: Company | D7: V Line | F7: IBES | H7: Zacks
A8: =A7+1 -> 1 | B8: ='11 (1)'!B7 -> Allstate Corp. | D8: 0.09 | F8: -0.0074 | H8: 0.075
A9: 2 | B9: ='11 (1)'!B8 -> Amdocs Ltd. | D9: 0.1 | F9: 0.056 | H9: 0.085
A10: 3 | B10: ='11 (1)'!B9 -> Amer. Tower 'A' | D10: 0.075 | F10: 0.2045 | H10: 0.1471
A11: 4 | B11: ='11 (1)'!B10 -> AT&T Inc. | D11: 0.055 | F11: 0.034 | H11: 0.0553
A12: 5 | B12: ='11 (1)'!B11 -> AvalonBay Communities | D12: =ROUND((8.4/AVERAGE(6.35,7.05,5.63))^(1/6)-1,3) -> 0.048 | F12: 0.0254 | H12: 0.0466
A13: 6 | B13: ='11 (1)'!B12 -> Bristol-Myers Squibb | D13: 0.09 | F13: 0.1215 | H13: 0.0856
A14: 7 | B14: ='11 (1)'!B13 -> Brown-Forman 'B' | D14: 0.11 | F14: 0.0345 | H14: n/a
A15: 8 | B15: ='11 (1)'!B14 -> Campbell Soup | D15: 0.02 | F15: 0.0275 | H15: 0.0716
A16: 9 | B16: ='11 (1)'!B15 -> Cboe Global Markets | D16: 0.125 | F16: 0.0324 | H16: 0.0229
A17: 10 | B17: ='11 (1)'!B16 -> Church & Dwight | D17: 0.09 | F17: 0.0798 | H17: 0.0821
A18: 11 | B18: ='11 (1)'!B17 -> Clorox Co. | D18: 0.025 | F18: 0.0428 | H18: 0.0524
A19: 12 | B19: ='11 (1)'!B18 -> CME Group | D19: 0.025 | F19: 0.0513 | H19: 0.049
A20: 13 | B20: ='11 (1)'!B19 -> Coca-Cola | D20: 0.065 | F20: 0.0186 | H20: 0.0591
A21: 14 | B21: ='11 (1)'!B20 -> Colgate-Palmolive | D21: 0.055 | F21: 0.0524 | H21: 0.0547
A22: 15 | B22: ='11 (1)'!B21 -> Equity Residential | D22: =ROUND((2.15/AVERAGE(1.63,1.77,2.6))^(1/6)-1,3) -> 0.012 | F22: 0.061 | H22: 0.052
A23: 16 | B23: ='11 (1)'!B22 -> Federal Rlty. Inv. Trust | D23: =ROUND((4.25/AVERAGE(3.97,3.18,4.61))^(1/6)-1,3) -> 0.014 | F23: 0.067 | H23: 0.0328
A24: 17 | B24: ='11 (1)'!B23 -> Gen'l Mills | D24: 0.04 | F24: 0.0569 | H24: 0.075
A25: 18 | B25: ='11 (1)'!B24 -> Hershey Co. | D25: 0.045 | F25: 0.0685 | H25: 0.0767
A26: 19 | B26: ='11 (1)'!B25 -> Hormel Foods | D26: 0.085 | F26: 0.04 | H26: 0.06
A27: 20 | B27: ='11 (1)'!B26 -> Intercontinental Exch. | D27: 0.09 | F27: 0.0905 | H27: 0.077
A28: 21 | B28: ='11 (1)'!B27 -> Johnson & Johnson | D28: 0.12 | F28: 0.048 | H28: 0.06
A29: 22 | B29: ='11 (1)'!B28 -> Kellogg | D29: 0.03 | F29: 0.0216 | H29: 0.0383
A30: 23 | B30: ='11 (1)'!B29 -> Kimberly-Clark | D30: 0.07 | F30: 0.0548 | H30: 0.0504
A31: 24 | B31: ='11 (1)'!B30 -> Lilly (Eli) | D31: 0.1 | F31: 0.1252 | H31: 0.1227
A32: 25 | B32: ='11 (1)'!B31 -> Lockheed Martin | D32: 0.105 | F32: 0.0878 | H32: 0.0693
A33: 26 | B33: ='11 (1)'!B32 -> McCormick & Co. | D33: 0.065 | F33: 0.028 | H33: 0.0492
A34: 27 | B34: ='11 (1)'!B33 -> McDonald's Corp. | D34: 0.08 | F34: 0.0531 | H34: 0.0749
A35: 28 | B35: ='11 (1)'!B34 -> Northrop Grumman | D35: 0.1 | F35: 0.1051 | H35: n/a
A36: 29 | B36: ='11 (1)'!B35 -> PepsiCo, Inc. | D36: 0.06 | F36: 0.0418 | H36: 0.0561
A37: 30 | B37: ='11 (1)'!B36 -> Procter & Gamble | D37: 0.085 | F37: 0.0753 | H37: 0.0717
A38: 31 | B38: ='11 (1)'!B37 -> Public Storage | D38: =ROUND((9.5/AVERAGE(6.73,8.54,7.29))^(1/6)-1,3) -> 0.04 | F38: 0.17 | H38: 0.0418
A39: =A38+1 -> 32 | B39: ='11 (1)'!B38 -> Realty Income Corp. | D39: =ROUND((1.8/AVERAGE(1.1,1.26,1.38))^(1/6)-1,3) -> 0.063 | F39: 0.0545 | H39: 0.0323
A40: 33 | B40: ='11 (1)'!B39 -> Republic Services | D40: 0.09 | F40: 0.0735 | H40: 0.0998
A41: 34 | B41: ='11 (1)'!B40 -> Smucker (J.M.) | D41: 0.03 | F41: 0.0155 | H41: 0.0216
A42: 35 | B42: ='11 (1)'!B41 -> Sysco Corp. | D42: 0.095 | F42: 0.074 | H42: 0.09
A43: 36 | B43: ='11 (1)'!B42 -> Verizon Communic. | D43: 0.04 | F43: 0.019 | H43: 0.0313
A44: 37 | B44: ='11 (1)'!B43 -> Walmart Inc. | D44: 0.075 | F44: 0.0568 | H44: 0.0494
A45: 38 | B45: ='11 (1)'!B44 -> Waste Management | D45: 0.085 | F45: 0.0719 | H45: 0.0847
A48: (a) | B48: The Value Line Investment Survey (various editions as of Apr. 24, 2020).
A49: (b) | B49: www.finance.yahoo.com (retrieved May 2, 2020).
A50: (c) | B50: www.zacks.com (retrieved May 2, 2019).

Sheet 11 (3)
A1: ='Exhibit List'!C22 -> DCF MODEL - NON-UTILITY GROUP | I1: ='Exhibit List'!B22 -> Exhibit AMM-11
I2: Page 3 of 3
A3: ='Exhibit List'!D22 -> DCF COST OF EQUITY ESTIMATES
D5: (a) | F5: (a) | H5: (a)
D6: Earnings Growth
B7: Company | D7: V Line | F7: IBES | H7: Zacks
A8: =A7+1 -> 1 | B8: ='11 (1)'!B7 -> Allstate Corp. | D8: =IF('11 (2)'!D8="n/a","n/a",'11 (1)'!$I7+'11 (2)'!D8) -> 0.1128549663 | F8: =IF('11 (2)'!F8="n/a","n/a",'11 (1)'!$I7+'11 (2)'!F8) -> 0.01545496631 | H8: =IF('11 (2)'!H8="n/a","n/a",'11 (1)'!$I7+'11 (2)'!H8) -> 0.09785496631 | L8: =IF(D8="n/a","n/a",IF(D8<$C$58,"nmf",IF(D8>$C$59,"nmf",D8))) -> 0.1128549663 | M8: =IF(F8="n/a","n/a",IF(F8<$C$58,"nmf",IF(F8>$C$59,"nmf",F8))) -> nmf | N8: =IF(H8="n/a","n/a",IF(H8<$C$58,"nmf",IF(H8>$C$59,"nmf",H8))) -> 0.09785496631
A9: 2 | B9: ='11 (1)'!B8 -> Amdocs Ltd. | D9: =IF('11 (2)'!D9="n/a","n/a",'11 (1)'!$I8+'11 (2)'!D9) -> 0.1225701224 | F9: =IF('11 (2)'!F9="n/a","n/a",'11 (1)'!$I8+'11 (2)'!F9) -> 0.0785701224 | H9: =IF('11 (2)'!H9="n/a","n/a",'11 (1)'!$I8+'11 (2)'!H9) -> 0.1075701224 | L9: 0.1225701224 | M9: 0.0785701224 | N9: 0.1075701224
A10: 3 | B10: ='11 (1)'!B9 -> Amer. Tower 'A' | D10: =IF('11 (2)'!D10="n/a","n/a",'11 (1)'!$I9+'11 (2)'!D10) -> 0.09470412269 | F10: =IF('11 (2)'!F10="n/a","n/a",'11 (1)'!$I9+'11 (2)'!F10) -> 0.2242041227 | H10: =IF('11 (2)'!H10="n/a","n/a",'11 (1)'!$I9+'11 (2)'!H10) -> 0.1668041227 | L10: 0.09470412269 | M10: nmf | N10: nmf
A11: 4 | B11: ='11 (1)'!B10 -> AT&T Inc. | D11: =IF('11 (2)'!D11="n/a","n/a",'11 (1)'!$I10+'11 (2)'!D11) -> 0.125349842 | F11: =IF('11 (2)'!F11="n/a","n/a",'11 (1)'!$I10+'11 (2)'!F11) -> 0.104349842 | H11: =IF('11 (2)'!H11="n/a","n/a",'11 (1)'!$I10+'11 (2)'!H11) -> 0.125649842 | L11: 0.125349842 | M11: 0.104349842 | N11: 0.125649842
A12: 5 | B12: ='11 (1)'!B11 -> AvalonBay Communities | D12: =IF('11 (2)'!D12="n/a","n/a",'11 (1)'!$I11+'11 (2)'!D12) -> 0.09015009095 | F12: =IF('11 (2)'!F12="n/a","n/a",'11 (1)'!$I11+'11 (2)'!F12) -> 0.06755009095 | H12: =IF('11 (2)'!H12="n/a","n/a",'11 (1)'!$I11+'11 (2)'!H12) -> 0.08875009095 | L12: 0.09015009095 | M12: 0.06755009095 | N12: 0.08875009095
A13: 6 | B13: ='11 (1)'!B12 -> Bristol-Myers Squibb | D13: =IF('11 (2)'!D13="n/a","n/a",'11 (1)'!$I12+'11 (2)'!D13) -> 0.1214240323 | F13: =IF('11 (2)'!F13="n/a","n/a",'11 (1)'!$I12+'11 (2)'!F13) -> 0.1529240323 | H13: =IF('11 (2)'!H13="n/a","n/a",'11 (1)'!$I12+'11 (2)'!H13) -> 0.1170240323 | L13: 0.1214240323 | M13: nmf | N13: 0.1170240323
A14: 7 | B14: ='11 (1)'!B13 -> Brown-Forman 'B' | D14: =IF('11 (2)'!D14="n/a","n/a",'11 (1)'!$I13+'11 (2)'!D14) -> 0.1220241858 | F14: =IF('11 (2)'!F14="n/a","n/a",'11 (1)'!$I13+'11 (2)'!F14) -> 0.04652418585 | H14: =IF('11 (2)'!H14="n/a","n/a",'11 (1)'!$I13+'11 (2)'!H14) -> n/a | L14: 0.1220241858 | M14: nmf | N14: n/a
A15: 8 | B15: ='11 (1)'!B14 -> Campbell Soup | D15: =IF('11 (2)'!D15="n/a","n/a",'11 (1)'!$I14+'11 (2)'!D15) -> 0.04912681954 | F15: =IF('11 (2)'!F15="n/a","n/a",'11 (1)'!$I14+'11 (2)'!F15) -> 0.05662681954 | H15: =IF('11 (2)'!H15="n/a","n/a",'11 (1)'!$I14+'11 (2)'!H15) -> 0.1007268195 | L15: nmf | M15: nmf | N15: 0.1007268195
A16: 9 | B16: ='11 (1)'!B15 -> Cboe Global Markets | D16: =IF('11 (2)'!D16="n/a","n/a",'11 (1)'!$I15+'11 (2)'!D16) -> 0.1403990383 | F16: =IF('11 (2)'!F16="n/a","n/a",'11 (1)'!$I15+'11 (2)'!F16) -> 0.04779903831 | H16: =IF('11 (2)'!H16="n/a","n/a",'11 (1)'!$I15+'11 (2)'!H16) -> 0.03829903831 | L16: 0.1403990383 | M16: nmf | N16: nmf
A17: 10 | B17: ='11 (1)'!B16 -> Church & Dwight | D17: =IF('11 (2)'!D17="n/a","n/a",'11 (1)'!$I16+'11 (2)'!D17) -> 0.1041198619 | F17: =IF('11 (2)'!F17="n/a","n/a",'11 (1)'!$I16+'11 (2)'!F17) -> 0.09391986186 | H17: =IF('11 (2)'!H17="n/a","n/a",'11 (1)'!$I16+'11 (2)'!H17) -> 0.09621986186 | L17: 0.1041198619 | M17: 0.09391986186 | N17: 0.09621986186
A18: 11 | B18: ='11 (1)'!B17 -> Clorox Co. | D18: =IF('11 (2)'!D18="n/a","n/a",'11 (1)'!$I17+'11 (2)'!D18) -> 0.04814486286 | F18: =IF('11 (2)'!F18="n/a","n/a",'11 (1)'!$I17+'11 (2)'!F18) -> 0.06594486286 | H18: =IF('11 (2)'!H18="n/a","n/a",'11 (1)'!$I17+'11 (2)'!H18) -> 0.07554486286 | L18: nmf | M18: 0.06594486286 | N18: 0.07554486286
A19: 12 | B19: ='11 (1)'!B18 -> CME Group | D19: =IF('11 (2)'!D19="n/a","n/a",'11 (1)'!$I18+'11 (2)'!D19) -> 0.04431148863 | F19: =IF('11 (2)'!F19="n/a","n/a",'11 (1)'!$I18+'11 (2)'!F19) -> 0.07061148863 | H19: =IF('11 (2)'!H19="n/a","n/a",'11 (1)'!$I18+'11 (2)'!H19) -> 0.06831148863 | L19: nmf | M19: 0.07061148863 | N19: 0.06831148863
A20: 13 | B20: ='11 (1)'!B19 -> Coca-Cola | D20: =IF('11 (2)'!D20="n/a","n/a",'11 (1)'!$I19+'11 (2)'!D20) -> 0.1013902635 | F20: =IF('11 (2)'!F20="n/a","n/a",'11 (1)'!$I19+'11 (2)'!F20) -> 0.05499026347 | H20: =IF('11 (2)'!H20="n/a","n/a",'11 (1)'!$I19+'11 (2)'!H20) -> 0.09549026347 | L20: 0.1013902635 | M20: nmf | N20: 0.09549026347
A21: 14 | B21: ='11 (1)'!B20 -> Colgate-Palmolive | D21: =IF('11 (2)'!D21="n/a","n/a",'11 (1)'!$I20+'11 (2)'!D21) -> 0.08068255749 | F21: =IF('11 (2)'!F21="n/a","n/a",'11 (1)'!$I20+'11 (2)'!F21) -> 0.07808255749 | H21: =IF('11 (2)'!H21="n/a","n/a",'11 (1)'!$I20+'11 (2)'!H21) -> 0.08038255749 | L21: 0.08068255749 | M21: 0.07808255749 | N21: 0.08038255749
A22: 15 | B22: ='11 (1)'!B21 -> Equity Residential | D22: =IF('11 (2)'!D22="n/a","n/a",'11 (1)'!$I21+'11 (2)'!D22) -> 0.05110398733 | F22: =IF('11 (2)'!F22="n/a","n/a",'11 (1)'!$I21+'11 (2)'!F22) -> 0.1001039873 | H22: =IF('11 (2)'!H22="n/a","n/a",'11 (1)'!$I21+'11 (2)'!H22) -> 0.09110398733 | L22: nmf | M22: 0.1001039873 | N22: 0.09110398733
A23: 16 | B23: ='11 (1)'!B22 -> Federal Rlty. Inv. Trust | D23: =IF('11 (2)'!D23="n/a","n/a",'11 (1)'!$I22+'11 (2)'!D23) -> 0.07045304421 | F23: =IF('11 (2)'!F23="n/a","n/a",'11 (1)'!$I22+'11 (2)'!F23) -> 0.1234530442 | H23: =IF('11 (2)'!H23="n/a","n/a",'11 (1)'!$I22+'11 (2)'!H23) -> 0.08925304421 | L23: 0.07045304421 | M23: 0.1234530442 | N23: 0.08925304421
A24: 17 | B24: ='11 (1)'!B23 -> Gen'l Mills | D24: =IF('11 (2)'!D24="n/a","n/a",'11 (1)'!$I23+'11 (2)'!D24) -> 0.07520545391 | F24: =IF('11 (2)'!F24="n/a","n/a",'11 (1)'!$I23+'11 (2)'!F24) -> 0.09210545391 | H24: =IF('11 (2)'!H24="n/a","n/a",'11 (1)'!$I23+'11 (2)'!H24) -> 0.1102054539 | L24: 0.07520545391 | M24: 0.09210545391 | N24: 0.1102054539
A25: 18 | B25: ='11 (1)'!B24 -> Hershey Co. | D25: =IF('11 (2)'!D25="n/a","n/a",'11 (1)'!$I24+'11 (2)'!D25) -> 0.06888710578 | F25: =IF('11 (2)'!F25="n/a","n/a",'11 (1)'!$I24+'11 (2)'!F25) -> 0.09238710578 | H25: =IF('11 (2)'!H25="n/a","n/a",'11 (1)'!$I24+'11 (2)'!H25) -> 0.1005871058 | L25: 0.06888710578 | M25: 0.09238710578 | N25: 0.1005871058
A26: 19 | B26: ='11 (1)'!B25 -> Hormel Foods | D26: =IF('11 (2)'!D26="n/a","n/a",'11 (1)'!$I25+'11 (2)'!D26) -> 0.1058120968 | F26: =IF('11 (2)'!F26="n/a","n/a",'11 (1)'!$I25+'11 (2)'!F26) -> 0.06081209678 | H26: =IF('11 (2)'!H26="n/a","n/a",'11 (1)'!$I25+'11 (2)'!H26) -> 0.08081209678 | L26: 0.1058120968 | M26: nmf | N26: 0.08081209678
A27: 20 | B27: ='11 (1)'!B26 -> Intercontinental Exch. | D27: =IF('11 (2)'!D27="n/a","n/a",'11 (1)'!$I26+'11 (2)'!D27) -> 0.1042491303 | F27: =IF('11 (2)'!F27="n/a","n/a",'11 (1)'!$I26+'11 (2)'!F27) -> 0.1047491303 | H27: =IF('11 (2)'!H27="n/a","n/a",'11 (1)'!$I26+'11 (2)'!H27) -> 0.09124913033 | L27: 0.1042491303 | M27: 0.1047491303 | N27: 0.09124913033
A28: 21 | B28: ='11 (1)'!B27 -> Johnson & Johnson | D28: =IF('11 (2)'!D28="n/a","n/a",'11 (1)'!$I27+'11 (2)'!D28) -> 0.1488884389 | F28: =IF('11 (2)'!F28="n/a","n/a",'11 (1)'!$I27+'11 (2)'!F28) -> 0.07688843894 | H28: =IF('11 (2)'!H28="n/a","n/a",'11 (1)'!$I27+'11 (2)'!H28) -> 0.08888843894 | L28: 0.1488884389 | M28: 0.07688843894 | N28: 0.08888843894
A29: 22 | B29: ='11 (1)'!B28 -> Kellogg | D29: =IF('11 (2)'!D29="n/a","n/a",'11 (1)'!$I28+'11 (2)'!D29) -> 0.06696006187 | F29: =IF('11 (2)'!F29="n/a","n/a",'11 (1)'!$I28+'11 (2)'!F29) -> 0.05856006187 | H29: =IF('11 (2)'!H29="n/a","n/a",'11 (1)'!$I28+'11 (2)'!H29) -> 0.07526006187 | L29: 0.06696006187 | M29: nmf | N29: 0.07526006187
A30: 23 | B30: ='11 (1)'!B29 -> Kimberly-Clark | D30: =IF('11 (2)'!D30="n/a","n/a",'11 (1)'!$I29+'11 (2)'!D30) -> 0.1022708743 | F30: =IF('11 (2)'!F30="n/a","n/a",'11 (1)'!$I29+'11 (2)'!F30) -> 0.08707087428 | H30: =IF('11 (2)'!H30="n/a","n/a",'11 (1)'!$I29+'11 (2)'!H30) -> 0.08267087428 | L30: 0.1022708743 | M30: 0.08707087428 | N30: 0.08267087428
A31: 24 | B31: ='11 (1)'!B30 -> Lilly (Eli) | D31: =IF('11 (2)'!D31="n/a","n/a",'11 (1)'!$I30+'11 (2)'!D31) -> 0.1203838968 | F31: =IF('11 (2)'!F31="n/a","n/a",'11 (1)'!$I30+'11 (2)'!F31) -> 0.1455838968 | H31: =IF('11 (2)'!H31="n/a","n/a",'11 (1)'!$I30+'11 (2)'!H31) -> 0.1430838968 | L31: 0.1203838968 | M31: 0.1455838968 | N31: 0.1430838968
A32: 25 | B32: ='11 (1)'!B31 -> Lockheed Martin | D32: =IF('11 (2)'!D32="n/a","n/a",'11 (1)'!$I31+'11 (2)'!D32) -> 0.13226069 | F32: =IF('11 (2)'!F32="n/a","n/a",'11 (1)'!$I31+'11 (2)'!F32) -> 0.11506069 | H32: =IF('11 (2)'!H32="n/a","n/a",'11 (1)'!$I31+'11 (2)'!H32) -> 0.09656068998 | L32: 0.13226069 | M32: 0.11506069 | N32: 0.09656068998
A33: 26 | B33: ='11 (1)'!B32 -> McCormick & Co. | D33: =IF('11 (2)'!D33="n/a","n/a",'11 (1)'!$I32+'11 (2)'!D33) -> 0.08196000957 | F33: =IF('11 (2)'!F33="n/a","n/a",'11 (1)'!$I32+'11 (2)'!F33) -> 0.04496000957 | H33: =IF('11 (2)'!H33="n/a","n/a",'11 (1)'!$I32+'11 (2)'!H33) -> 0.06616000957 | L33: 0.08196000957 | M33: nmf | N33: 0.06616000957
A34: 27 | B34: ='11 (1)'!B33 -> McDonald's Corp. | D34: =IF('11 (2)'!D34="n/a","n/a",'11 (1)'!$I33+'11 (2)'!D34) -> 0.1093195563 | F34: =IF('11 (2)'!F34="n/a","n/a",'11 (1)'!$I33+'11 (2)'!F34) -> 0.08241955634 | H34: =IF('11 (2)'!H34="n/a","n/a",'11 (1)'!$I33+'11 (2)'!H34) -> 0.1042195563 | L34: 0.1093195563 | M34: 0.08241955634 | N34: 0.1042195563
A35: 28 | B35: ='11 (1)'!B34 -> Northrop Grumman | D35: =IF('11 (2)'!D35="n/a","n/a",'11 (1)'!$I34+'11 (2)'!D35) -> 0.1162606635 | F35: =IF('11 (2)'!F35="n/a","n/a",'11 (1)'!$I34+'11 (2)'!F35) -> 0.1213606635 | H35: =IF('11 (2)'!H35="n/a","n/a",'11 (1)'!$I34+'11 (2)'!H35) -> n/a | L35: 0.1162606635 | M35: 0.1213606635 | N35: n/a
A36: 29 | B36: ='11 (1)'!B35 -> PepsiCo, Inc. | D36: =IF('11 (2)'!D36="n/a","n/a",'11 (1)'!$I35+'11 (2)'!D36) -> 0.09209512922 | F36: =IF('11 (2)'!F36="n/a","n/a",'11 (1)'!$I35+'11 (2)'!F36) -> 0.07389512922 | H36: =IF('11 (2)'!H36="n/a","n/a",'11 (1)'!$I35+'11 (2)'!H36) -> 0.08819512922 | L36: 0.09209512922 | M36: 0.07389512922 | N36: 0.08819512922
A37: 30 | B37: ='11 (1)'!B36 -> Procter & Gamble | D37: =IF('11 (2)'!D37="n/a","n/a",'11 (1)'!$I36+'11 (2)'!D37) -> 0.1126037982 | F37: =IF('11 (2)'!F37="n/a","n/a",'11 (1)'!$I36+'11 (2)'!F37) -> 0.1029037982 | H37: =IF('11 (2)'!H37="n/a","n/a",'11 (1)'!$I36+'11 (2)'!H37) -> 0.09930379822 | L37: 0.1126037982 | M37: 0.1029037982 | N37: 0.09930379822
A38: 31 | B38: ='11 (1)'!B37 -> Public Storage | D38: =IF('11 (2)'!D38="n/a","n/a",'11 (1)'!$I37+'11 (2)'!D38) -> 0.08186092771 | F38: =IF('11 (2)'!F38="n/a","n/a",'11 (1)'!$I37+'11 (2)'!F38) -> 0.2118609277 | H38: =IF('11 (2)'!H38="n/a","n/a",'11 (1)'!$I37+'11 (2)'!H38) -> 0.08366092771 | L38: 0.08186092771 | M38: nmf | N38: 0.08366092771
A39: =A38+1 -> 32 | B39: ='11 (1)'!B38 -> Realty Income Corp. | D39: =IF('11 (2)'!D39="n/a","n/a",'11 (1)'!$I38+'11 (2)'!D39) -> 0.1182745171 | F39: =IF('11 (2)'!F39="n/a","n/a",'11 (1)'!$I38+'11 (2)'!F39) -> 0.1097745171 | H39: =IF('11 (2)'!H39="n/a","n/a",'11 (1)'!$I38+'11 (2)'!H39) -> 0.08757451712 | L39: =IF(D39="n/a","n/a",IF(D39<$C$58,"nmf",IF(D39>$C$59,"nmf",D39))) -> 0.1182745171 | M39: =IF(F39="n/a","n/a",IF(F39<$C$58,"nmf",IF(F39>$C$59,"nmf",F39))) -> 0.1097745171 | N39: =IF(H39="n/a","n/a",IF(H39<$C$58,"nmf",IF(H39>$C$59,"nmf",H39))) -> 0.08757451712
A40: 33 | B40: ='11 (1)'!B39 -> Republic Services | D40: =IF('11 (2)'!D40="n/a","n/a",'11 (1)'!$I39+'11 (2)'!D40) -> 0.1120451226 | F40: =IF('11 (2)'!F40="n/a","n/a",'11 (1)'!$I39+'11 (2)'!F40) -> 0.09554512256 | H40: =IF('11 (2)'!H40="n/a","n/a",'11 (1)'!$I39+'11 (2)'!H40) -> 0.1218451226 | L40: 0.1120451226 | M40: 0.09554512256 | N40: 0.1218451226
A41: 34 | B41: ='11 (1)'!B40 -> Smucker (J.M.) | D41: =IF('11 (2)'!D41="n/a","n/a",'11 (1)'!$I40+'11 (2)'!D41) -> 0.0614640998 | F41: =IF('11 (2)'!F41="n/a","n/a",'11 (1)'!$I40+'11 (2)'!F41) -> 0.0469640998 | H41: =IF('11 (2)'!H41="n/a","n/a",'11 (1)'!$I40+'11 (2)'!H41) -> 0.0530640998 | L41: nmf | M41: nmf | N41: nmf
A42: 35 | B42: ='11 (1)'!B41 -> Sysco Corp. | D42: =IF('11 (2)'!D42="n/a","n/a",'11 (1)'!$I41+'11 (2)'!D42) -> 0.1327221416 | F42: =IF('11 (2)'!F42="n/a","n/a",'11 (1)'!$I41+'11 (2)'!F42) -> 0.1117221416 | H42: =IF('11 (2)'!H42="n/a","n/a",'11 (1)'!$I41+'11 (2)'!H42) -> 0.1277221416 | L42: 0.1327221416 | M42: 0.1117221416 | N42: 0.1277221416
A43: 36 | B43: ='11 (1)'!B42 -> Verizon Communic. | D43: =IF('11 (2)'!D43="n/a","n/a",'11 (1)'!$I42+'11 (2)'!D43) -> 0.08429169147 | F43: =IF('11 (2)'!F43="n/a","n/a",'11 (1)'!$I42+'11 (2)'!F43) -> 0.06329169147 | H43: =IF('11 (2)'!H43="n/a","n/a",'11 (1)'!$I42+'11 (2)'!H43) -> 0.07559169147 | L43: 0.08429169147 | M43: nmf | N43: 0.07559169147
A44: 37 | B44: ='11 (1)'!B43 -> Walmart Inc. | D44: =IF('11 (2)'!D44="n/a","n/a",'11 (1)'!$I43+'11 (2)'!D44) -> 0.09267902736 | F44: =IF('11 (2)'!F44="n/a","n/a",'11 (1)'!$I43+'11 (2)'!F44) -> 0.07447902736 | H44: =IF('11 (2)'!H44="n/a","n/a",'11 (1)'!$I43+'11 (2)'!H44) -> 0.06707902736 | L44: 0.09267902736 | M44: 0.07447902736 | N44: 0.06707902736
A45: 38 | B45: ='11 (1)'!B44 -> Waste Management | D45: =IF('11 (2)'!D45="n/a","n/a",'11 (1)'!$I44+'11 (2)'!D45) -> 0.1077173256 | F45: =IF('11 (2)'!F45="n/a","n/a",'11 (1)'!$I44+'11 (2)'!F45) -> 0.09461732562 | H45: =IF('11 (2)'!H45="n/a","n/a",'11 (1)'!$I44+'11 (2)'!H45) -> 0.1074173256 | L45: 0.1077173256 | M45: 0.09461732562 | N45: 0.1074173256
A46: =#REF!+1 -> 
B47: Average (b) | D47: =AVERAGE(L8:L45) -> 0.1046324178 | F47: =AVERAGE(M8:M45) -> 0.09452594917 | H47: =AVERAGE(N8:N45) -> 0.09490814954 | J47: =AVERAGE(D47:H47) -> 0.09802217217 | K47: Average | L47: =AVERAGE(L8:L45) -> 0.1046324178 | M47: =AVERAGE(M8:M45) -> 0.09452594917 | N47: 0.09490814954
B48: Midpoint (b,c) | D48: =AVERAGE(L48:L49) -> 0.1079242504 | F48: =AVERAGE(M48:M49) -> 0.1057643798 | H48: =AVERAGE(N48:N49) -> 0.1046219532 | K48: Min | L48: =MIN(L8:L45) -> 0.06696006187 | M48: =MIN(M8:M45) -> 0.06594486286 | N48: =MIN(N8:N45) -> 0.06616000957
K49: Max | L49: =MAX(L8:L45) -> 0.1488884389 | M49: =MAX(M8:M45) -> 0.1455838968 | N49: =MAX(N8:N45) -> 0.1430838968
A51: (a) | B51: Sum of dividend yield (p. 1) and respective growth rate (p. 2).
A52: (b) | B52: Excludes highlighted figures.
A53: (c) | B53: Average of low and high values.
B58: Criteria Min | C58: ='4 (3)'!D40 -> 0.065
B59: Criteria Max | C59: ='4 (3)'!D41 -> 0.15

Sheet 12 (1)
A1: ='Exhibit List'!C23 -> CAPITAL STRUCTURE | O1: ='Exhibit List'!B23 -> Exhibit AMM-12
O2: Page 1 of 3
A3: ='Exhibit List'!D23 -> ELECTRIC GROUP
D5: At Year-end 2019 (a) | J5: Value Line Projected (b) | Q5: At Year-end 2019 ($millions)
H6: Common | N6: Common | Q6: Current | R6: Long-Tern | T6: Common
B7: Company | D7: Debt | F7: Preferred | H7: Equity | J7: Debt | L7: Preferred | N7: Equity | Q7: Maturities | R7: Debt | S7: Preferred | T7: Equity | U7: Total
A8: =A7+1 -> 1 | B8: ='Proxy Group Ticker'!C3 -> Alliant Energy | D8: =SUM(Q8:R8)/U8 -> 0.533854234 | F8: =S8/$U8 -> 0.01724836787 | H8: =T8/$U8 -> 0.4488973981 | J8: =VLOOKUP('Proxy Group Ticker'!$B3,vldatabase,13,FALSE) -> 0.52 | L8: =1-N8-J8 -> 0 | N8: =VLOOKUP('Proxy Group Ticker'!$B3,vldatabase,15,FALSE) -> 0.48 | Q8: 657.2 | R8: 5533 | S8: 200 | T8: 5205.1 | U8: =SUM(Q8:T8) -> 11595.3
A9: =A8+1 -> 2 | B9: ='Proxy Group Ticker'!C4 -> Ameren Corp. | D9: =SUM(Q9:R9)/U9 -> 0.5329194669 | F9: =S9/$U9 -> 0 | H9: =T9/$U9 -> 0.4670805331 | J9: =VLOOKUP('Proxy Group Ticker'!$B4,vldatabase,13,FALSE) -> 0.48 | L9: =1-N9-J9 -> 0.005 | N9: =VLOOKUP('Proxy Group Ticker'!$B4,vldatabase,15,FALSE) -> 0.515 | Q9: 442 | R9: 8915 | S9: 0 | T9: 8201 | U9: =SUM(Q9:T9) -> 17558
A10: 3 | B10: ='Proxy Group Ticker'!C5 -> American Elec Pwr | D10: 0.573032696 | F10: 0 | H10: 0.426967304 | J10: =VLOOKUP('Proxy Group Ticker'!$B5,vldatabase,13,FALSE) -> 0.535 | L10: 0 | N10: =VLOOKUP('Proxy Group Ticker'!$B5,vldatabase,15,FALSE) -> 0.465 | Q10: 1598.7 | R10: 25126.8 | S10: 0 | T10: 19913.2 | U10: 46638.7
A11: 4 | B11: ='Proxy Group Ticker'!C6 -> Avangrid, Inc. | D11: 0.3232893366 | F11: 0 | H11: 0.6767106634 | J11: =VLOOKUP('Proxy Group Ticker'!$B6,vldatabase,13,FALSE) -> 0.4 | L11: 0 | N11: =VLOOKUP('Proxy Group Ticker'!$B6,vldatabase,15,FALSE) -> 0.6 | Q11: 730 | R11: 6716 | S11: 0 | T11: 15586 | U11: 23032
A12: 5 | B12: ='Proxy Group Ticker'!C7 -> Black Hills Corp. | D12: 0.5607648111 | F12: 0 | H12: 0.4392351889 | J12: =VLOOKUP('Proxy Group Ticker'!$B7,vldatabase,13,FALSE) -> 0.515 | L12: 0 | N12: =VLOOKUP('Proxy Group Ticker'!$B7,vldatabase,15,FALSE) -> 0.485 | Q12: 5.743 | R12: 3140.096 | S12: 0 | T12: 2464.069 | U12: 5609.908
A13: 6 | B13: ='Proxy Group Ticker'!C8 -> CMS Energy Corp. | D13: 0.7224357566 | F13: 0 | H13: 0.2775642434 | J13: =VLOOKUP('Proxy Group Ticker'!$B8,vldatabase,13,FALSE) -> 0.67 | L13: 0 | N13: =VLOOKUP('Proxy Group Ticker'!$B8,vldatabase,15,FALSE) -> 0.33 | Q13: 1130 | R13: 12027 | S13: 0 | T13: 5055 | U13: 18212
A14: 7 | B14: ='Proxy Group Ticker'!C9 -> Consolidated Edison | D14: 0.5230450951 | F14: 0 | H14: 0.4769549049 | J14: =VLOOKUP('Proxy Group Ticker'!$B9,vldatabase,13,FALSE) -> 0.505 | L14: 0 | N14: =VLOOKUP('Proxy Group Ticker'!$B9,vldatabase,15,FALSE) -> 0.495 | Q14: 1446 | R14: 18527 | S14: 0 | T14: 18213 | U14: 38186
A15: 8 | B15: ='Proxy Group Ticker'!C10 -> Dominion Energy | D15: 0.5207902111 | F15: 0 | H15: 0.4792097889 | J15: =VLOOKUP('Proxy Group Ticker'!$B10,vldatabase,13,FALSE) -> 0.595 | L15: 0 | N15: =VLOOKUP('Proxy Group Ticker'!$B10,vldatabase,15,FALSE) -> 0.405 | Q15: 3162 | R15: 33824 | S15: 0 | T15: 34033 | U15: 71019
A16: 9 | B16: ='Proxy Group Ticker'!C11 -> DTE Energy Co. | D16: 0.5840888327 | F16: 0 | H16: 0.4159111673 | J16: =VLOOKUP('Proxy Group Ticker'!$B11,vldatabase,13,FALSE) -> 0.585 | L16: 0 | N16: =VLOOKUP('Proxy Group Ticker'!$B11,vldatabase,15,FALSE) -> 0.415 | Q16: 687 | R16: 15935 | S16: 0 | T16: 11836 | U16: 28458
A17: 10 | B17: ='Proxy Group Ticker'!C12 -> Duke Energy Corp. | D17: 0.5479604438 | F17: 0 | H17: 0.4520395562 | J17: =VLOOKUP('Proxy Group Ticker'!$B12,vldatabase,13,FALSE) -> 0.55 | L17: 0.005 | N17: =VLOOKUP('Proxy Group Ticker'!$B12,vldatabase,15,FALSE) -> 0.445 | Q17: 3141 | R17: 54985 | S17: 0 | T17: 47951 | U17: 106077
A18: 11 | B18: ='Proxy Group Ticker'!C13 -> Entergy Corp. | D18: 0.6304253284 | F18: 0.007738854829 | H18: 0.3618358168 | J18: =VLOOKUP('Proxy Group Ticker'!$B13,vldatabase,13,FALSE) -> 0.58 | L18: 0.01 | N18: =VLOOKUP('Proxy Group Ticker'!$B13,vldatabase,15,FALSE) -> 0.41 | Q18: 795.012 | R18: 17078.643 | S18: 219.41 | T18: 10258.675 | U18: 28351.74
A19: 12 | B19: ='Proxy Group Ticker'!C14 -> Evergy Inc. | D19: 0.5128968084 | F19: 0 | H19: 0.4871031916 | J19: =VLOOKUP('Proxy Group Ticker'!$B14,vldatabase,13,FALSE) -> 0.52 | L19: 0 | N19: =VLOOKUP('Proxy Group Ticker'!$B14,vldatabase,15,FALSE) -> 0.48 | Q19: 251.1 | R19: 8746.7 | S19: 0 | T19: 8545.3 | U19: 17543.1
A20: 13 | B20: ='Proxy Group Ticker'!C15 -> Eversource Energy | D20: 0.534514102 | F20: 0 | H20: 0.465485898 | J20: =VLOOKUP('Proxy Group Ticker'!$B15,vldatabase,13,FALSE) -> 0.535 | L20: 0.005 | N20: =VLOOKUP('Proxy Group Ticker'!$B15,vldatabase,15,FALSE) -> 0.46 | Q20: 370.621 | R20: 14310.95 | S20: 0 | T20: 12785.564 | U20: 27467.135
A21: 14 | B21: ='Proxy Group Ticker'!C16 -> Exelon Corp. | D21: 0.5130700544 | F21: 0 | H21: 0.4869299456 | J21: =VLOOKUP('Proxy Group Ticker'!$B16,vldatabase,13,FALSE) -> 0.49 | L21: 0 | N21: =VLOOKUP('Proxy Group Ticker'!$B16,vldatabase,15,FALSE) -> 0.51 | Q21: 4710 | R21: 31719 | S21: 0 | T21: 34573 | U21: 71002
A22: 15 | B22: ='Proxy Group Ticker'!C17 -> Fortis Inc. | D22: 0.5294213987 | F22: 0.03797290658 | H22: 0.4326056948 | J22: =VLOOKUP('Proxy Group Ticker'!$B17,vldatabase,13,FALSE) -> 0.52 | L22: 0.035 | N22: =VLOOKUP('Proxy Group Ticker'!$B17,vldatabase,15,FALSE) -> 0.445 | Q22: 714 | R22: 21914 | S22: 1623 | T22: 18490 | U22: 42741
A23: 16 | B23: ='Proxy Group Ticker'!C18 -> NextEra Energy, Inc. | D23: =SUM(Q23:R23)/U23 -> 0.4895528651 | F23: =S23/$U23 -> 0 | H23: =T23/$U23 -> 0.5104471349 | J23: =VLOOKUP('Proxy Group Ticker'!$B18,vldatabase,13,FALSE) -> 0.5 | L23: =1-N23-J23 -> 0 | N23: =VLOOKUP('Proxy Group Ticker'!$B18,vldatabase,15,FALSE) -> 0.5 | Q23: 2124 | R23: 37543 | S23: 0 | T23: 41360 | U23: =SUM(Q23:T23) -> 81027
A24: 17 | B24: ='Proxy Group Ticker'!C19 -> OGE Energy Corp. | D24: 0.4356279057 | F24: 0 | H24: 0.5643720943 | J24: =VLOOKUP('Proxy Group Ticker'!$B19,vldatabase,13,FALSE) -> 0.455 | L24: 0 | N24: =VLOOKUP('Proxy Group Ticker'!$B19,vldatabase,15,FALSE) -> 0.545 | Q24: 0 | R24: 3195.2 | S24: 0 | T24: 4139.5 | U24: 7334.7
A25: 18 | B25: ='Proxy Group Ticker'!C20 -> PPL Corp. | D25: 0.6275943126 | F25: 0 | H25: 0.3724056874 | J25: =VLOOKUP('Proxy Group Ticker'!$B20,vldatabase,13,FALSE) -> 0.545 | L25: 0 | N25: =VLOOKUP('Proxy Group Ticker'!$B20,vldatabase,15,FALSE) -> 0.455 | Q25: 1172 | R25: 20721 | S25: 0 | T25: 12991 | U25: 34884
A26: 19 | B26: ='Proxy Group Ticker'!C21 -> Pub Sv Enterprise Grp. | D26: 0.5003146008 | F26: 0 | H26: 0.4996853992 | J26: =VLOOKUP('Proxy Group Ticker'!$B21,vldatabase,13,FALSE) -> 0.51 | L26: 0 | N26: =VLOOKUP('Proxy Group Ticker'!$B21,vldatabase,15,FALSE) -> 0.49 | Q26: 1365 | R26: 13743 | S26: 0 | T26: 15089 | U26: 30197
A27: 20 | B27: ='Proxy Group Ticker'!C22 -> Sempra Energy | D27: 0.5057348808 | F27: 0.0004533502584 | H27: 0.493811769 | J27: =VLOOKUP('Proxy Group Ticker'!$B22,vldatabase,13,FALSE) -> 0.485 | L27: 0 | N27: =VLOOKUP('Proxy Group Ticker'!$B22,vldatabase,15,FALSE) -> 0.515 | Q27: 1526 | R27: 20785 | S27: 20 | T27: 21785 | U27: 44116
A28: 21 | B28: ='Proxy Group Ticker'!C23 -> Southern Company | D28: 0.5850991561 | F28: 0.003801635618 | H28: 0.4110992083 | J28: =VLOOKUP('Proxy Group Ticker'!$B23,vldatabase,13,FALSE) -> 0.585 | L28: 0 | N28: =VLOOKUP('Proxy Group Ticker'!$B23,vldatabase,15,FALSE) -> 0.415 | Q28: 2989 | R28: 41798 | S28: 291 | T28: 31468 | U28: 76546
A29: 22 | B29: ='Proxy Group Ticker'!C24 -> WEC Energy Group | D29: 0.5372222323 | F29: 0.001371915447 | H29: 0.4614058523 | J29: =VLOOKUP('Proxy Group Ticker'!$B24,vldatabase,13,FALSE) -> 0.52 | L29: 0 | N29: =VLOOKUP('Proxy Group Ticker'!$B24,vldatabase,15,FALSE) -> 0.48 | Q29: 693.2 | R29: 11211 | S29: 30.4 | T29: 10224.2 | U29: 22158.8
A30: 23 | B30: ='Proxy Group Ticker'!C25 -> Xcel Energy Inc. | D30: 0.5776764068 | F30: 0 | H30: 0.4223235932 | J30: =VLOOKUP('Proxy Group Ticker'!$B25,vldatabase,13,FALSE) -> 0.57 | L30: 0 | N30: =VLOOKUP('Proxy Group Ticker'!$B25,vldatabase,15,FALSE) -> 0.43 | Q30: 702 | R30: 17407 | S30: 0 | T30: 13239 | U30: 31348
B32: Average | D32: =AVERAGE(D8:D30) -> 0.5391883016 | F32: =AVERAGE(F8:F30) -> 0.002982044809 | H32: =AVERAGE(H8:H30) -> 0.4578296536 | J32: =AVERAGE(J8:J30) -> 0.5291304348 | L32: =AVERAGE(L8:L30) -> 0.002608695652 | N32: =AVERAGE(N8:N30) -> 0.4682608696
B34: Average - Ex. High and Low | D34: =(D32*$A$30-SUM(D41:D42))/($A$30-2) -> 0.5407431354 | F34: =(F32*$A$30-SUM(F41:F42))/($A$30-2) -> 0.00145781543 | H34: =(H32*$A$30-SUM(H41:H42))/($A$30-2) -> 0.4559908156 | J34: =(J32*$A$30-SUM(J41:J42))/($A$30-2) -> 0.5285714286 | L34: =(L32*$A$30-SUM(L41:L42))/($A$30-2) -> 0.00119047619 | N34: =(N32*$A$30-SUM(N41:N42))/($A$30-2) -> 0.4685714286
A37: (a) | B37: Most recent SEC Form 10-K reports.
A38: (b) | B38: ='Electric Utility Data'!B51 -> The Value Line Investment Survey (Feb. 14, Mar. 13 and Apr. 24, 2020).
D41: =MIN(D8:D30) -> 0.3232893366 | F41: =MIN(F8:F30) -> 0 | H41: =MIN(H8:H30) -> 0.2775642434 | J41: =MIN(J8:J30) -> 0.4 | L41: =MIN(L8:L30) -> 0 | N41: =MIN(N8:N30) -> 0.33
D42: =MAX(D8:D30) -> 0.7224357566 | F42: =MAX(F8:F30) -> 0.03797290658 | H42: =MAX(H8:H30) -> 0.6767106634 | J42: =MAX(J8:J30) -> 0.67 | L42: =MAX(L8:L30) -> 0.035 | N42: =MAX(N8:N30) -> 0.6

Sheet 12 (2-3)
A1: ='Exhibit List'!C24 -> CAPITAL STRUCTURE | G1: ='Exhibit List'!B24 -> Exhibit AMM-12 | H1: =A1 -> CAPITAL STRUCTURE | N1: =G1 -> Exhibit AMM-12
G2: Page 2 of 3 | N2: Page 3 of 3
A3: ='Exhibit List'!D24 -> ELECTRIC GROUP OPERATING SUBSIDIARIES | H3: =A3 -> ELECTRIC GROUP OPERATING SUBSIDIARIES
D6: At Year-End 2019 (a) | K6: At Year-End 2019 (a)
B7: Operating Company | D7: Debt | E7: Preferred | F7: Common Equity | I7: Operating Company | K7: Debt | L7: Preferred | M7: Common Equity
B8: ALLIANT ENERGY CORP. | I8: EVERSOURCE ENERGY
B9: Interstate Power & Light | D9: 0.4754876041 | E9: 0.03021558822 | F9: 0.4942968077 | I9: Connecticut Light & Power | K9: 0.4385521557 | L9: 0.01448487509 | M9: 0.5469629692
B10: Wisconsin Power & Light | D10: 0.4498521984 | E10: 0 | F10: 0.5501478016 | I10: NSTAR Electric Co. | K10: 0.4429555055 | L10: 0.005699161163 | M10: 0.5513453334
B11: AMEREN CORP. | I11: Public Service Co. of New Hampshire | K11: 0.5244677852 | L11: 0 | M11: 0.4755322148
B12: Ameren Illinois Co. | D12: 0.4638640197 | E12: 0.008044634748 | F12: 0.5280913455 | I12: EXELON CORP.
B13: Union Electric Co. | D13: 0.4906897763 | E13: 0.009368778545 | F13: 0.4999414451 | I13: Delmarva Power and Light | K13: 0.4979345408 | L13: 0 | M13: 0.5020654592
B14: AMERICAN ELEC PWR | I14: Baltimore Gas & Electric Co. | K14: 0.4703005897 | L14: 0 | M14: 0.5296994103
B15: AEP Texas, Inc. | D15: 0.6062105193 | E15: 0 | F15: 0.3937894807 | I15: Commonweath Edison Co. | K15: 0.4488721416 | L15: 0 | M15: 0.5511278584
B16: Appalachian Power Co. | D16: 0.5112110775 | E16: 0 | F16: 0.4887889225 | I16: PECO Energy Co. | K16: 0.4620831724 | L16: 0 | M16: 0.5379168276
B17: Indiana Michigan Power Co. | D17: 0.5452043042 | E17: 0 | F17: 0.4547956958 | I17: Potomac Electric Power Co. | K17: 0.4962744758 | L17: 0 | M17: 0.5037255242
B18: Kentucky Power Co. | D18: 0.5265768936 | E18: 0 | F18: 0.4734231064 | I18: Atlantic City Electric Co. | K18: 0.5097963888 | L18: 0 | M18: 0.4902036112
B19: Kingsport Power Co. | D19: 0.4537564532 | E19: 0 | F19: 0.5462435468 | I19: FORTIS, INC.
B20: Ohio Power Co. | D20: 0.4535453654 | E20: 0 | F20: 0.5464546346 | I20: Tucson Electric Power Co. | K20: 0.4490082698 | L20: 0 | M20: 0.5509917302
B21: Public Service Co. of Oklahoma | D21: 0.50233738 | E21: 0 | F21: 0.49766262 | I21: UNS Electric | K21: 0.425246703 | L21: 0 | M21: 0.574753297
B22: Southwestern Electric Pwr Co. | D22: 0.5210430278 | E22: 0 | F22: 0.4789569722 | I22: Central Hudson Gas & Electric | K22: 0.4916291301 | L22: 7.294741897e-08 | M22: 0.5083707969
B23: Wheeling Power Co. | D23: 0.4648765134 | E23: 0 | F23: 0.5351234866 | I23: International Transmission Co. | K23: 0.3998572713 | L23: 0 | M23: 0.6001427287
B24: AVANGRID | I24: ITC Great Plains | K24: 0.4000606969 | L24: 0 | M24: 0.5999393031
B25: Central Maine Pwr | D25: 0.374950325 | E25: 0.0001800076644 | F25: 0.6248696673 | I25: ITC Midwest | K25: 0.4002367838 | L25: 0 | M25: 0.5997632162
B26: NY State E&G | D26: 0.5106384947 | E26: 0 | F26: 0.4893615053 | I26: Michigan Elec. Transmission Co. | K26: 0.4000314205 | L26: 0 | M26: 0.5999685795
B27: Rochester G&E | D27: 0.4878481221 | E27: 0 | F27: 0.5121518779 | I27: NEXTERA ENERGY
B28: United Illuminating | D28: 0.4237335524 | E28: 0 | F28: 0.5762664476 | I28: Florida Power & Light | K28: 0.3982395455 | L28: 0 | M28: 0.6017604545
B29: BLACK HILLS CORP. | I29: Gulf Power Co. | K29: 0.496986277 | L29: 0 | M29: 0.503013723
B30: Black Hills Power | D30: 0.4318073884 | E30: 0 | F30: 0.5681926116 | I30: OGE ENERGY CORP.
B31: Cheyenne Light Fuel & Power | D31: 0.5168413879 | E31: 0 | F31: 0.4831586121 | I31: Oklahoma G&E | K31: 0.4485325588 | L31: 0 | M31: 0.5514674412
B32: Black Hills/Colorado Electric Utility Co | D32: 0.2701529956 | E32: 0 | F32: 0.7298470044 | I32: PPL CORP.
B33: CMS ENERGY | I33: Kentucky Utilities Co. | K33: 0.4232693239 | L33: 0 | M33: 0.5767306761
B34: Consumers Energy Co. | D34: 0.4870043761 | E34: 0.002453255536 | F34: 0.5105423684 | I34: Louisville Gas & Electric Co. | K34: 0.420599958 | L34: 0 | M34: 0.579400042
B35: CONSOLIDATED EDISON | I35: PPL Electric Utilities Corp. | K35: 0.4519677895 | L35: 0 | M35: 0.5480322105
B36: Consolidated Edison of NY | D36: 0.5140324963 | E36: 0 | F36: 0.4859675037 | I36: PUB SV ENTERPRISE GRP
B37: Orange & Rockland | D37: 0.51954372 | E37: 0 | F37: 0.48045628 | I37: Pub Service Electric & Gas Co. | K37: 0.4522319374 | L37: 0 | M37: 0.5477680626
B38: Rockland Electric | D38: 0 | E38: 0 | F38: 1 | I38: SEMPRA ENERGY
B39: DOMINION ENERGY | I39: San Diego Gas & Electric | K39: 0.4725895112 | L39: 0 | M39: 0.5274104888
B40: Virginia Electric & Power | D40: 0.4687856004 | E40: 0 | F40: 0.5312143996 | I40: Oncor Electric Delivery | K40: 0.4335998476 | L40: 0 | M40: 0.5664001524
B41: Dominion Energy South Carolina | D41: 0.4815505528 | E41: 0 | F41: 0.5184494472 | I41: SOUTHERN CO.
B42: DTE ENERGY CO. | I42: Alabama Power Co. | K42: 0.4795970057 | L42: 0.01637867957 | M42: 0.5040243147
B43: DTE Electric Co. | D43: 0.4997566572 | E43: 0 | F43: 0.5002433428 | I43: Georgia Power Co. | K43: 0.4395669804 | L43: 0 | M43: 0.5604330196
B44: DUKE ENERGY | I44: Mississippi Power Co. | K44: 0.4902807775 | L44: 0 | M44: 0.5097192225
B45: Duke Energy Carolinas | D45: 0.4815669135 | E45: 0 | F45: 0.5184330865 | I45: WEC ENERGY GROUP
B46: Duke Energy Florida | D46: 0.5405752961 | E46: 0 | F46: 0.4594247039 | I46: Wisconsin Electric Power Co. | K46: 0.4351851269 | L46: 0.004788671012 | M46: 0.5600262021
B47: Duke Energy Indiana | D47: 0.4699953661 | E47: 0 | F47: 0.5300046339 | I47: Wisconsin Public Service Corp. | K47: 0.4539240559 | L47: 0 | M47: 0.5460759441
B48: Duke Energy Ohio | D48: 0.4155823548 | E48: 0 | F48: 0.5844176452 | I48: XCEL ENERGY, INC.
B49: Duke Energy Progress | D49: 0.4948645105 | E49: 0 | F49: 0.5051354895 | I49: Northern States Power Co. (MN) | K49: 0.4779932499 | L49: 0 | M49: 0.5220067501
B50: Progress Energy Inc. | D50: 0.5573565731 | E50: 0 | F50: 0.4426434269 | I50: Northern States Power Co. (WI) | K50: 0.4577227909 | L50: 0 | M50: 0.5422772091
B51: Duke Energy Kentucky | D51: 0.5062864129 | E51: 0 | F51: 0.4937135871 | I51: Public Service Co. of Colorado | K51: 0.4368088928 | L51: 0 | M51: 0.5631911072
B52: ENTERGY CORP. | I52: Southwestern Public Service Co. | K52: 0.4585617369 | L52: 0 | M52: 0.5414382631
B53: Entergy Arkansas Inc. | D53: 0.5294492292 | E53: 0 | F53: 0.4705507708
B54: Entergy Louisiana LLC | D54: 0.5330839024 | E54: 0 | F54: 0.4669160976 | H54: (b) | I54: Minimum | K54: =MIN(D9:D37,D40:D60,K8:K52) -> 0.2701529956 | L54: =MIN(E9:E37,E40:E60,L8:L52) -> 0 | M54: =MIN(F9:F37,F40:F60,M8:M52) -> 0.3937894807
B55: Entergy Mississippi Inc. | D55: 0.5114023471 | E55: 0 | F55: 0.4885976529 | H55: (b) | I55: Maximum | K55: =MAX(D9:D37,D40:D60,K8:K52) -> 0.6062105193 | L55: =MAX(E9:E37,E40:E60,L8:L52) -> 0.03021558822 | M55: =MAX(F9:F37,F40:F60,M8:M52) -> 0.7298470044
B56: Entergy New Orleans Inc. | D56: 0.5290962829 | E56: 0 | F56: 0.4709037171 | H56: (b) | I56: Average | K56: =AVERAGE(D9:D37,D40:D60,K8:K52) -> 0.4714025188 | L56: =AVERAGE(E9:E37,E40:E60,L8:L52) -> 0.001365085864 | M56: =AVERAGE(F9:F37,F40:F60,M8:M52) -> 0.5272323953
B57: Entergy Texas Inc. | D57: 0.5165955067 | E57: 0.009402629459 | F57: 0.4740018639
B58: EVERGY, INC.
B59: Evergy Metro | D59: 0.4945453121 | E59: 0 | F59: 0.5054546879 | H59: (a) Data from year-end 2019 Company 10-Ks and FERC Form 1 reports.
B60: Evergy Kansas Central | D60: 0.4671211872 | E60: 0 | F60: 0.5328788128 | H60: (b) Exludes Consolidated Edison operating company Rockland Electric.
F65: =COUNT($F$9:$F$57,$M$8:$M$52) -> 73
F66: =COUNTIF($F$9:$F$57,">0.4325") -> 38
F67: =COUNTIF($M$8:$M$54,">0.4325") -> 34
F68: =F67+F66 -> 72
I71: Total Cap | J71: Weight | K71: Wtd Debt | L71: Wtd Pfd | M71: Wtd Equity
B72: ALLIANT ENERGY CORP.
B73: Interstate Power & Light | D73: 0.4754876041 | E73: 0.03021558822 | F73: 0.4942968077 | I73: 6619.1 | J73: =I73/$I$170 -> 0.01093293993 | K73: =$J73*D73 -> 0.005198477415 | L73: =$J73*E73 -> 0.0003303452111 | M73: 0.005404117309
B74: Wisconsin Power & Light | D74: 0.4498521984 | E74: 0 | F74: 0.5501478016 | I74: 4296.3 | J74: =I74/$I$170 -> 0.007096310653 | K74: =$J74*D74 -> 0.003192290948 | L74: =$J74*E74 -> 0 | M74: =$J74*F74 -> 0.003904019705
B75: AMEREN CORP.
B76: Ameren Illinois Co. | D76: 0.4638640197 | E76: 0.008044634748 | F76: 0.5280913455 | I76: 7707 | J76: 0.01272985271 | K76: 0.005904920649 | L76: 0.0001024070155 | M76: 0.006722525046
B77: Union Electric Co. | D77: 0.4906897763 | E77: 0.009368778545 | F77: 0.4999414451 | I77: 8539 | J77: 0.01410408879 | K77: 0.006920732173 | L77: 0.0001321380845 | M77: 0.007051218532
B78: AMERICAN ELEC PWR
B79: AEP Texas, Inc. | D79: 0.6062105193 | E79: 0 | F79: 0.3937894807 | I79: 7519.5 | J79: 0.01242015408 | K79: 0.007529228052 | L79: 0 | M79: 0.004890926023
B80: Appalachian Power Co. | D80: 0.5112110775 | E80: 0 | F80: 0.4887889225 | I80: 8536.2 | J80: 0.01409946396 | K80: 0.007207802162 | L80: 0 | M80: 0.006891661795
B81: Indiana Michigan Power Co. | D81: 0.5452043042 | E81: 0 | F81: 0.4547956958 | I81: 5594.6 | J81: 0.009240746591 | K81: 0.005038094815 | L81: 0 | M81: 0.004202651776
B82: Kentucky Power Co. | D82: 0.5265768936 | E82: 0 | F82: 0.4734231064 | I82: 1652.180357 | J82: 0.002728949344 | K82: 0.001437001668 | L82: 0 | M82: 0.001291947676
B83: Kingsport Power Co. | D83: 0.4537564532 | E83: 0 | F83: 0.5462435468 | I83: 130.025699 | J83: 0.0002147668349 | K83: 9.745183728e-05 | L83: 0 | M83: 0.0001173149977
B84: Ohio Power Co. | D84: 0.4535453654 | E84: 0 | F84: 0.5464546346 | I84: 4590.5 | J84: 0.007582248458 | K84: 0.003438893648 | L84: 0 | M84: 0.004143354811
B85: Public Service Co. of Oklahoma | D85: 0.50233738 | E85: 0 | F85: 0.49766262 | I85: 2759.5 | J85: 0.004557938051 | K85: 0.002289622658 | L85: 0 | M85: 0.002268315392
B86: Southwestern Electric Pwr Co. | D86: 0.5210430278 | E86: 0 | F86: 0.4789569722 | I86: 5096.7 | J86: 0.008418352188 | K86: 0.004386323713 | L86: 0 | M86: 0.004032028474
B87: Wheeling Power Co. | D87: 0.4648765134 | E87: 0 | F87: 0.5351234866 | I87: 752.888111 | J87: 0.00124356491 | K87: 0.0005781041195 | L87: 0 | M87: 0.0006654607904
B88: AVANGRID
B89: Central Maine Pwr | D89: 0.374950325 | E89: 0.0001800076644 | F89: 0.6248696673 | I89: 3173.75375 | J89: 0.005242171763 | K89: 0.001965554006 | L89: 9.436310956e-07 | M89: 0.003275674126
B90: NY State E&G | D90: 0.5106384947 | E90: 0 | F90: 0.4893615053 | I90: 3006.988337 | J90: 0.004966720985 | K90: 0.002536198928 | L90: 0 | M90: 0.002430522058
B91: Rochester G&E | D91: 0.4878481221 | E91: 0 | F91: 0.5121518779 | I91: 2156.286681 | J91: 0.003561594894 | K91: 0.001737517381 | L91: 0 | M91: 0.001824077514
B92: United Illuminating | D92: 0.4237335524 | E92: 0 | F92: 0.5762664476 | I92: 2046.002718 | J92: 0.003379435999 | K92: 0.001431980421 | L92: 0 | M92: 0.001947455578
B93: BLACK HILLS CORP.
B94: Black Hills Power | D94: 0.4318073884 | E94: 0 | F94: 0.5681926116 | I94: 793.809692 | J94: 0.001311156152 | K94: 0.0005661669136 | L94: 0 | M94: 0.0007449892379
B95: Cheyenne Light Fuel & Power | D95: 0.5168413879 | E95: 0 | F95: 0.4831586121 | I95: 390.835573 | J95: 0.0006455532994 | K95: 0.0003336486632 | L95: 0 | M95: 0.0003119046362
B96: Black Hills/Colorado Electric Utility Co | D96: 0.2701529956 | E96: 0 | F96: 0.7298470044 | I96: 555.240928 | J96: 0.0009171059079 | K96: 0.0002477589083 | L96: 0 | M96: 0.0006693469996
B97: CMS ENERGY
B98: Consumers Energy Co. | D98: 0.4870043761 | E98: 0.002453255536 | F98: 0.5105423684 | I98: 15082 | J98: 0.02491133237 | K98: 0.01213192788 | L98: 6.111386406e-05 | M98: 0.01271829063
B99: CONSOLIDATED EDISON
B100: Consolidated Edison of NY | D100: 0.5140324963 | E100: 0 | F100: 0.4859675037 | I100: 29111 | J100: 0.04808339721 | K100: 0.0247164287 | L100: 0 | M100: 0.02336696851
B101: Orange & Rockland | D101: 0.51954372 | E101: 0 | F101: 0.48045628 | I101: 1586.45432 | J101: 0.002620387936 | K101: 0.001361406096 | L101: 0 | M101: 0.00125898184
B102: Rockland Electric | D102: 0 | E102: 0 | F102: 1 | I102: 308.412117 | J102: 0.0005094123295 | K102: 0 | L102: 0 | M102: 0.0005094123295
B103: DOMINION ENERGY
B104: Virginia Electric & Power | D104: 0.4687856004 | E104: 0 | F104: 0.5312143996 | I104: 26334 | J104: 0.04349655395 | K104: 0.02039055816 | L104: 0 | M104: 0.02310599579
B105: Dominion Energy South Carolina | D105: 0.4815505528 | E105: 0 | F105: 0.5184494472 | I105: 7507 | J105: 0.0123995075 | K105: 0.005970989691 | L105: 0 | M105: 0.006428517809
B106: DTE ENERGY CO.
B107: DTE Electric Co. | D107: 0.4997566572 | E107: 0 | F107: 0.5002433428 | I107: 14383 | J107: 0.02375677586 | K107: 0.01187260689 | L107: 0 | M107: 0.01188416897
B108: DUKE ENERGY
B109: Duke Energy Carolinas | D109: 0.4815669135 | E109: 0 | F109: 0.5184330865 | I109: 24711 | J109: 0.04081580256 | K109: 0.01965554006 | L109: 0 | M109: 0.0211602625
B110: Duke Energy Florida | D110: 0.5405752961 | E110: 0 | F110: 0.4594247039 | I110: 14775 | J110: 0.02440425247 | K110: 0.01319233601 | L110: 0 | M110: 0.01121191647
B111: Duke Energy Indiana | D111: 0.4699953661 | E111: 0 | F111: 0.5300046339 | I111: 8632 | J111: 0.01425769931 | K111: 0.006701052608 | L111: 0 | M111: 0.007556646705
B112: Duke Energy Ohio | D112: 0.4155823548 | E112: 0 | F112: 0.5844176452 | I112: 6302 | J112: 0.0104091776 | K112: 0.00432587054 | L112: 0 | M112: 0.006083307063
B113: Duke Energy Progress | D113: 0.4948645105 | E113: 0 | F113: 0.5051354895 | I113: 18304 | J113: 0.03023319372 | K113: 0.01496133461 | L113: 0 | M113: 0.01527185911
B114: Progress Energy Inc. | D114: 0.5573565731 | E114: 0 | F114: 0.4426434269 | I114: 35227 | J114: 0.05818535376 | K114: 0.03242998938 | L114: 0 | M114: 0.02575536439
B115: Duke Energy Kentucky | D115: 0.5062864129 | E115: 0 | F115: 0.4937135871 | I115: 1306.615027 | J115: 0.002158170085 | K115: 0.001092652191 | L115: 0 | M115: 0.001065517894
B116: ENTERGY CORP.
B117: Entergy Arkansas Inc. | D117: 0.5294492292 | E117: 0 | F117: 0.4705507708 | I117: 6643.145 | J117: 0.01097265569 | K117: 0.005809464097 | L117: 0 | M117: 0.005163191591
B118: Entergy Louisiana LLC | D118: 0.5330839024 | E118: 0 | F118: 0.4669160976 | I118: 13700.787 | J118: 0.02262994687 | K118: 0.01206366039 | L118: 0 | M118: 0.01056628648
B119: Entergy Mississippi Inc. | D119: 0.5114023471 | E119: 0 | F119: 0.4885976529 | I119: 3156.28 | J119: 0.005213309915 | K119: 0.002666098926 | L119: 0 | M119: 0.002547210988
B120: Entergy New Orleans Inc. | D120: 0.5290962829 | E120: 0 | F120: 0.4709037171 | I120: 1056.647 | J120: 0.001745291382 | K120: 0.0009234271825 | L120: 0 | M120: 0.000821864199
B121: Entergy Texas Inc. | D121: 0.5165955067 | E121: 0.009402629459 | F121: 0.4740018639 | I121: 3722.363 | J121: 0.006148323956 | K121: 0.003176196529 | L121: 5.781041195e-05 | M121: 0.002914317015
B122: EVERGY, INC.
B123: Evergy Metro | D123: 0.4945453121 | E123: 0 | F123: 0.5054546879 | I123: 5105.7 | J123: 0.008433217722 | K123: 0.004170608291 | L123: 0 | M123: 0.004262609432
B124: Evergy Kansas Central | D124: 0.4671211872 | E124: 0 | F124: 0.5328788128 | I124: 7891.1 | J124: 0.01303393548 | K124: 0.006088427414 | L124: 0 | M124: 0.006945508064
B125: EVERSOURCE ENERGY
B126: Connecticut Light & Power | D126: 0.4385521557 | E126: 0.01448487509 | F126: 0.5469629692 | I126: 8022.161 | J126: 0.01325041235 | K126: 0.005810996899 | L126: 0.0001919305677 | M126: 0.00724748488
B127: NSTAR Electric Co. | D127: 0.4429555055 | E127: 0.005699161163 | F127: 0.5513453334 | I127: 7544.97 | J127: 0.01246222354 | K127: 0.005520210526 | L127: 7.102422039e-05 | M127: 0.006870988791
B128: Public Service Co. of New Hampshire | D128: 0.5244677852 | E128: 0 | F128: 0.4755322148 | I128: 2926.685 | J128: 0.004834081871 | K128: 0.002535320213 | L128: 0 | M128: 0.002298761659
B129: EXELON CORP.
B130: Delmarva Power and Light | D130: 0.4979345408 | E130: 0 | F130: 0.5020654592 | I130: 3147 | J130: 0.005197981897 | K130: 0.002588254729 | L130: 0 | M130: 0.002609727168
B131: Baltimore Gas & Electric Co. | D131: 0.4703005897 | E131: 0 | F131: 0.5296994103 | I131: 6953 | J131: 0.01148445126 | K131: 0.005401144202 | L131: 0 | M131: 0.006083307063
B132: Commonweath Edison Co. | D132: 0.4488721416 | E132: 0 | F132: 0.5511278584 | I132: 19373 | J132: 0.03199888888 | K132: 0.01436340978 | L132: 0 | M132: 0.0176354791
B133: PECO Energy Co. | D133: 0.4620831724 | E133: 0 | F133: 0.5379168276 | I133: 7767 | J133: 0.01282895627 | K133: 0.005928044814 | L133: 0 | M133: 0.00690091146
B134: Potomac Electric Power Co. | D134: 0.4962744758 | E134: 0 | F134: 0.5037255242 | I134: 5771 | J134: 0.009532111067 | K134: 0.004730543423 | L134: 0 | M134: 0.004801567644
B135: Atlantic City Electric Co. | D135: 0.5097963888 | E135: 0 | F135: 0.4902036112 | I135: 2603 | J135: 0.004299442923 | K135: 0.002191840476 | L135: 0 | M135: 0.002107602447
B136: FORTIS, INC.
B137: Tucson Electric Power Co. | D137: 0.4490082698 | E137: 0 | F137: 0.5509917302 | I137: 3590.258426 | J137: 0.005930123389 | K137: 0.002662674442 | L137: 0 | M137: 0.003267448946
B138: UNS Electric | D138: 0.425246703 | E138: 0 | F138: 0.574753297 | I138: 423.283705 | J138: =I138/$I$170 -> 0.0006991487245 | K138: =$J138*D138 -> 0.00029731069 | L138: =$J138*E138 -> 0 | M138: =$J138*F138 -> 0.0004018380345
B139: Central Hudson Gas & Electric | D139: 0.4916291301 | E139: 7.294741897e-08 | F139: 0.5083707969 | I139: 1370.850421 | J139: 0.002264269359 | K139: 0.001113180775 | L139: 1.651726056e-10 | M139: 0.001151088418
B140: International Transmission Co. | D140: 0.3998572713 | E140: 0 | F140: 0.6001427287 | I140: 2021.420562 | J140: 0.003338833012 | K140: 0.001335056657 | L140: 0 | M140: 0.002003776354
B141: ITC Great Plains | D141: 0.4000606969 | E141: 0 | F141: 0.5999393031 | I141: 455.930816 | J141: 0.0007530728084 | K141: 0.0003012748326 | L141: 0 | M141: 0.0004517979758
B142: ITC Midwest | D142: 0.4002367838 | E142: 0 | F142: 0.5997632162 | I142: 3033.410561 | J142: 0.005010363261 | K142: 0.002005331677 | L142: 0 | M142: 0.003005031584
B143: Michigan Elec. Transmission Co. | D143: 0.4000314205 | E143: 0 | F143: 0.5999685795 | I143: 1635.62152 | J143: 0.002701598682 | K143: 0.001080724358 | L143: 0 | M143: 0.001620874324
B144: NEXTERA ENERGY
B145: Florida Power & Light | D145: 0.3982395455 | E145: 0 | F145: 0.6017604545 | I145: 35559 | J145: 0.05873372681 | K145: 0.02339009267 | L145: 0 | M145: 0.03534363414
B146: Gulf Power Co. | D146: 0.496986277 | E146: 0 | F146: 0.503013723 | I146: 3410.506552 | J146: 0.005633222535 | K146: 0.002799634295 | L146: 0 | M146: 0.00283358824
B147: OGE ENERGY CORP.
B148: Oklahoma G&E | D148: 0.4485325588 | E148: 0 | F148: 0.5514674412 | I148: 7177.637141 | J148: 0.01185549028 | K148: 0.005317573393 | L148: 0 | M148: 0.006537916891
B149: PPL CORP.
B150: Kentucky Utilities Co. | D150: 0.4232693239 | E150: 0 | F150: 0.5767306761 | I150: 6197 | J150: 0.01023574637 | K150: 0.004332477444 | L150: 0 | M150: 0.005903268923
B151: Louisville Gas & Electric Co. | D151: 0.420599958 | E151: 0 | F151: 0.579400042 | I151: 4767 | J151: 0.007873778107 | K151: 0.003311710742 | L151: 0 | M151: 0.004562067366
B152: PPL Electric Utilities Corp. | D152: 0.4519677895 | E152: 0 | F152: 0.5480322105 | I152: 8817 | J152: 0.01456326863 | K152: 0.006582128332 | L152: 0 | M152: 0.007981140301
B153: PUB SV ENTERPRISE GRP
B154: Pub Service Electric & Gas Co. | D154: 0.4522319374 | E154: 0 | F154: 0.5477680626 | I154: 21730 | J154: 0.03589200719 | K154: 0.01623151195 | L154: 0 | M154: 0.01966049524
B155: SEMPRA ENERGY
B156: San Diego Gas & Electric | D156: 0.4725895112 | E156: 0 | F156: 0.5274104888 | I156: 13462 | J156: 0.02223553616 | K156: 0.01050828117 | L156: 0 | M156: 0.011727255
B157: Oncor Electric Delivery | D157: 0.4335998476 | E157: 0 | F157: 0.5664001524 | I157: 17897.94149 | J157: 0.0295624963 | K157: 0.01281829389 | L157: 0 | M157: 0.01674420241
B158: SOUTHERN CO.
B159: Alabama Power Co. | D159: 0.4795970057 | E159: 0.01637867957 | F159: 0.5040243147 | I159: 17767 | J159: 0.02934621683 | K159: 0.01407435772 | L159: 0.0004806522822 | M159: 0.01479120683
B160: Georgia Power Co. | D160: 0.4395669804 | E160: 0 | F160: 0.5604330196 | I160: 26881 | J160: 0.0444000481 | K160: 0.01951679507 | L160: 0 | M160: 0.02488325303
B161: Mississippi Power Co. | D161: 0.4902807775 | E161: 0 | F161: 0.5097192225 | I161: 3241 | J161: 0.005353244146 | K161: 0.002624592702 | L161: 0 | M161: 0.002728651444
B162: WEC ENERGY GROUP
B163: Wisconsin Electric Power Co. | D163: 0.4351851269 | E163: 0.004788671012 | F163: 0.5600262021 | I163: 6358.716213 | J163: 0.01050285725 | K163: 0.004570687265 | L163: 5.029472805e-05 | M163: 0.005881875257
B164: Wisconsin Public Service Corp. | D164: 0.4539240559 | E164: 0 | F164: 0.5460759441 | I164: 3577.895392 | J164: 0.005909703043 | K164: 0.002682556375 | L164: 0 | M164: 0.003227146669
B165: XCEL ENERGY, INC.
B166: Northern States Power Co. (MN) | D166: 0.4779932499 | E166: 0 | F166: 0.5220067501 | I166: 11650.86072 | J166: 0.01924403022 | K166: 0.009198516544 | L166: 0 | M166: 0.01004551367
B167: Northern States Power Co. (WI) | D167: 0.4577227909 | E167: 0 | F167: 0.5422772091 | I167: 1782.40758 | J167: 0.002944049042 | K167: 0.001347558344 | L167: 0 | M167: 0.001596490698
B168: Public Service Co. of Colorado | D168: 0.4368088928 | E168: 0 | F168: 0.5631911072 | I168: 12422.41838 | J168: 0.02051843212 | K168: 0.008962633616 | L168: 0 | M168: 0.0115557985
B169: Southwestern Public Service Co. | D169: 0.4585617369 | E169: 0 | F169: 0.5414382631 | I169: 5327.381232 | J169: 0.008799374389 | K169: 0.004035056404 | L169: 0 | M169: 0.004764317985
I170: =SUM(I73:I169) -> 605427.272 | J170: =SUM(J73:J169) -> 1 | K170: 0.4759081211 | L170: 0.001478660182 | M170: 0.5226132187

Sheet Proxy Group Risk Measures
A1: RISK MEASURES
A3: ELECTRIC UTILITY GROUP
E4: (a) | H4: (b) | K4: (c) | R4: (c)
E5: S&P | H5: Moody's | K5: Value Line
E6: Corporate | H6: Long-term | K6: Safety | M6: Financial | R6: Market
B7: Company | C7: SYM | E7: Rating | H7: Rating | K7: Rank | M7: Strength | P7: Beta | R7: Cap
A8: =A7+1 -> 1 | B8: =VLOOKUP('Proxy Group Ticker'!$B3,vldatabase,2,FALSE) -> Alliant Energy | C8: ='Proxy Group Ticker'!B3 -> LNT | E8: =VLOOKUP('Proxy Group Ticker'!$B3,vldatabase,26,FALSE) -> A- | F8: =VLOOKUP(E8,'Ordinal Ratings'!A$6:C$28,2,FALSE) -> 7 | H8: =VLOOKUP('Proxy Group Ticker'!$B3,vldatabase,27,FALSE) -> Baa2 | I8: =VLOOKUP(H8,'Ordinal Ratings'!I$6:K$25,2,FALSE) -> 9 | K8: =VLOOKUP('Proxy Group Ticker'!$B3,vldatabase,22,FALSE) -> 2 | M8: =VLOOKUP('Proxy Group Ticker'!$B3,vldatabase,24,FALSE) -> A | N8: =VLOOKUP(M8,'Ordinal Ratings'!E$6:G$16,2,FALSE) -> 3 | P8: =VLOOKUP('Proxy Group Ticker'!$B3,vldatabase,23,FALSE) -> 0.55 | R8: =VLOOKUP('Proxy Group Ticker'!$B3,vldatabase,28,FALSE) -> 13400
A9: =A8+1 -> 2 | B9: =VLOOKUP('Proxy Group Ticker'!$B4,vldatabase,2,FALSE) -> Ameren Corp. | C9: ='Proxy Group Ticker'!B4 -> AEE | E9: =VLOOKUP('Proxy Group Ticker'!$B4,vldatabase,26,FALSE) -> BBB+ | F9: =VLOOKUP(E9,'Ordinal Ratings'!A$6:C$28,2,FALSE) -> 8 | H9: =VLOOKUP('Proxy Group Ticker'!$B4,vldatabase,27,FALSE) -> Baa1 | I9: =VLOOKUP(H9,'Ordinal Ratings'!I$6:K$25,2,FALSE) -> 8 | K9: =VLOOKUP('Proxy Group Ticker'!$B4,vldatabase,22,FALSE) -> 2 | M9: =VLOOKUP('Proxy Group Ticker'!$B4,vldatabase,24,FALSE) -> A | N9: =VLOOKUP(M9,'Ordinal Ratings'!E$6:G$16,2,FALSE) -> 3 | P9: =VLOOKUP('Proxy Group Ticker'!$B4,vldatabase,23,FALSE) -> 0.5 | R9: =VLOOKUP('Proxy Group Ticker'!$B4,vldatabase,28,FALSE) -> 20000
A10: 3 | B10: =VLOOKUP('Proxy Group Ticker'!$B5,vldatabase,2,FALSE) -> American Elec Pwr | C10: ='Proxy Group Ticker'!B5 -> AEP | E10: =VLOOKUP('Proxy Group Ticker'!$B5,vldatabase,26,FALSE) -> A- | F10: =VLOOKUP(E10,'Ordinal Ratings'!A$6:C$28,2,FALSE) -> 7 | H10: =VLOOKUP('Proxy Group Ticker'!$B5,vldatabase,27,FALSE) -> Baa1 | I10: =VLOOKUP(H10,'Ordinal Ratings'!I$6:K$25,2,FALSE) -> 8 | K10: =VLOOKUP('Proxy Group Ticker'!$B5,vldatabase,22,FALSE) -> 1 | M10: =VLOOKUP('Proxy Group Ticker'!$B5,vldatabase,24,FALSE) -> A+ | N10: =VLOOKUP(M10,'Ordinal Ratings'!E$6:G$16,2,FALSE) -> 2 | P10: =VLOOKUP('Proxy Group Ticker'!$B5,vldatabase,23,FALSE) -> 0.5 | R10: =VLOOKUP('Proxy Group Ticker'!$B5,vldatabase,28,FALSE) -> 47000
A11: 4 | B11: =VLOOKUP('Proxy Group Ticker'!$B6,vldatabase,2,FALSE) -> Avangrid, Inc. | C11: ='Proxy Group Ticker'!B6 -> AGR | E11: =VLOOKUP('Proxy Group Ticker'!$B6,vldatabase,26,FALSE) -> BBB+ | F11: =VLOOKUP(E11,'Ordinal Ratings'!A$6:C$28,2,FALSE) -> 8 | H11: =VLOOKUP('Proxy Group Ticker'!$B6,vldatabase,27,FALSE) -> Baa1 | I11: =VLOOKUP(H11,'Ordinal Ratings'!I$6:K$25,2,FALSE) -> 8 | K11: =VLOOKUP('Proxy Group Ticker'!$B6,vldatabase,22,FALSE) -> 2 | M11: =VLOOKUP('Proxy Group Ticker'!$B6,vldatabase,24,FALSE) -> B++ | N11: =VLOOKUP(M11,'Ordinal Ratings'!E$6:G$16,2,FALSE) -> 4 | P11: =VLOOKUP('Proxy Group Ticker'!$B6,vldatabase,23,FALSE) -> 0.4 | R11: =VLOOKUP('Proxy Group Ticker'!$B6,vldatabase,28,FALSE) -> 16000
A12: 5 | B12: =VLOOKUP('Proxy Group Ticker'!$B7,vldatabase,2,FALSE) -> Black Hills Corp. | C12: ='Proxy Group Ticker'!B7 -> BKH | E12: =VLOOKUP('Proxy Group Ticker'!$B7,vldatabase,26,FALSE) -> BBB+ | F12: =VLOOKUP(E12,'Ordinal Ratings'!A$6:C$28,2,FALSE) -> 8 | H12: =VLOOKUP('Proxy Group Ticker'!$B7,vldatabase,27,FALSE) -> Baa2 | I12: =VLOOKUP(H12,'Ordinal Ratings'!I$6:K$25,2,FALSE) -> 9 | K12: =VLOOKUP('Proxy Group Ticker'!$B7,vldatabase,22,FALSE) -> 2 | M12: =VLOOKUP('Proxy Group Ticker'!$B7,vldatabase,24,FALSE) -> A | N12: =VLOOKUP(M12,'Ordinal Ratings'!E$6:G$16,2,FALSE) -> 3 | P12: =VLOOKUP('Proxy Group Ticker'!$B7,vldatabase,23,FALSE) -> 0.65 | R12: =VLOOKUP('Proxy Group Ticker'!$B7,vldatabase,28,FALSE) -> 4200
